Workbook

Sheet Summary
B2: Real-Time Modeling of Operating Room Need | N2: Health System | O2: County | P2: Health System Need | R2: County Summary | T2: County OR Need*
N3: =IF(Pivot!A4>0,Pivot!A4,"") -> Asheville Eye Surgery Center | O3: =IF(Pivot!B4>0,Pivot!B4,"") -> Buncombe | P3: =IF(Pivot!C4>0,Pivot!C4,"") -> 2 | R3: =IF(Pivot!E4>0,Pivot!E4,"") -> Brunswick | S3: =IF(Pivot!F4>0,Pivot!F4,"") -> 1 | T3: =IF(R3="GrandTotal",SUM(INDIRECT("T3:T" & MATCH("GrandTotal",R:R,0)-1)),IF(R3="","",IF(R3="Brunswick",S3-1,IF(AND(R3="New Hanover",S3-3<0),0,IF(AND(R3="New Hanover",S3-3>=0),S3-3,S3))))) -> 0
N4: =IF(Pivot!A5>0,Pivot!A5,"") -> Carolinas HealthCare System Union | O4: =IF(Pivot!B5>0,Pivot!B5,"") -> Union | P4: =IF(Pivot!C5>0,Pivot!C5,"") -> 1 | R4: =IF(Pivot!E5>0,Pivot!E5,"") -> Buncombe | S4: =IF(Pivot!F5>0,Pivot!F5,"") -> 2 | T4: =IF(R4="GrandTotal",SUM(INDIRECT("T3:T" & MATCH("GrandTotal",R:R,0)-1)),IF(R4="","",IF(R4="Brunswick",S4-1,IF(AND(R4="New Hanover",S4-3<0),0,IF(AND(R4="New Hanover",S4-3>=0),S4-3,S4))))) -> 2
N5: =IF(Pivot!A6>0,Pivot!A6,"") -> Charlotte Surgery Center | O5: =IF(Pivot!B6>0,Pivot!B6,"") -> Mecklenburg | P5: =IF(Pivot!C6>0,Pivot!C6,"") -> 1 | R5: =IF(Pivot!E6>0,Pivot!E6,"") -> Cabarrus | S5: =IF(Pivot!F6>0,Pivot!F6,"") -> 3 | T5: 3
N6: =IF(Pivot!A7>0,Pivot!A7,"") -> Davie Medical Center | O6: =IF(Pivot!B7>0,Pivot!B7,"") -> Davie | P6: =IF(Pivot!C7>0,Pivot!C7,"") -> 1 | R6: =IF(Pivot!E7>0,Pivot!E7,"") -> Catawba | S6: =IF(Pivot!F7>0,Pivot!F7,"") -> 3 | T6: 3
N7: =IF(Pivot!A8>0,Pivot!A8,"") -> Eye Surgery Center and Laser Clinic | O7: =IF(Pivot!B8>0,Pivot!B8,"") -> Cabarrus | P7: =IF(Pivot!C8>0,Pivot!C8,"") -> 1 | R7: =IF(Pivot!E8>0,Pivot!E8,"") -> Davie | S7: =IF(Pivot!F8>0,Pivot!F8,"") -> 1 | T7: 1
N8: =IF(Pivot!A9>0,Pivot!A9,"") -> Gateway Surgery Center | O8: =IF(Pivot!B9>0,Pivot!B9,"") -> Cabarrus | P8: =IF(Pivot!C9>0,Pivot!C9,"") -> 2 | R8: =IF(Pivot!E9>0,Pivot!E9,"") -> Durham | S8: =IF(Pivot!F9>0,Pivot!F9,"") -> 2 | T8: 2
N9: =IF(Pivot!A10>0,Pivot!A10,"") -> Graystone Eye Surgery Center | O9: =IF(Pivot!B10>0,Pivot!B10,"") -> Catawba | P9: =IF(Pivot!C10>0,Pivot!C10,"") -> 3 | R9: =IF(Pivot!E10>0,Pivot!E10,"") -> Mecklenburg | S9: =IF(Pivot!F10>0,Pivot!F10,"") -> 4 | T9: 4
N10: =IF(Pivot!A11>0,Pivot!A11,"") -> New Hanover Regional Medical Center | O10: =IF(Pivot!B11>0,Pivot!B11,"") -> New Hanover | P10: =IF(Pivot!C11>0,Pivot!C11,"") -> 4 | R10: =IF(Pivot!E11>0,Pivot!E11,"") -> Moore | S10: =IF(Pivot!F11>0,Pivot!F11,"") -> 3 | T10: 3
N11: =IF(Pivot!A12>0,Pivot!A12,"") -> North Carolina Specialty Hospital | O11: =IF(Pivot!B12>0,Pivot!B12,"") -> Durham | P11: =IF(Pivot!C12>0,Pivot!C12,"") -> 2 | R11: =IF(Pivot!E12>0,Pivot!E12,"") -> New Hanover | S11: =IF(Pivot!F12>0,Pivot!F12,"") -> 4 | T11: 1
N12: =IF(Pivot!A13>0,Pivot!A13,"") -> Novant Health Brunswick Medical Center | O12: =IF(Pivot!B13>0,Pivot!B13,"") -> Brunswick | P12: =IF(Pivot!C13>0,Pivot!C13,"") -> 1 | R12: =IF(Pivot!E13>0,Pivot!E13,"") -> Union | S12: =IF(Pivot!F13>0,Pivot!F13,"") -> 1 | T12: 1
B13: Decision Variables | N13: =IF(Pivot!A14>0,Pivot!A14,"") -> SouthPark Surgery Center | O13: =IF(Pivot!B14>0,Pivot!B14,"") -> Mecklenburg | P13: =IF(Pivot!C14>0,Pivot!C14,"") -> 3 | R13: =IF(Pivot!E14>0,Pivot!E14,"") -> GrandTotal | S13: =IF(Pivot!F14>0,Pivot!F14,"") -> 24 | T13: 20
I14: After making selections, click on the | N14: =IF(Pivot!A15>0,Pivot!A15,"") -> The Eye Surgery Center of the Carolinas | O14: =IF(Pivot!B15>0,Pivot!B15,"") -> Moore | P14: =IF(Pivot!C15>0,Pivot!C15,"") -> 3 | R14: =IF(Pivot!E15>0,Pivot!E15,"") ->  | S14: =IF(Pivot!F15>0,Pivot!F15,"") -> 
B15: I. Main Selection | I15: button below: | N15: =IF(Pivot!A16>0,Pivot!A16,"") -> GrandTotal | O15: =IF(Pivot!B16>0,Pivot!B16,"") ->  | P15: =IF(Pivot!C16>0,Pivot!C16,"") -> 24 | R15: =IF(Pivot!E16>0,Pivot!E16,"") ->  | S15: =IF(Pivot!F16>0,Pivot!F16,"") -> 
C16: 2 | N16: =IF(Pivot!A17>0,Pivot!A17,"") ->  | O16: =IF(Pivot!B17>0,Pivot!B17,"") ->  | P16: =IF(Pivot!C17>0,Pivot!C17,"") ->  | R16: =IF(Pivot!E17>0,Pivot!E17,"") ->  | S16: =IF(Pivot!F17>0,Pivot!F17,"") -> 
N17: =IF(Pivot!A18>0,Pivot!A18,"") ->  | O17: =IF(Pivot!B18>0,Pivot!B18,"") ->  | P17: =IF(Pivot!C18>0,Pivot!C18,"") ->  | R17: =IF(Pivot!E18>0,Pivot!E18,"") ->  | S17: =IF(Pivot!F18>0,Pivot!F18,"") -> 
B18: II. Grouping of Academic Medical Center Teaching Hospitals | N18: =IF(Pivot!A19>0,Pivot!A19,"") ->  | O18: =IF(Pivot!B19>0,Pivot!B19,"") ->  | P18: =IF(Pivot!C19>0,Pivot!C19,"") ->  | R18: =IF(Pivot!E19>0,Pivot!E19,"") ->  | S18: =IF(Pivot!F19>0,Pivot!F19,"") -> 
N19: =IF(Pivot!A20>0,Pivot!A20,"") ->  | O19: =IF(Pivot!B20>0,Pivot!B20,"") ->  | P19: =IF(Pivot!C20>0,Pivot!C20,"") ->  | R19: =IF(Pivot!E20>0,Pivot!E20,"") ->  | S19: =IF(Pivot!F20>0,Pivot!F20,"") -> 
I20: * County Totals account for the 2016 SMFP Need Determinations in Brunswick (1) and New Hanover (3). | N20: =IF(Pivot!A21>0,Pivot!A21,"") ->  | O20: =IF(Pivot!B21>0,Pivot!B21,"") ->  | P20: =IF(Pivot!C21>0,Pivot!C21,"") ->  | R20: =IF(Pivot!E21>0,Pivot!E21,"") ->  | S20: =IF(Pivot!F21>0,Pivot!F21,"") -> 
B21: III. Grouping for Ambulatory Surgery Centers | N21: =IF(Pivot!A22>0,Pivot!A22,"") ->  | O21: =IF(Pivot!B22>0,Pivot!B22,"") ->  | P21: =IF(Pivot!C22>0,Pivot!C22,"") ->  | R21: =IF(Pivot!E22>0,Pivot!E22,"") ->  | S21: =IF(Pivot!F22>0,Pivot!F22,"") -> 
N22: =IF(Pivot!A23>0,Pivot!A23,"") ->  | O22: =IF(Pivot!B23>0,Pivot!B23,"") ->  | P22: =IF(Pivot!C23>0,Pivot!C23,"") ->  | R22: =IF(Pivot!E23>0,Pivot!E23,"") ->  | S22: =IF(Pivot!F23>0,Pivot!F23,"") -> 
N23: =IF(Pivot!A24>0,Pivot!A24,"") ->  | O23: =IF(Pivot!B24>0,Pivot!B24,"") ->  | P23: =IF(Pivot!C24>0,Pivot!C24,"") ->  | R23: =IF(Pivot!E24>0,Pivot!E24,"") ->  | S23: =IF(Pivot!F24>0,Pivot!F24,"") -> 
B24: IV. Grouping Type | N24: =IF(Pivot!A25>0,Pivot!A25,"") ->  | O24: =IF(Pivot!B25>0,Pivot!B25,"") ->  | P24: =IF(Pivot!C25>0,Pivot!C25,"") ->  | R24: =IF(Pivot!E25>0,Pivot!E25,"") ->  | S24: =IF(Pivot!F25>0,Pivot!F25,"") -> 
N25: =IF(Pivot!A26>0,Pivot!A26,"") ->  | O25: =IF(Pivot!B26>0,Pivot!B26,"") ->  | P25: =IF(Pivot!C26>0,Pivot!C26,"") ->  | R25: =IF(Pivot!E26>0,Pivot!E26,"") ->  | S25: =IF(Pivot!F26>0,Pivot!F26,"") -> 
N26: =IF(Pivot!A27>0,Pivot!A27,"") ->  | O26: =IF(Pivot!B27>0,Pivot!B27,"") ->  | P26: =IF(Pivot!C27>0,Pivot!C27,"") ->  | R26: =IF(Pivot!E27>0,Pivot!E27,"") ->  | S26: =IF(Pivot!F27>0,Pivot!F27,"") -> 
B27: V. Growth Type | N27: =IF(Pivot!A28>0,Pivot!A28,"") ->  | O27: =IF(Pivot!B28>0,Pivot!B28,"") ->  | P27: =IF(Pivot!C28>0,Pivot!C28,"") ->  | R27: =IF(Pivot!E28>0,Pivot!E28,"") ->  | S27: =IF(Pivot!F28>0,Pivot!F28,"") -> 
N28: =IF(Pivot!A29>0,Pivot!A29,"") ->  | O28: =IF(Pivot!B29>0,Pivot!B29,"") ->  | P28: =IF(Pivot!C29>0,Pivot!C29,"") ->  | R28: =IF(Pivot!E29>0,Pivot!E29,"") ->  | S28: =IF(Pivot!F29>0,Pivot!F29,"") -> 
N29: =IF(Pivot!A30>0,Pivot!A30,"") ->  | O29: =IF(Pivot!B30>0,Pivot!B30,"") ->  | P29: =IF(Pivot!C30>0,Pivot!C30,"") ->  | R29: =IF(Pivot!E30>0,Pivot!E30,"") ->  | S29: =IF(Pivot!F30>0,Pivot!F30,"") -> 
B30: Section 1: Grouping | N30: =IF(Pivot!A31>0,Pivot!A31,"") ->  | O30: =IF(Pivot!B31>0,Pivot!B31,"") ->  | P30: =IF(Pivot!C31>0,Pivot!C31,"") ->  | R30: =IF(Pivot!E31>0,Pivot!E31,"") ->  | S30: =IF(Pivot!F31>0,Pivot!F31,"") -> 
N31: =IF(Pivot!A32>0,Pivot!A32,"") ->  | O31: =IF(Pivot!B32>0,Pivot!B32,"") ->  | P31: =IF(Pivot!C32>0,Pivot!C32,"") ->  | R31: =IF(Pivot!E32>0,Pivot!E32,"") ->  | S31: =IF(Pivot!F32>0,Pivot!F32,"") -> 
C32: Case Times | H32: Availability | N32: =IF(Pivot!A33>0,Pivot!A33,"") ->  | O32: =IF(Pivot!B33>0,Pivot!B33,"") ->  | P32: =IF(Pivot!C33>0,Pivot!C33,"") ->  | R32: =IF(Pivot!E33>0,Pivot!E33,"") ->  | S32: =IF(Pivot!F33>0,Pivot!F33,"") -> 
C33: 1 = Average | E33: 2 | H33: 1 = Average | J33: 3 | N33: =IF(Pivot!A34>0,Pivot!A34,"") ->  | O33: =IF(Pivot!B34>0,Pivot!B34,"") ->  | P33: =IF(Pivot!C34>0,Pivot!C34,"") ->  | R33: =IF(Pivot!E34>0,Pivot!E34,"") ->  | S33: =IF(Pivot!F34>0,Pivot!F34,"") -> 
C34: 2 = Median | H34: 2 = Median | N34: =IF(Pivot!A35>0,Pivot!A35,"") ->  | O34: =IF(Pivot!B35>0,Pivot!B35,"") ->  | P34: =IF(Pivot!C35>0,Pivot!C35,"") ->  | R34: =IF(Pivot!E35>0,Pivot!E35,"") ->  | S34: =IF(Pivot!F35>0,Pivot!F35,"") -> 
C35: 3 = User Assigned | H35: 3 = User Assigned | N35: =IF(Pivot!A36>0,Pivot!A36,"") ->  | O35: =IF(Pivot!B36>0,Pivot!B36,"") ->  | P35: =IF(Pivot!C36>0,Pivot!C36,"") ->  | R35: =IF(Pivot!E36>0,Pivot!E36,"") ->  | S35: =IF(Pivot!F36>0,Pivot!F36,"") -> 
N36: =IF(Pivot!A37>0,Pivot!A37,"") ->  | O36: =IF(Pivot!B37>0,Pivot!B37,"") ->  | P36: =IF(Pivot!C37>0,Pivot!C37,"") ->  | R36: =IF(Pivot!E37>0,Pivot!E37,"") ->  | S36: =IF(Pivot!F37>0,Pivot!F37,"") -> 
B37: Proceed below if chose "3 = User Assigned"; values of variables in green can be changed directly in cell | N37: =IF(Pivot!A38>0,Pivot!A38,"") ->  | O37: =IF(Pivot!B38>0,Pivot!B38,"") ->  | P37: =IF(Pivot!C38>0,Pivot!C38,"") ->  | R37: =IF(Pivot!E38>0,Pivot!E38,"") ->  | S37: =IF(Pivot!F38>0,Pivot!F38,"") -> 
E38: Case Times | G38: Availability | I38: Percent | N38: =IF(Pivot!A39>0,Pivot!A39,"") ->  | O38: =IF(Pivot!B39>0,Pivot!B39,"") ->  | P38: =IF(Pivot!C39>0,Pivot!C39,"") ->  | R38: =IF(Pivot!E39>0,Pivot!E39,"") ->  | S38: =IF(Pivot!F39>0,Pivot!F39,"") -> 
B39: num | C39: Group | D39: Name | E39: Inpat | F39: Amb | G39: Hrs/Day | H39: Days/Yr | J39: Full Utilization | N39: =IF(Pivot!A40>0,Pivot!A40,"") ->  | O39: =IF(Pivot!B40>0,Pivot!B40,"") ->  | P39: =IF(Pivot!C40>0,Pivot!C40,"") ->  | R39: =IF(Pivot!E40>0,Pivot!E40,"") ->  | S39: =IF(Pivot!F40>0,Pivot!F40,"") -> 
B40: 0 | C40: 0 | D40: teaching | E40: 170 | F40: 55 | G40: 10 | H40: 260 | I40: 0.8 | J40: =G40*H40*I40 -> 2080 | N40: =IF(Pivot!A41>0,Pivot!A41,"") ->  | O40: =IF(Pivot!B41>0,Pivot!B41,"") ->  | P40: =IF(Pivot!C41>0,Pivot!C41,"") ->  | R40: =IF(Pivot!E41>0,Pivot!E41,"") ->  | S40: =IF(Pivot!F41>0,Pivot!F41,"") -> 
B41: 1 | C41: 1 | D41: large | E41: 180 | F41: 55 | G41: 10 | H41: 260 | I41: 0.8 | J41: =G41*H41*I41 -> 2080 | N41: =IF(Pivot!A42>0,Pivot!A42,"") ->  | O41: =IF(Pivot!B42>0,Pivot!B42,"") ->  | P41: =IF(Pivot!C42>0,Pivot!C42,"") ->  | R41: =IF(Pivot!E42>0,Pivot!E42,"") ->  | S41: =IF(Pivot!F42>0,Pivot!F42,"") -> 
B42: 2 | C42: 2 | D42: medium | E42: 145 | F42: 55 | G42: 9 | H42: 260 | I42: 0.8 | J42: 1872 | N42: =IF(Pivot!A43>0,Pivot!A43,"") ->  | O42: =IF(Pivot!B43>0,Pivot!B43,"") ->  | P42: =IF(Pivot!C43>0,Pivot!C43,"") ->  | R42: =IF(Pivot!E43>0,Pivot!E43,"") ->  | S42: =IF(Pivot!F43>0,Pivot!F43,"") -> 
B43: 3 | C43: 3 | D43: small | E43: 123 | F43: 55 | G43: 8 | H43: 260 | I43: 0.8 | J43: 1664 | N43: =IF(Pivot!A44>0,Pivot!A44,"") ->  | O43: =IF(Pivot!B44>0,Pivot!B44,"") ->  | P43: =IF(Pivot!C44>0,Pivot!C44,"") ->  | R43: =IF(Pivot!E44>0,Pivot!E44,"") ->  | S43: =IF(Pivot!F44>0,Pivot!F44,"") -> 
B44: 4 | C44: =IF(control!$B$10=1,4,"4A") -> 4 | D44: =IF(control!$B$10=1,"amsus","single") -> amsus | F44: 55 | G44: 8 | H44: 234 | I44: 0.8 | J44: 1497.6 | N44: =IF(Pivot!A45>0,Pivot!A45,"") ->  | O44: =IF(Pivot!B45>0,Pivot!B45,"") ->  | P44: =IF(Pivot!C45>0,Pivot!C45,"") ->  | R44: =IF(Pivot!E45>0,Pivot!E45,"") ->  | S44: =IF(Pivot!F45>0,Pivot!F45,"") -> 
B45: 5 | C45: 4B | D45: multi | F45: 55 | G45: 8 | H45: 234 | I45: 0.8 | J45: 1497.6 | N45: =IF(Pivot!A46>0,Pivot!A46,"") ->  | O45: =IF(Pivot!B46>0,Pivot!B46,"") ->  | P45: =IF(Pivot!C46>0,Pivot!C46,"") ->  | R45: =IF(Pivot!E46>0,Pivot!E46,"") ->  | S45: =IF(Pivot!F46>0,Pivot!F46,"") -> 
N46: =IF(Pivot!A47>0,Pivot!A47,"") ->  | O46: =IF(Pivot!B47>0,Pivot!B47,"") ->  | P46: =IF(Pivot!C47>0,Pivot!C47,"") ->  | R46: =IF(Pivot!E47>0,Pivot!E47,"") ->  | S46: =IF(Pivot!F47>0,Pivot!F47,"") -> 
B47: Section 2: Grouping with outlier substitution | N47: =IF(Pivot!A48>0,Pivot!A48,"") ->  | O47: =IF(Pivot!B48>0,Pivot!B48,"") ->  | P47: =IF(Pivot!C48>0,Pivot!C48,"") ->  | R47: =IF(Pivot!E48>0,Pivot!E48,"") ->  | S47: =IF(Pivot!F48>0,Pivot!F48,"") -> 
N48: =IF(Pivot!A49>0,Pivot!A49,"") ->  | O48: =IF(Pivot!B49>0,Pivot!B49,"") ->  | P48: =IF(Pivot!C49>0,Pivot!C49,"") ->  | R48: =IF(Pivot!E49>0,Pivot!E49,"") ->  | S48: =IF(Pivot!F49>0,Pivot!F49,"") -> 
B49: Teaching Hospital Outlier Substitution | N49: =IF(Pivot!A50>0,Pivot!A50,"") ->  | O49: =IF(Pivot!B50>0,Pivot!B50,"") ->  | P49: =IF(Pivot!C50>0,Pivot!C50,"") ->  | R49: =IF(Pivot!E50>0,Pivot!E50,"") ->  | S49: =IF(Pivot!F50>0,Pivot!F50,"") -> 
N50: =IF(Pivot!A51>0,Pivot!A51,"") ->  | O50: =IF(Pivot!B51>0,Pivot!B51,"") ->  | P50: =IF(Pivot!C51>0,Pivot!C51,"") ->  | R50: =IF(Pivot!E51>0,Pivot!E51,"") ->  | S50: =IF(Pivot!F51>0,Pivot!F51,"") -> 
N51: =IF(Pivot!A52>0,Pivot!A52,"") ->  | O51: =IF(Pivot!B52>0,Pivot!B52,"") ->  | P51: =IF(Pivot!C52>0,Pivot!C52,"") ->  | R51: =IF(Pivot!E52>0,Pivot!E52,"") ->  | S51: =IF(Pivot!F52>0,Pivot!F52,"") -> 
B52: values of variables in green can be changed directly in cell | N52: =IF(Pivot!A53>0,Pivot!A53,"") ->  | O52: =IF(Pivot!B53>0,Pivot!B53,"") ->  | P52: =IF(Pivot!C53>0,Pivot!C53,"") ->  | R52: =IF(Pivot!E53>0,Pivot!E53,"") ->  | S52: =IF(Pivot!F53>0,Pivot!F53,"") -> 
F53: Availability | H53: Percent | N53: =IF(Pivot!A54>0,Pivot!A54,"") ->  | O53: =IF(Pivot!B54>0,Pivot!B54,"") ->  | P53: =IF(Pivot!C54>0,Pivot!C54,"") ->  | R53: =IF(Pivot!E54>0,Pivot!E54,"") ->  | S53: =IF(Pivot!F54>0,Pivot!F54,"") -> 
B54: num | C54: Group | D54: Minimum | E54: Maximum | F54: Hrs/Day | G54: Days/Yr | I54: Full Utilization | N54: =IF(Pivot!A55>0,Pivot!A55,"") ->  | O54: =IF(Pivot!B55>0,Pivot!B55,"") ->  | P54: =IF(Pivot!C55>0,Pivot!C55,"") ->  | R54: =IF(Pivot!E55>0,Pivot!E55,"") ->  | S54: =IF(Pivot!F55>0,Pivot!F55,"") -> 
B55: 1 | C55: 0,1 | D55: =control!H71 -> 40000 | E55: - | F55: 10 | G55: 260 | H55: 0.75 | I55: =F55*G55*H55 -> 1950 | N55: =IF(Pivot!A56>0,Pivot!A56,"") ->  | O55: =IF(Pivot!B56>0,Pivot!B56,"") ->  | P55: =IF(Pivot!C56>0,Pivot!C56,"") ->  | R55: =IF(Pivot!E56>0,Pivot!E56,"") ->  | S55: =IF(Pivot!F56>0,Pivot!F56,"") -> 
B56: 2 | C56: 2 | D56: =control!H72 -> 15000 | E56: =control!I72 -> 40000 | F56: 9 | G56: 260 | H56: 0.75 | I56: =F56*G56*H56 -> 1755 | N56: =IF(Pivot!A57>0,Pivot!A57,"") ->  | O56: =IF(Pivot!B57>0,Pivot!B57,"") ->  | P56: =IF(Pivot!C57>0,Pivot!C57,"") ->  | R56: =IF(Pivot!E57>0,Pivot!E57,"") ->  | S56: =IF(Pivot!F57>0,Pivot!F57,"") -> 
B57: 3 | C57: 3 | D57: =control!H73 -> 0 | E57: =control!I73 -> 15000 | F57: 8 | G57: 260 | H57: 0.75 | I57: 1560 | N57: =IF(Pivot!A58>0,Pivot!A58,"") ->  | O57: =IF(Pivot!B58>0,Pivot!B58,"") ->  | P57: =IF(Pivot!C58>0,Pivot!C58,"") ->  | R57: =IF(Pivot!E58>0,Pivot!E58,"") ->  | S57: =IF(Pivot!F58>0,Pivot!F58,"") -> 
B58: 4 | C58: =IF(control!$B$10=1,4,"4A") -> 4 | D58: =control!H74 -> NA | E58: =control!I74 -> NA | F58: 8 | G58: 234 | H58: 0.75 | I58: 1404 | N58: =IF(Pivot!A59>0,Pivot!A59,"") ->  | O58: =IF(Pivot!B59>0,Pivot!B59,"") ->  | P58: =IF(Pivot!C59>0,Pivot!C59,"") ->  | R58: =IF(Pivot!E59>0,Pivot!E59,"") ->  | S58: =IF(Pivot!F59>0,Pivot!F59,"") -> 
B59: 5 | C59: 4B | D59: =control!H75 -> NA | E59: =control!I75 -> NA | F59: 8 | G59: 234 | H59: 0.75 | I59: 1404 | N59: =IF(Pivot!A60>0,Pivot!A60,"") ->  | O59: =IF(Pivot!B60>0,Pivot!B60,"") ->  | P59: =IF(Pivot!C60>0,Pivot!C60,"") ->  | R59: =IF(Pivot!E60>0,Pivot!E60,"") ->  | S59: =IF(Pivot!F60>0,Pivot!F60,"") -> 
N60: =IF(Pivot!A61>0,Pivot!A61,"") ->  | O60: =IF(Pivot!B61>0,Pivot!B61,"") ->  | P60: =IF(Pivot!C61>0,Pivot!C61,"") ->  | R60: =IF(Pivot!E61>0,Pivot!E61,"") ->  | S60: =IF(Pivot!F61>0,Pivot!F61,"") -> 
B61: Section 3: Grouping for availability only | N61: =IF(Pivot!A62>0,Pivot!A62,"") ->  | O61: =IF(Pivot!B62>0,Pivot!B62,"") ->  | P61: =IF(Pivot!C62>0,Pivot!C62,"") ->  | R61: =IF(Pivot!E62>0,Pivot!E62,"") ->  | S61: =IF(Pivot!F62>0,Pivot!F62,"") -> 
N62: =IF(Pivot!A63>0,Pivot!A63,"") ->  | O62: =IF(Pivot!B63>0,Pivot!B63,"") ->  | P62: =IF(Pivot!C63>0,Pivot!C63,"") ->  | R62: =IF(Pivot!E63>0,Pivot!E63,"") ->  | S62: =IF(Pivot!F63>0,Pivot!F63,"") -> 
B63: values of variables in green can be changed directly in cell | N63: =IF(Pivot!A64>0,Pivot!A64,"") ->  | O63: =IF(Pivot!B64>0,Pivot!B64,"") ->  | P63: =IF(Pivot!C64>0,Pivot!C64,"") ->  | R63: =IF(Pivot!E64>0,Pivot!E64,"") ->  | S63: =IF(Pivot!F64>0,Pivot!F64,"") -> 
F64: Availability | H64: Percent | N64: =IF(Pivot!A65>0,Pivot!A65,"") ->  | O64: =IF(Pivot!B65>0,Pivot!B65,"") ->  | P64: =IF(Pivot!C65>0,Pivot!C65,"") ->  | R64: =IF(Pivot!E65>0,Pivot!E65,"") ->  | S64: =IF(Pivot!F65>0,Pivot!F65,"") -> 
B65: num | C65: Group | D65: Minimum | E65: Maximum | F65: Hrs/Day | G65: Days/Yr | I65: Full Utilization | N65: =IF(Pivot!A66>0,Pivot!A66,"") ->  | O65: =IF(Pivot!B66>0,Pivot!B66,"") ->  | P65: =IF(Pivot!C66>0,Pivot!C66,"") ->  | R65: =IF(Pivot!E66>0,Pivot!E66,"") ->  | S65: =IF(Pivot!F66>0,Pivot!F66,"") -> 
B66: 0 | C66: 0 | D66: =control!E84 -> NA | E66: =control!F84 -> NA | F66: 10 | G66: 260 | H66: 0.7 | I66: =F66*G66*H66 -> 1820 | N66: =IF(Pivot!A67>0,Pivot!A67,"") ->  | O66: =IF(Pivot!B67>0,Pivot!B67,"") ->  | P66: =IF(Pivot!C67>0,Pivot!C67,"") ->  | R66: =IF(Pivot!E67>0,Pivot!E67,"") ->  | S66: =IF(Pivot!F67>0,Pivot!F67,"") -> 
B67: 1 | C67: 1 | D67: =control!E85 -> 40000 | E67: - | F67: 9 | G67: 260 | H67: 0.7 | I67: =F67*G67*H67 -> 1638 | N67: =IF(Pivot!A68>0,Pivot!A68,"") ->  | O67: =IF(Pivot!B68>0,Pivot!B68,"") ->  | P67: =IF(Pivot!C68>0,Pivot!C68,"") ->  | R67: =IF(Pivot!E68>0,Pivot!E68,"") ->  | S67: =IF(Pivot!F68>0,Pivot!F68,"") -> 
B68: 2 | C68: 2 | D68: =control!E86 -> 15000 | E68: =control!F86 -> 40000 | F68: 9 | G68: 250 | H68: 0.7 | I68: 1575 | N68: =IF(Pivot!A69>0,Pivot!A69,"") ->  | O68: =IF(Pivot!B69>0,Pivot!B69,"") ->  | P68: =IF(Pivot!C69>0,Pivot!C69,"") ->  | R68: =IF(Pivot!E69>0,Pivot!E69,"") ->  | S68: =IF(Pivot!F69>0,Pivot!F69,"") ->  | T68: =IF(R68="GrandTotal",SUM(INDIRECT("T3:T" & MATCH("GrandTotal",R:R,0)-1)),IF(R68="","",IF(R68="Brunswick",S68-1,IF(AND(R68="New Hanover",S68-3<0),0,IF(AND(R68="New Hanover",S68-3>=0),S68-3,S68))))) -> 
B69: 3 | C69: 3 | D69: =control!E87 -> 0 | E69: =control!F87 -> 15000 | F69: 8 | G69: 250 | H69: 0.7 | I69: 1400 | N69: =IF(Pivot!A70>0,Pivot!A70,"") ->  | O69: =IF(Pivot!B70>0,Pivot!B70,"") ->  | P69: =IF(Pivot!C70>0,Pivot!C70,"") ->  | R69: =IF(Pivot!E70>0,Pivot!E70,"") ->  | S69: =IF(Pivot!F70>0,Pivot!F70,"") -> 
B70: 4 | C70: =IF(control!$B$10=1,4,"4A") -> 4 | D70: =control!E88 -> NA | E70: =control!F88 -> NA | F70: 8 | G70: 231 | H70: 0.7 | I70: 1293.6 | N70: =IF(Pivot!A71>0,Pivot!A71,"") ->  | O70: =IF(Pivot!B71>0,Pivot!B71,"") ->  | P70: =IF(Pivot!C71>0,Pivot!C71,"") ->  | R70: =IF(Pivot!E71>0,Pivot!E71,"") ->  | S70: =IF(Pivot!F71>0,Pivot!F71,"") -> 
B71: 5 | C71: 4B | D71: =control!E89 -> NA | E71: =control!F89 -> NA | F71: 7 | G71: 231 | H71: 0.7 | I71: 1131.9 | N71: =IF(Pivot!A72>0,Pivot!A72,"") ->  | O71: =IF(Pivot!B72>0,Pivot!B72,"") ->  | P71: =IF(Pivot!C72>0,Pivot!C72,"") ->  | R71: =IF(Pivot!E72>0,Pivot!E72,"") ->  | S71: =IF(Pivot!F72>0,Pivot!F72,"") -> 
N72: =IF(Pivot!A73>0,Pivot!A73,"") ->  | O72: =IF(Pivot!B73>0,Pivot!B73,"") ->  | P72: =IF(Pivot!C73>0,Pivot!C73,"") ->  | R72: =IF(Pivot!E73>0,Pivot!E73,"") ->  | S72: =IF(Pivot!F73>0,Pivot!F73,"") -> 
N73: =IF(Pivot!A74>0,Pivot!A74,"") ->  | O73: =IF(Pivot!B74>0,Pivot!B74,"") ->  | P73: =IF(Pivot!C74>0,Pivot!C74,"") ->  | R73: =IF(Pivot!E74>0,Pivot!E74,"") ->  | S73: =IF(Pivot!F74>0,Pivot!F74,"") -> 
N74: =IF(Pivot!A75>0,Pivot!A75,"") ->  | O74: =IF(Pivot!B75>0,Pivot!B75,"") ->  | P74: =IF(Pivot!C75>0,Pivot!C75,"") ->  | R74: =IF(Pivot!E75>0,Pivot!E75,"") ->  | S74: =IF(Pivot!F75>0,Pivot!F75,"") -> 
N75: =IF(Pivot!A76>0,Pivot!A76,"") ->  | O75: =IF(Pivot!B76>0,Pivot!B76,"") ->  | P75: =IF(Pivot!C76>0,Pivot!C76,"") ->  | R75: =IF(Pivot!E76>0,Pivot!E76,"") ->  | S75: =IF(Pivot!F76>0,Pivot!F76,"") -> 
N76: =IF(Pivot!A77>0,Pivot!A77,"") ->  | O76: =IF(Pivot!B77>0,Pivot!B77,"") ->  | P76: =IF(Pivot!C77>0,Pivot!C77,"") ->  | R76: =IF(Pivot!E77>0,Pivot!E77,"") ->  | S76: =IF(Pivot!F77>0,Pivot!F77,"") -> 
N77: =IF(Pivot!A78>0,Pivot!A78,"") ->  | O77: =IF(Pivot!B78>0,Pivot!B78,"") ->  | P77: =IF(Pivot!C78>0,Pivot!C78,"") ->  | R77: =IF(Pivot!E78>0,Pivot!E78,"") ->  | S77: =IF(Pivot!F78>0,Pivot!F78,"") -> 
N78: =IF(Pivot!A79>0,Pivot!A79,"") ->  | O78: =IF(Pivot!B79>0,Pivot!B79,"") ->  | P78: =IF(Pivot!C79>0,Pivot!C79,"") ->  | R78: =IF(Pivot!E79>0,Pivot!E79,"") ->  | S78: =IF(Pivot!F79>0,Pivot!F79,"") -> 
N79: =IF(Pivot!A80>0,Pivot!A80,"") ->  | O79: =IF(Pivot!B80>0,Pivot!B80,"") ->  | P79: =IF(Pivot!C80>0,Pivot!C80,"") ->  | R79: =IF(Pivot!E80>0,Pivot!E80,"") ->  | S79: =IF(Pivot!F80>0,Pivot!F80,"") -> 
N80: =IF(Pivot!A81>0,Pivot!A81,"") ->  | O80: =IF(Pivot!B81>0,Pivot!B81,"") ->  | P80: =IF(Pivot!C81>0,Pivot!C81,"") ->  | R80: =IF(Pivot!E81>0,Pivot!E81,"") ->  | S80: =IF(Pivot!F81>0,Pivot!F81,"") -> 
N81: =IF(Pivot!A82>0,Pivot!A82,"") ->  | O81: =IF(Pivot!B82>0,Pivot!B82,"") ->  | P81: =IF(Pivot!C82>0,Pivot!C82,"") ->  | R81: =IF(Pivot!E82>0,Pivot!E82,"") ->  | S81: =IF(Pivot!F82>0,Pivot!F82,"") -> 
N82: =IF(Pivot!A83>0,Pivot!A83,"") ->  | O82: =IF(Pivot!B83>0,Pivot!B83,"") ->  | P82: =IF(Pivot!C83>0,Pivot!C83,"") ->  | R82: =IF(Pivot!E83>0,Pivot!E83,"") ->  | S82: =IF(Pivot!F83>0,Pivot!F83,"") -> 
N83: =IF(Pivot!A84>0,Pivot!A84,"") ->  | O83: =IF(Pivot!B84>0,Pivot!B84,"") ->  | P83: =IF(Pivot!C84>0,Pivot!C84,"") ->  | R83: =IF(Pivot!E84>0,Pivot!E84,"") ->  | S83: =IF(Pivot!F84>0,Pivot!F84,"") -> 
N84: =IF(Pivot!A85>0,Pivot!A85,"") ->  | O84: =IF(Pivot!B85>0,Pivot!B85,"") ->  | P84: =IF(Pivot!C85>0,Pivot!C85,"") ->  | R84: =IF(Pivot!E85>0,Pivot!E85,"") ->  | S84: =IF(Pivot!F85>0,Pivot!F85,"") -> 
N85: =IF(Pivot!A86>0,Pivot!A86,"") ->  | O85: =IF(Pivot!B86>0,Pivot!B86,"") ->  | P85: =IF(Pivot!C86>0,Pivot!C86,"") ->  | R85: =IF(Pivot!E86>0,Pivot!E86,"") ->  | S85: =IF(Pivot!F86>0,Pivot!F86,"") -> 
N86: =IF(Pivot!A87>0,Pivot!A87,"") ->  | O86: =IF(Pivot!B87>0,Pivot!B87,"") ->  | P86: =IF(Pivot!C87>0,Pivot!C87,"") ->  | R86: =IF(Pivot!E87>0,Pivot!E87,"") ->  | S86: =IF(Pivot!F87>0,Pivot!F87,"") -> 
N87: =IF(Pivot!A88>0,Pivot!A88,"") ->  | O87: =IF(Pivot!B88>0,Pivot!B88,"") ->  | P87: =IF(Pivot!C88>0,Pivot!C88,"") ->  | R87: =IF(Pivot!E88>0,Pivot!E88,"") ->  | S87: =IF(Pivot!F88>0,Pivot!F88,"") -> 
N88: =IF(Pivot!A89>0,Pivot!A89,"") ->  | O88: =IF(Pivot!B89>0,Pivot!B89,"") ->  | P88: =IF(Pivot!C89>0,Pivot!C89,"") ->  | R88: =IF(Pivot!E89>0,Pivot!E89,"") ->  | S88: =IF(Pivot!F89>0,Pivot!F89,"") -> 
N89: =IF(Pivot!A90>0,Pivot!A90,"") ->  | O89: =IF(Pivot!B90>0,Pivot!B90,"") ->  | P89: =IF(Pivot!C90>0,Pivot!C90,"") ->  | R89: =IF(Pivot!E90>0,Pivot!E90,"") ->  | S89: =IF(Pivot!F90>0,Pivot!F90,"") -> 
N90: =IF(Pivot!A91>0,Pivot!A91,"") ->  | O90: =IF(Pivot!B91>0,Pivot!B91,"") ->  | P90: =IF(Pivot!C91>0,Pivot!C91,"") ->  | R90: =IF(Pivot!E91>0,Pivot!E91,"") ->  | S90: =IF(Pivot!F91>0,Pivot!F91,"") -> 
N91: =IF(Pivot!A92>0,Pivot!A92,"") ->  | O91: =IF(Pivot!B92>0,Pivot!B92,"") ->  | P91: =IF(Pivot!C92>0,Pivot!C92,"") ->  | R91: =IF(Pivot!E92>0,Pivot!E92,"") ->  | S91: =IF(Pivot!F92>0,Pivot!F92,"") -> 
N92: =IF(Pivot!A93>0,Pivot!A93,"") ->  | O92: =IF(Pivot!B93>0,Pivot!B93,"") ->  | P92: =IF(Pivot!C93>0,Pivot!C93,"") ->  | R92: =IF(Pivot!E93>0,Pivot!E93,"") ->  | S92: =IF(Pivot!F93>0,Pivot!F93,"") -> 
N93: =IF(Pivot!A94>0,Pivot!A94,"") ->  | O93: =IF(Pivot!B94>0,Pivot!B94,"") ->  | P93: =IF(Pivot!C94>0,Pivot!C94,"") ->  | R93: =IF(Pivot!E94>0,Pivot!E94,"") ->  | S93: =IF(Pivot!F94>0,Pivot!F94,"") -> 
N94: =IF(Pivot!A95>0,Pivot!A95,"") ->  | O94: =IF(Pivot!B95>0,Pivot!B95,"") ->  | P94: =IF(Pivot!C95>0,Pivot!C95,"") ->  | R94: =IF(Pivot!E95>0,Pivot!E95,"") ->  | S94: =IF(Pivot!F95>0,Pivot!F95,"") -> 
N95: =IF(Pivot!A96>0,Pivot!A96,"") ->  | O95: =IF(Pivot!B96>0,Pivot!B96,"") ->  | P95: =IF(Pivot!C96>0,Pivot!C96,"") ->  | R95: =IF(Pivot!E96>0,Pivot!E96,"") ->  | S95: =IF(Pivot!F96>0,Pivot!F96,"") -> 
N96: =IF(Pivot!A97>0,Pivot!A97,"") ->  | O96: =IF(Pivot!B97>0,Pivot!B97,"") ->  | P96: =IF(Pivot!C97>0,Pivot!C97,"") ->  | R96: =IF(Pivot!E97>0,Pivot!E97,"") ->  | S96: =IF(Pivot!F97>0,Pivot!F97,"") -> 
N97: =IF(Pivot!A98>0,Pivot!A98,"") ->  | O97: =IF(Pivot!B98>0,Pivot!B98,"") ->  | P97: =IF(Pivot!C98>0,Pivot!C98,"") ->  | R97: =IF(Pivot!E98>0,Pivot!E98,"") ->  | S97: =IF(Pivot!F98>0,Pivot!F98,"") -> 
N98: =IF(Pivot!A99>0,Pivot!A99,"") ->  | O98: =IF(Pivot!B99>0,Pivot!B99,"") ->  | P98: =IF(Pivot!C99>0,Pivot!C99,"") ->  | R98: =IF(Pivot!E99>0,Pivot!E99,"") ->  | S98: =IF(Pivot!F99>0,Pivot!F99,"") -> 
N99: =IF(Pivot!A100>0,Pivot!A100,"") ->  | O99: =IF(Pivot!B100>0,Pivot!B100,"") ->  | P99: =IF(Pivot!C100>0,Pivot!C100,"") ->  | R99: =IF(Pivot!E100>0,Pivot!E100,"") ->  | S99: =IF(Pivot!F100>0,Pivot!F100,"") -> 
N100: =IF(Pivot!A101>0,Pivot!A101,"") ->  | O100: =IF(Pivot!B101>0,Pivot!B101,"") ->  | P100: =IF(Pivot!C101>0,Pivot!C101,"") ->  | R100: =IF(Pivot!E101>0,Pivot!E101,"") ->  | S100: =IF(Pivot!F101>0,Pivot!F101,"") -> 
N101: =IF(Pivot!A102>0,Pivot!A102,"") ->  | O101: =IF(Pivot!B102>0,Pivot!B102,"") ->  | P101: =IF(Pivot!C102>0,Pivot!C102,"") ->  | R101: =IF(Pivot!E102>0,Pivot!E102,"") ->  | S101: =IF(Pivot!F102>0,Pivot!F102,"") -> 
N102: =IF(Pivot!A103>0,Pivot!A103,"") ->  | O102: =IF(Pivot!B103>0,Pivot!B103,"") ->  | P102: =IF(Pivot!C103>0,Pivot!C103,"") ->  | R102: =IF(Pivot!E103>0,Pivot!E103,"") ->  | S102: =IF(Pivot!F103>0,Pivot!F103,"") -> 
N103: =IF(Pivot!A104>0,Pivot!A104,"") ->  | O103: =IF(Pivot!B104>0,Pivot!B104,"") ->  | P103: =IF(Pivot!C104>0,Pivot!C104,"") ->  | R103: =IF(Pivot!E104>0,Pivot!E104,"") ->  | S103: =IF(Pivot!F104>0,Pivot!F104,"") -> 
N104: =IF(Pivot!A105>0,Pivot!A105,"") ->  | O104: =IF(Pivot!B105>0,Pivot!B105,"") ->  | P104: =IF(Pivot!C105>0,Pivot!C105,"") ->  | R104: =IF(Pivot!E105>0,Pivot!E105,"") ->  | S104: =IF(Pivot!F105>0,Pivot!F105,"") -> 
N105: =IF(Pivot!A106>0,Pivot!A106,"") ->  | O105: =IF(Pivot!B106>0,Pivot!B106,"") ->  | P105: =IF(Pivot!C106>0,Pivot!C106,"") ->  | R105: =IF(Pivot!E106>0,Pivot!E106,"") ->  | S105: =IF(Pivot!F106>0,Pivot!F106,"") -> 
N106: =IF(Pivot!A107>0,Pivot!A107,"") ->  | O106: =IF(Pivot!B107>0,Pivot!B107,"") ->  | P106: =IF(Pivot!C107>0,Pivot!C107,"") ->  | R106: =IF(Pivot!E107>0,Pivot!E107,"") ->  | S106: =IF(Pivot!F107>0,Pivot!F107,"") -> 
N107: =IF(Pivot!A108>0,Pivot!A108,"") ->  | O107: =IF(Pivot!B108>0,Pivot!B108,"") ->  | P107: =IF(Pivot!C108>0,Pivot!C108,"") ->  | R107: =IF(Pivot!E108>0,Pivot!E108,"") ->  | S107: =IF(Pivot!F108>0,Pivot!F108,"") -> 
N108: =IF(Pivot!A109>0,Pivot!A109,"") ->  | O108: =IF(Pivot!B109>0,Pivot!B109,"") ->  | P108: =IF(Pivot!C109>0,Pivot!C109,"") ->  | R108: =IF(Pivot!E109>0,Pivot!E109,"") ->  | S108: =IF(Pivot!F109>0,Pivot!F109,"") -> 
N109: =IF(Pivot!A110>0,Pivot!A110,"") ->  | O109: =IF(Pivot!B110>0,Pivot!B110,"") ->  | P109: =IF(Pivot!C110>0,Pivot!C110,"") -> 
N110: =IF(Pivot!A111>0,Pivot!A111,"") ->  | O110: =IF(Pivot!B111>0,Pivot!B111,"") ->  | P110: =IF(Pivot!C111>0,Pivot!C111,"") -> 
N111: =IF(Pivot!A112>0,Pivot!A112,"") ->  | O111: =IF(Pivot!B112>0,Pivot!B112,"") ->  | P111: =IF(Pivot!C112>0,Pivot!C112,"") -> 
N112: =IF(Pivot!A113>0,Pivot!A113,"") ->  | O112: =IF(Pivot!B113>0,Pivot!B113,"") ->  | P112: =IF(Pivot!C113>0,Pivot!C113,"") -> 
N113: =IF(Pivot!A114>0,Pivot!A114,"") ->  | O113: =IF(Pivot!B114>0,Pivot!B114,"") ->  | P113: =IF(Pivot!C114>0,Pivot!C114,"") -> 
N114: =IF(Pivot!A115>0,Pivot!A115,"") ->  | O114: =IF(Pivot!B115>0,Pivot!B115,"") ->  | P114: =IF(Pivot!C115>0,Pivot!C115,"") -> 
N115: =IF(Pivot!A116>0,Pivot!A116,"") ->  | O115: =IF(Pivot!B116>0,Pivot!B116,"") ->  | P115: =IF(Pivot!C116>0,Pivot!C116,"") -> 
N116: =IF(Pivot!A117>0,Pivot!A117,"") ->  | O116: =IF(Pivot!B117>0,Pivot!B117,"") ->  | P116: =IF(Pivot!C117>0,Pivot!C117,"") -> 
N117: =IF(Pivot!A118>0,Pivot!A118,"") ->  | O117: =IF(Pivot!B118>0,Pivot!B118,"") ->  | P117: =IF(Pivot!C118>0,Pivot!C118,"") -> 
N118: =IF(Pivot!A119>0,Pivot!A119,"") ->  | O118: =IF(Pivot!B119>0,Pivot!B119,"") ->  | P118: =IF(Pivot!C119>0,Pivot!C119,"") -> 
N119: =IF(Pivot!A120>0,Pivot!A120,"") ->  | O119: =IF(Pivot!B120>0,Pivot!B120,"") ->  | P119: =IF(Pivot!C120>0,Pivot!C120,"") -> 
N120: =IF(Pivot!A121>0,Pivot!A121,"") ->  | O120: =IF(Pivot!B121>0,Pivot!B121,"") ->  | P120: =IF(Pivot!C121>0,Pivot!C121,"") -> 
N121: =IF(Pivot!A122>0,Pivot!A122,"") ->  | O121: =IF(Pivot!B122>0,Pivot!B122,"") ->  | P121: =IF(Pivot!C122>0,Pivot!C122,"") -> 
N122: =IF(Pivot!A123>0,Pivot!A123,"") ->  | O122: =IF(Pivot!B123>0,Pivot!B123,"") ->  | P122: =IF(Pivot!C123>0,Pivot!C123,"") -> 
N123: =IF(Pivot!A124>0,Pivot!A124,"") ->  | O123: =IF(Pivot!B124>0,Pivot!B124,"") ->  | P123: =IF(Pivot!C124>0,Pivot!C124,"") -> 
N124: =IF(Pivot!A125>0,Pivot!A125,"") ->  | O124: =IF(Pivot!B125>0,Pivot!B125,"") ->  | P124: =IF(Pivot!C125>0,Pivot!C125,"") -> 
N125: =IF(Pivot!A126>0,Pivot!A126,"") ->  | O125: =IF(Pivot!B126>0,Pivot!B126,"") ->  | P125: =IF(Pivot!C126>0,Pivot!C126,"") -> 
N126: =IF(Pivot!A127>0,Pivot!A127,"") ->  | O126: =IF(Pivot!B127>0,Pivot!B127,"") ->  | P126: =IF(Pivot!C127>0,Pivot!C127,"") -> 
N127: =IF(Pivot!A128>0,Pivot!A128,"") ->  | O127: =IF(Pivot!B128>0,Pivot!B128,"") ->  | P127: =IF(Pivot!C128>0,Pivot!C128,"") -> 
N128: =IF(Pivot!A129>0,Pivot!A129,"") ->  | O128: =IF(Pivot!B129>0,Pivot!B129,"") ->  | P128: =IF(Pivot!C129>0,Pivot!C129,"") -> 
N129: =IF(Pivot!A130>0,Pivot!A130,"") ->  | O129: =IF(Pivot!B130>0,Pivot!B130,"") ->  | P129: =IF(Pivot!C130>0,Pivot!C130,"") -> 
N130: =IF(Pivot!A131>0,Pivot!A131,"") ->  | O130: =IF(Pivot!B131>0,Pivot!B131,"") ->  | P130: =IF(Pivot!C131>0,Pivot!C131,"") -> 
N131: =IF(Pivot!A132>0,Pivot!A132,"") ->  | O131: =IF(Pivot!B132>0,Pivot!B132,"") ->  | P131: =IF(Pivot!C132>0,Pivot!C132,"") -> 
N132: =IF(Pivot!A133>0,Pivot!A133,"") ->  | O132: =IF(Pivot!B133>0,Pivot!B133,"") ->  | P132: =IF(Pivot!C133>0,Pivot!C133,"") -> 
N133: =IF(Pivot!A134>0,Pivot!A134,"") ->  | O133: =IF(Pivot!B134>0,Pivot!B134,"") ->  | P133: =IF(Pivot!C134>0,Pivot!C134,"") -> 
N134: =IF(Pivot!A135>0,Pivot!A135,"") ->  | O134: =IF(Pivot!B135>0,Pivot!B135,"") ->  | P134: =IF(Pivot!C135>0,Pivot!C135,"") -> 
N135: =IF(Pivot!A136>0,Pivot!A136,"") ->  | O135: =IF(Pivot!B136>0,Pivot!B136,"") ->  | P135: =IF(Pivot!C136>0,Pivot!C136,"") -> 
N136: =IF(Pivot!A137>0,Pivot!A137,"") ->  | O136: =IF(Pivot!B137>0,Pivot!B137,"") ->  | P136: =IF(Pivot!C137>0,Pivot!C137,"") -> 
N137: =IF(Pivot!A138>0,Pivot!A138,"") ->  | O137: =IF(Pivot!B138>0,Pivot!B138,"") ->  | P137: =IF(Pivot!C138>0,Pivot!C138,"") -> 
N138: =IF(Pivot!A139>0,Pivot!A139,"") ->  | O138: =IF(Pivot!B139>0,Pivot!B139,"") ->  | P138: =IF(Pivot!C139>0,Pivot!C139,"") -> 
N139: =IF(Pivot!A140>0,Pivot!A140,"") ->  | O139: =IF(Pivot!B140>0,Pivot!B140,"") ->  | P139: =IF(Pivot!C140>0,Pivot!C140,"") -> 
N140: =IF(Pivot!A141>0,Pivot!A141,"") ->  | O140: =IF(Pivot!B141>0,Pivot!B141,"") ->  | P140: =IF(Pivot!C141>0,Pivot!C141,"") -> 
N141: =IF(Pivot!A142>0,Pivot!A142,"") ->  | O141: =IF(Pivot!B142>0,Pivot!B142,"") ->  | P141: =IF(Pivot!C142>0,Pivot!C142,"") -> 
N142: =IF(Pivot!A143>0,Pivot!A143,"") ->  | O142: =IF(Pivot!B143>0,Pivot!B143,"") ->  | P142: =IF(Pivot!C143>0,Pivot!C143,"") -> 
N143: =IF(Pivot!A144>0,Pivot!A144,"") ->  | O143: =IF(Pivot!B144>0,Pivot!B144,"") ->  | P143: =IF(Pivot!C144>0,Pivot!C144,"") -> 
N144: =IF(Pivot!A145>0,Pivot!A145,"") ->  | O144: =IF(Pivot!B145>0,Pivot!B145,"") ->  | P144: =IF(Pivot!C145>0,Pivot!C145,"") -> 
N145: =IF(Pivot!A146>0,Pivot!A146,"") ->  | O145: =IF(Pivot!B146>0,Pivot!B146,"") ->  | P145: =IF(Pivot!C146>0,Pivot!C146,"") -> 
N146: =IF(Pivot!A147>0,Pivot!A147,"") ->  | O146: =IF(Pivot!B147>0,Pivot!B147,"") ->  | P146: =IF(Pivot!C147>0,Pivot!C147,"") -> 
N147: =IF(Pivot!A148>0,Pivot!A148,"") ->  | O147: =IF(Pivot!B148>0,Pivot!B148,"") ->  | P147: =IF(Pivot!C148>0,Pivot!C148,"") -> 
N148: =IF(Pivot!A149>0,Pivot!A149,"") ->  | O148: =IF(Pivot!B149>0,Pivot!B149,"") ->  | P148: =IF(Pivot!C149>0,Pivot!C149,"") -> 
N149: =IF(Pivot!A150>0,Pivot!A150,"") ->  | O149: =IF(Pivot!B150>0,Pivot!B150,"") ->  | P149: =IF(Pivot!C150>0,Pivot!C150,"") -> 
N150: =IF(Pivot!A151>0,Pivot!A151,"") ->  | O150: =IF(Pivot!B151>0,Pivot!B151,"") ->  | P150: =IF(Pivot!C151>0,Pivot!C151,"") -> 
N151: =IF(Pivot!A152>0,Pivot!A152,"") ->  | O151: =IF(Pivot!B152>0,Pivot!B152,"") ->  | P151: =IF(Pivot!C152>0,Pivot!C152,"") -> 
N152: =IF(Pivot!A153>0,Pivot!A153,"") ->  | O152: =IF(Pivot!B153>0,Pivot!B153,"") ->  | P152: =IF(Pivot!C153>0,Pivot!C153,"") -> 
N153: =IF(Pivot!A154>0,Pivot!A154,"") ->  | O153: =IF(Pivot!B154>0,Pivot!B154,"") ->  | P153: =IF(Pivot!C154>0,Pivot!C154,"") -> 
N154: =IF(Pivot!A155>0,Pivot!A155,"") ->  | O154: =IF(Pivot!B155>0,Pivot!B155,"") ->  | P154: =IF(Pivot!C155>0,Pivot!C155,"") -> 
N155: =IF(Pivot!A156>0,Pivot!A156,"") ->  | O155: =IF(Pivot!B156>0,Pivot!B156,"") ->  | P155: =IF(Pivot!C156>0,Pivot!C156,"") -> 
N156: =IF(Pivot!A157>0,Pivot!A157,"") ->  | O156: =IF(Pivot!B157>0,Pivot!B157,"") ->  | P156: =IF(Pivot!C157>0,Pivot!C157,"") -> 
N157: =IF(Pivot!A158>0,Pivot!A158,"") ->  | O157: =IF(Pivot!B158>0,Pivot!B158,"") ->  | P157: =IF(Pivot!C158>0,Pivot!C158,"") -> 
N158: =IF(Pivot!A159>0,Pivot!A159,"") ->  | O158: =IF(Pivot!B159>0,Pivot!B159,"") ->  | P158: =IF(Pivot!C159>0,Pivot!C159,"") -> 
N159: =IF(Pivot!A160>0,Pivot!A160,"") ->  | O159: =IF(Pivot!B160>0,Pivot!B160,"") ->  | P159: =IF(Pivot!C160>0,Pivot!C160,"") -> 
N160: =IF(Pivot!A161>0,Pivot!A161,"") ->  | O160: =IF(Pivot!B161>0,Pivot!B161,"") ->  | P160: =IF(Pivot!C161>0,Pivot!C161,"") -> 
N161: =IF(Pivot!A162>0,Pivot!A162,"") ->  | O161: =IF(Pivot!B162>0,Pivot!B162,"") ->  | P161: =IF(Pivot!C162>0,Pivot!C162,"") -> 
N162: =IF(Pivot!A163>0,Pivot!A163,"") ->  | O162: =IF(Pivot!B163>0,Pivot!B163,"") ->  | P162: =IF(Pivot!C163>0,Pivot!C163,"") -> 
N163: =IF(Pivot!A164>0,Pivot!A164,"") ->  | O163: =IF(Pivot!B164>0,Pivot!B164,"") ->  | P163: =IF(Pivot!C164>0,Pivot!C164,"") -> 
N164: =IF(Pivot!A165>0,Pivot!A165,"") ->  | O164: =IF(Pivot!B165>0,Pivot!B165,"") ->  | P164: =IF(Pivot!C165>0,Pivot!C165,"") -> 
N165: =IF(Pivot!A166>0,Pivot!A166,"") ->  | O165: =IF(Pivot!B166>0,Pivot!B166,"") ->  | P165: =IF(Pivot!C166>0,Pivot!C166,"") -> 
N166: =IF(Pivot!A167>0,Pivot!A167,"") ->  | O166: =IF(Pivot!B167>0,Pivot!B167,"") ->  | P166: =IF(Pivot!C167>0,Pivot!C167,"") -> 

Sheet Pivot
A3: Owner | B3: Location | C3: Sum of HS Need | E3: Location | F3: Sum of HS Need
A4: Asheville Eye Surgery Center | B4: Buncombe | C4: 2 | E4: Brunswick | F4: 1
A5: Carolinas HealthCare System Union | B5: Union | C5: 1 | E5: Buncombe | F5: 2
A6: Charlotte Surgery Center | B6: Mecklenburg | C6: 1 | E6: Cabarrus | F6: 3
A7: Davie Medical Center | B7: Davie | C7: 1 | E7: Catawba | F7: 3
A8: Eye Surgery Center and Laser Clinic | B8: Cabarrus | C8: 1 | E8: Davie | F8: 1
A9: Gateway Surgery Center | B9: Cabarrus | C9: 2 | E9: Durham | F9: 2
A10: Graystone Eye Surgery Center | B10: Catawba | C10: 3 | E10: Mecklenburg | F10: 4
A11: New Hanover Regional Medical Center | B11: New Hanover | C11: 4 | E11: Moore | F11: 3
A12: North Carolina Specialty Hospital | B12: Durham | C12: 2 | E12: New Hanover | F12: 4
A13: Novant Health Brunswick Medical Center | B13: Brunswick | C13: 1 | E13: Union | F13: 1
A14: SouthPark Surgery Center | B14: Mecklenburg | C14: 3 | E14: GrandTotal | F14: 24
A15: The Eye Surgery Center of the Carolinas | B15: Moore | C15: 3
A16: GrandTotal | C16: 24

Sheet control
T1: Summary Tab Variable Format Controls
B2: Main Selection | O2: Population Growth Calculation | T2: A. No Grouping
B3: 1 | C3: 1 = no grouping; 2 = grouping; 3 = grouping with outlier sub; 4 = grouping for availability only | O3: 1 | P3: 1 = change rate; 2 = cagr | T3: B. Grouping
T4: C. Grouping with Outlier Substitution
T5: D. Grouping for Availability Only
B6: Teaching Hospitals in Separate Group | O6: Include AC-3 ORs in Inventory
B7: 1 | C7: 1 = keep teaching hospitals separate; 2 = group teaching hospitals along with all other facilities | O7: 2 | P7: 1 = No; 2 = Yes | T7: A. Assign teaching hospitals to separate group
T8: B. Group teaching hospitals along with all other facilities
B9: One or Two Groups for AMSUs
B10: 1 | C10: 1 = all AMSUs go into group 4; 2 = single specialty in group 4, multi-specialty become group 5 | T10: A. All AMSUs go into Group 4
T11: B. Group 4 = single specialty; Group 5 = multispecialty
B13: No Grouping | L13: Use Population Growth or Case Growth | T13: Change Rate
B14: inpat | C14: amb | E14: hrs.day | F14: days.wk | G14: pct | H14: util | L14: 1 | M14: 1 = Pop Growth; 2 = Case Growth; 3 = No Growth | T14: CAGR
B15: 180 | C15: 90 | E15: 9 | F15: 260 | G15: 0.8 | H15: =E15*F15*G15 -> 1872
T16: A. Population Growth
T17: B. Case Growth
B18: Grouping Type | T18: C. No Growth
B19: 1 | C19: 1 = group by surg hours; 2 = group by surg cases
T20: A. Group by surgical hours
C21: group by surg hours | J21: group by surg cases | T21: B. Group by surgical cases
C22: num | D22: group | E22: name | F22: set.min | G22: set.max | J22: num | K22: group | L22: name | M22: set.min | N22: set.max
C23: 0 | D23: 0 | E23: teaching | F23: NA | G23: NA | J23: 0 | K23: 0 | L23: teaching | M23: NA | N23: NA | T23: A. No Case Time substitution
C24: 1 | D24: 1 | E24: large | F24: 40000 | J24: 1 | K24: 1 | L24: large | M24: 10000 | T24: B. Case Time substitution
C25: 2 | D25: 2 | E25: medium | F25: 15000 | G25: 40000 | J25: 2 | K25: 2 | L25: medium | M25: 5000 | N25: 10000
C26: 3 | D26: 3 | E26: small | F26: 0 | G26: 15000 | J26: 3 | K26: 3 | L26: small | M26: 0 | N26: 5000
C27: 4 | D27: =IF($B$10=2,"4A",4) -> 4 | E27: =IF($B$10=2,"single","amsu") -> amsu | F27: NA | G27: NA | J27: 4 | K27: =IF($B$10=2,"4A",4) -> 4 | L27: =IF($B$10=2,"single","amsu") -> amsu | M27: NA | N27: NA
C28: 5 | D28: =IF($B$10=2,"4B","NA") -> NA | E28: =IF($B$10=2,"multi","NA") -> NA | F28: NA | G28: NA | J28: 5 | K28: =IF($B$10=2,"4B","NA") -> NA | L28: =IF($B$10=2,"multi","NA") -> NA | M28: NA | N28: NA
B32: Grouping
B33: =Summary!E33 -> 2 | C33: case times: 1 = average; 2 = median; 3 = enter by hand
B34: 3 | C34: utilization: 1 = average; 2 = median; 3 = enter by hand
O35: enter by hand here
B36: num | C36: group | D36: name | E36: set.min | F36: set.max | G36: a.inpat | H36: a.amb | I36: a.hrs.day | J36: a.days.yr | K36: m.inpat | L36: m.amb | M36: m.hrs.day | N36: m.days.yr | O36: e.inpat | P36: e.amb | Q36: e.hrs.day | R36: e.days.yr
B37: 0 | C37: 0 | D37: teaching | E37: NA | F37: NA | G37: =IF(AND($B$7=1,$B$19=1),AVERAGEIF('fac2016'!$S$2:'fac2016'!$S$171,$B37,'fac2016'!$N$2:'fac2016'!$N$171),IF(AND($B$7=1,$B$19=2),AVERAGEIF('fac2016'!$U$2:'fac2016'!$U$171,$B37,'fac2016'!$N$2:'fac2016'!$N$171),0)) -> 225.42 | H37: =IF(AND($B$7=1,$B$19=1),AVERAGEIF('fac2016'!$S$2:'fac2016'!$S$171,$B37,'fac2016'!$P$2:'fac2016'!$P$171),IF(AND($B$7=1,$B$19=2),AVERAGEIF('fac2016'!$U$2:'fac2016'!$U$171,$B37,'fac2016'!$P$2:'fac2016'!$P$171),0)) -> 139.012 | I37: =IF(AND($B$7=1,$B$19=1),AVERAGEIF('fac2016'!$S$2:'fac2016'!$S$171,$B37,'fac2016'!$AL$2:'fac2016'!$AL$171),IF(AND($B$7=1,$B$19=2),AVERAGEIF('fac2016'!$U$2:'fac2016'!$U$171,$B37,'fac2016'!$AL$2:'fac2016'!$AL$171),0)) -> 9.83 | J37: =IF(AND($B$7=1,$B$19=1),AVERAGEIF('fac2016'!$S$2:'fac2016'!$S$171,$B37,'fac2016'!$AM$2:'fac2016'!$AM$171),IF(AND($B$7=1,$B$19=2),AVERAGEIF('fac2016'!$U$2:'fac2016'!$U$171,$B37,'fac2016'!$AM$2:'fac2016'!$AM$171),0)) -> 256.4 | K37: =IF(AND($B$7=1,$B$19=1),MEDIAN(IF('fac2016'!$S$2:'fac2016'!$S$171=$B37,'fac2016'!$N$2:'fac2016'!$N$171)),IF(AND($B$7=1,$B$19=2),MEDIAN(IF('fac2016'!$U$2:'fac2016'!$U$171=$B37,'fac2016'!$N$2:'fac2016'!$N$171)),0)) -> 234 | L37: =IF(AND($B$7=1,$B$19=1),MEDIAN(IF('fac2016'!$S$2:'fac2016'!$S$171=$B37,'fac2016'!$P$2:'fac2016'!$P$171)),IF(AND($B$7=1,$B$19=2),MEDIAN(IF('fac2016'!$U$2:'fac2016'!$U$171=$B37,'fac2016'!$P$2:'fac2016'!$P$171)),0)) -> 137 | M37: =IF(AND($B$7=1,$B$19=1),MEDIAN(IF('fac2016'!$S$2:'fac2016'!$S$171=$B37,'fac2016'!$AL$2:'fac2016'!$AL$171)),IF(AND($B$7=1,$B$19=2),MEDIAN(IF('fac2016'!$U$2:'fac2016'!$U$171=$B37,'fac2016'!$AL$2:'fac2016'!$AL$171)),0)) -> 9.9 | N37: =IF(AND($B$7=1,$B$19=1),MEDIAN(IF('fac2016'!$S$2:'fac2016'!$S$171=$B37,'fac2016'!$AM$2:'fac2016'!$AM$171)),IF(AND($B$7=1,$B$19=2),MEDIAN(IF('fac2016'!$U$2:'fac2016'!$U$171=$B37,'fac2016'!$AM$2:'fac2016'!$AM$171)),0)) -> 254 | O37: =Summary!E40 -> 170 | P37: =Summary!F40 -> 55 | Q37: =Summary!G40 -> 10 | R37: =Summary!H40 -> 260
B38: 1 | C38: 1 | D38: large | E38: =IF($B$19=1,F24,IF($B$19=2,M24,-999)) -> 40000 | G38: =IF($B$19=1,AVERAGEIF('fac2016'!$S$2:'fac2016'!$S$171,$B38,'fac2016'!$N$2:'fac2016'!$N$171),IF($B$19=2,AVERAGEIF('fac2016'!$U$2:'fac2016'!$U$171,$B38,'fac2016'!$N$2:'fac2016'!$N$171),0)) -> 173.1 | H38: =IF($B$19=1,AVERAGEIF('fac2016'!$S$2:'fac2016'!$S$171,$B38,'fac2016'!$P$2:'fac2016'!$P$171),IF($B$19=2,AVERAGEIF('fac2016'!$U$2:'fac2016'!$U$171,$B38,'fac2016'!$P$2:'fac2016'!$P$171),0)) -> 104.3 | I38: =IF($B$19=1,AVERAGEIF('fac2016'!$S$2:'fac2016'!$S$171,$B38,'fac2016'!$AL$2:'fac2016'!$AL$171),IF($B$19=2,AVERAGEIF('fac2016'!$U$2:'fac2016'!$U$171,$B38,'fac2016'!$AL$2:'fac2016'!$AL$171),0)) -> 10.06142857 | J38: =IF($B$19=1,AVERAGEIF('fac2016'!$S$2:'fac2016'!$S$171,$B38,'fac2016'!$AM$2:'fac2016'!$AM$171),IF($B$19=2,AVERAGEIF('fac2016'!$U$2:'fac2016'!$U$171,$B38,'fac2016'!$AM$2:'fac2016'!$AM$171),0)) -> 258.4285714 | K38: =IF($B$19=1,MEDIAN(IF('fac2016'!$S$2:'fac2016'!$S$171=$B38,'fac2016'!$N$2:'fac2016'!$N$171)),IF($B$19=2,MEDIAN(IF('fac2016'!$U$2:'fac2016'!$U$171=$B38,'fac2016'!$N$2:'fac2016'!$N$171)),0)) -> 174 | L38: =IF($B$19=1,MEDIAN(IF('fac2016'!$S$2:'fac2016'!$S$171=$B38,'fac2016'!$P$2:'fac2016'!$P$171)),IF($B$19=2,MEDIAN(IF('fac2016'!$U$2:'fac2016'!$U$171=$B38,'fac2016'!$P$2:'fac2016'!$P$171)),0)) -> 100.8 | M38: =IF($B$19=1,MEDIAN(IF('fac2016'!$S$2:'fac2016'!$S$171=$B38,'fac2016'!$AL$2:'fac2016'!$AL$171)),IF($B$19=2,MEDIAN(IF('fac2016'!$U$2:'fac2016'!$U$171=$B38,'fac2016'!$AL$2:'fac2016'!$AL$171)),0)) -> 10 | N38: =IF($B$19=1,MEDIAN(IF('fac2016'!$S$2:'fac2016'!$S$171=$B38,'fac2016'!$AM$2:'fac2016'!$AM$171)),IF($B$19=2,MEDIAN(IF('fac2016'!$U$2:'fac2016'!$U$171=$B38,'fac2016'!$AM$2:'fac2016'!$AM$171)),0)) -> 258 | O38: =Summary!E41 -> 180 | P38: =Summary!F41 -> 55 | Q38: =Summary!G41 -> 10 | R38: =Summary!H41 -> 260
B39: 2 | C39: 2 | D39: medium | E39: =IF($B$19=1,F25,IF($B$19=2,M25,-999)) -> 15000 | F39: =IF($B$19=1,G25,IF($B$19=2,N25,-999)) -> 40000 | G39: =IF($B$19=1,AVERAGEIF('fac2016'!$S$2:'fac2016'!$S$171,$B39,'fac2016'!$N$2:'fac2016'!$N$171),IF($B$19=2,AVERAGEIF('fac2016'!$U$2:'fac2016'!$U$171,$B39,'fac2016'!$N$2:'fac2016'!$N$171),0)) -> 168.61 | H39: =IF($B$19=1,AVERAGEIF('fac2016'!$S$2:'fac2016'!$S$171,$B39,'fac2016'!$P$2:'fac2016'!$P$171),IF($B$19=2,AVERAGEIF('fac2016'!$U$2:'fac2016'!$U$171,$B39,'fac2016'!$P$2:'fac2016'!$P$171),0)) -> 101.5428571 | I39: =IF($B$19=1,AVERAGEIF('fac2016'!$S$2:'fac2016'!$S$171,$B39,'fac2016'!$AL$2:'fac2016'!$AL$171),IF($B$19=2,AVERAGEIF('fac2016'!$U$2:'fac2016'!$U$171,$B39,'fac2016'!$AL$2:'fac2016'!$AL$171),0)) -> 9.2 | J39: =IF($B$19=1,AVERAGEIF('fac2016'!$S$2:'fac2016'!$S$171,$B39,'fac2016'!$AM$2:'fac2016'!$AM$171),IF($B$19=2,AVERAGEIF('fac2016'!$U$2:'fac2016'!$U$171,$B39,'fac2016'!$AM$2:'fac2016'!$AM$171),0)) -> 261.8571429 | K39: =IF($B$19=1,MEDIAN(IF('fac2016'!$S$2:'fac2016'!$S$171=$B39,'fac2016'!$N$2:'fac2016'!$N$171)),IF($B$19=2,MEDIAN(IF('fac2016'!$U$2:'fac2016'!$U$171=$B39,'fac2016'!$N$2:'fac2016'!$N$171)),0)) -> 154 | L39: =IF($B$19=1,MEDIAN(IF('fac2016'!$S$2:'fac2016'!$S$171=$B39,'fac2016'!$P$2:'fac2016'!$P$171)),IF($B$19=2,MEDIAN(IF('fac2016'!$U$2:'fac2016'!$U$171=$B39,'fac2016'!$P$2:'fac2016'!$P$171)),0)) -> 101 | M39: =IF($B$19=1,MEDIAN(IF('fac2016'!$S$2:'fac2016'!$S$171=$B39,'fac2016'!$AL$2:'fac2016'!$AL$171)),IF($B$19=2,MEDIAN(IF('fac2016'!$U$2:'fac2016'!$U$171=$B39,'fac2016'!$AL$2:'fac2016'!$AL$171)),0)) -> 9 | N39: =IF($B$19=1,MEDIAN(IF('fac2016'!$S$2:'fac2016'!$S$171=$B39,'fac2016'!$AM$2:'fac2016'!$AM$171)),IF($B$19=2,MEDIAN(IF('fac2016'!$U$2:'fac2016'!$U$171=$B39,'fac2016'!$AM$2:'fac2016'!$AM$171)),0)) -> 255 | O39: =Summary!E42 -> 145 | P39: =Summary!F42 -> 55 | Q39: =Summary!G42 -> 9 | R39: =Summary!H42 -> 260
B40: 3 | C40: 3 | D40: small | E40: =IF($B$19=1,F26,IF($B$19=2,M26,-999)) -> 0 | F40: =IF($B$19=1,G26,IF($B$19=2,N26,-999)) -> 15000 | G40: =IF($B$19=1,AVERAGEIF('fac2016'!$S$2:'fac2016'!$S$171,$B40,'fac2016'!$N$2:'fac2016'!$N$171),IF($B$19=2,AVERAGEIF('fac2016'!$U$2:'fac2016'!$U$171,$B40,'fac2016'!$N$2:'fac2016'!$N$171),0)) -> 110.1940476 | H40: =IF($B$19=1,AVERAGEIF('fac2016'!$S$2:'fac2016'!$S$171,$B40,'fac2016'!$P$2:'fac2016'!$P$171),IF($B$19=2,AVERAGEIF('fac2016'!$U$2:'fac2016'!$U$171,$B40,'fac2016'!$P$2:'fac2016'!$P$171),0)) -> 74.73904762 | I40: =IF($B$19=1,AVERAGEIF('fac2016'!$S$2:'fac2016'!$S$171,$B40,'fac2016'!$AL$2:'fac2016'!$AL$171),IF($B$19=2,AVERAGEIF('fac2016'!$U$2:'fac2016'!$U$171,$B40,'fac2016'!$AL$2:'fac2016'!$AL$171),0)) -> 8.263571429 | J40: =IF($B$19=1,AVERAGEIF('fac2016'!$S$2:'fac2016'!$S$171,$B40,'fac2016'!$AM$2:'fac2016'!$AM$171),IF($B$19=2,AVERAGEIF('fac2016'!$U$2:'fac2016'!$U$171,$B40,'fac2016'!$AM$2:'fac2016'!$AM$171),0)) -> 239.1934524 | K40: =IF($B$19=1,MEDIAN(IF('fac2016'!$S$2:'fac2016'!$S$171=$B40,'fac2016'!$N$2:'fac2016'!$N$171)),IF($B$19=2,MEDIAN(IF('fac2016'!$U$2:'fac2016'!$U$171=$B40,'fac2016'!$N$2:'fac2016'!$N$171)),0)) -> 116.82 | L40: =IF($B$19=1,MEDIAN(IF('fac2016'!$S$2:'fac2016'!$S$171=$B40,'fac2016'!$P$2:'fac2016'!$P$171)),IF($B$19=2,MEDIAN(IF('fac2016'!$U$2:'fac2016'!$U$171=$B40,'fac2016'!$P$2:'fac2016'!$P$171)),0)) -> 73.58 | M40: =IF($B$19=1,MEDIAN(IF('fac2016'!$S$2:'fac2016'!$S$171=$B40,'fac2016'!$AL$2:'fac2016'!$AL$171)),IF($B$19=2,MEDIAN(IF('fac2016'!$U$2:'fac2016'!$U$171=$B40,'fac2016'!$AL$2:'fac2016'!$AL$171)),0)) -> 8 | N40: =IF($B$19=1,MEDIAN(IF('fac2016'!$S$2:'fac2016'!$S$171=$B40,'fac2016'!$AM$2:'fac2016'!$AM$171)),IF($B$19=2,MEDIAN(IF('fac2016'!$U$2:'fac2016'!$U$171=$B40,'fac2016'!$AM$2:'fac2016'!$AM$171)),0)) -> 253.5 | O40: =Summary!E43 -> 123 | P40: =Summary!F43 -> 55 | Q40: =Summary!G43 -> 8 | R40: =Summary!H43 -> 260
B41: 4 | C41: =IF($B$10=2,"4A",4) -> 4 | D41: =IF($B$10=2,"single","amsu") -> amsu | E41: NA | F41: NA | H41: =IF($B$19=1,AVERAGEIF('fac2016'!$S$2:'fac2016'!$S$171,$B41,'fac2016'!$P$2:'fac2016'!$P$171),IF($B$19=2,AVERAGEIF('fac2016'!$U$2:'fac2016'!$U$171,$B41,'fac2016'!$P$2:'fac2016'!$P$171),0)) -> 55.42685714 | I41: =IF($B$19=1,AVERAGEIF('fac2016'!$S$2:'fac2016'!$S$171,$B41,'fac2016'!$AL$2:'fac2016'!$AL$171),IF($B$19=2,AVERAGEIF('fac2016'!$U$2:'fac2016'!$U$171,$B41,'fac2016'!$AL$2:'fac2016'!$AL$171),0)) -> 8.235142857 | J41: =IF($B$19=1,AVERAGEIF('fac2016'!$S$2:'fac2016'!$S$171,$B41,'fac2016'!$AM$2:'fac2016'!$AM$171),IF($B$19=2,AVERAGEIF('fac2016'!$U$2:'fac2016'!$U$171,$B41,'fac2016'!$AM$2:'fac2016'!$AM$171),0)) -> 240.1428571 | L41: =IF($B$19=1,MEDIAN(IF('fac2016'!$S$2:'fac2016'!$S$171=$B41,'fac2016'!$P$2:'fac2016'!$P$171)),IF($B$19=2,MEDIAN(IF('fac2016'!$U$2:'fac2016'!$U$171=$B41,'fac2016'!$P$2:'fac2016'!$P$171)),0)) -> 58 | M41: =IF($B$19=1,MEDIAN(IF('fac2016'!$S$2:'fac2016'!$S$171=$B41,'fac2016'!$AL$2:'fac2016'!$AL$171)),IF($B$19=2,MEDIAN(IF('fac2016'!$U$2:'fac2016'!$U$171=$B41,'fac2016'!$AL$2:'fac2016'!$AL$171)),0)) -> 8 | N41: =IF($B$19=1,MEDIAN(IF('fac2016'!$S$2:'fac2016'!$S$171=$B41,'fac2016'!$AM$2:'fac2016'!$AM$171)),IF($B$19=2,MEDIAN(IF('fac2016'!$U$2:'fac2016'!$U$171=$B41,'fac2016'!$AM$2:'fac2016'!$AM$171)),0)) -> 252 | O41: =IF(Summary!E44>0,Summary!E44,"") ->  | P41: =Summary!F44 -> 55 | Q41: =Summary!G44 -> 8 | R41: =Summary!H44 -> 234
B42: 5 | C42: =IF($B$10=2,"4B","NA") -> NA | D42: =IF($B$10=2,"multi","NA") -> NA | E42: NA | F42: NA | H42: =IF(AND($B$19=1,$B$10=2),AVERAGEIF('fac2016'!$S$2:'fac2016'!$S$171,$B42,'fac2016'!$P$2:'fac2016'!$P$171),IF(AND($B$19=2,$B$10=2),AVERAGEIF('fac2016'!$U$2:'fac2016'!$U$171,$B42,'fac2016'!$P$2:'fac2016'!$P$171),0)) -> 0 | I42: =IF(AND($B$19=1,$B$10=2),AVERAGEIF('fac2016'!$S$2:'fac2016'!$S$171,$B42,'fac2016'!$AL$2:'fac2016'!$AL$171),IF(AND($B$19=2,$B$10=2),AVERAGEIF('fac2016'!$U$2:'fac2016'!$U$171,$B42,'fac2016'!$AL$2:'fac2016'!$AL$171),0)) -> 0 | J42: =IF(AND($B$19=1,$B$10=2),AVERAGEIF('fac2016'!$S$2:'fac2016'!$S$171,$B42,'fac2016'!$AM$2:'fac2016'!$AM$171),IF(AND($B$19=2,$B$10=2),AVERAGEIF('fac2016'!$U$2:'fac2016'!$U$171,$B42,'fac2016'!$AM$2:'fac2016'!$AM$171),0)) -> 0 | L42: =IF(AND($B$19=1,$B$10=2),MEDIAN(IF('fac2016'!$S$2:'fac2016'!$S$171=$B42,'fac2016'!$P$2:'fac2016'!$P$171)),IF(AND($B$19=2,$B$10=2),MEDIAN(IF('fac2016'!$U$2:'fac2016'!$U$171=$B42,'fac2016'!$P$2:'fac2016'!$P$171)),0)) -> 0 | M42: =IF(AND($B$19=1,$B$10=2),MEDIAN(IF('fac2016'!$S$2:'fac2016'!$S$171=$B42,'fac2016'!$AL$2:'fac2016'!$AL$171)),IF(AND($B$19=2,$B$10=2),MEDIAN(IF('fac2016'!$U$2:'fac2016'!$U$171=$B42,'fac2016'!$AL$2:'fac2016'!$AL$171)),0)) -> 0 | N42: =IF(AND($B$19=1,$B$10=2),MEDIAN(IF('fac2016'!$S$2:'fac2016'!$S$171=$B42,'fac2016'!$AM$2:'fac2016'!$AM$171)),IF(AND($B$19=2,$B$10=2),MEDIAN(IF('fac2016'!$U$2:'fac2016'!$U$171=$B42,'fac2016'!$AM$2:'fac2016'!$AM$171)),0)) -> 0 | O42: =IF(Summary!E45>0,Summary!E45,"") ->  | P42: =Summary!F45 -> 55 | Q42: =Summary!G45 -> 8 | R42: =Summary!H45 -> 234
B44: num | C44: group | D44: name | E44: =IF($B$33=1,G36,IF($B$33=2,K36,O36)) -> m.inpat | F44: m.amb | G44: =IF($B$34=1,I36,IF($B$34=2,M36,Q36)) -> e.hrs.day | H44: =IF($B$34=1,J36,IF($B$34=2,N36,R36)) -> e.days.yr | I44: pct | J44: util
B45: 0 | C45: 0 | D45: teaching | E45: 234 | F45: 137 | G45: =IF($B$34=1,I37,IF($B$34=2,M37,Q37)) -> 10 | H45: =IF($B$34=1,J37,IF($B$34=2,N37,R37)) -> 260 | I45: =Summary!I40 -> 0.8 | J45: =G45*H45*I45 -> 2080
B46: 1 | C46: 1 | D46: large | E46: 174 | F46: 100.8 | G46: =IF($B$34=1,I38,IF($B$34=2,M38,Q38)) -> 10 | H46: =IF($B$34=1,J38,IF($B$34=2,N38,R38)) -> 260 | I46: =Summary!I41 -> 0.8 | J46: =G46*H46*I46 -> 2080
B47: 2 | C47: 2 | D47: medium | E47: 154 | F47: 101 | G47: 9 | H47: 260 | I47: =Summary!I42 -> 0.8 | J47: 1872
B48: 3 | C48: 3 | D48: small | E48: 116.82 | F48: 73.58 | G48: 8 | H48: 260 | I48: =Summary!I43 -> 0.8 | J48: 1664
B49: 4 | C49: =IF($B$10=2,"4A",4) -> 4 | D49: =IF($B$10=2,"single","amsu") -> amsu | F49: =IF($B$33=1,H41,IF($B$33=2,L41,P41)) -> 58 | G49: 8 | H49: 234 | I49: =Summary!I44 -> 0.8 | J49: 1497.6
B50: 5 | C50: =IF($B$10=2,"4B","NA") -> NA | D50: =IF($B$10=2,"multi","NA") -> NA | F50: =IF($B$33=1,H42,IF($B$33=2,L42,P42)) -> 0 | G50: 8 | H50: 234 | I50: =Summary!I45 -> 0.8 | J50: 1497.6
B54: Grouping with Outlier Substitution
B55: 1 | C55: 1 = teaching hospitals do NOT get sub; 2 = teaching hospitals do get substitution
C57: Inpatient Times | K57: Ambulatory Times
C58: num of std devs to use (x): | F58: 1 | K58: num of std devs to use (x): | N58: 1
C60: num | D60: group | E60: mean | F60: std dev | G60: mean + x*std dev | K60: num | L60: group | M60: mean | N60: std dev | O60: mean + x*std dev
C61: 1 | D61: 0,1 | E61: =AVERAGE(IF(ISNUMBER(MATCH('fac2016'!$V$2:'fac2016'!$V$171,{0,1},0)),'fac2016'!$N$2:'fac2016'!$N$171)) -> 194.9 | F61: =_xlfn.STDEV.S(IF(ISNUMBER(MATCH('fac2016'!$V$2:'fac2016'!$V$171,{0,1},0)),'fac2016'!$N$2:'fac2016'!$N$171)) -> 32.57006434 | G61: =E61+F$58*F61 -> 227.4700643 | K61: 1 | L61: 0,1 | M61: =AVERAGE(IF(ISNUMBER(MATCH('fac2016'!$V$2:'fac2016'!$V$171,{0,1},0)),'fac2016'!$P$2:'fac2016'!$P$171)) -> 118.7633333 | N61: =_xlfn.STDEV.S(IF(ISNUMBER(MATCH('fac2016'!$V$2:'fac2016'!$V$171,{0,1},0)),'fac2016'!$P$2:'fac2016'!$P$171)) -> 19.9121924 | O61: =M61+N$58*N61 -> 138.6755257
C62: 2 | D62: 2 | E62: =AVERAGEIF('fac2016'!$V$2:'fac2016'!$V$171,2,'fac2016'!$N$2:'fac2016'!$N$171) -> 168.61 | F62: =_xlfn.STDEV.S(IF('fac2016'!$V$2:'fac2016'!$V$171=2,'fac2016'!$N$2:'fac2016'!$N$171)) -> 37.8627966 | G62: =E62+F$58*F62 -> 206.4727966 | K62: 2 | L62: 2 | M62: =AVERAGEIF('fac2016'!$V$2:'fac2016'!$V$171,2,'fac2016'!$P$2:'fac2016'!$P$171) -> 101.5428571 | N62: =_xlfn.STDEV.S(IF('fac2016'!$V$2:'fac2016'!$V$171=2,'fac2016'!$P$2:'fac2016'!$P$171)) -> 23.99714269 | O62: =M62+N$58*N62 -> 125.5399998
C63: 3 | D63: 3 | E63: =AVERAGEIF('fac2016'!$V$2:'fac2016'!$V$171,3,'fac2016'!$N$2:'fac2016'!$N$171) -> 110.1940476 | F63: =_xlfn.STDEV.S(IF('fac2016'!$V$2:'fac2016'!$V$171=3,'fac2016'!$N$2:'fac2016'!$N$171)) -> 42.19229928 | G63: =E63+F$58*F63 -> 152.3863469 | K63: 3 | L63: 3 | M63: =AVERAGEIF('fac2016'!$V$2:'fac2016'!$V$171,3,'fac2016'!$P$2:'fac2016'!$P$171) -> 74.73904762 | N63: =_xlfn.STDEV.S(IF('fac2016'!$V$2:'fac2016'!$V$171=3,'fac2016'!$P$2:'fac2016'!$P$171)) -> 20.2275739 | O63: =M63+N$58*N63 -> 94.96662152
K64: 4 | L64: 4A | M64: =AVERAGEIF('fac2016'!$V$2:'fac2016'!$V$171,4,'fac2016'!$P$2:'fac2016'!$P$171) -> 55.42685714 | N64: =_xlfn.STDEV.S(IF('fac2016'!$V$2:'fac2016'!$V$171=4,'fac2016'!$P$2:'fac2016'!$P$171)) -> 22.85789383 | O64: =M64+N$58*N64 -> 78.28475097
K65: 5 | L65: 4B | M65: =IF($B$10=2,AVERAGEIF('fac2016'!$V$2:'fac2016'!$V$171,5,'fac2016'!$P$2:'fac2016'!$P$171),0) -> 0 | N65: =IF($B$10=2,_xlfn.STDEV.S(IF('fac2016'!$V$2:'fac2016'!$V$171=5,'fac2016'!$P$2:'fac2016'!$P$171)),0) -> 0 | O65: =M65+N$58*N65 -> 0
F68: Availability
F69: values of variables in green can be changed directly in cell
F70: num | G70: group | H70: set.min | I70: set.max | J70: hrs.day | K70: days.yr | L70: pct | M70: util
F71: 1 | G71: 0,1 | H71: =IF($B$19=1,F24,IF($B$19=2,M24,-999)) -> 40000 | J71: =Summary!F55 -> 10 | K71: =Summary!G55 -> 260 | L71: =Summary!H55 -> 0.75 | M71: =Summary!I55 -> 1950
F72: 2 | G72: 2 | H72: =IF($B$19=1,F25,IF($B$19=2,M25,-999)) -> 15000 | I72: =IF($B$19=1,G25,IF($B$19=2,N25,-999)) -> 40000 | J72: =Summary!F56 -> 9 | K72: =Summary!G56 -> 260 | L72: =Summary!H56 -> 0.75 | M72: =Summary!I56 -> 1755
F73: 3 | G73: 3 | H73: =IF($B$19=1,F26,IF($B$19=2,M26,-999)) -> 0 | I73: =IF($B$19=1,G26,IF($B$19=2,N26,-999)) -> 15000 | J73: =Summary!F57 -> 8 | K73: =Summary!G57 -> 260 | L73: =Summary!H57 -> 0.75 | M73: =Summary!I57 -> 1560
F74: 4 | G74: 4A | H74: NA | I74: NA | J74: =Summary!F58 -> 8 | K74: =Summary!G58 -> 234 | L74: =Summary!H58 -> 0.75 | M74: =Summary!I58 -> 1404
F75: 5 | G75: 4B | H75: NA | I75: NA | J75: =Summary!F59 -> 8 | K75: =Summary!G59 -> 234 | L75: =Summary!H59 -> 0.75 | M75: =Summary!I59 -> 1404
B80: Grouping for Use in Availability Only
C82: values of variables in green can be changed directly in cell
C83: num | D83: group | E83: set.min | F83: set.max | G83: hrs.day | H83: days.yr | I83: pct | J83: util
C84: 0 | D84: 0 | E84: NA | F84: NA | G84: =Summary!F66 -> 10 | H84: =Summary!G66 -> 260 | I84: =Summary!H66 -> 0.7 | J84: =Summary!I66 -> 1820
C85: 1 | D85: 1 | E85: =IF($B$19=1,F24,IF($B$19=2,M24,-999)) -> 40000 | G85: =Summary!F67 -> 9 | H85: =Summary!G67 -> 260 | I85: =Summary!H67 -> 0.7 | J85: =Summary!I67 -> 1638
C86: 2 | D86: 2 | E86: =IF($B$19=1,F25,IF($B$19=2,M25,-999)) -> 15000 | F86: =IF($B$19=1,G25,IF($B$19=2,N25,-999)) -> 40000 | G86: =Summary!F68 -> 9 | H86: =Summary!G68 -> 250 | I86: =Summary!H68 -> 0.7 | J86: =Summary!I68 -> 1575
C87: 3 | D87: 3 | E87: =IF($B$19=1,F26,IF($B$19=2,M26,-999)) -> 0 | F87: =IF($B$19=1,G26,IF($B$19=2,N26,-999)) -> 15000 | G87: =Summary!F69 -> 8 | H87: =Summary!G69 -> 250 | I87: =Summary!H69 -> 0.7 | J87: =Summary!I69 -> 1400
C88: 4 | D88: 4A | E88: NA | F88: NA | G88: =Summary!F70 -> 8 | H88: =Summary!G70 -> 231 | I88: =Summary!H70 -> 0.7 | J88: =Summary!I70 -> 1293.6
C89: 5 | D89: 4B | E89: NA | F89: NA | G89: =Summary!F71 -> 7 | H89: =Summary!G71 -> 231 | I89: =Summary!H71 -> 0.7 | J89: =Summary!I71 -> 1131.9

Sheet fac2016
A1: Location | B1: LicNum | C1: code | D1: strPrimaryName | E1: amsu | F1: LicBeds | G1: InptOR | H1: AmbuOR | I1: SharedOR | J1: CSectionOR | K1: TraumaOR | L1: CONOR | M1: AdjInv | N1: inpat.time | O1: InptCases | P1: amb.time | Q1: AmbuCases | R1: total time | S1: time grp | T1: total cases | U1: case grp | V1: =IF(control!$B$19=1,"grp in use: time",IF(control!$B$19=2,"grp in use: case","grp in use: ???")) -> grp in use: time | W1: substituted inpat.time | X1: substituted amb.time | Y1: inpat est.hrs(std) | Z1: ambu est.hrs(std) | AA1: inpat est.hrs(grp) | AB1: ambu est.hrs(grp) | AC1: inpat est.hrs(sub) | AD1: ambu est.hrs(sub) | AE1: inpat est.hrs(fac) | AF1: ambu est.hrs(fac) | AG1: TotHours | AH1: =IF(control!$L$14=2,AW1,IF(control!$L$14=3,AY1,AU1)) -> PopCurr | AI1: =IF(control!$L$14=2,AX1,IF(control!$L$14=3,AZ1,AV1)) -> PopProj | AJ1: PopGrow | AK1: Proj Hrs | AL1: hrs.day | AM1: day.yr | AN1: Proj ORs by No Grp | AO1: Proj ORs by Grouping | AP1: Proj ORs by Grp w/ Sub | AQ1: Proj ORs by Availability | AR1: Proj ORs for next sheet | AU1: PopCurr | AV1: PopProj | AW1: CASES 2011 | AX1: CASES 2015 | AY1: No Growth | AZ1: No Growth
A2: Alamance | B2: H0272 | C2: H | D2: Alamance Regional Medical Center | E2: N | F2: 182 | G2: 2 | H2: 3 | I2: 9 | J2: -2 | K2: 0 | L2: 0 | M2: =SUM(G2:L2) -> 12 | N2: 146 | O2: 1790 | P2: 78 | Q2: 7681 | R2: =(N2*O2+P2*Q2)/60 -> 14340.96667 | S2: =IF(C2="T",0,IF(AND(control!$B$10=2,E2="4A",R2>0),4,IF(AND(control!$B$10=2,E2="4B",R2>0),5,IF(AND(control!$B$10=1,C2="A",R2>0),4,IF(AND(C2="H",R2>control!$F$24),1,IF(AND(C2="H",R2>=control!$F$25,R2<=control!$G$25),2,IF(AND(C2="H",R2>control!$F$26,R2<control!$G$26),3,"null"))))))) -> 3 | T2: =O2+Q2 -> 9471 | U2: =IF(C2="T",0,IF(AND(control!$B$10=2,E2="4A",T2>0),4,IF(AND(control!$B$10=2,E2="4B",T2>0),5,IF(AND(control!$B$10=1,C2="A",T2>0),4,IF(AND(C2="H",T2>control!$M$24),1,IF(AND(C2="H",T2>=control!$M$25,T2<=control!$N$25),2,IF(AND(C2="H",T2>control!$M$26,T2<control!$N$26),3,"null"))))))) -> 2 | V2: =IF(control!$B$19=1,S2,IF(control!$B$19=2,U2,"unk")) -> 3 | W2: =IF(AND(V2=0,control!$B$55=2,N2>control!$G$61),control!$G$61,IF(AND(V2=1,N2>control!$G$61),control!$G$61,IF(AND(V2=2,N2>control!$G$62),control!$G$62,IF(AND(V2=3,N2>control!$G$63),control!$G$63,N2)))) -> 146 | X2: =IF(AND(V2=0,control!$B$55=2,P2>control!$O$61),control!$O$61,IF(AND(V2=1,P2>control!$O$61),control!$O$61,IF(AND(V2=2,P2>control!$O$62),control!$O$62,IF(AND(V2=3,P2>control!$O$63),control!$O$63,IF(AND(V2=4,P2>control!$O$64),control!$O$64,IF(AND(V2=5,P2>control!$O$65),control!$O$65,P2)))))) -> 78 | Y2: =O2*control!$B$15/60 -> 5370 | Z2: =Q2*control!$C$15/60 -> 11521.5 | AA2: =IF(V2=control!$B$45,O2*control!$E$45/60,IF(V2=control!$B$46,O2*control!$E$46/60,IF(V2=control!$B$47,O2*control!$E$47/60,IF(V2=control!$B$48,O2*control!$E$48/60,IF(V2=control!$B$49,O2*control!$E$49/60,IF(V2=control!$B$50,O2*control!$E$50/60,0)))))) -> 3485.13 | AB2: =IF(V2=control!$B$45,Q2*control!$F$45/60,IF(V2=control!$B$46,Q2*control!$F$46/60,IF(V2=control!$B$47,Q2*control!$F$47/60,IF(V2=control!$B$48,Q2*control!$F$48/60,IF(V2=control!$B$49,Q2*control!$F$49/60,IF(V2=control!$B$50,Q2*control!$F$50/60,0)))))) -> 9419.466333 | AC2: =O2*W2/60 -> 4355.666667 | AD2: =Q2*X2/60 -> 9985.3 | AE2: =N2*O2/60 -> 4355.666667 | AF2: =P2*Q2/60 -> 9985.3 | AG2: =IF(control!$B$3=1,Y2+Z2,IF(control!$B$3=2,AA2+AB2,IF(control!$B$3=3,AC2+AD2,IF(control!$B$3=4,AE2+AF2,-999)))) -> 16891.5 | AH2: =IF(control!$L$14=2,AW2,IF(control!$L$14=3,AY2,AU2)) -> 157624 | AI2: =IF(control!$L$14=2,AX2,IF(control!$L$14=3,AZ2,AV2)) -> 165388 | AJ2: =IF(AND(AH2<>0,control!$O$3=1),100*(AI2-AH2)/AH2,IF(AND(AH2<>0,control!$O$3=2),(((AI2/AH2)^0.25)-1)*100,0)) -> 4.925645841 | AK2: =AG2+AG2*AJ2/100 -> 17723.51547 | AL2: 9.2 | AM2: 254 | AN2: =AK2/control!$H$15 -> 9.467689886 | AO2: =IF(V2=0,AK2/control!$J$45,IF(V2=1,AK2/control!$J$46,IF(V2=2,AK2/control!$J$47,IF(V2=3,AK2/control!$J$48,IF(V2=4,AK2/control!$J$49,IF(V2=5,AK2/control!$J$50,0)))))) -> 10.65115112 | AP2: =IF(V2=0,AK2/control!$M$71,IF(V2=1,AK2/control!$M$71,IF(V2=2,AK2/control!$M$72,IF(V2=3,AK2/control!$M$73,IF(V2=4,AK2/control!$M$74,IF(V2=5,AK2/control!$M$75,0)))))) -> 11.36122786 | AQ2: =IF(V2=0,AK2/control!$J$84,IF(V2=1,AK2/control!$J$85,IF(V2=2,AK2/control!$J$86,IF(V2=3,AK2/control!$J$87,IF(V2=4,AK2/control!$J$88,IF(V2=5,AK2/control!$J$89,0)))))) -> 12.65965391 | AR2: =IF(control!$B$3=1,AN2,IF(control!$B$3=2,AO2,IF(control!$B$3=3,AP2,IF(control!$B$3=4,AQ2,-999)))) -> 9.467689886 | AU2: 157624 | AV2: 165388 | AW2: 9807 | AX2: 9471 | AY2: 1 | AZ2: 1
A3: Alexander | B3: H0274 | C3: H | D3: Alexander Hospital (closed) | E3: N | F3: 25 | G3: 0 | H3: 0 | I3: 2 | J3: 0 | K3: 0 | L3: 0 | M3: 2 | O3: 0 | Q3: 0 | R3: =(N3*O3+P3*Q3)/60 -> 0 | S3: =IF(C3="T",0,IF(AND(control!$B$10=2,E3="4A",R3>0),4,IF(AND(control!$B$10=2,E3="4B",R3>0),5,IF(AND(control!$B$10=1,C3="A",R3>0),4,IF(AND(C3="H",R3>control!$F$24),1,IF(AND(C3="H",R3>=control!$F$25,R3<=control!$G$25),2,IF(AND(C3="H",R3>control!$F$26,R3<control!$G$26),3,"null"))))))) -> null | T3: =O3+Q3 -> 0 | U3: =IF(C3="T",0,IF(AND(control!$B$10=2,E3="4A",T3>0),4,IF(AND(control!$B$10=2,E3="4B",T3>0),5,IF(AND(control!$B$10=1,C3="A",T3>0),4,IF(AND(C3="H",T3>control!$M$24),1,IF(AND(C3="H",T3>=control!$M$25,T3<=control!$N$25),2,IF(AND(C3="H",T3>control!$M$26,T3<control!$N$26),3,"null"))))))) -> null | V3: =IF(control!$B$19=1,S3,IF(control!$B$19=2,U3,"unk")) -> null | W3: =IF(AND(V3=0,control!$B$55=2,N3>control!$G$61),control!$G$61,IF(AND(V3=1,N3>control!$G$61),control!$G$61,IF(AND(V3=2,N3>control!$G$62),control!$G$62,IF(AND(V3=3,N3>control!$G$63),control!$G$63,N3)))) -> 0 | X3: =IF(AND(V3=0,control!$B$55=2,P3>control!$O$61),control!$O$61,IF(AND(V3=1,P3>control!$O$61),control!$O$61,IF(AND(V3=2,P3>control!$O$62),control!$O$62,IF(AND(V3=3,P3>control!$O$63),control!$O$63,IF(AND(V3=4,P3>control!$O$64),control!$O$64,IF(AND(V3=5,P3>control!$O$65),control!$O$65,P3)))))) -> 0 | Y3: =O3*control!$B$15/60 -> 0 | Z3: =Q3*control!$C$15/60 -> 0 | AA3: =IF(V3=control!$B$45,O3*control!$E$45/60,IF(V3=control!$B$46,O3*control!$E$46/60,IF(V3=control!$B$47,O3*control!$E$47/60,IF(V3=control!$B$48,O3*control!$E$48/60,IF(V3=control!$B$49,O3*control!$E$49/60,IF(V3=control!$B$50,O3*control!$E$50/60,0)))))) -> 0 | AB3: =IF(V3=control!$B$45,Q3*control!$F$45/60,IF(V3=control!$B$46,Q3*control!$F$46/60,IF(V3=control!$B$47,Q3*control!$F$47/60,IF(V3=control!$B$48,Q3*control!$F$48/60,IF(V3=control!$B$49,Q3*control!$F$49/60,IF(V3=control!$B$50,Q3*control!$F$50/60,0)))))) -> 0 | AC3: =O3*W3/60 -> 0 | AD3: =Q3*X3/60 -> 0 | AE3: =N3*O3/60 -> 0 | AF3: =P3*Q3/60 -> 0 | AG3: =IF(control!$B$3=1,Y3+Z3,IF(control!$B$3=2,AA3+AB3,IF(control!$B$3=3,AC3+AD3,IF(control!$B$3=4,AE3+AF3,-999)))) -> 0 | AH3: =IF(control!$L$14=2,AW3,IF(control!$L$14=3,AY3,AU3)) -> 38302 | AI3: =IF(control!$L$14=2,AX3,IF(control!$L$14=3,AZ3,AV3)) -> 39869 | AJ3: =IF(AND(AH3<>0,control!$O$3=1),100*(AI3-AH3)/AH3,IF(AND(AH3<>0,control!$O$3=2),(((AI3/AH3)^0.25)-1)*100,0)) -> 4.091170174 | AK3: =AG3+AG3*AJ3/100 -> 0 | AN3: =AK3/control!$H$15 -> 0 | AO3: =IF(V3=0,AK3/control!$J$45,IF(V3=1,AK3/control!$J$46,IF(V3=2,AK3/control!$J$47,IF(V3=3,AK3/control!$J$48,IF(V3=4,AK3/control!$J$49,IF(V3=5,AK3/control!$J$50,0)))))) -> 0 | AP3: =IF(V3=0,AK3/control!$M$71,IF(V3=1,AK3/control!$M$71,IF(V3=2,AK3/control!$M$72,IF(V3=3,AK3/control!$M$73,IF(V3=4,AK3/control!$M$74,IF(V3=5,AK3/control!$M$75,0)))))) -> 0 | AQ3: =IF(V3=0,AK3/control!$J$84,IF(V3=1,AK3/control!$J$85,IF(V3=2,AK3/control!$J$86,IF(V3=3,AK3/control!$J$87,IF(V3=4,AK3/control!$J$88,IF(V3=5,AK3/control!$J$89,0)))))) -> 0 | AR3: =IF(control!$B$3=1,AN3,IF(control!$B$3=2,AO3,IF(control!$B$3=3,AP3,IF(control!$B$3=4,AQ3,-999)))) -> 0 | AU3: 38302 | AV3: 39869 | AX3: 0 | AY3: 1 | AZ3: 1
A4: Alleghany | B4: H0108 | C4: H | D4: Alleghany Memorial Hospital | E4: N | F4: 41 | G4: 0 | H4: 0 | I4: 2 | J4: 0 | K4: 0 | L4: 0 | M4: 2 | N4: 82.16 | O4: 12 | P4: 102.97 | Q4: 211 | R4: 378.5431667 | S4: =IF(C4="T",0,IF(AND(control!$B$10=2,E4="4A",R4>0),4,IF(AND(control!$B$10=2,E4="4B",R4>0),5,IF(AND(control!$B$10=1,C4="A",R4>0),4,IF(AND(C4="H",R4>control!$F$24),1,IF(AND(C4="H",R4>=control!$F$25,R4<=control!$G$25),2,IF(AND(C4="H",R4>control!$F$26,R4<control!$G$26),3,"null"))))))) -> 3 | T4: 223 | U4: =IF(C4="T",0,IF(AND(control!$B$10=2,E4="4A",T4>0),4,IF(AND(control!$B$10=2,E4="4B",T4>0),5,IF(AND(control!$B$10=1,C4="A",T4>0),4,IF(AND(C4="H",T4>control!$M$24),1,IF(AND(C4="H",T4>=control!$M$25,T4<=control!$N$25),2,IF(AND(C4="H",T4>control!$M$26,T4<control!$N$26),3,"null"))))))) -> 3 | V4: =IF(control!$B$19=1,S4,IF(control!$B$19=2,U4,"unk")) -> 3 | W4: =IF(AND(V4=0,control!$B$55=2,N4>control!$G$61),control!$G$61,IF(AND(V4=1,N4>control!$G$61),control!$G$61,IF(AND(V4=2,N4>control!$G$62),control!$G$62,IF(AND(V4=3,N4>control!$G$63),control!$G$63,N4)))) -> 82.16 | X4: =IF(AND(V4=0,control!$B$55=2,P4>control!$O$61),control!$O$61,IF(AND(V4=1,P4>control!$O$61),control!$O$61,IF(AND(V4=2,P4>control!$O$62),control!$O$62,IF(AND(V4=3,P4>control!$O$63),control!$O$63,IF(AND(V4=4,P4>control!$O$64),control!$O$64,IF(AND(V4=5,P4>control!$O$65),control!$O$65,P4)))))) -> 94.96662152 | Y4: =O4*control!$B$15/60 -> 36 | Z4: =Q4*control!$C$15/60 -> 316.5 | AA4: =IF(V4=control!$B$45,O4*control!$E$45/60,IF(V4=control!$B$46,O4*control!$E$46/60,IF(V4=control!$B$47,O4*control!$E$47/60,IF(V4=control!$B$48,O4*control!$E$48/60,IF(V4=control!$B$49,O4*control!$E$49/60,IF(V4=control!$B$50,O4*control!$E$50/60,0)))))) -> 23.364 | AB4: =IF(V4=control!$B$45,Q4*control!$F$45/60,IF(V4=control!$B$46,Q4*control!$F$46/60,IF(V4=control!$B$47,Q4*control!$F$47/60,IF(V4=control!$B$48,Q4*control!$F$48/60,IF(V4=control!$B$49,Q4*control!$F$49/60,IF(V4=control!$B$50,Q4*control!$F$50/60,0)))))) -> 258.7563333 | AC4: 16.432 | AD4: 333.9659524 | AE4: 16.432 | AF4: 362.1111667 | AG4: =IF(control!$B$3=1,Y4+Z4,IF(control!$B$3=2,AA4+AB4,IF(control!$B$3=3,AC4+AD4,IF(control!$B$3=4,AE4+AF4,-999)))) -> 352.5 | AH4: =IF(control!$L$14=2,AW4,IF(control!$L$14=3,AY4,AU4)) -> 11159 | AI4: =IF(control!$L$14=2,AX4,IF(control!$L$14=3,AZ4,AV4)) -> 11399 | AJ4: =IF(AND(AH4<>0,control!$O$3=1),100*(AI4-AH4)/AH4,IF(AND(AH4<>0,control!$O$3=2),(((AI4/AH4)^0.25)-1)*100,0)) -> 2.150730352 | AK4: 360.0813245 | AL4: 4 | AM4: 208 | AN4: =AK4/control!$H$15 -> 0.1923511349 | AO4: =IF(V4=0,AK4/control!$J$45,IF(V4=1,AK4/control!$J$46,IF(V4=2,AK4/control!$J$47,IF(V4=3,AK4/control!$J$48,IF(V4=4,AK4/control!$J$49,IF(V4=5,AK4/control!$J$50,0)))))) -> 0.2163950267 | AP4: =IF(V4=0,AK4/control!$M$71,IF(V4=1,AK4/control!$M$71,IF(V4=2,AK4/control!$M$72,IF(V4=3,AK4/control!$M$73,IF(V4=4,AK4/control!$M$74,IF(V4=5,AK4/control!$M$75,0)))))) -> 0.2308213619 | AQ4: =IF(V4=0,AK4/control!$J$84,IF(V4=1,AK4/control!$J$85,IF(V4=2,AK4/control!$J$86,IF(V4=3,AK4/control!$J$87,IF(V4=4,AK4/control!$J$88,IF(V4=5,AK4/control!$J$89,0)))))) -> 0.2572009461 | AR4: =IF(control!$B$3=1,AN4,IF(control!$B$3=2,AO4,IF(control!$B$3=3,AP4,IF(control!$B$3=4,AQ4,-999)))) -> 0.1923511349 | AU4: 11159 | AV4: 11399 | AW4: 342 | AX4: 223 | AY4: 1 | AZ4: 1
A5: Anson | B5: H0082 | C5: H | D5: Carolinas HealthCare System Anson | E5: N | F5: 15 | G5: 0 | H5: 0 | I5: 1 | J5: 0 | K5: 0 | L5: 0 | M5: 1 | N5: 0 | O5: 0 | P5: 75 | Q5: 33 | R5: 41.25 | S5: =IF(C5="T",0,IF(AND(control!$B$10=2,E5="4A",R5>0),4,IF(AND(control!$B$10=2,E5="4B",R5>0),5,IF(AND(control!$B$10=1,C5="A",R5>0),4,IF(AND(C5="H",R5>control!$F$24),1,IF(AND(C5="H",R5>=control!$F$25,R5<=control!$G$25),2,IF(AND(C5="H",R5>control!$F$26,R5<control!$G$26),3,"null"))))))) -> 3 | T5: 33 | U5: =IF(C5="T",0,IF(AND(control!$B$10=2,E5="4A",T5>0),4,IF(AND(control!$B$10=2,E5="4B",T5>0),5,IF(AND(control!$B$10=1,C5="A",T5>0),4,IF(AND(C5="H",T5>control!$M$24),1,IF(AND(C5="H",T5>=control!$M$25,T5<=control!$N$25),2,IF(AND(C5="H",T5>control!$M$26,T5<control!$N$26),3,"null"))))))) -> 3 | V5: =IF(control!$B$19=1,S5,IF(control!$B$19=2,U5,"unk")) -> 3 | W5: =IF(AND(V5=0,control!$B$55=2,N5>control!$G$61),control!$G$61,IF(AND(V5=1,N5>control!$G$61),control!$G$61,IF(AND(V5=2,N5>control!$G$62),control!$G$62,IF(AND(V5=3,N5>control!$G$63),control!$G$63,N5)))) -> 0 | X5: =IF(AND(V5=0,control!$B$55=2,P5>control!$O$61),control!$O$61,IF(AND(V5=1,P5>control!$O$61),control!$O$61,IF(AND(V5=2,P5>control!$O$62),control!$O$62,IF(AND(V5=3,P5>control!$O$63),control!$O$63,IF(AND(V5=4,P5>control!$O$64),control!$O$64,IF(AND(V5=5,P5>control!$O$65),control!$O$65,P5)))))) -> 75 | Y5: =O5*control!$B$15/60 -> 0 | Z5: =Q5*control!$C$15/60 -> 49.5 | AA5: =IF(V5=control!$B$45,O5*control!$E$45/60,IF(V5=control!$B$46,O5*control!$E$46/60,IF(V5=control!$B$47,O5*control!$E$47/60,IF(V5=control!$B$48,O5*control!$E$48/60,IF(V5=control!$B$49,O5*control!$E$49/60,IF(V5=control!$B$50,O5*control!$E$50/60,0)))))) -> 0 | AB5: =IF(V5=control!$B$45,Q5*control!$F$45/60,IF(V5=control!$B$46,Q5*control!$F$46/60,IF(V5=control!$B$47,Q5*control!$F$47/60,IF(V5=control!$B$48,Q5*control!$F$48/60,IF(V5=control!$B$49,Q5*control!$F$49/60,IF(V5=control!$B$50,Q5*control!$F$50/60,0)))))) -> 40.469 | AC5: 0 | AD5: 41.25 | AE5: 0 | AF5: 41.25 | AG5: =IF(control!$B$3=1,Y5+Z5,IF(control!$B$3=2,AA5+AB5,IF(control!$B$3=3,AC5+AD5,IF(control!$B$3=4,AE5+AF5,-999)))) -> 49.5 | AH5: =IF(control!$L$14=2,AW5,IF(control!$L$14=3,AY5,AU5)) -> 26469 | AI5: =IF(control!$L$14=2,AX5,IF(control!$L$14=3,AZ5,AV5)) -> 26467 | AJ5: =IF(AND(AH5<>0,control!$O$3=1),100*(AI5-AH5)/AH5,IF(AND(AH5<>0,control!$O$3=2),(((AI5/AH5)^0.25)-1)*100,0)) -> -0.007556008916 | AK5: 49.49625978 | AL5: 4 | AM5: 50 | AN5: =AK5/control!$H$15 -> 0.02644030971 | AO5: =IF(V5=0,AK5/control!$J$45,IF(V5=1,AK5/control!$J$46,IF(V5=2,AK5/control!$J$47,IF(V5=3,AK5/control!$J$48,IF(V5=4,AK5/control!$J$49,IF(V5=5,AK5/control!$J$50,0)))))) -> 0.02974534842 | AP5: =IF(V5=0,AK5/control!$M$71,IF(V5=1,AK5/control!$M$71,IF(V5=2,AK5/control!$M$72,IF(V5=3,AK5/control!$M$73,IF(V5=4,AK5/control!$M$74,IF(V5=5,AK5/control!$M$75,0)))))) -> 0.03172837165 | AQ5: =IF(V5=0,AK5/control!$J$84,IF(V5=1,AK5/control!$J$85,IF(V5=2,AK5/control!$J$86,IF(V5=3,AK5/control!$J$87,IF(V5=4,AK5/control!$J$88,IF(V5=5,AK5/control!$J$89,0)))))) -> 0.03535447127 | AR5: =IF(control!$B$3=1,AN5,IF(control!$B$3=2,AO5,IF(control!$B$3=3,AP5,IF(control!$B$3=4,AQ5,-999)))) -> 0.02644030971 | AU5: 26469 | AV5: 26467 | AW5: 299 | AX5: 33 | AY5: 1 | AZ5: 1
A6: Ashe | B6: H0099 | C6: H | D6: Ashe Memorial Hospital | E6: N | F6: 76 | G6: 0 | H6: 0 | I6: 2 | J6: 0 | K6: 0 | L6: 0 | M6: 2 | N6: 150 | O6: 213 | P6: 90 | Q6: 738 | R6: 1639.5 | S6: =IF(C6="T",0,IF(AND(control!$B$10=2,E6="4A",R6>0),4,IF(AND(control!$B$10=2,E6="4B",R6>0),5,IF(AND(control!$B$10=1,C6="A",R6>0),4,IF(AND(C6="H",R6>control!$F$24),1,IF(AND(C6="H",R6>=control!$F$25,R6<=control!$G$25),2,IF(AND(C6="H",R6>control!$F$26,R6<control!$G$26),3,"null"))))))) -> 3 | T6: 951 | U6: =IF(C6="T",0,IF(AND(control!$B$10=2,E6="4A",T6>0),4,IF(AND(control!$B$10=2,E6="4B",T6>0),5,IF(AND(control!$B$10=1,C6="A",T6>0),4,IF(AND(C6="H",T6>control!$M$24),1,IF(AND(C6="H",T6>=control!$M$25,T6<=control!$N$25),2,IF(AND(C6="H",T6>control!$M$26,T6<control!$N$26),3,"null"))))))) -> 3 | V6: =IF(control!$B$19=1,S6,IF(control!$B$19=2,U6,"unk")) -> 3 | W6: =IF(AND(V6=0,control!$B$55=2,N6>control!$G$61),control!$G$61,IF(AND(V6=1,N6>control!$G$61),control!$G$61,IF(AND(V6=2,N6>control!$G$62),control!$G$62,IF(AND(V6=3,N6>control!$G$63),control!$G$63,N6)))) -> 150 | X6: =IF(AND(V6=0,control!$B$55=2,P6>control!$O$61),control!$O$61,IF(AND(V6=1,P6>control!$O$61),control!$O$61,IF(AND(V6=2,P6>control!$O$62),control!$O$62,IF(AND(V6=3,P6>control!$O$63),control!$O$63,IF(AND(V6=4,P6>control!$O$64),control!$O$64,IF(AND(V6=5,P6>control!$O$65),control!$O$65,P6)))))) -> 90 | Y6: =O6*control!$B$15/60 -> 639 | Z6: =Q6*control!$C$15/60 -> 1107 | AA6: =IF(V6=control!$B$45,O6*control!$E$45/60,IF(V6=control!$B$46,O6*control!$E$46/60,IF(V6=control!$B$47,O6*control!$E$47/60,IF(V6=control!$B$48,O6*control!$E$48/60,IF(V6=control!$B$49,O6*control!$E$49/60,IF(V6=control!$B$50,O6*control!$E$50/60,0)))))) -> 414.711 | AB6: =IF(V6=control!$B$45,Q6*control!$F$45/60,IF(V6=control!$B$46,Q6*control!$F$46/60,IF(V6=control!$B$47,Q6*control!$F$47/60,IF(V6=control!$B$48,Q6*control!$F$48/60,IF(V6=control!$B$49,Q6*control!$F$49/60,IF(V6=control!$B$50,Q6*control!$F$50/60,0)))))) -> 905.034 | AC6: 532.5 | AD6: 1107 | AE6: 532.5 | AF6: 1107 | AG6: =IF(control!$B$3=1,Y6+Z6,IF(control!$B$3=2,AA6+AB6,IF(control!$B$3=3,AC6+AD6,IF(control!$B$3=4,AE6+AF6,-999)))) -> 1746 | AH6: =IF(control!$L$14=2,AW6,IF(control!$L$14=3,AY6,AU6)) -> 27482 | AI6: =IF(control!$L$14=2,AX6,IF(control!$L$14=3,AZ6,AV6)) -> 27596 | AJ6: =IF(AND(AH6<>0,control!$O$3=1),100*(AI6-AH6)/AH6,IF(AND(AH6<>0,control!$O$3=2),(((AI6/AH6)^0.25)-1)*100,0)) -> 0.4148169711 | AK6: 1753.242704 | AL6: 16 | AM6: 260 | AN6: =AK6/control!$H$15 -> 0.9365612737 | AO6: =IF(V6=0,AK6/control!$J$45,IF(V6=1,AK6/control!$J$46,IF(V6=2,AK6/control!$J$47,IF(V6=3,AK6/control!$J$48,IF(V6=4,AK6/control!$J$49,IF(V6=5,AK6/control!$J$50,0)))))) -> 1.053631433 | AP6: =IF(V6=0,AK6/control!$M$71,IF(V6=1,AK6/control!$M$71,IF(V6=2,AK6/control!$M$72,IF(V6=3,AK6/control!$M$73,IF(V6=4,AK6/control!$M$74,IF(V6=5,AK6/control!$M$75,0)))))) -> 1.123873528 | AQ6: =IF(V6=0,AK6/control!$J$84,IF(V6=1,AK6/control!$J$85,IF(V6=2,AK6/control!$J$86,IF(V6=3,AK6/control!$J$87,IF(V6=4,AK6/control!$J$88,IF(V6=5,AK6/control!$J$89,0)))))) -> 1.252316217 | AR6: =IF(control!$B$3=1,AN6,IF(control!$B$3=2,AO6,IF(control!$B$3=3,AP6,IF(control!$B$3=4,AQ6,-999)))) -> 0.9365612737 | AU6: 27482 | AV6: 27596 | AW6: 644 | AX6: 951 | AY6: 1 | AZ6: 1
A7: Avery | B7: H0037 | C7: H | D7: Charles A. Cannon, Jr. Memorial Hospital | E7: N | F7: 30 | G7: 0 | H7: 0 | I7: 2 | J7: 0 | K7: 0 | L7: 0 | M7: 2 | N7: 43.5 | O7: 113 | P7: 75.15 | Q7: 196 | R7: 327.415 | S7: =IF(C7="T",0,IF(AND(control!$B$10=2,E7="4A",R7>0),4,IF(AND(control!$B$10=2,E7="4B",R7>0),5,IF(AND(control!$B$10=1,C7="A",R7>0),4,IF(AND(C7="H",R7>control!$F$24),1,IF(AND(C7="H",R7>=control!$F$25,R7<=control!$G$25),2,IF(AND(C7="H",R7>control!$F$26,R7<control!$G$26),3,"null"))))))) -> 3 | T7: 309 | U7: =IF(C7="T",0,IF(AND(control!$B$10=2,E7="4A",T7>0),4,IF(AND(control!$B$10=2,E7="4B",T7>0),5,IF(AND(control!$B$10=1,C7="A",T7>0),4,IF(AND(C7="H",T7>control!$M$24),1,IF(AND(C7="H",T7>=control!$M$25,T7<=control!$N$25),2,IF(AND(C7="H",T7>control!$M$26,T7<control!$N$26),3,"null"))))))) -> 3 | V7: =IF(control!$B$19=1,S7,IF(control!$B$19=2,U7,"unk")) -> 3 | W7: =IF(AND(V7=0,control!$B$55=2,N7>control!$G$61),control!$G$61,IF(AND(V7=1,N7>control!$G$61),control!$G$61,IF(AND(V7=2,N7>control!$G$62),control!$G$62,IF(AND(V7=3,N7>control!$G$63),control!$G$63,N7)))) -> 43.5 | X7: =IF(AND(V7=0,control!$B$55=2,P7>control!$O$61),control!$O$61,IF(AND(V7=1,P7>control!$O$61),control!$O$61,IF(AND(V7=2,P7>control!$O$62),control!$O$62,IF(AND(V7=3,P7>control!$O$63),control!$O$63,IF(AND(V7=4,P7>control!$O$64),control!$O$64,IF(AND(V7=5,P7>control!$O$65),control!$O$65,P7)))))) -> 75.15 | Y7: =O7*control!$B$15/60 -> 339 | Z7: =Q7*control!$C$15/60 -> 294 | AA7: =IF(V7=control!$B$45,O7*control!$E$45/60,IF(V7=control!$B$46,O7*control!$E$46/60,IF(V7=control!$B$47,O7*control!$E$47/60,IF(V7=control!$B$48,O7*control!$E$48/60,IF(V7=control!$B$49,O7*control!$E$49/60,IF(V7=control!$B$50,O7*control!$E$50/60,0)))))) -> 220.011 | AB7: =IF(V7=control!$B$45,Q7*control!$F$45/60,IF(V7=control!$B$46,Q7*control!$F$46/60,IF(V7=control!$B$47,Q7*control!$F$47/60,IF(V7=control!$B$48,Q7*control!$F$48/60,IF(V7=control!$B$49,Q7*control!$F$49/60,IF(V7=control!$B$50,Q7*control!$F$50/60,0)))))) -> 240.3613333 | AC7: 81.925 | AD7: 245.49 | AE7: 81.925 | AF7: 245.49 | AG7: =IF(control!$B$3=1,Y7+Z7,IF(control!$B$3=2,AA7+AB7,IF(control!$B$3=3,AC7+AD7,IF(control!$B$3=4,AE7+AF7,-999)))) -> 633 | AH7: =IF(control!$L$14=2,AW7,IF(control!$L$14=3,AY7,AU7)) -> 17902 | AI7: =IF(control!$L$14=2,AX7,IF(control!$L$14=3,AZ7,AV7)) -> 17902 | AJ7: =IF(AND(AH7<>0,control!$O$3=1),100*(AI7-AH7)/AH7,IF(AND(AH7<>0,control!$O$3=2),(((AI7/AH7)^0.25)-1)*100,0)) -> 0 | AK7: 633 | AL7: 8 | AM7: 197 | AN7: =AK7/control!$H$15 -> 0.3381410256 | AO7: =IF(V7=0,AK7/control!$J$45,IF(V7=1,AK7/control!$J$46,IF(V7=2,AK7/control!$J$47,IF(V7=3,AK7/control!$J$48,IF(V7=4,AK7/control!$J$49,IF(V7=5,AK7/control!$J$50,0)))))) -> 0.3804086538 | AP7: =IF(V7=0,AK7/control!$M$71,IF(V7=1,AK7/control!$M$71,IF(V7=2,AK7/control!$M$72,IF(V7=3,AK7/control!$M$73,IF(V7=4,AK7/control!$M$74,IF(V7=5,AK7/control!$M$75,0)))))) -> 0.4057692308 | AQ7: =IF(V7=0,AK7/control!$J$84,IF(V7=1,AK7/control!$J$85,IF(V7=2,AK7/control!$J$86,IF(V7=3,AK7/control!$J$87,IF(V7=4,AK7/control!$J$88,IF(V7=5,AK7/control!$J$89,0)))))) -> 0.4521428571 | AR7: =IF(control!$B$3=1,AN7,IF(control!$B$3=2,AO7,IF(control!$B$3=3,AP7,IF(control!$B$3=4,AQ7,-999)))) -> 0.3381410256 | AU7: 17902 | AV7: 17902 | AW7: 576 | AX7: 309 | AY7: 1 | AZ7: 1
A8: Beaufort | B8: H0002 | C8: H | D8: Vidant Pungo Hospital (closed) | E8: N | F8: 39 | G8: 0 | H8: 0 | I8: 2 | J8: 0 | K8: 0 | L8: 0 | M8: 2 | O8: 0 | Q8: 0 | R8: 0 | S8: =IF(C8="T",0,IF(AND(control!$B$10=2,E8="4A",R8>0),4,IF(AND(control!$B$10=2,E8="4B",R8>0),5,IF(AND(control!$B$10=1,C8="A",R8>0),4,IF(AND(C8="H",R8>control!$F$24),1,IF(AND(C8="H",R8>=control!$F$25,R8<=control!$G$25),2,IF(AND(C8="H",R8>control!$F$26,R8<control!$G$26),3,"null"))))))) -> null | T8: 0 | U8: =IF(C8="T",0,IF(AND(control!$B$10=2,E8="4A",T8>0),4,IF(AND(control!$B$10=2,E8="4B",T8>0),5,IF(AND(control!$B$10=1,C8="A",T8>0),4,IF(AND(C8="H",T8>control!$M$24),1,IF(AND(C8="H",T8>=control!$M$25,T8<=control!$N$25),2,IF(AND(C8="H",T8>control!$M$26,T8<control!$N$26),3,"null"))))))) -> null | V8: =IF(control!$B$19=1,S8,IF(control!$B$19=2,U8,"unk")) -> null | W8: =IF(AND(V8=0,control!$B$55=2,N8>control!$G$61),control!$G$61,IF(AND(V8=1,N8>control!$G$61),control!$G$61,IF(AND(V8=2,N8>control!$G$62),control!$G$62,IF(AND(V8=3,N8>control!$G$63),control!$G$63,N8)))) -> 0 | X8: =IF(AND(V8=0,control!$B$55=2,P8>control!$O$61),control!$O$61,IF(AND(V8=1,P8>control!$O$61),control!$O$61,IF(AND(V8=2,P8>control!$O$62),control!$O$62,IF(AND(V8=3,P8>control!$O$63),control!$O$63,IF(AND(V8=4,P8>control!$O$64),control!$O$64,IF(AND(V8=5,P8>control!$O$65),control!$O$65,P8)))))) -> 0 | Y8: =O8*control!$B$15/60 -> 0 | Z8: =Q8*control!$C$15/60 -> 0 | AA8: =IF(V8=control!$B$45,O8*control!$E$45/60,IF(V8=control!$B$46,O8*control!$E$46/60,IF(V8=control!$B$47,O8*control!$E$47/60,IF(V8=control!$B$48,O8*control!$E$48/60,IF(V8=control!$B$49,O8*control!$E$49/60,IF(V8=control!$B$50,O8*control!$E$50/60,0)))))) -> 0 | AB8: =IF(V8=control!$B$45,Q8*control!$F$45/60,IF(V8=control!$B$46,Q8*control!$F$46/60,IF(V8=control!$B$47,Q8*control!$F$47/60,IF(V8=control!$B$48,Q8*control!$F$48/60,IF(V8=control!$B$49,Q8*control!$F$49/60,IF(V8=control!$B$50,Q8*control!$F$50/60,0)))))) -> 0 | AC8: 0 | AD8: 0 | AE8: 0 | AF8: 0 | AG8: =IF(control!$B$3=1,Y8+Z8,IF(control!$B$3=2,AA8+AB8,IF(control!$B$3=3,AC8+AD8,IF(control!$B$3=4,AE8+AF8,-999)))) -> 0 | AH8: =IF(control!$L$14=2,AW8,IF(control!$L$14=3,AY8,AU8)) -> 47718 | AI8: =IF(control!$L$14=2,AX8,IF(control!$L$14=3,AZ8,AV8)) -> 47719 | AJ8: =IF(AND(AH8<>0,control!$O$3=1),100*(AI8-AH8)/AH8,IF(AND(AH8<>0,control!$O$3=2),(((AI8/AH8)^0.25)-1)*100,0)) -> 0.002095645249 | AK8: 0 | AN8: =AK8/control!$H$15 -> 0 | AO8: =IF(V8=0,AK8/control!$J$45,IF(V8=1,AK8/control!$J$46,IF(V8=2,AK8/control!$J$47,IF(V8=3,AK8/control!$J$48,IF(V8=4,AK8/control!$J$49,IF(V8=5,AK8/control!$J$50,0)))))) -> 0 | AP8: =IF(V8=0,AK8/control!$M$71,IF(V8=1,AK8/control!$M$71,IF(V8=2,AK8/control!$M$72,IF(V8=3,AK8/control!$M$73,IF(V8=4,AK8/control!$M$74,IF(V8=5,AK8/control!$M$75,0)))))) -> 0 | AQ8: =IF(V8=0,AK8/control!$J$84,IF(V8=1,AK8/control!$J$85,IF(V8=2,AK8/control!$J$86,IF(V8=3,AK8/control!$J$87,IF(V8=4,AK8/control!$J$88,IF(V8=5,AK8/control!$J$89,0)))))) -> 0 | AR8: =IF(control!$B$3=1,AN8,IF(control!$B$3=2,AO8,IF(control!$B$3=3,AP8,IF(control!$B$3=4,AQ8,-999)))) -> 0 | AU8: 47718 | AV8: 47719 | AW8: 21 | AX8: 0 | AY8: 1 | AZ8: 1
A9: Beaufort | B9: H0188 | C9: H | D9: Vidant Beaufort Hospital | E9: N | F9: 120 | G9: 1 | H9: 0 | I9: 5 | J9: -1 | K9: 0 | L9: 0 | M9: 5 | N9: 120 | O9: 513 | P9: 100 | Q9: 2099 | R9: 4524.333333 | S9: =IF(C9="T",0,IF(AND(control!$B$10=2,E9="4A",R9>0),4,IF(AND(control!$B$10=2,E9="4B",R9>0),5,IF(AND(control!$B$10=1,C9="A",R9>0),4,IF(AND(C9="H",R9>control!$F$24),1,IF(AND(C9="H",R9>=control!$F$25,R9<=control!$G$25),2,IF(AND(C9="H",R9>control!$F$26,R9<control!$G$26),3,"null"))))))) -> 3 | T9: 2612 | U9: =IF(C9="T",0,IF(AND(control!$B$10=2,E9="4A",T9>0),4,IF(AND(control!$B$10=2,E9="4B",T9>0),5,IF(AND(control!$B$10=1,C9="A",T9>0),4,IF(AND(C9="H",T9>control!$M$24),1,IF(AND(C9="H",T9>=control!$M$25,T9<=control!$N$25),2,IF(AND(C9="H",T9>control!$M$26,T9<control!$N$26),3,"null"))))))) -> 3 | V9: =IF(control!$B$19=1,S9,IF(control!$B$19=2,U9,"unk")) -> 3 | W9: =IF(AND(V9=0,control!$B$55=2,N9>control!$G$61),control!$G$61,IF(AND(V9=1,N9>control!$G$61),control!$G$61,IF(AND(V9=2,N9>control!$G$62),control!$G$62,IF(AND(V9=3,N9>control!$G$63),control!$G$63,N9)))) -> 120 | X9: =IF(AND(V9=0,control!$B$55=2,P9>control!$O$61),control!$O$61,IF(AND(V9=1,P9>control!$O$61),control!$O$61,IF(AND(V9=2,P9>control!$O$62),control!$O$62,IF(AND(V9=3,P9>control!$O$63),control!$O$63,IF(AND(V9=4,P9>control!$O$64),control!$O$64,IF(AND(V9=5,P9>control!$O$65),control!$O$65,P9)))))) -> 94.96662152 | Y9: =O9*control!$B$15/60 -> 1539 | Z9: =Q9*control!$C$15/60 -> 3148.5 | AA9: =IF(V9=control!$B$45,O9*control!$E$45/60,IF(V9=control!$B$46,O9*control!$E$46/60,IF(V9=control!$B$47,O9*control!$E$47/60,IF(V9=control!$B$48,O9*control!$E$48/60,IF(V9=control!$B$49,O9*control!$E$49/60,IF(V9=control!$B$50,O9*control!$E$50/60,0)))))) -> 998.811 | AB9: =IF(V9=control!$B$45,Q9*control!$F$45/60,IF(V9=control!$B$46,Q9*control!$F$46/60,IF(V9=control!$B$47,Q9*control!$F$47/60,IF(V9=control!$B$48,Q9*control!$F$48/60,IF(V9=control!$B$49,Q9*control!$F$49/60,IF(V9=control!$B$50,Q9*control!$F$50/60,0)))))) -> 2574.073667 | AC9: 1026 | AD9: 3322.248976 | AE9: 1026 | AF9: 3498.333333 | AG9: =IF(control!$B$3=1,Y9+Z9,IF(control!$B$3=2,AA9+AB9,IF(control!$B$3=3,AC9+AD9,IF(control!$B$3=4,AE9+AF9,-999)))) -> 4687.5 | AH9: =IF(control!$L$14=2,AW9,IF(control!$L$14=3,AY9,AU9)) -> 47718 | AI9: =IF(control!$L$14=2,AX9,IF(control!$L$14=3,AZ9,AV9)) -> 47719 | AJ9: =IF(AND(AH9<>0,control!$O$3=1),100*(AI9-AH9)/AH9,IF(AND(AH9<>0,control!$O$3=2),(((AI9/AH9)^0.25)-1)*100,0)) -> 0.002095645249 | AK9: 4687.598233 | AL9: 8 | AM9: 260 | AN9: =AK9/control!$H$15 -> 2.504058885 | AO9: =IF(V9=0,AK9/control!$J$45,IF(V9=1,AK9/control!$J$46,IF(V9=2,AK9/control!$J$47,IF(V9=3,AK9/control!$J$48,IF(V9=4,AK9/control!$J$49,IF(V9=5,AK9/control!$J$50,0)))))) -> 2.817066246 | AP9: =IF(V9=0,AK9/control!$M$71,IF(V9=1,AK9/control!$M$71,IF(V9=2,AK9/control!$M$72,IF(V9=3,AK9/control!$M$73,IF(V9=4,AK9/control!$M$74,IF(V9=5,AK9/control!$M$75,0)))))) -> 3.004870662 | AQ9: =IF(V9=0,AK9/control!$J$84,IF(V9=1,AK9/control!$J$85,IF(V9=2,AK9/control!$J$86,IF(V9=3,AK9/control!$J$87,IF(V9=4,AK9/control!$J$88,IF(V9=5,AK9/control!$J$89,0)))))) -> 3.348284452 | AR9: =IF(control!$B$3=1,AN9,IF(control!$B$3=2,AO9,IF(control!$B$3=3,AP9,IF(control!$B$3=4,AQ9,-999)))) -> 2.504058885 | AU9: 47718 | AV9: 47719 | AW9: 2921 | AX9: 2612 | AY9: 1 | AZ9: 1
A10: Bertie | B10: H0268 | C10: H | D10: Vidant Bertie Hospital | E10: N | F10: 6 | G10: 0 | H10: 0 | I10: 2 | J10: 0 | K10: 0 | L10: 0 | M10: 2 | N10: 90 | O10: 1 | P10: 60 | Q10: 648 | R10: 649.5 | S10: =IF(C10="T",0,IF(AND(control!$B$10=2,E10="4A",R10>0),4,IF(AND(control!$B$10=2,E10="4B",R10>0),5,IF(AND(control!$B$10=1,C10="A",R10>0),4,IF(AND(C10="H",R10>control!$F$24),1,IF(AND(C10="H",R10>=control!$F$25,R10<=control!$G$25),2,IF(AND(C10="H",R10>control!$F$26,R10<control!$G$26),3,"null"))))))) -> 3 | T10: 649 | U10: =IF(C10="T",0,IF(AND(control!$B$10=2,E10="4A",T10>0),4,IF(AND(control!$B$10=2,E10="4B",T10>0),5,IF(AND(control!$B$10=1,C10="A",T10>0),4,IF(AND(C10="H",T10>control!$M$24),1,IF(AND(C10="H",T10>=control!$M$25,T10<=control!$N$25),2,IF(AND(C10="H",T10>control!$M$26,T10<control!$N$26),3,"null"))))))) -> 3 | V10: =IF(control!$B$19=1,S10,IF(control!$B$19=2,U10,"unk")) -> 3 | W10: =IF(AND(V10=0,control!$B$55=2,N10>control!$G$61),control!$G$61,IF(AND(V10=1,N10>control!$G$61),control!$G$61,IF(AND(V10=2,N10>control!$G$62),control!$G$62,IF(AND(V10=3,N10>control!$G$63),control!$G$63,N10)))) -> 90 | X10: =IF(AND(V10=0,control!$B$55=2,P10>control!$O$61),control!$O$61,IF(AND(V10=1,P10>control!$O$61),control!$O$61,IF(AND(V10=2,P10>control!$O$62),control!$O$62,IF(AND(V10=3,P10>control!$O$63),control!$O$63,IF(AND(V10=4,P10>control!$O$64),control!$O$64,IF(AND(V10=5,P10>control!$O$65),control!$O$65,P10)))))) -> 60 | Y10: =O10*control!$B$15/60 -> 3 | Z10: =Q10*control!$C$15/60 -> 972 | AA10: =IF(V10=control!$B$45,O10*control!$E$45/60,IF(V10=control!$B$46,O10*control!$E$46/60,IF(V10=control!$B$47,O10*control!$E$47/60,IF(V10=control!$B$48,O10*control!$E$48/60,IF(V10=control!$B$49,O10*control!$E$49/60,IF(V10=control!$B$50,O10*control!$E$50/60,0)))))) -> 1.947 | AB10: =IF(V10=control!$B$45,Q10*control!$F$45/60,IF(V10=control!$B$46,Q10*control!$F$46/60,IF(V10=control!$B$47,Q10*control!$F$47/60,IF(V10=control!$B$48,Q10*control!$F$48/60,IF(V10=control!$B$49,Q10*control!$F$49/60,IF(V10=control!$B$50,Q10*control!$F$50/60,0)))))) -> 794.664 | AC10: 1.5 | AD10: 648 | AE10: 1.5 | AF10: 648 | AG10: =IF(control!$B$3=1,Y10+Z10,IF(control!$B$3=2,AA10+AB10,IF(control!$B$3=3,AC10+AD10,IF(control!$B$3=4,AE10+AF10,-999)))) -> 975 | AH10: =IF(control!$L$14=2,AW10,IF(control!$L$14=3,AY10,AU10)) -> 20361 | AI10: =IF(control!$L$14=2,AX10,IF(control!$L$14=3,AZ10,AV10)) -> 19318 | AJ10: =IF(AND(AH10<>0,control!$O$3=1),100*(AI10-AH10)/AH10,IF(AND(AH10<>0,control!$O$3=2),(((AI10/AH10)^0.25)-1)*100,0)) -> -5.122538186 | AK10: 925.0552527 | AL10: 8 | AM10: 200 | AN10: =AK10/control!$H$15 -> 0.4941534469 | AO10: =IF(V10=0,AK10/control!$J$45,IF(V10=1,AK10/control!$J$46,IF(V10=2,AK10/control!$J$47,IF(V10=3,AK10/control!$J$48,IF(V10=4,AK10/control!$J$49,IF(V10=5,AK10/control!$J$50,0)))))) -> 0.5559226278 | AP10: =IF(V10=0,AK10/control!$M$71,IF(V10=1,AK10/control!$M$71,IF(V10=2,AK10/control!$M$72,IF(V10=3,AK10/control!$M$73,IF(V10=4,AK10/control!$M$74,IF(V10=5,AK10/control!$M$75,0)))))) -> 0.5929841363 | AQ10: =IF(V10=0,AK10/control!$J$84,IF(V10=1,AK10/control!$J$85,IF(V10=2,AK10/control!$J$86,IF(V10=3,AK10/control!$J$87,IF(V10=4,AK10/control!$J$88,IF(V10=5,AK10/control!$J$89,0)))))) -> 0.6607537519 | AR10: =IF(control!$B$3=1,AN10,IF(control!$B$3=2,AO10,IF(control!$B$3=3,AP10,IF(control!$B$3=4,AQ10,-999)))) -> 0.4941534469 | AU10: 20361 | AV10: 19318 | AW10: 415 | AX10: 649 | AY10: 1 | AZ10: 1
A11: Bladen | B11: H0154 | C11: H | D11: Cape Fear Valley-Bladen County Hospital | E11: N | F11: 48 | G11: 0 | H11: 0 | I11: 2 | J11: 0 | K11: 0 | L11: 0 | M11: 2 | N11: 132 | O11: 200 | P11: 76 | Q11: 467 | R11: 1031.533333 | S11: =IF(C11="T",0,IF(AND(control!$B$10=2,E11="4A",R11>0),4,IF(AND(control!$B$10=2,E11="4B",R11>0),5,IF(AND(control!$B$10=1,C11="A",R11>0),4,IF(AND(C11="H",R11>control!$F$24),1,IF(AND(C11="H",R11>=control!$F$25,R11<=control!$G$25),2,IF(AND(C11="H",R11>control!$F$26,R11<control!$G$26),3,"null"))))))) -> 3 | T11: 667 | U11: =IF(C11="T",0,IF(AND(control!$B$10=2,E11="4A",T11>0),4,IF(AND(control!$B$10=2,E11="4B",T11>0),5,IF(AND(control!$B$10=1,C11="A",T11>0),4,IF(AND(C11="H",T11>control!$M$24),1,IF(AND(C11="H",T11>=control!$M$25,T11<=control!$N$25),2,IF(AND(C11="H",T11>control!$M$26,T11<control!$N$26),3,"null"))))))) -> 3 | V11: =IF(control!$B$19=1,S11,IF(control!$B$19=2,U11,"unk")) -> 3 | W11: =IF(AND(V11=0,control!$B$55=2,N11>control!$G$61),control!$G$61,IF(AND(V11=1,N11>control!$G$61),control!$G$61,IF(AND(V11=2,N11>control!$G$62),control!$G$62,IF(AND(V11=3,N11>control!$G$63),control!$G$63,N11)))) -> 132 | X11: =IF(AND(V11=0,control!$B$55=2,P11>control!$O$61),control!$O$61,IF(AND(V11=1,P11>control!$O$61),control!$O$61,IF(AND(V11=2,P11>control!$O$62),control!$O$62,IF(AND(V11=3,P11>control!$O$63),control!$O$63,IF(AND(V11=4,P11>control!$O$64),control!$O$64,IF(AND(V11=5,P11>control!$O$65),control!$O$65,P11)))))) -> 76 | Y11: =O11*control!$B$15/60 -> 600 | Z11: =Q11*control!$C$15/60 -> 700.5 | AA11: =IF(V11=control!$B$45,O11*control!$E$45/60,IF(V11=control!$B$46,O11*control!$E$46/60,IF(V11=control!$B$47,O11*control!$E$47/60,IF(V11=control!$B$48,O11*control!$E$48/60,IF(V11=control!$B$49,O11*control!$E$49/60,IF(V11=control!$B$50,O11*control!$E$50/60,0)))))) -> 389.4 | AB11: =IF(V11=control!$B$45,Q11*control!$F$45/60,IF(V11=control!$B$46,Q11*control!$F$46/60,IF(V11=control!$B$47,Q11*control!$F$47/60,IF(V11=control!$B$48,Q11*control!$F$48/60,IF(V11=control!$B$49,Q11*control!$F$49/60,IF(V11=control!$B$50,Q11*control!$F$50/60,0)))))) -> 572.6976667 | AC11: 440 | AD11: 591.5333333 | AE11: 440 | AF11: 591.5333333 | AG11: =IF(control!$B$3=1,Y11+Z11,IF(control!$B$3=2,AA11+AB11,IF(control!$B$3=3,AC11+AD11,IF(control!$B$3=4,AE11+AF11,-999)))) -> 1300.5 | AH11: =IF(control!$L$14=2,AW11,IF(control!$L$14=3,AY11,AU11)) -> 35152 | AI11: =IF(control!$L$14=2,AX11,IF(control!$L$14=3,AZ11,AV11)) -> 35316 | AJ11: =IF(AND(AH11<>0,control!$O$3=1),100*(AI11-AH11)/AH11,IF(AND(AH11<>0,control!$O$3=2),(((AI11/AH11)^0.25)-1)*100,0)) -> 0.466545289 | AK11: 1306.567421 | AL11: 8 | AM11: 253 | AN11: =AK11/control!$H$15 -> 0.6979526824 | AO11: =IF(V11=0,AK11/control!$J$45,IF(V11=1,AK11/control!$J$46,IF(V11=2,AK11/control!$J$47,IF(V11=3,AK11/control!$J$48,IF(V11=4,AK11/control!$J$49,IF(V11=5,AK11/control!$J$50,0)))))) -> 0.7851967677 | AP11: =IF(V11=0,AK11/control!$M$71,IF(V11=1,AK11/control!$M$71,IF(V11=2,AK11/control!$M$72,IF(V11=3,AK11/control!$M$73,IF(V11=4,AK11/control!$M$74,IF(V11=5,AK11/control!$M$75,0)))))) -> 0.8375432189 | AQ11: =IF(V11=0,AK11/control!$J$84,IF(V11=1,AK11/control!$J$85,IF(V11=2,AK11/control!$J$86,IF(V11=3,AK11/control!$J$87,IF(V11=4,AK11/control!$J$88,IF(V11=5,AK11/control!$J$89,0)))))) -> 0.9332624439 | AR11: =IF(control!$B$3=1,AN11,IF(control!$B$3=2,AO11,IF(control!$B$3=3,AP11,IF(control!$B$3=4,AQ11,-999)))) -> 0.6979526824 | AU11: 35152 | AV11: 35316 | AW11: 607 | AX11: 667 | AY11: 1 | AZ11: 1
A12: Brunswick | B12: A | C12: A | D12: 2016 SMFP Need Determination | E12: N | F12: 0 | G12: 0 | H12: 0 | I12: 0 | J12: 0 | K12: 0 | L12: 1 | M12: 1 | O12: 0 | Q12: 0 | R12: 0 | S12: =IF(C12="T",0,IF(AND(control!$B$10=2,E12="4A",R12>0),4,IF(AND(control!$B$10=2,E12="4B",R12>0),5,IF(AND(control!$B$10=1,C12="A",R12>0),4,IF(AND(C12="H",R12>control!$F$24),1,IF(AND(C12="H",R12>=control!$F$25,R12<=control!$G$25),2,IF(AND(C12="H",R12>control!$F$26,R12<control!$G$26),3,"null"))))))) -> null | T12: 0 | U12: =IF(C12="T",0,IF(AND(control!$B$10=2,E12="4A",T12>0),4,IF(AND(control!$B$10=2,E12="4B",T12>0),5,IF(AND(control!$B$10=1,C12="A",T12>0),4,IF(AND(C12="H",T12>control!$M$24),1,IF(AND(C12="H",T12>=control!$M$25,T12<=control!$N$25),2,IF(AND(C12="H",T12>control!$M$26,T12<control!$N$26),3,"null"))))))) -> null | V12: =IF(control!$B$19=1,S12,IF(control!$B$19=2,U12,"unk")) -> null | W12: =IF(AND(V12=0,control!$B$55=2,N12>control!$G$61),control!$G$61,IF(AND(V12=1,N12>control!$G$61),control!$G$61,IF(AND(V12=2,N12>control!$G$62),control!$G$62,IF(AND(V12=3,N12>control!$G$63),control!$G$63,N12)))) -> 0 | X12: =IF(AND(V12=0,control!$B$55=2,P12>control!$O$61),control!$O$61,IF(AND(V12=1,P12>control!$O$61),control!$O$61,IF(AND(V12=2,P12>control!$O$62),control!$O$62,IF(AND(V12=3,P12>control!$O$63),control!$O$63,IF(AND(V12=4,P12>control!$O$64),control!$O$64,IF(AND(V12=5,P12>control!$O$65),control!$O$65,P12)))))) -> 0 | Y12: =O12*control!$B$15/60 -> 0 | Z12: =Q12*control!$C$15/60 -> 0 | AA12: =IF(V12=control!$B$45,O12*control!$E$45/60,IF(V12=control!$B$46,O12*control!$E$46/60,IF(V12=control!$B$47,O12*control!$E$47/60,IF(V12=control!$B$48,O12*control!$E$48/60,IF(V12=control!$B$49,O12*control!$E$49/60,IF(V12=control!$B$50,O12*control!$E$50/60,0)))))) -> 0 | AB12: =IF(V12=control!$B$45,Q12*control!$F$45/60,IF(V12=control!$B$46,Q12*control!$F$46/60,IF(V12=control!$B$47,Q12*control!$F$47/60,IF(V12=control!$B$48,Q12*control!$F$48/60,IF(V12=control!$B$49,Q12*control!$F$49/60,IF(V12=control!$B$50,Q12*control!$F$50/60,0)))))) -> 0 | AC12: 0 | AD12: 0 | AE12: 0 | AF12: 0 | AG12: =IF(control!$B$3=1,Y12+Z12,IF(control!$B$3=2,AA12+AB12,IF(control!$B$3=3,AC12+AD12,IF(control!$B$3=4,AE12+AF12,-999)))) -> 0 | AH12: =IF(control!$L$14=2,AW12,IF(control!$L$14=3,AY12,AU12)) -> 121577 | AI12: =IF(control!$L$14=2,AX12,IF(control!$L$14=3,AZ12,AV12)) -> 133941 | AJ12: =IF(AND(AH12<>0,control!$O$3=1),100*(AI12-AH12)/AH12,IF(AND(AH12<>0,control!$O$3=2),(((AI12/AH12)^0.25)-1)*100,0)) -> 10.1696867 | AK12: 0 | AN12: =AK12/control!$H$15 -> 0 | AO12: =IF(V12=0,AK12/control!$J$45,IF(V12=1,AK12/control!$J$46,IF(V12=2,AK12/control!$J$47,IF(V12=3,AK12/control!$J$48,IF(V12=4,AK12/control!$J$49,IF(V12=5,AK12/control!$J$50,0)))))) -> 0 | AP12: =IF(V12=0,AK12/control!$M$71,IF(V12=1,AK12/control!$M$71,IF(V12=2,AK12/control!$M$72,IF(V12=3,AK12/control!$M$73,IF(V12=4,AK12/control!$M$74,IF(V12=5,AK12/control!$M$75,0)))))) -> 0 | AQ12: =IF(V12=0,AK12/control!$J$84,IF(V12=1,AK12/control!$J$85,IF(V12=2,AK12/control!$J$86,IF(V12=3,AK12/control!$J$87,IF(V12=4,AK12/control!$J$88,IF(V12=5,AK12/control!$J$89,0)))))) -> 0 | AR12: =IF(control!$B$3=1,AN12,IF(control!$B$3=2,AO12,IF(control!$B$3=3,AP12,IF(control!$B$3=4,AQ12,-999)))) -> 0 | AU12: 121577 | AV12: 133941 | AX12: 0 | AY12: 1 | AZ12: 1
A13: Brunswick | B13: H0150 | C13: H | D13: J. Arthur Dosher Memorial Hospital | E13: N | F13: 25 | G13: 0 | H13: 0 | I13: 2 | J13: 0 | K13: 0 | L13: 0 | M13: 2 | N13: 120 | O13: 351 | P13: 56 | Q13: 1113 | R13: 1740.8 | S13: =IF(C13="T",0,IF(AND(control!$B$10=2,E13="4A",R13>0),4,IF(AND(control!$B$10=2,E13="4B",R13>0),5,IF(AND(control!$B$10=1,C13="A",R13>0),4,IF(AND(C13="H",R13>control!$F$24),1,IF(AND(C13="H",R13>=control!$F$25,R13<=control!$G$25),2,IF(AND(C13="H",R13>control!$F$26,R13<control!$G$26),3,"null"))))))) -> 3 | T13: 1464 | U13: =IF(C13="T",0,IF(AND(control!$B$10=2,E13="4A",T13>0),4,IF(AND(control!$B$10=2,E13="4B",T13>0),5,IF(AND(control!$B$10=1,C13="A",T13>0),4,IF(AND(C13="H",T13>control!$M$24),1,IF(AND(C13="H",T13>=control!$M$25,T13<=control!$N$25),2,IF(AND(C13="H",T13>control!$M$26,T13<control!$N$26),3,"null"))))))) -> 3 | V13: =IF(control!$B$19=1,S13,IF(control!$B$19=2,U13,"unk")) -> 3 | W13: =IF(AND(V13=0,control!$B$55=2,N13>control!$G$61),control!$G$61,IF(AND(V13=1,N13>control!$G$61),control!$G$61,IF(AND(V13=2,N13>control!$G$62),control!$G$62,IF(AND(V13=3,N13>control!$G$63),control!$G$63,N13)))) -> 120 | X13: =IF(AND(V13=0,control!$B$55=2,P13>control!$O$61),control!$O$61,IF(AND(V13=1,P13>control!$O$61),control!$O$61,IF(AND(V13=2,P13>control!$O$62),control!$O$62,IF(AND(V13=3,P13>control!$O$63),control!$O$63,IF(AND(V13=4,P13>control!$O$64),control!$O$64,IF(AND(V13=5,P13>control!$O$65),control!$O$65,P13)))))) -> 56 | Y13: =O13*control!$B$15/60 -> 1053 | Z13: =Q13*control!$C$15/60 -> 1669.5 | AA13: =IF(V13=control!$B$45,O13*control!$E$45/60,IF(V13=control!$B$46,O13*control!$E$46/60,IF(V13=control!$B$47,O13*control!$E$47/60,IF(V13=control!$B$48,O13*control!$E$48/60,IF(V13=control!$B$49,O13*control!$E$49/60,IF(V13=control!$B$50,O13*control!$E$50/60,0)))))) -> 683.397 | AB13: =IF(V13=control!$B$45,Q13*control!$F$45/60,IF(V13=control!$B$46,Q13*control!$F$46/60,IF(V13=control!$B$47,Q13*control!$F$47/60,IF(V13=control!$B$48,Q13*control!$F$48/60,IF(V13=control!$B$49,Q13*control!$F$49/60,IF(V13=control!$B$50,Q13*control!$F$50/60,0)))))) -> 1364.909 | AC13: 702 | AD13: 1038.8 | AE13: 702 | AF13: 1038.8 | AG13: =IF(control!$B$3=1,Y13+Z13,IF(control!$B$3=2,AA13+AB13,IF(control!$B$3=3,AC13+AD13,IF(control!$B$3=4,AE13+AF13,-999)))) -> 2722.5 | AH13: =IF(control!$L$14=2,AW13,IF(control!$L$14=3,AY13,AU13)) -> 121577 | AI13: =IF(control!$L$14=2,AX13,IF(control!$L$14=3,AZ13,AV13)) -> 133941 | AJ13: =IF(AND(AH13<>0,control!$O$3=1),100*(AI13-AH13)/AH13,IF(AND(AH13<>0,control!$O$3=2),(((AI13/AH13)^0.25)-1)*100,0)) -> 10.1696867 | AK13: 2999.36972 | AL13: 8 | AM13: 260 | AN13: =AK13/control!$H$15 -> 1.602227415 | AO13: =IF(V13=0,AK13/control!$J$45,IF(V13=1,AK13/control!$J$46,IF(V13=2,AK13/control!$J$47,IF(V13=3,AK13/control!$J$48,IF(V13=4,AK13/control!$J$49,IF(V13=5,AK13/control!$J$50,0)))))) -> 1.802505842 | AP13: =IF(V13=0,AK13/control!$M$71,IF(V13=1,AK13/control!$M$71,IF(V13=2,AK13/control!$M$72,IF(V13=3,AK13/control!$M$73,IF(V13=4,AK13/control!$M$74,IF(V13=5,AK13/control!$M$75,0)))))) -> 1.922672898 | AQ13: =IF(V13=0,AK13/control!$J$84,IF(V13=1,AK13/control!$J$85,IF(V13=2,AK13/control!$J$86,IF(V13=3,AK13/control!$J$87,IF(V13=4,AK13/control!$J$88,IF(V13=5,AK13/control!$J$89,0)))))) -> 2.142406943 | AR13: =IF(control!$B$3=1,AN13,IF(control!$B$3=2,AO13,IF(control!$B$3=3,AP13,IF(control!$B$3=4,AQ13,-999)))) -> 1.602227415 | AU13: 121577 | AV13: 133941 | AW13: 1384 | AX13: 1464 | AY13: 1 | AZ13: 1
A14: Brunswick | B14: H0250 | C14: H | D14: Novant Health Brunswick Medical Center | E14: N | F14: 74 | G14: 1 | H14: 0 | I14: 4 | J14: -1 | K14: 0 | L14: 0 | M14: 4 | N14: 123 | O14: 1091 | P14: 67 | Q14: 3216 | R14: 5827.75 | S14: =IF(C14="T",0,IF(AND(control!$B$10=2,E14="4A",R14>0),4,IF(AND(control!$B$10=2,E14="4B",R14>0),5,IF(AND(control!$B$10=1,C14="A",R14>0),4,IF(AND(C14="H",R14>control!$F$24),1,IF(AND(C14="H",R14>=control!$F$25,R14<=control!$G$25),2,IF(AND(C14="H",R14>control!$F$26,R14<control!$G$26),3,"null"))))))) -> 3 | T14: 4307 | U14: =IF(C14="T",0,IF(AND(control!$B$10=2,E14="4A",T14>0),4,IF(AND(control!$B$10=2,E14="4B",T14>0),5,IF(AND(control!$B$10=1,C14="A",T14>0),4,IF(AND(C14="H",T14>control!$M$24),1,IF(AND(C14="H",T14>=control!$M$25,T14<=control!$N$25),2,IF(AND(C14="H",T14>control!$M$26,T14<control!$N$26),3,"null"))))))) -> 3 | V14: =IF(control!$B$19=1,S14,IF(control!$B$19=2,U14,"unk")) -> 3 | W14: =IF(AND(V14=0,control!$B$55=2,N14>control!$G$61),control!$G$61,IF(AND(V14=1,N14>control!$G$61),control!$G$61,IF(AND(V14=2,N14>control!$G$62),control!$G$62,IF(AND(V14=3,N14>control!$G$63),control!$G$63,N14)))) -> 123 | X14: =IF(AND(V14=0,control!$B$55=2,P14>control!$O$61),control!$O$61,IF(AND(V14=1,P14>control!$O$61),control!$O$61,IF(AND(V14=2,P14>control!$O$62),control!$O$62,IF(AND(V14=3,P14>control!$O$63),control!$O$63,IF(AND(V14=4,P14>control!$O$64),control!$O$64,IF(AND(V14=5,P14>control!$O$65),control!$O$65,P14)))))) -> 67 | Y14: =O14*control!$B$15/60 -> 3273 | Z14: =Q14*control!$C$15/60 -> 4824 | AA14: =IF(V14=control!$B$45,O14*control!$E$45/60,IF(V14=control!$B$46,O14*control!$E$46/60,IF(V14=control!$B$47,O14*control!$E$47/60,IF(V14=control!$B$48,O14*control!$E$48/60,IF(V14=control!$B$49,O14*control!$E$49/60,IF(V14=control!$B$50,O14*control!$E$50/60,0)))))) -> 2124.177 | AB14: =IF(V14=control!$B$45,Q14*control!$F$45/60,IF(V14=control!$B$46,Q14*control!$F$46/60,IF(V14=control!$B$47,Q14*control!$F$47/60,IF(V14=control!$B$48,Q14*control!$F$48/60,IF(V14=control!$B$49,Q14*control!$F$49/60,IF(V14=control!$B$50,Q14*control!$F$50/60,0)))))) -> 3943.888 | AC14: 2236.55 | AD14: 3591.2 | AE14: 2236.55 | AF14: 3591.2 | AG14: =IF(control!$B$3=1,Y14+Z14,IF(control!$B$3=2,AA14+AB14,IF(control!$B$3=3,AC14+AD14,IF(control!$B$3=4,AE14+AF14,-999)))) -> 8097 | AH14: =IF(control!$L$14=2,AW14,IF(control!$L$14=3,AY14,AU14)) -> 121577 | AI14: =IF(control!$L$14=2,AX14,IF(control!$L$14=3,AZ14,AV14)) -> 133941 | AJ14: =IF(AND(AH14<>0,control!$O$3=1),100*(AI14-AH14)/AH14,IF(AND(AH14<>0,control!$O$3=2),(((AI14/AH14)^0.25)-1)*100,0)) -> 10.1696867 | AK14: 8920.439532 | AL14: 9 | AM14: 273.75 | AN14: =AK14/control!$H$15 -> 4.765192058 | AO14: =IF(V14=0,AK14/control!$J$45,IF(V14=1,AK14/control!$J$46,IF(V14=2,AK14/control!$J$47,IF(V14=3,AK14/control!$J$48,IF(V14=4,AK14/control!$J$49,IF(V14=5,AK14/control!$J$50,0)))))) -> 5.360841065 | AP14: =IF(V14=0,AK14/control!$M$71,IF(V14=1,AK14/control!$M$71,IF(V14=2,AK14/control!$M$72,IF(V14=3,AK14/control!$M$73,IF(V14=4,AK14/control!$M$74,IF(V14=5,AK14/control!$M$75,0)))))) -> 5.718230469 | AQ14: =IF(V14=0,AK14/control!$J$84,IF(V14=1,AK14/control!$J$85,IF(V14=2,AK14/control!$J$86,IF(V14=3,AK14/control!$J$87,IF(V14=4,AK14/control!$J$88,IF(V14=5,AK14/control!$J$89,0)))))) -> 6.371742523 | AR14: =IF(control!$B$3=1,AN14,IF(control!$B$3=2,AO14,IF(control!$B$3=3,AP14,IF(control!$B$3=4,AQ14,-999)))) -> 4.765192058 | AU14: 121577 | AV14: 133941 | AW14: 3988 | AX14: 4307 | AY14: 1 | AZ14: 1
A15: Buncombe | B15: AS0038 | C15: A | D15: Orthopaedic Surgery Center of Asheville | E15: 4A | F15: 0 | G15: 0 | H15: 3 | I15: 0 | J15: 0 | K15: 0 | L15: 0 | M15: 3 | O15: 0 | P15: 105 | Q15: 3138 | R15: 5491.5 | S15: =IF(C15="T",0,IF(AND(control!$B$10=2,E15="4A",R15>0),4,IF(AND(control!$B$10=2,E15="4B",R15>0),5,IF(AND(control!$B$10=1,C15="A",R15>0),4,IF(AND(C15="H",R15>control!$F$24),1,IF(AND(C15="H",R15>=control!$F$25,R15<=control!$G$25),2,IF(AND(C15="H",R15>control!$F$26,R15<control!$G$26),3,"null"))))))) -> 4 | T15: 3138 | U15: =IF(C15="T",0,IF(AND(control!$B$10=2,E15="4A",T15>0),4,IF(AND(control!$B$10=2,E15="4B",T15>0),5,IF(AND(control!$B$10=1,C15="A",T15>0),4,IF(AND(C15="H",T15>control!$M$24),1,IF(AND(C15="H",T15>=control!$M$25,T15<=control!$N$25),2,IF(AND(C15="H",T15>control!$M$26,T15<control!$N$26),3,"null"))))))) -> 4 | V15: =IF(control!$B$19=1,S15,IF(control!$B$19=2,U15,"unk")) -> 4 | W15: =IF(AND(V15=0,control!$B$55=2,N15>control!$G$61),control!$G$61,IF(AND(V15=1,N15>control!$G$61),control!$G$61,IF(AND(V15=2,N15>control!$G$62),control!$G$62,IF(AND(V15=3,N15>control!$G$63),control!$G$63,N15)))) -> 0 | X15: =IF(AND(V15=0,control!$B$55=2,P15>control!$O$61),control!$O$61,IF(AND(V15=1,P15>control!$O$61),control!$O$61,IF(AND(V15=2,P15>control!$O$62),control!$O$62,IF(AND(V15=3,P15>control!$O$63),control!$O$63,IF(AND(V15=4,P15>control!$O$64),control!$O$64,IF(AND(V15=5,P15>control!$O$65),control!$O$65,P15)))))) -> 78.28475097 | Y15: =O15*control!$B$15/60 -> 0 | Z15: =Q15*control!$C$15/60 -> 4707 | AA15: =IF(V15=control!$B$45,O15*control!$E$45/60,IF(V15=control!$B$46,O15*control!$E$46/60,IF(V15=control!$B$47,O15*control!$E$47/60,IF(V15=control!$B$48,O15*control!$E$48/60,IF(V15=control!$B$49,O15*control!$E$49/60,IF(V15=control!$B$50,O15*control!$E$50/60,0)))))) -> 0 | AB15: =IF(V15=control!$B$45,Q15*control!$F$45/60,IF(V15=control!$B$46,Q15*control!$F$46/60,IF(V15=control!$B$47,Q15*control!$F$47/60,IF(V15=control!$B$48,Q15*control!$F$48/60,IF(V15=control!$B$49,Q15*control!$F$49/60,IF(V15=control!$B$50,Q15*control!$F$50/60,0)))))) -> 3033.4 | AC15: 0 | AD15: 4094.292476 | AE15: 0 | AF15: 5491.5 | AG15: =IF(control!$B$3=1,Y15+Z15,IF(control!$B$3=2,AA15+AB15,IF(control!$B$3=3,AC15+AD15,IF(control!$B$3=4,AE15+AF15,-999)))) -> 4707 | AH15: =IF(control!$L$14=2,AW15,IF(control!$L$14=3,AY15,AU15)) -> 254344 | AI15: =IF(control!$L$14=2,AX15,IF(control!$L$14=3,AZ15,AV15)) -> 266618 | AJ15: =IF(AND(AH15<>0,control!$O$3=1),100*(AI15-AH15)/AH15,IF(AND(AH15<>0,control!$O$3=2),(((AI15/AH15)^0.25)-1)*100,0)) -> 4.825747806 | AK15: 4934.147949 | AL15: 8 | AM15: 252 | AN15: =AK15/control!$H$15 -> 2.635762793 | AO15: =IF(V15=0,AK15/control!$J$45,IF(V15=1,AK15/control!$J$46,IF(V15=2,AK15/control!$J$47,IF(V15=3,AK15/control!$J$48,IF(V15=4,AK15/control!$J$49,IF(V15=5,AK15/control!$J$50,0)))))) -> 3.294703492 | AP15: =IF(V15=0,AK15/control!$M$71,IF(V15=1,AK15/control!$M$71,IF(V15=2,AK15/control!$M$72,IF(V15=3,AK15/control!$M$73,IF(V15=4,AK15/control!$M$74,IF(V15=5,AK15/control!$M$75,0)))))) -> 3.514350391 | AQ15: =IF(V15=0,AK15/control!$J$84,IF(V15=1,AK15/control!$J$85,IF(V15=2,AK15/control!$J$86,IF(V15=3,AK15/control!$J$87,IF(V15=4,AK15/control!$J$88,IF(V15=5,AK15/control!$J$89,0)))))) -> 3.814276399 | AR15: =IF(control!$B$3=1,AN15,IF(control!$B$3=2,AO15,IF(control!$B$3=3,AP15,IF(control!$B$3=4,AQ15,-999)))) -> 2.635762793 | AU15: 254344 | AV15: 266618 | AW15: 2717 | AX15: 3138 | AY15: 1 | AZ15: 1
A16: Buncombe | B16: AS0065 | C16: A | D16: Asheville Eye Surgery Center | E16: 4A | F16: 0 | G16: 0 | H16: 1 | I16: 0 | J16: 0 | K16: 0 | L16: 0 | M16: 1 | O16: 0 | P16: 26 | Q16: 4074 | R16: 1765.4 | S16: =IF(C16="T",0,IF(AND(control!$B$10=2,E16="4A",R16>0),4,IF(AND(control!$B$10=2,E16="4B",R16>0),5,IF(AND(control!$B$10=1,C16="A",R16>0),4,IF(AND(C16="H",R16>control!$F$24),1,IF(AND(C16="H",R16>=control!$F$25,R16<=control!$G$25),2,IF(AND(C16="H",R16>control!$F$26,R16<control!$G$26),3,"null"))))))) -> 4 | T16: 4074 | U16: =IF(C16="T",0,IF(AND(control!$B$10=2,E16="4A",T16>0),4,IF(AND(control!$B$10=2,E16="4B",T16>0),5,IF(AND(control!$B$10=1,C16="A",T16>0),4,IF(AND(C16="H",T16>control!$M$24),1,IF(AND(C16="H",T16>=control!$M$25,T16<=control!$N$25),2,IF(AND(C16="H",T16>control!$M$26,T16<control!$N$26),3,"null"))))))) -> 4 | V16: =IF(control!$B$19=1,S16,IF(control!$B$19=2,U16,"unk")) -> 4 | W16: =IF(AND(V16=0,control!$B$55=2,N16>control!$G$61),control!$G$61,IF(AND(V16=1,N16>control!$G$61),control!$G$61,IF(AND(V16=2,N16>control!$G$62),control!$G$62,IF(AND(V16=3,N16>control!$G$63),control!$G$63,N16)))) -> 0 | X16: =IF(AND(V16=0,control!$B$55=2,P16>control!$O$61),control!$O$61,IF(AND(V16=1,P16>control!$O$61),control!$O$61,IF(AND(V16=2,P16>control!$O$62),control!$O$62,IF(AND(V16=3,P16>control!$O$63),control!$O$63,IF(AND(V16=4,P16>control!$O$64),control!$O$64,IF(AND(V16=5,P16>control!$O$65),control!$O$65,P16)))))) -> 26 | Y16: =O16*control!$B$15/60 -> 0 | Z16: =Q16*control!$C$15/60 -> 6111 | AA16: =IF(V16=control!$B$45,O16*control!$E$45/60,IF(V16=control!$B$46,O16*control!$E$46/60,IF(V16=control!$B$47,O16*control!$E$47/60,IF(V16=control!$B$48,O16*control!$E$48/60,IF(V16=control!$B$49,O16*control!$E$49/60,IF(V16=control!$B$50,O16*control!$E$50/60,0)))))) -> 0 | AB16: =IF(V16=control!$B$45,Q16*control!$F$45/60,IF(V16=control!$B$46,Q16*control!$F$46/60,IF(V16=control!$B$47,Q16*control!$F$47/60,IF(V16=control!$B$48,Q16*control!$F$48/60,IF(V16=control!$B$49,Q16*control!$F$49/60,IF(V16=control!$B$50,Q16*control!$F$50/60,0)))))) -> 3938.2 | AC16: 0 | AD16: 1765.4 | AE16: 0 | AF16: 1765.4 | AG16: =IF(control!$B$3=1,Y16+Z16,IF(control!$B$3=2,AA16+AB16,IF(control!$B$3=3,AC16+AD16,IF(control!$B$3=4,AE16+AF16,-999)))) -> 6111 | AH16: =IF(control!$L$14=2,AW16,IF(control!$L$14=3,AY16,AU16)) -> 254344 | AI16: =IF(control!$L$14=2,AX16,IF(control!$L$14=3,AZ16,AV16)) -> 266618 | AJ16: =IF(AND(AH16<>0,control!$O$3=1),100*(AI16-AH16)/AH16,IF(AND(AH16<>0,control!$O$3=2),(((AI16/AH16)^0.25)-1)*100,0)) -> 4.825747806 | AK16: 6405.901448 | AL16: 9 | AM16: 202 | AN16: =AK16/control!$H$15 -> 3.421955902 | AO16: =IF(V16=0,AK16/control!$J$45,IF(V16=1,AK16/control!$J$46,IF(V16=2,AK16/control!$J$47,IF(V16=3,AK16/control!$J$48,IF(V16=4,AK16/control!$J$49,IF(V16=5,AK16/control!$J$50,0)))))) -> 4.277444877 | AP16: =IF(V16=0,AK16/control!$M$71,IF(V16=1,AK16/control!$M$71,IF(V16=2,AK16/control!$M$72,IF(V16=3,AK16/control!$M$73,IF(V16=4,AK16/control!$M$74,IF(V16=5,AK16/control!$M$75,0)))))) -> 4.562607869 | AQ16: =IF(V16=0,AK16/control!$J$84,IF(V16=1,AK16/control!$J$85,IF(V16=2,AK16/control!$J$86,IF(V16=3,AK16/control!$J$87,IF(V16=4,AK16/control!$J$88,IF(V16=5,AK16/control!$J$89,0)))))) -> 4.951995554 | AR16: =IF(control!$B$3=1,AN16,IF(control!$B$3=2,AO16,IF(control!$B$3=3,AP16,IF(control!$B$3=4,AQ16,-999)))) -> 3.421955902 | AU16: 254344 | AV16: 266618 | AW16: 3698 | AX16: 4074 | AY16: 1 | AZ16: 1
A17: Buncombe | B17: H0036 | C17: H | D17: Mission Hospital | E17: N | F17: 701 | G17: 8 | H17: 9 | I17: 30 | J17: -2 | K17: -1 | L17: 0 | M17: 44 | N17: 189.6 | O17: 11262 | P17: 96.6 | Q17: 21239 | R17: 69782.71 | S17: =IF(C17="T",0,IF(AND(control!$B$10=2,E17="4A",R17>0),4,IF(AND(control!$B$10=2,E17="4B",R17>0),5,IF(AND(control!$B$10=1,C17="A",R17>0),4,IF(AND(C17="H",R17>control!$F$24),1,IF(AND(C17="H",R17>=control!$F$25,R17<=control!$G$25),2,IF(AND(C17="H",R17>control!$F$26,R17<control!$G$26),3,"null"))))))) -> 1 | T17: 32501 | U17: =IF(C17="T",0,IF(AND(control!$B$10=2,E17="4A",T17>0),4,IF(AND(control!$B$10=2,E17="4B",T17>0),5,IF(AND(control!$B$10=1,C17="A",T17>0),4,IF(AND(C17="H",T17>control!$M$24),1,IF(AND(C17="H",T17>=control!$M$25,T17<=control!$N$25),2,IF(AND(C17="H",T17>control!$M$26,T17<control!$N$26),3,"null"))))))) -> 1 | V17: =IF(control!$B$19=1,S17,IF(control!$B$19=2,U17,"unk")) -> 1 | W17: =IF(AND(V17=0,control!$B$55=2,N17>control!$G$61),control!$G$61,IF(AND(V17=1,N17>control!$G$61),control!$G$61,IF(AND(V17=2,N17>control!$G$62),control!$G$62,IF(AND(V17=3,N17>control!$G$63),control!$G$63,N17)))) -> 189.6 | X17: =IF(AND(V17=0,control!$B$55=2,P17>control!$O$61),control!$O$61,IF(AND(V17=1,P17>control!$O$61),control!$O$61,IF(AND(V17=2,P17>control!$O$62),control!$O$62,IF(AND(V17=3,P17>control!$O$63),control!$O$63,IF(AND(V17=4,P17>control!$O$64),control!$O$64,IF(AND(V17=5,P17>control!$O$65),control!$O$65,P17)))))) -> 96.6 | Y17: =O17*control!$B$15/60 -> 33786 | Z17: =Q17*control!$C$15/60 -> 31858.5 | AA17: =IF(V17=control!$B$45,O17*control!$E$45/60,IF(V17=control!$B$46,O17*control!$E$46/60,IF(V17=control!$B$47,O17*control!$E$47/60,IF(V17=control!$B$48,O17*control!$E$48/60,IF(V17=control!$B$49,O17*control!$E$49/60,IF(V17=control!$B$50,O17*control!$E$50/60,0)))))) -> 32659.8 | AB17: =IF(V17=control!$B$45,Q17*control!$F$45/60,IF(V17=control!$B$46,Q17*control!$F$46/60,IF(V17=control!$B$47,Q17*control!$F$47/60,IF(V17=control!$B$48,Q17*control!$F$48/60,IF(V17=control!$B$49,Q17*control!$F$49/60,IF(V17=control!$B$50,Q17*control!$F$50/60,0)))))) -> 35681.52 | AC17: 35587.92 | AD17: 34194.79 | AE17: 35587.92 | AF17: 34194.79 | AG17: =IF(control!$B$3=1,Y17+Z17,IF(control!$B$3=2,AA17+AB17,IF(control!$B$3=3,AC17+AD17,IF(control!$B$3=4,AE17+AF17,-999)))) -> 65644.5 | AH17: =IF(control!$L$14=2,AW17,IF(control!$L$14=3,AY17,AU17)) -> 254344 | AI17: =IF(control!$L$14=2,AX17,IF(control!$L$14=3,AZ17,AV17)) -> 266618 | AJ17: =IF(AND(AH17<>0,control!$O$3=1),100*(AI17-AH17)/AH17,IF(AND(AH17<>0,control!$O$3=2),(((AI17/AH17)^0.25)-1)*100,0)) -> 4.825747806 | AK17: 68812.33802 | AL17: 10.6 | AM17: 252 | AN17: =AK17/control!$H$15 -> 36.75872757 | AO17: =IF(V17=0,AK17/control!$J$45,IF(V17=1,AK17/control!$J$46,IF(V17=2,AK17/control!$J$47,IF(V17=3,AK17/control!$J$48,IF(V17=4,AK17/control!$J$49,IF(V17=5,AK17/control!$J$50,0)))))) -> 33.08285482 | AP17: =IF(V17=0,AK17/control!$M$71,IF(V17=1,AK17/control!$M$71,IF(V17=2,AK17/control!$M$72,IF(V17=3,AK17/control!$M$73,IF(V17=4,AK17/control!$M$74,IF(V17=5,AK17/control!$M$75,0)))))) -> 35.28837847 | AQ17: =IF(V17=0,AK17/control!$J$84,IF(V17=1,AK17/control!$J$85,IF(V17=2,AK17/control!$J$86,IF(V17=3,AK17/control!$J$87,IF(V17=4,AK17/control!$J$88,IF(V17=5,AK17/control!$J$89,0)))))) -> 42.00997437 | AR17: =IF(control!$B$3=1,AN17,IF(control!$B$3=2,AO17,IF(control!$B$3=3,AP17,IF(control!$B$3=4,AQ17,-999)))) -> 36.75872757 | AU17: 254344 | AV17: 266618 | AW17: 35517 | AX17: 32501 | AY17: 1 | AZ17: 1
A18: Burke | B18: AS0040 | C18: A | D18: Surgery Center of Morganton Eye Physicians | E18: 4A | F18: 0 | G18: 0 | H18: 2 | I18: 0 | J18: 0 | K18: 0 | L18: 0 | M18: 2 | O18: 0 | P18: 30 | Q18: 2407 | R18: 1203.5 | S18: =IF(C18="T",0,IF(AND(control!$B$10=2,E18="4A",R18>0),4,IF(AND(control!$B$10=2,E18="4B",R18>0),5,IF(AND(control!$B$10=1,C18="A",R18>0),4,IF(AND(C18="H",R18>control!$F$24),1,IF(AND(C18="H",R18>=control!$F$25,R18<=control!$G$25),2,IF(AND(C18="H",R18>control!$F$26,R18<control!$G$26),3,"null"))))))) -> 4 | T18: 2407 | U18: =IF(C18="T",0,IF(AND(control!$B$10=2,E18="4A",T18>0),4,IF(AND(control!$B$10=2,E18="4B",T18>0),5,IF(AND(control!$B$10=1,C18="A",T18>0),4,IF(AND(C18="H",T18>control!$M$24),1,IF(AND(C18="H",T18>=control!$M$25,T18<=control!$N$25),2,IF(AND(C18="H",T18>control!$M$26,T18<control!$N$26),3,"null"))))))) -> 4 | V18: =IF(control!$B$19=1,S18,IF(control!$B$19=2,U18,"unk")) -> 4 | W18: =IF(AND(V18=0,control!$B$55=2,N18>control!$G$61),control!$G$61,IF(AND(V18=1,N18>control!$G$61),control!$G$61,IF(AND(V18=2,N18>control!$G$62),control!$G$62,IF(AND(V18=3,N18>control!$G$63),control!$G$63,N18)))) -> 0 | X18: =IF(AND(V18=0,control!$B$55=2,P18>control!$O$61),control!$O$61,IF(AND(V18=1,P18>control!$O$61),control!$O$61,IF(AND(V18=2,P18>control!$O$62),control!$O$62,IF(AND(V18=3,P18>control!$O$63),control!$O$63,IF(AND(V18=4,P18>control!$O$64),control!$O$64,IF(AND(V18=5,P18>control!$O$65),control!$O$65,P18)))))) -> 30 | Y18: =O18*control!$B$15/60 -> 0 | Z18: =Q18*control!$C$15/60 -> 3610.5 | AA18: =IF(V18=control!$B$45,O18*control!$E$45/60,IF(V18=control!$B$46,O18*control!$E$46/60,IF(V18=control!$B$47,O18*control!$E$47/60,IF(V18=control!$B$48,O18*control!$E$48/60,IF(V18=control!$B$49,O18*control!$E$49/60,IF(V18=control!$B$50,O18*control!$E$50/60,0)))))) -> 0 | AB18: =IF(V18=control!$B$45,Q18*control!$F$45/60,IF(V18=control!$B$46,Q18*control!$F$46/60,IF(V18=control!$B$47,Q18*control!$F$47/60,IF(V18=control!$B$48,Q18*control!$F$48/60,IF(V18=control!$B$49,Q18*control!$F$49/60,IF(V18=control!$B$50,Q18*control!$F$50/60,0)))))) -> 2326.766667 | AC18: 0 | AD18: 1203.5 | AE18: 0 | AF18: 1203.5 | AG18: =IF(control!$B$3=1,Y18+Z18,IF(control!$B$3=2,AA18+AB18,IF(control!$B$3=3,AC18+AD18,IF(control!$B$3=4,AE18+AF18,-999)))) -> 3610.5 | AH18: =IF(control!$L$14=2,AW18,IF(control!$L$14=3,AY18,AU18)) -> 89198 | AI18: =IF(control!$L$14=2,AX18,IF(control!$L$14=3,AZ18,AV18)) -> 89197 | AJ18: =IF(AND(AH18<>0,control!$O$3=1),100*(AI18-AH18)/AH18,IF(AND(AH18<>0,control!$O$3=2),(((AI18/AH18)^0.25)-1)*100,0)) -> -0.00112110137 | AK18: 3610.459523 | AL18: 8 | AM18: 210 | AN18: =AK18/control!$H$15 -> 1.928664275 | AO18: =IF(V18=0,AK18/control!$J$45,IF(V18=1,AK18/control!$J$46,IF(V18=2,AK18/control!$J$47,IF(V18=3,AK18/control!$J$48,IF(V18=4,AK18/control!$J$49,IF(V18=5,AK18/control!$J$50,0)))))) -> 2.410830344 | AP18: =IF(V18=0,AK18/control!$M$71,IF(V18=1,AK18/control!$M$71,IF(V18=2,AK18/control!$M$72,IF(V18=3,AK18/control!$M$73,IF(V18=4,AK18/control!$M$74,IF(V18=5,AK18/control!$M$75,0)))))) -> 2.571552367 | AQ18: =IF(V18=0,AK18/control!$J$84,IF(V18=1,AK18/control!$J$85,IF(V18=2,AK18/control!$J$86,IF(V18=3,AK18/control!$J$87,IF(V18=4,AK18/control!$J$88,IF(V18=5,AK18/control!$J$89,0)))))) -> 2.791016947 | AR18: =IF(control!$B$3=1,AN18,IF(control!$B$3=2,AO18,IF(control!$B$3=3,AP18,IF(control!$B$3=4,AQ18,-999)))) -> 1.928664275 | AU18: 89198 | AV18: 89197 | AW18: 2276 | AX18: 2407 | AY18: 1 | AZ18: 1
A19: Burke | B19: H0062 | C19: H | D19: Carolinas HealthCare System Blue Ridge | E19: N | F19: 293 | G19: 1 | H19: 0 | I19: 9 | J19: -1 | K19: 0 | L19: 0 | M19: 9 | N19: 180 | O19: 1148 | P19: 90 | Q19: 3877 | R19: 9259.5 | S19: =IF(C19="T",0,IF(AND(control!$B$10=2,E19="4A",R19>0),4,IF(AND(control!$B$10=2,E19="4B",R19>0),5,IF(AND(control!$B$10=1,C19="A",R19>0),4,IF(AND(C19="H",R19>control!$F$24),1,IF(AND(C19="H",R19>=control!$F$25,R19<=control!$G$25),2,IF(AND(C19="H",R19>control!$F$26,R19<control!$G$26),3,"null"))))))) -> 3 | T19: 5025 | U19: =IF(C19="T",0,IF(AND(control!$B$10=2,E19="4A",T19>0),4,IF(AND(control!$B$10=2,E19="4B",T19>0),5,IF(AND(control!$B$10=1,C19="A",T19>0),4,IF(AND(C19="H",T19>control!$M$24),1,IF(AND(C19="H",T19>=control!$M$25,T19<=control!$N$25),2,IF(AND(C19="H",T19>control!$M$26,T19<control!$N$26),3,"null"))))))) -> 2 | V19: =IF(control!$B$19=1,S19,IF(control!$B$19=2,U19,"unk")) -> 3 | W19: =IF(AND(V19=0,control!$B$55=2,N19>control!$G$61),control!$G$61,IF(AND(V19=1,N19>control!$G$61),control!$G$61,IF(AND(V19=2,N19>control!$G$62),control!$G$62,IF(AND(V19=3,N19>control!$G$63),control!$G$63,N19)))) -> 152.3863469 | X19: =IF(AND(V19=0,control!$B$55=2,P19>control!$O$61),control!$O$61,IF(AND(V19=1,P19>control!$O$61),control!$O$61,IF(AND(V19=2,P19>control!$O$62),control!$O$62,IF(AND(V19=3,P19>control!$O$63),control!$O$63,IF(AND(V19=4,P19>control!$O$64),control!$O$64,IF(AND(V19=5,P19>control!$O$65),control!$O$65,P19)))))) -> 90 | Y19: =O19*control!$B$15/60 -> 3444 | Z19: =Q19*control!$C$15/60 -> 5815.5 | AA19: =IF(V19=control!$B$45,O19*control!$E$45/60,IF(V19=control!$B$46,O19*control!$E$46/60,IF(V19=control!$B$47,O19*control!$E$47/60,IF(V19=control!$B$48,O19*control!$E$48/60,IF(V19=control!$B$49,O19*control!$E$49/60,IF(V19=control!$B$50,O19*control!$E$50/60,0)))))) -> 2235.156 | AB19: =IF(V19=control!$B$45,Q19*control!$F$45/60,IF(V19=control!$B$46,Q19*control!$F$46/60,IF(V19=control!$B$47,Q19*control!$F$47/60,IF(V19=control!$B$48,Q19*control!$F$48/60,IF(V19=control!$B$49,Q19*control!$F$49/60,IF(V19=control!$B$50,Q19*control!$F$50/60,0)))))) -> 4754.494333 | AC19: 2915.658771 | AD19: 5815.5 | AE19: 3444 | AF19: 5815.5 | AG19: =IF(control!$B$3=1,Y19+Z19,IF(control!$B$3=2,AA19+AB19,IF(control!$B$3=3,AC19+AD19,IF(control!$B$3=4,AE19+AF19,-999)))) -> 9259.5 | AH19: =IF(control!$L$14=2,AW19,IF(control!$L$14=3,AY19,AU19)) -> 89198 | AI19: =IF(control!$L$14=2,AX19,IF(control!$L$14=3,AZ19,AV19)) -> 89197 | AJ19: =IF(AND(AH19<>0,control!$O$3=1),100*(AI19-AH19)/AH19,IF(AND(AH19<>0,control!$O$3=2),(((AI19/AH19)^0.25)-1)*100,0)) -> -0.00112110137 | AK19: 9259.396192 | AL19: 8 | AM19: 232 | AN19: =AK19/control!$H$15 -> 4.946258649 | AO19: =IF(V19=0,AK19/control!$J$45,IF(V19=1,AK19/control!$J$46,IF(V19=2,AK19/control!$J$47,IF(V19=3,AK19/control!$J$48,IF(V19=4,AK19/control!$J$49,IF(V19=5,AK19/control!$J$50,0)))))) -> 5.564540981 | AP19: =IF(V19=0,AK19/control!$M$71,IF(V19=1,AK19/control!$M$71,IF(V19=2,AK19/control!$M$72,IF(V19=3,AK19/control!$M$73,IF(V19=4,AK19/control!$M$74,IF(V19=5,AK19/control!$M$75,0)))))) -> 5.935510379 | AQ19: =IF(V19=0,AK19/control!$J$84,IF(V19=1,AK19/control!$J$85,IF(V19=2,AK19/control!$J$86,IF(V19=3,AK19/control!$J$87,IF(V19=4,AK19/control!$J$88,IF(V19=5,AK19/control!$J$89,0)))))) -> 6.613854423 | AR19: =IF(control!$B$3=1,AN19,IF(control!$B$3=2,AO19,IF(control!$B$3=3,AP19,IF(control!$B$3=4,AQ19,-999)))) -> 4.946258649 | AU19: 89198 | AV19: 89197 | AW19: 5733 | AX19: 5025 | AY19: 1 | AZ19: 1
A20: Cabarrus | B20: AS0019 | C20: A | D20: Eye Surgery Center and Laser Clinic | E20: 4A | F20: 0 | G20: 0 | H20: 2 | I20: 0 | J20: 0 | K20: 0 | L20: 0 | M20: 2 | O20: 0 | P20: 45 | Q20: 2946 | R20: 2209.5 | S20: =IF(C20="T",0,IF(AND(control!$B$10=2,E20="4A",R20>0),4,IF(AND(control!$B$10=2,E20="4B",R20>0),5,IF(AND(control!$B$10=1,C20="A",R20>0),4,IF(AND(C20="H",R20>control!$F$24),1,IF(AND(C20="H",R20>=control!$F$25,R20<=control!$G$25),2,IF(AND(C20="H",R20>control!$F$26,R20<control!$G$26),3,"null"))))))) -> 4 | T20: 2946 | U20: =IF(C20="T",0,IF(AND(control!$B$10=2,E20="4A",T20>0),4,IF(AND(control!$B$10=2,E20="4B",T20>0),5,IF(AND(control!$B$10=1,C20="A",T20>0),4,IF(AND(C20="H",T20>control!$M$24),1,IF(AND(C20="H",T20>=control!$M$25,T20<=control!$N$25),2,IF(AND(C20="H",T20>control!$M$26,T20<control!$N$26),3,"null"))))))) -> 4 | V20: =IF(control!$B$19=1,S20,IF(control!$B$19=2,U20,"unk")) -> 4 | W20: =IF(AND(V20=0,control!$B$55=2,N20>control!$G$61),control!$G$61,IF(AND(V20=1,N20>control!$G$61),control!$G$61,IF(AND(V20=2,N20>control!$G$62),control!$G$62,IF(AND(V20=3,N20>control!$G$63),control!$G$63,N20)))) -> 0 | X20: =IF(AND(V20=0,control!$B$55=2,P20>control!$O$61),control!$O$61,IF(AND(V20=1,P20>control!$O$61),control!$O$61,IF(AND(V20=2,P20>control!$O$62),control!$O$62,IF(AND(V20=3,P20>control!$O$63),control!$O$63,IF(AND(V20=4,P20>control!$O$64),control!$O$64,IF(AND(V20=5,P20>control!$O$65),control!$O$65,P20)))))) -> 45 | Y20: =O20*control!$B$15/60 -> 0 | Z20: =Q20*control!$C$15/60 -> 4419 | AA20: =IF(V20=control!$B$45,O20*control!$E$45/60,IF(V20=control!$B$46,O20*control!$E$46/60,IF(V20=control!$B$47,O20*control!$E$47/60,IF(V20=control!$B$48,O20*control!$E$48/60,IF(V20=control!$B$49,O20*control!$E$49/60,IF(V20=control!$B$50,O20*control!$E$50/60,0)))))) -> 0 | AB20: =IF(V20=control!$B$45,Q20*control!$F$45/60,IF(V20=control!$B$46,Q20*control!$F$46/60,IF(V20=control!$B$47,Q20*control!$F$47/60,IF(V20=control!$B$48,Q20*control!$F$48/60,IF(V20=control!$B$49,Q20*control!$F$49/60,IF(V20=control!$B$50,Q20*control!$F$50/60,0)))))) -> 2847.8 | AC20: 0 | AD20: 2209.5 | AE20: 0 | AF20: 2209.5 | AG20: =IF(control!$B$3=1,Y20+Z20,IF(control!$B$3=2,AA20+AB20,IF(control!$B$3=3,AC20+AD20,IF(control!$B$3=4,AE20+AF20,-999)))) -> 4419 | AH20: =IF(control!$L$14=2,AW20,IF(control!$L$14=3,AY20,AU20)) -> 195999 | AI20: =IF(control!$L$14=2,AX20,IF(control!$L$14=3,AZ20,AV20)) -> 213109 | AJ20: =IF(AND(AH20<>0,control!$O$3=1),100*(AI20-AH20)/AH20,IF(AND(AH20<>0,control!$O$3=2),(((AI20/AH20)^0.25)-1)*100,0)) -> 8.729636376 | AK20: 4804.762631 | AL20: 8 | AM20: 207 | AN20: =AK20/control!$H$15 -> 2.566646705 | AO20: =IF(V20=0,AK20/control!$J$45,IF(V20=1,AK20/control!$J$46,IF(V20=2,AK20/control!$J$47,IF(V20=3,AK20/control!$J$48,IF(V20=4,AK20/control!$J$49,IF(V20=5,AK20/control!$J$50,0)))))) -> 3.208308381 | AP20: =IF(V20=0,AK20/control!$M$71,IF(V20=1,AK20/control!$M$71,IF(V20=2,AK20/control!$M$72,IF(V20=3,AK20/control!$M$73,IF(V20=4,AK20/control!$M$74,IF(V20=5,AK20/control!$M$75,0)))))) -> 3.422195606 | AQ20: =IF(V20=0,AK20/control!$J$84,IF(V20=1,AK20/control!$J$85,IF(V20=2,AK20/control!$J$86,IF(V20=3,AK20/control!$J$87,IF(V20=4,AK20/control!$J$88,IF(V20=5,AK20/control!$J$89,0)))))) -> 3.714256827 | AR20: =IF(control!$B$3=1,AN20,IF(control!$B$3=2,AO20,IF(control!$B$3=3,AP20,IF(control!$B$3=4,AQ20,-999)))) -> 2.566646705 | AU20: 195999 | AV20: 213109 | AW20: 2624 | AX20: 2946 | AY20: 1 | AZ20: 1
A21: Cabarrus | B21: AS0070 | C21: A | D21: Gateway Surgery Center | E21: 4B | F21: 0 | G21: 0 | H21: 4 | I21: 0 | J21: 0 | K21: 0 | L21: 0 | M21: 4 | O21: 0 | P21: 59 | Q21: 6489 | R21: 6380.85 | S21: =IF(C21="T",0,IF(AND(control!$B$10=2,E21="4A",R21>0),4,IF(AND(control!$B$10=2,E21="4B",R21>0),5,IF(AND(control!$B$10=1,C21="A",R21>0),4,IF(AND(C21="H",R21>control!$F$24),1,IF(AND(C21="H",R21>=control!$F$25,R21<=control!$G$25),2,IF(AND(C21="H",R21>control!$F$26,R21<control!$G$26),3,"null"))))))) -> 4 | T21: 6489 | U21: =IF(C21="T",0,IF(AND(control!$B$10=2,E21="4A",T21>0),4,IF(AND(control!$B$10=2,E21="4B",T21>0),5,IF(AND(control!$B$10=1,C21="A",T21>0),4,IF(AND(C21="H",T21>control!$M$24),1,IF(AND(C21="H",T21>=control!$M$25,T21<=control!$N$25),2,IF(AND(C21="H",T21>control!$M$26,T21<control!$N$26),3,"null"))))))) -> 4 | V21: =IF(control!$B$19=1,S21,IF(control!$B$19=2,U21,"unk")) -> 4 | W21: =IF(AND(V21=0,control!$B$55=2,N21>control!$G$61),control!$G$61,IF(AND(V21=1,N21>control!$G$61),control!$G$61,IF(AND(V21=2,N21>control!$G$62),control!$G$62,IF(AND(V21=3,N21>control!$G$63),control!$G$63,N21)))) -> 0 | X21: =IF(AND(V21=0,control!$B$55=2,P21>control!$O$61),control!$O$61,IF(AND(V21=1,P21>control!$O$61),control!$O$61,IF(AND(V21=2,P21>control!$O$62),control!$O$62,IF(AND(V21=3,P21>control!$O$63),control!$O$63,IF(AND(V21=4,P21>control!$O$64),control!$O$64,IF(AND(V21=5,P21>control!$O$65),control!$O$65,P21)))))) -> 59 | Y21: =O21*control!$B$15/60 -> 0 | Z21: =Q21*control!$C$15/60 -> 9733.5 | AA21: =IF(V21=control!$B$45,O21*control!$E$45/60,IF(V21=control!$B$46,O21*control!$E$46/60,IF(V21=control!$B$47,O21*control!$E$47/60,IF(V21=control!$B$48,O21*control!$E$48/60,IF(V21=control!$B$49,O21*control!$E$49/60,IF(V21=control!$B$50,O21*control!$E$50/60,0)))))) -> 0 | AB21: =IF(V21=control!$B$45,Q21*control!$F$45/60,IF(V21=control!$B$46,Q21*control!$F$46/60,IF(V21=control!$B$47,Q21*control!$F$47/60,IF(V21=control!$B$48,Q21*control!$F$48/60,IF(V21=control!$B$49,Q21*control!$F$49/60,IF(V21=control!$B$50,Q21*control!$F$50/60,0)))))) -> 6272.7 | AC21: 0 | AD21: 6380.85 | AE21: 0 | AF21: 6380.85 | AG21: =IF(control!$B$3=1,Y21+Z21,IF(control!$B$3=2,AA21+AB21,IF(control!$B$3=3,AC21+AD21,IF(control!$B$3=4,AE21+AF21,-999)))) -> 9733.5 | AH21: =IF(control!$L$14=2,AW21,IF(control!$L$14=3,AY21,AU21)) -> 195999 | AI21: =IF(control!$L$14=2,AX21,IF(control!$L$14=3,AZ21,AV21)) -> 213109 | AJ21: =IF(AND(AH21<>0,control!$O$3=1),100*(AI21-AH21)/AH21,IF(AND(AH21<>0,control!$O$3=2),(((AI21/AH21)^0.25)-1)*100,0)) -> 8.729636376 | AK21: 10583.19916 | AL21: 9 | AM21: 250 | AN21: =AK21/control!$H$15 -> 5.653418353 | AO21: =IF(V21=0,AK21/control!$J$45,IF(V21=1,AK21/control!$J$46,IF(V21=2,AK21/control!$J$47,IF(V21=3,AK21/control!$J$48,IF(V21=4,AK21/control!$J$49,IF(V21=5,AK21/control!$J$50,0)))))) -> 7.066772941 | AP21: =IF(V21=0,AK21/control!$M$71,IF(V21=1,AK21/control!$M$71,IF(V21=2,AK21/control!$M$72,IF(V21=3,AK21/control!$M$73,IF(V21=4,AK21/control!$M$74,IF(V21=5,AK21/control!$M$75,0)))))) -> 7.537891137 | AQ21: =IF(V21=0,AK21/control!$J$84,IF(V21=1,AK21/control!$J$85,IF(V21=2,AK21/control!$J$86,IF(V21=3,AK21/control!$J$87,IF(V21=4,AK21/control!$J$88,IF(V21=5,AK21/control!$J$89,0)))))) -> 8.181199101 | AR21: =IF(control!$B$3=1,AN21,IF(control!$B$3=2,AO21,IF(control!$B$3=3,AP21,IF(control!$B$3=4,AQ21,-999)))) -> 5.653418353 | AU21: 195999 | AV21: 213109 | AW21: 6355 | AX21: 6489 | AY21: 1 | AZ21: 1
A22: Cabarrus | B22: H0031 | C22: H | D22: Carolinas HealthCare System NorthEast | E22: N | F22: 447 | G22: 4 | H22: 0 | I22: 17 | J22: -2 | K22: 0 | L22: 0 | M22: 19 | N22: 154 | O22: 4985 | P22: 89 | Q22: 5267 | R22: 20607.55 | S22: =IF(C22="T",0,IF(AND(control!$B$10=2,E22="4A",R22>0),4,IF(AND(control!$B$10=2,E22="4B",R22>0),5,IF(AND(control!$B$10=1,C22="A",R22>0),4,IF(AND(C22="H",R22>control!$F$24),1,IF(AND(C22="H",R22>=control!$F$25,R22<=control!$G$25),2,IF(AND(C22="H",R22>control!$F$26,R22<control!$G$26),3,"null"))))))) -> 2 | T22: 10252 | U22: =IF(C22="T",0,IF(AND(control!$B$10=2,E22="4A",T22>0),4,IF(AND(control!$B$10=2,E22="4B",T22>0),5,IF(AND(control!$B$10=1,C22="A",T22>0),4,IF(AND(C22="H",T22>control!$M$24),1,IF(AND(C22="H",T22>=control!$M$25,T22<=control!$N$25),2,IF(AND(C22="H",T22>control!$M$26,T22<control!$N$26),3,"null"))))))) -> 1 | V22: =IF(control!$B$19=1,S22,IF(control!$B$19=2,U22,"unk")) -> 2 | W22: =IF(AND(V22=0,control!$B$55=2,N22>control!$G$61),control!$G$61,IF(AND(V22=1,N22>control!$G$61),control!$G$61,IF(AND(V22=2,N22>control!$G$62),control!$G$62,IF(AND(V22=3,N22>control!$G$63),control!$G$63,N22)))) -> 154 | X22: =IF(AND(V22=0,control!$B$55=2,P22>control!$O$61),control!$O$61,IF(AND(V22=1,P22>control!$O$61),control!$O$61,IF(AND(V22=2,P22>control!$O$62),control!$O$62,IF(AND(V22=3,P22>control!$O$63),control!$O$63,IF(AND(V22=4,P22>control!$O$64),control!$O$64,IF(AND(V22=5,P22>control!$O$65),control!$O$65,P22)))))) -> 89 | Y22: =O22*control!$B$15/60 -> 14955 | Z22: =Q22*control!$C$15/60 -> 7900.5 | AA22: =IF(V22=control!$B$45,O22*control!$E$45/60,IF(V22=control!$B$46,O22*control!$E$46/60,IF(V22=control!$B$47,O22*control!$E$47/60,IF(V22=control!$B$48,O22*control!$E$48/60,IF(V22=control!$B$49,O22*control!$E$49/60,IF(V22=control!$B$50,O22*control!$E$50/60,0)))))) -> 12794.83333 | AB22: =IF(V22=control!$B$45,Q22*control!$F$45/60,IF(V22=control!$B$46,Q22*control!$F$46/60,IF(V22=control!$B$47,Q22*control!$F$47/60,IF(V22=control!$B$48,Q22*control!$F$48/60,IF(V22=control!$B$49,Q22*control!$F$49/60,IF(V22=control!$B$50,Q22*control!$F$50/60,0)))))) -> 8866.116667 | AC22: 12794.83333 | AD22: 7812.716667 | AE22: 12794.83333 | AF22: 7812.716667 | AG22: =IF(control!$B$3=1,Y22+Z22,IF(control!$B$3=2,AA22+AB22,IF(control!$B$3=3,AC22+AD22,IF(control!$B$3=4,AE22+AF22,-999)))) -> 22855.5 | AH22: =IF(control!$L$14=2,AW22,IF(control!$L$14=3,AY22,AU22)) -> 195999 | AI22: =IF(control!$L$14=2,AX22,IF(control!$L$14=3,AZ22,AV22)) -> 213109 | AJ22: =IF(AND(AH22<>0,control!$O$3=1),100*(AI22-AH22)/AH22,IF(AND(AH22<>0,control!$O$3=2),(((AI22/AH22)^0.25)-1)*100,0)) -> 8.729636376 | AK22: 24850.70204 | AL22: 9.3 | AM22: 255 | AN22: =AK22/control!$H$15 -> 13.27494767 | AO22: =IF(V22=0,AK22/control!$J$45,IF(V22=1,AK22/control!$J$46,IF(V22=2,AK22/control!$J$47,IF(V22=3,AK22/control!$J$48,IF(V22=4,AK22/control!$J$49,IF(V22=5,AK22/control!$J$50,0)))))) -> 13.27494767 | AP22: =IF(V22=0,AK22/control!$M$71,IF(V22=1,AK22/control!$M$71,IF(V22=2,AK22/control!$M$72,IF(V22=3,AK22/control!$M$73,IF(V22=4,AK22/control!$M$74,IF(V22=5,AK22/control!$M$75,0)))))) -> 14.15994418 | AQ22: =IF(V22=0,AK22/control!$J$84,IF(V22=1,AK22/control!$J$85,IF(V22=2,AK22/control!$J$86,IF(V22=3,AK22/control!$J$87,IF(V22=4,AK22/control!$J$88,IF(V22=5,AK22/control!$J$89,0)))))) -> 15.77822352 | AR22: =IF(control!$B$3=1,AN22,IF(control!$B$3=2,AO22,IF(control!$B$3=3,AP22,IF(control!$B$3=4,AQ22,-999)))) -> 13.27494767 | AU22: 195999 | AV22: 213109 | AW22: 11218 | AX22: 10252 | AY22: 1 | AZ22: 1
A23: Caldwell | B23: H0061 | C23: H | D23: Caldwell Memorial Hospital | E23: N | F23: 110 | G23: 1 | H23: 3 | I23: 4 | J23: -1 | K23: 0 | L23: 0 | M23: 7 | N23: 110 | O23: 1011 | P23: 86 | Q23: 3039 | R23: 6209.4 | S23: =IF(C23="T",0,IF(AND(control!$B$10=2,E23="4A",R23>0),4,IF(AND(control!$B$10=2,E23="4B",R23>0),5,IF(AND(control!$B$10=1,C23="A",R23>0),4,IF(AND(C23="H",R23>control!$F$24),1,IF(AND(C23="H",R23>=control!$F$25,R23<=control!$G$25),2,IF(AND(C23="H",R23>control!$F$26,R23<control!$G$26),3,"null"))))))) -> 3 | T23: 4050 | U23: =IF(C23="T",0,IF(AND(control!$B$10=2,E23="4A",T23>0),4,IF(AND(control!$B$10=2,E23="4B",T23>0),5,IF(AND(control!$B$10=1,C23="A",T23>0),4,IF(AND(C23="H",T23>control!$M$24),1,IF(AND(C23="H",T23>=control!$M$25,T23<=control!$N$25),2,IF(AND(C23="H",T23>control!$M$26,T23<control!$N$26),3,"null"))))))) -> 3 | V23: =IF(control!$B$19=1,S23,IF(control!$B$19=2,U23,"unk")) -> 3 | W23: =IF(AND(V23=0,control!$B$55=2,N23>control!$G$61),control!$G$61,IF(AND(V23=1,N23>control!$G$61),control!$G$61,IF(AND(V23=2,N23>control!$G$62),control!$G$62,IF(AND(V23=3,N23>control!$G$63),control!$G$63,N23)))) -> 110 | X23: =IF(AND(V23=0,control!$B$55=2,P23>control!$O$61),control!$O$61,IF(AND(V23=1,P23>control!$O$61),control!$O$61,IF(AND(V23=2,P23>control!$O$62),control!$O$62,IF(AND(V23=3,P23>control!$O$63),control!$O$63,IF(AND(V23=4,P23>control!$O$64),control!$O$64,IF(AND(V23=5,P23>control!$O$65),control!$O$65,P23)))))) -> 86 | Y23: =O23*control!$B$15/60 -> 3033 | Z23: =Q23*control!$C$15/60 -> 4558.5 | AA23: =IF(V23=control!$B$45,O23*control!$E$45/60,IF(V23=control!$B$46,O23*control!$E$46/60,IF(V23=control!$B$47,O23*control!$E$47/60,IF(V23=control!$B$48,O23*control!$E$48/60,IF(V23=control!$B$49,O23*control!$E$49/60,IF(V23=control!$B$50,O23*control!$E$50/60,0)))))) -> 1968.417 | AB23: =IF(V23=control!$B$45,Q23*control!$F$45/60,IF(V23=control!$B$46,Q23*control!$F$46/60,IF(V23=control!$B$47,Q23*control!$F$47/60,IF(V23=control!$B$48,Q23*control!$F$48/60,IF(V23=control!$B$49,Q23*control!$F$49/60,IF(V23=control!$B$50,Q23*control!$F$50/60,0)))))) -> 3726.827 | AC23: 1853.5 | AD23: 4355.9 | AE23: 1853.5 | AF23: 4355.9 | AG23: =IF(control!$B$3=1,Y23+Z23,IF(control!$B$3=2,AA23+AB23,IF(control!$B$3=3,AC23+AD23,IF(control!$B$3=4,AE23+AF23,-999)))) -> 7591.5 | AH23: =IF(control!$L$14=2,AW23,IF(control!$L$14=3,AY23,AU23)) -> 82391 | AI23: =IF(control!$L$14=2,AX23,IF(control!$L$14=3,AZ23,AV23)) -> 82250 | AJ23: =IF(AND(AH23<>0,control!$O$3=1),100*(AI23-AH23)/AH23,IF(AND(AH23<>0,control!$O$3=2),(((AI23/AH23)^0.25)-1)*100,0)) -> -0.1711351968 | AK23: 7578.508272 | AL23: 8 | AM23: 260 | AN23: =AK23/control!$H$15 -> 4.048348436 | AO23: =IF(V23=0,AK23/control!$J$45,IF(V23=1,AK23/control!$J$46,IF(V23=2,AK23/control!$J$47,IF(V23=3,AK23/control!$J$48,IF(V23=4,AK23/control!$J$49,IF(V23=5,AK23/control!$J$50,0)))))) -> 4.55439199 | AP23: =IF(V23=0,AK23/control!$M$71,IF(V23=1,AK23/control!$M$71,IF(V23=2,AK23/control!$M$72,IF(V23=3,AK23/control!$M$73,IF(V23=4,AK23/control!$M$74,IF(V23=5,AK23/control!$M$75,0)))))) -> 4.858018123 | AQ23: =IF(V23=0,AK23/control!$J$84,IF(V23=1,AK23/control!$J$85,IF(V23=2,AK23/control!$J$86,IF(V23=3,AK23/control!$J$87,IF(V23=4,AK23/control!$J$88,IF(V23=5,AK23/control!$J$89,0)))))) -> 5.413220194 | AR23: =IF(control!$B$3=1,AN23,IF(control!$B$3=2,AO23,IF(control!$B$3=3,AP23,IF(control!$B$3=4,AQ23,-999)))) -> 4.048348436 | AU23: 82391 | AV23: 82250 | AW23: 4100 | AX23: 4050 | AY23: 1 | AZ23: 1
A24: Carteret | B24: AS0061 | C24: A | D24: The Surgical Center of Morehead City | E24: 4B | F24: 0 | G24: 0 | H24: 2 | I24: 0 | J24: 0 | K24: 0 | L24: 0 | M24: 2 | O24: 0 | P24: 51 | Q24: 2041 | R24: 1734.85 | S24: =IF(C24="T",0,IF(AND(control!$B$10=2,E24="4A",R24>0),4,IF(AND(control!$B$10=2,E24="4B",R24>0),5,IF(AND(control!$B$10=1,C24="A",R24>0),4,IF(AND(C24="H",R24>control!$F$24),1,IF(AND(C24="H",R24>=control!$F$25,R24<=control!$G$25),2,IF(AND(C24="H",R24>control!$F$26,R24<control!$G$26),3,"null"))))))) -> 4 | T24: 2041 | U24: =IF(C24="T",0,IF(AND(control!$B$10=2,E24="4A",T24>0),4,IF(AND(control!$B$10=2,E24="4B",T24>0),5,IF(AND(control!$B$10=1,C24="A",T24>0),4,IF(AND(C24="H",T24>control!$M$24),1,IF(AND(C24="H",T24>=control!$M$25,T24<=control!$N$25),2,IF(AND(C24="H",T24>control!$M$26,T24<control!$N$26),3,"null"))))))) -> 4 | V24: =IF(control!$B$19=1,S24,IF(control!$B$19=2,U24,"unk")) -> 4 | W24: =IF(AND(V24=0,control!$B$55=2,N24>control!$G$61),control!$G$61,IF(AND(V24=1,N24>control!$G$61),control!$G$61,IF(AND(V24=2,N24>control!$G$62),control!$G$62,IF(AND(V24=3,N24>control!$G$63),control!$G$63,N24)))) -> 0 | X24: =IF(AND(V24=0,control!$B$55=2,P24>control!$O$61),control!$O$61,IF(AND(V24=1,P24>control!$O$61),control!$O$61,IF(AND(V24=2,P24>control!$O$62),control!$O$62,IF(AND(V24=3,P24>control!$O$63),control!$O$63,IF(AND(V24=4,P24>control!$O$64),control!$O$64,IF(AND(V24=5,P24>control!$O$65),control!$O$65,P24)))))) -> 51 | Y24: =O24*control!$B$15/60 -> 0 | Z24: =Q24*control!$C$15/60 -> 3061.5 | AA24: =IF(V24=control!$B$45,O24*control!$E$45/60,IF(V24=control!$B$46,O24*control!$E$46/60,IF(V24=control!$B$47,O24*control!$E$47/60,IF(V24=control!$B$48,O24*control!$E$48/60,IF(V24=control!$B$49,O24*control!$E$49/60,IF(V24=control!$B$50,O24*control!$E$50/60,0)))))) -> 0 | AB24: =IF(V24=control!$B$45,Q24*control!$F$45/60,IF(V24=control!$B$46,Q24*control!$F$46/60,IF(V24=control!$B$47,Q24*control!$F$47/60,IF(V24=control!$B$48,Q24*control!$F$48/60,IF(V24=control!$B$49,Q24*control!$F$49/60,IF(V24=control!$B$50,Q24*control!$F$50/60,0)))))) -> 1972.966667 | AC24: 0 | AD24: 1734.85 | AE24: 0 | AF24: 1734.85 | AG24: =IF(control!$B$3=1,Y24+Z24,IF(control!$B$3=2,AA24+AB24,IF(control!$B$3=3,AC24+AD24,IF(control!$B$3=4,AE24+AF24,-999)))) -> 3061.5 | AH24: =IF(control!$L$14=2,AW24,IF(control!$L$14=3,AY24,AU24)) -> 69530 | AI24: =IF(control!$L$14=2,AX24,IF(control!$L$14=3,AZ24,AV24)) -> 70236 | AJ24: =IF(AND(AH24<>0,control!$O$3=1),100*(AI24-AH24)/AH24,IF(AND(AH24<>0,control!$O$3=2),(((AI24/AH24)^0.25)-1)*100,0)) -> 1.015389041 | AK24: 3092.586135 | AL24: 8.5 | AM24: 215 | AN24: =AK24/control!$H$15 -> 1.652022508 | AO24: =IF(V24=0,AK24/control!$J$45,IF(V24=1,AK24/control!$J$46,IF(V24=2,AK24/control!$J$47,IF(V24=3,AK24/control!$J$48,IF(V24=4,AK24/control!$J$49,IF(V24=5,AK24/control!$J$50,0)))))) -> 2.065028135 | AP24: =IF(V24=0,AK24/control!$M$71,IF(V24=1,AK24/control!$M$71,IF(V24=2,AK24/control!$M$72,IF(V24=3,AK24/control!$M$73,IF(V24=4,AK24/control!$M$74,IF(V24=5,AK24/control!$M$75,0)))))) -> 2.202696678 | AQ24: =IF(V24=0,AK24/control!$J$84,IF(V24=1,AK24/control!$J$85,IF(V24=2,AK24/control!$J$86,IF(V24=3,AK24/control!$J$87,IF(V24=4,AK24/control!$J$88,IF(V24=5,AK24/control!$J$89,0)))))) -> 2.390681923 | AR24: =IF(control!$B$3=1,AN24,IF(control!$B$3=2,AO24,IF(control!$B$3=3,AP24,IF(control!$B$3=4,AQ24,-999)))) -> 1.652022508 | AU24: 69530 | AV24: 70236 | AW24: 1682 | AX24: 2041 | AY24: 1 | AZ24: 1
A25: Carteret | B25: H0222 | C25: H | D25: Carteret General Hospital | E25: N | F25: 135 | G25: 1 | H25: 0 | I25: 5 | J25: -1 | K25: 0 | L25: 0 | M25: 5 | N25: 118 | O25: 1183 | P25: 94 | Q25: 1996 | R25: 5453.633333 | S25: =IF(C25="T",0,IF(AND(control!$B$10=2,E25="4A",R25>0),4,IF(AND(control!$B$10=2,E25="4B",R25>0),5,IF(AND(control!$B$10=1,C25="A",R25>0),4,IF(AND(C25="H",R25>control!$F$24),1,IF(AND(C25="H",R25>=control!$F$25,R25<=control!$G$25),2,IF(AND(C25="H",R25>control!$F$26,R25<control!$G$26),3,"null"))))))) -> 3 | T25: 3179 | U25: =IF(C25="T",0,IF(AND(control!$B$10=2,E25="4A",T25>0),4,IF(AND(control!$B$10=2,E25="4B",T25>0),5,IF(AND(control!$B$10=1,C25="A",T25>0),4,IF(AND(C25="H",T25>control!$M$24),1,IF(AND(C25="H",T25>=control!$M$25,T25<=control!$N$25),2,IF(AND(C25="H",T25>control!$M$26,T25<control!$N$26),3,"null"))))))) -> 3 | V25: =IF(control!$B$19=1,S25,IF(control!$B$19=2,U25,"unk")) -> 3 | W25: =IF(AND(V25=0,control!$B$55=2,N25>control!$G$61),control!$G$61,IF(AND(V25=1,N25>control!$G$61),control!$G$61,IF(AND(V25=2,N25>control!$G$62),control!$G$62,IF(AND(V25=3,N25>control!$G$63),control!$G$63,N25)))) -> 118 | X25: =IF(AND(V25=0,control!$B$55=2,P25>control!$O$61),control!$O$61,IF(AND(V25=1,P25>control!$O$61),control!$O$61,IF(AND(V25=2,P25>control!$O$62),control!$O$62,IF(AND(V25=3,P25>control!$O$63),control!$O$63,IF(AND(V25=4,P25>control!$O$64),control!$O$64,IF(AND(V25=5,P25>control!$O$65),control!$O$65,P25)))))) -> 94 | Y25: =O25*control!$B$15/60 -> 3549 | Z25: =Q25*control!$C$15/60 -> 2994 | AA25: =IF(V25=control!$B$45,O25*control!$E$45/60,IF(V25=control!$B$46,O25*control!$E$46/60,IF(V25=control!$B$47,O25*control!$E$47/60,IF(V25=control!$B$48,O25*control!$E$48/60,IF(V25=control!$B$49,O25*control!$E$49/60,IF(V25=control!$B$50,O25*control!$E$50/60,0)))))) -> 2303.301 | AB25: =IF(V25=control!$B$45,Q25*control!$F$45/60,IF(V25=control!$B$46,Q25*control!$F$46/60,IF(V25=control!$B$47,Q25*control!$F$47/60,IF(V25=control!$B$48,Q25*control!$F$48/60,IF(V25=control!$B$49,Q25*control!$F$49/60,IF(V25=control!$B$50,Q25*control!$F$50/60,0)))))) -> 2447.761333 | AC25: 2326.566667 | AD25: 3127.066667 | AE25: 2326.566667 | AF25: 3127.066667 | AG25: =IF(control!$B$3=1,Y25+Z25,IF(control!$B$3=2,AA25+AB25,IF(control!$B$3=3,AC25+AD25,IF(control!$B$3=4,AE25+AF25,-999)))) -> 6543 | AH25: =IF(control!$L$14=2,AW25,IF(control!$L$14=3,AY25,AU25)) -> 69530 | AI25: =IF(control!$L$14=2,AX25,IF(control!$L$14=3,AZ25,AV25)) -> 70236 | AJ25: =IF(AND(AH25<>0,control!$O$3=1),100*(AI25-AH25)/AH25,IF(AND(AH25<>0,control!$O$3=2),(((AI25/AH25)^0.25)-1)*100,0)) -> 1.015389041 | AK25: 6609.436905 | AL25: 10 | AM25: 253 | AN25: =AK25/control!$H$15 -> 3.530682107 | AO25: =IF(V25=0,AK25/control!$J$45,IF(V25=1,AK25/control!$J$46,IF(V25=2,AK25/control!$J$47,IF(V25=3,AK25/control!$J$48,IF(V25=4,AK25/control!$J$49,IF(V25=5,AK25/control!$J$50,0)))))) -> 3.972017371 | AP25: =IF(V25=0,AK25/control!$M$71,IF(V25=1,AK25/control!$M$71,IF(V25=2,AK25/control!$M$72,IF(V25=3,AK25/control!$M$73,IF(V25=4,AK25/control!$M$74,IF(V25=5,AK25/control!$M$75,0)))))) -> 4.236818529 | AQ25: =IF(V25=0,AK25/control!$J$84,IF(V25=1,AK25/control!$J$85,IF(V25=2,AK25/control!$J$86,IF(V25=3,AK25/control!$J$87,IF(V25=4,AK25/control!$J$88,IF(V25=5,AK25/control!$J$89,0)))))) -> 4.721026361 | AR25: =IF(control!$B$3=1,AN25,IF(control!$B$3=2,AO25,IF(control!$B$3=3,AP25,IF(control!$B$3=4,AQ25,-999)))) -> 3.530682107 | AU25: 69530 | AV25: 70236 | AW25: 4418 | AX25: 3179 | AY25: 1 | AZ25: 1
A26: Catawba | B26: AS0036 | C26: A | D26: Graystone Eye Surgery Center | E26: 4A | F26: 0 | G26: 0 | H26: 2 | I26: 0 | J26: 0 | K26: 0 | L26: 0 | M26: 2 | O26: 0 | P26: 20 | Q26: 6069 | R26: 2023 | S26: =IF(C26="T",0,IF(AND(control!$B$10=2,E26="4A",R26>0),4,IF(AND(control!$B$10=2,E26="4B",R26>0),5,IF(AND(control!$B$10=1,C26="A",R26>0),4,IF(AND(C26="H",R26>control!$F$24),1,IF(AND(C26="H",R26>=control!$F$25,R26<=control!$G$25),2,IF(AND(C26="H",R26>control!$F$26,R26<control!$G$26),3,"null"))))))) -> 4 | T26: 6069 | U26: =IF(C26="T",0,IF(AND(control!$B$10=2,E26="4A",T26>0),4,IF(AND(control!$B$10=2,E26="4B",T26>0),5,IF(AND(control!$B$10=1,C26="A",T26>0),4,IF(AND(C26="H",T26>control!$M$24),1,IF(AND(C26="H",T26>=control!$M$25,T26<=control!$N$25),2,IF(AND(C26="H",T26>control!$M$26,T26<control!$N$26),3,"null"))))))) -> 4 | V26: =IF(control!$B$19=1,S26,IF(control!$B$19=2,U26,"unk")) -> 4 | W26: =IF(AND(V26=0,control!$B$55=2,N26>control!$G$61),control!$G$61,IF(AND(V26=1,N26>control!$G$61),control!$G$61,IF(AND(V26=2,N26>control!$G$62),control!$G$62,IF(AND(V26=3,N26>control!$G$63),control!$G$63,N26)))) -> 0 | X26: =IF(AND(V26=0,control!$B$55=2,P26>control!$O$61),control!$O$61,IF(AND(V26=1,P26>control!$O$61),control!$O$61,IF(AND(V26=2,P26>control!$O$62),control!$O$62,IF(AND(V26=3,P26>control!$O$63),control!$O$63,IF(AND(V26=4,P26>control!$O$64),control!$O$64,IF(AND(V26=5,P26>control!$O$65),control!$O$65,P26)))))) -> 20 | Y26: =O26*control!$B$15/60 -> 0 | Z26: =Q26*control!$C$15/60 -> 9103.5 | AA26: =IF(V26=control!$B$45,O26*control!$E$45/60,IF(V26=control!$B$46,O26*control!$E$46/60,IF(V26=control!$B$47,O26*control!$E$47/60,IF(V26=control!$B$48,O26*control!$E$48/60,IF(V26=control!$B$49,O26*control!$E$49/60,IF(V26=control!$B$50,O26*control!$E$50/60,0)))))) -> 0 | AB26: =IF(V26=control!$B$45,Q26*control!$F$45/60,IF(V26=control!$B$46,Q26*control!$F$46/60,IF(V26=control!$B$47,Q26*control!$F$47/60,IF(V26=control!$B$48,Q26*control!$F$48/60,IF(V26=control!$B$49,Q26*control!$F$49/60,IF(V26=control!$B$50,Q26*control!$F$50/60,0)))))) -> 5866.7 | AC26: 0 | AD26: 2023 | AE26: 0 | AF26: 2023 | AG26: =IF(control!$B$3=1,Y26+Z26,IF(control!$B$3=2,AA26+AB26,IF(control!$B$3=3,AC26+AD26,IF(control!$B$3=4,AE26+AF26,-999)))) -> 9103.5 | AH26: =IF(control!$L$14=2,AW26,IF(control!$L$14=3,AY26,AU26)) -> 156182 | AI26: =IF(control!$L$14=2,AX26,IF(control!$L$14=3,AZ26,AV26)) -> 157583 | AJ26: =IF(AND(AH26<>0,control!$O$3=1),100*(AI26-AH26)/AH26,IF(AND(AH26<>0,control!$O$3=2),(((AI26/AH26)^0.25)-1)*100,0)) -> 0.8970303876 | AK26: 9185.161161 | AL26: 8.5 | AM26: 250 | AN26: =AK26/control!$H$15 -> 4.906603184 | AO26: =IF(V26=0,AK26/control!$J$45,IF(V26=1,AK26/control!$J$46,IF(V26=2,AK26/control!$J$47,IF(V26=3,AK26/control!$J$48,IF(V26=4,AK26/control!$J$49,IF(V26=5,AK26/control!$J$50,0)))))) -> 6.133253981 | AP26: =IF(V26=0,AK26/control!$M$71,IF(V26=1,AK26/control!$M$71,IF(V26=2,AK26/control!$M$72,IF(V26=3,AK26/control!$M$73,IF(V26=4,AK26/control!$M$74,IF(V26=5,AK26/control!$M$75,0)))))) -> 6.542137579 | AQ26: =IF(V26=0,AK26/control!$J$84,IF(V26=1,AK26/control!$J$85,IF(V26=2,AK26/control!$J$86,IF(V26=3,AK26/control!$J$87,IF(V26=4,AK26/control!$J$88,IF(V26=5,AK26/control!$J$89,0)))))) -> 7.10046472 | AR26: =IF(control!$B$3=1,AN26,IF(control!$B$3=2,AO26,IF(control!$B$3=3,AP26,IF(control!$B$3=4,AQ26,-999)))) -> 4.906603184 | AU26: 156182 | AV26: 157583 | AW26: 4999 | AX26: 6069 | AY26: 1 | AZ26: 1
A27: Catawba | B27: AS0101 | C27: A | D27: Viewmont Surgery Center | E27: 4B | F27: 0 | G27: 0 | H27: 3 | I27: 0 | J27: 0 | K27: 0 | L27: 0 | M27: 3 | O27: 0 | P27: 45 | Q27: 2905 | R27: 2178.75 | S27: =IF(C27="T",0,IF(AND(control!$B$10=2,E27="4A",R27>0),4,IF(AND(control!$B$10=2,E27="4B",R27>0),5,IF(AND(control!$B$10=1,C27="A",R27>0),4,IF(AND(C27="H",R27>control!$F$24),1,IF(AND(C27="H",R27>=control!$F$25,R27<=control!$G$25),2,IF(AND(C27="H",R27>control!$F$26,R27<control!$G$26),3,"null"))))))) -> 4 | T27: 2905 | U27: =IF(C27="T",0,IF(AND(control!$B$10=2,E27="4A",T27>0),4,IF(AND(control!$B$10=2,E27="4B",T27>0),5,IF(AND(control!$B$10=1,C27="A",T27>0),4,IF(AND(C27="H",T27>control!$M$24),1,IF(AND(C27="H",T27>=control!$M$25,T27<=control!$N$25),2,IF(AND(C27="H",T27>control!$M$26,T27<control!$N$26),3,"null"))))))) -> 4 | V27: =IF(control!$B$19=1,S27,IF(control!$B$19=2,U27,"unk")) -> 4 | W27: =IF(AND(V27=0,control!$B$55=2,N27>control!$G$61),control!$G$61,IF(AND(V27=1,N27>control!$G$61),control!$G$61,IF(AND(V27=2,N27>control!$G$62),control!$G$62,IF(AND(V27=3,N27>control!$G$63),control!$G$63,N27)))) -> 0 | X27: =IF(AND(V27=0,control!$B$55=2,P27>control!$O$61),control!$O$61,IF(AND(V27=1,P27>control!$O$61),control!$O$61,IF(AND(V27=2,P27>control!$O$62),control!$O$62,IF(AND(V27=3,P27>control!$O$63),control!$O$63,IF(AND(V27=4,P27>control!$O$64),control!$O$64,IF(AND(V27=5,P27>control!$O$65),control!$O$65,P27)))))) -> 45 | Y27: =O27*control!$B$15/60 -> 0 | Z27: =Q27*control!$C$15/60 -> 4357.5 | AA27: =IF(V27=control!$B$45,O27*control!$E$45/60,IF(V27=control!$B$46,O27*control!$E$46/60,IF(V27=control!$B$47,O27*control!$E$47/60,IF(V27=control!$B$48,O27*control!$E$48/60,IF(V27=control!$B$49,O27*control!$E$49/60,IF(V27=control!$B$50,O27*control!$E$50/60,0)))))) -> 0 | AB27: =IF(V27=control!$B$45,Q27*control!$F$45/60,IF(V27=control!$B$46,Q27*control!$F$46/60,IF(V27=control!$B$47,Q27*control!$F$47/60,IF(V27=control!$B$48,Q27*control!$F$48/60,IF(V27=control!$B$49,Q27*control!$F$49/60,IF(V27=control!$B$50,Q27*control!$F$50/60,0)))))) -> 2808.166667 | AC27: 0 | AD27: 2178.75 | AE27: 0 | AF27: 2178.75 | AG27: =IF(control!$B$3=1,Y27+Z27,IF(control!$B$3=2,AA27+AB27,IF(control!$B$3=3,AC27+AD27,IF(control!$B$3=4,AE27+AF27,-999)))) -> 4357.5 | AH27: =IF(control!$L$14=2,AW27,IF(control!$L$14=3,AY27,AU27)) -> 156182 | AI27: =IF(control!$L$14=2,AX27,IF(control!$L$14=3,AZ27,AV27)) -> 157583 | AJ27: =IF(AND(AH27<>0,control!$O$3=1),100*(AI27-AH27)/AH27,IF(AND(AH27<>0,control!$O$3=2),(((AI27/AH27)^0.25)-1)*100,0)) -> 0.8970303876 | AK27: 4396.588099 | AL27: 7 | AM27: 260 | AN27: =AK27/control!$H$15 -> 2.348604754 | AO27: =IF(V27=0,AK27/control!$J$45,IF(V27=1,AK27/control!$J$46,IF(V27=2,AK27/control!$J$47,IF(V27=3,AK27/control!$J$48,IF(V27=4,AK27/control!$J$49,IF(V27=5,AK27/control!$J$50,0)))))) -> 2.935755942 | AP27: =IF(V27=0,AK27/control!$M$71,IF(V27=1,AK27/control!$M$71,IF(V27=2,AK27/control!$M$72,IF(V27=3,AK27/control!$M$73,IF(V27=4,AK27/control!$M$74,IF(V27=5,AK27/control!$M$75,0)))))) -> 3.131473005 | AQ27: =IF(V27=0,AK27/control!$J$84,IF(V27=1,AK27/control!$J$85,IF(V27=2,AK27/control!$J$86,IF(V27=3,AK27/control!$J$87,IF(V27=4,AK27/control!$J$88,IF(V27=5,AK27/control!$J$89,0)))))) -> 3.39872302 | AR27: =IF(control!$B$3=1,AN27,IF(control!$B$3=2,AO27,IF(control!$B$3=3,AP27,IF(control!$B$3=4,AQ27,-999)))) -> 2.348604754 | AU27: 156182 | AV27: 157583 | AW27: 2767 | AX27: 2905 | AY27: 1 | AZ27: 1
A28: Catawba | B28: H0053 | C28: under | D28: Frye Regional Medical Center | E28: N | F28: 209 | G28: 2 | H28: 4 | I28: 15 | J28: 0 | K28: 0 | L28: 0 | M28: 21 | N28: 237 | O28: 2280 | P28: 147 | Q28: 4564 | R28: 20187.8 | S28: =IF(C28="T",0,IF(AND(control!$B$10=2,E28="4A",R28>0),4,IF(AND(control!$B$10=2,E28="4B",R28>0),5,IF(AND(control!$B$10=1,C28="A",R28>0),4,IF(AND(C28="H",R28>control!$F$24),1,IF(AND(C28="H",R28>=control!$F$25,R28<=control!$G$25),2,IF(AND(C28="H",R28>control!$F$26,R28<control!$G$26),3,"null"))))))) -> null | T28: 6844 | U28: =IF(C28="T",0,IF(AND(control!$B$10=2,E28="4A",T28>0),4,IF(AND(control!$B$10=2,E28="4B",T28>0),5,IF(AND(control!$B$10=1,C28="A",T28>0),4,IF(AND(C28="H",T28>control!$M$24),1,IF(AND(C28="H",T28>=control!$M$25,T28<=control!$N$25),2,IF(AND(C28="H",T28>control!$M$26,T28<control!$N$26),3,"null"))))))) -> null | V28: =IF(control!$B$19=1,S28,IF(control!$B$19=2,U28,"unk")) -> null | W28: =IF(AND(V28=0,control!$B$55=2,N28>control!$G$61),control!$G$61,IF(AND(V28=1,N28>control!$G$61),control!$G$61,IF(AND(V28=2,N28>control!$G$62),control!$G$62,IF(AND(V28=3,N28>control!$G$63),control!$G$63,N28)))) -> 237 | X28: =IF(AND(V28=0,control!$B$55=2,P28>control!$O$61),control!$O$61,IF(AND(V28=1,P28>control!$O$61),control!$O$61,IF(AND(V28=2,P28>control!$O$62),control!$O$62,IF(AND(V28=3,P28>control!$O$63),control!$O$63,IF(AND(V28=4,P28>control!$O$64),control!$O$64,IF(AND(V28=5,P28>control!$O$65),control!$O$65,P28)))))) -> 147 | Y28: =O28*control!$B$15/60 -> 6840 | Z28: =Q28*control!$C$15/60 -> 6846 | AA28: =IF(V28=control!$B$45,O28*control!$E$45/60,IF(V28=control!$B$46,O28*control!$E$46/60,IF(V28=control!$B$47,O28*control!$E$47/60,IF(V28=control!$B$48,O28*control!$E$48/60,IF(V28=control!$B$49,O28*control!$E$49/60,IF(V28=control!$B$50,O28*control!$E$50/60,0)))))) -> 0 | AB28: =IF(V28=control!$B$45,Q28*control!$F$45/60,IF(V28=control!$B$46,Q28*control!$F$46/60,IF(V28=control!$B$47,Q28*control!$F$47/60,IF(V28=control!$B$48,Q28*control!$F$48/60,IF(V28=control!$B$49,Q28*control!$F$49/60,IF(V28=control!$B$50,Q28*control!$F$50/60,0)))))) -> 0 | AC28: 9006 | AD28: 11181.8 | AE28: 9006 | AF28: 11181.8 | AG28: =IF(control!$B$3=1,Y28+Z28,IF(control!$B$3=2,AA28+AB28,IF(control!$B$3=3,AC28+AD28,IF(control!$B$3=4,AE28+AF28,-999)))) -> 13686 | AH28: =IF(control!$L$14=2,AW28,IF(control!$L$14=3,AY28,AU28)) -> 156182 | AI28: =IF(control!$L$14=2,AX28,IF(control!$L$14=3,AZ28,AV28)) -> 157583 | AJ28: =IF(AND(AH28<>0,control!$O$3=1),100*(AI28-AH28)/AH28,IF(AND(AH28<>0,control!$O$3=2),(((AI28/AH28)^0.25)-1)*100,0)) -> 0.8970303876 | AK28: 13808.76758 | AL28: 8 | AM28: 260 | AN28: =AK28/control!$H$15 -> 7.376478408 | AO28: =IF(V28=0,AK28/control!$J$45,IF(V28=1,AK28/control!$J$46,IF(V28=2,AK28/control!$J$47,IF(V28=3,AK28/control!$J$48,IF(V28=4,AK28/control!$J$49,IF(V28=5,AK28/control!$J$50,0)))))) -> 0 | AP28: =IF(V28=0,AK28/control!$M$71,IF(V28=1,AK28/control!$M$71,IF(V28=2,AK28/control!$M$72,IF(V28=3,AK28/control!$M$73,IF(V28=4,AK28/control!$M$74,IF(V28=5,AK28/control!$M$75,0)))))) -> 0 | AQ28: =IF(V28=0,AK28/control!$J$84,IF(V28=1,AK28/control!$J$85,IF(V28=2,AK28/control!$J$86,IF(V28=3,AK28/control!$J$87,IF(V28=4,AK28/control!$J$88,IF(V28=5,AK28/control!$J$89,0)))))) -> 0 | AR28: =IF(control!$B$3=1,AN28,IF(control!$B$3=2,AO28,IF(control!$B$3=3,AP28,IF(control!$B$3=4,AQ28,-999)))) -> 7.376478408 | AU28: 156182 | AV28: 157583 | AW28: 8625 | AX28: 6844 | AY28: 1 | AZ28: 1
A29: Catawba | B29: H0223 | C29: H | D29: Catawba Valley Medical Center | E29: N | F29: 200 | G29: 1 | H29: 0 | I29: 12 | J29: -1 | K29: 0 | L29: 0 | M29: 12 | N29: 107 | O29: 2082 | P29: 68 | Q29: 5316 | R29: 9737.7 | S29: =IF(C29="T",0,IF(AND(control!$B$10=2,E29="4A",R29>0),4,IF(AND(control!$B$10=2,E29="4B",R29>0),5,IF(AND(control!$B$10=1,C29="A",R29>0),4,IF(AND(C29="H",R29>control!$F$24),1,IF(AND(C29="H",R29>=control!$F$25,R29<=control!$G$25),2,IF(AND(C29="H",R29>control!$F$26,R29<control!$G$26),3,"null"))))))) -> 3 | T29: 7398 | U29: =IF(C29="T",0,IF(AND(control!$B$10=2,E29="4A",T29>0),4,IF(AND(control!$B$10=2,E29="4B",T29>0),5,IF(AND(control!$B$10=1,C29="A",T29>0),4,IF(AND(C29="H",T29>control!$M$24),1,IF(AND(C29="H",T29>=control!$M$25,T29<=control!$N$25),2,IF(AND(C29="H",T29>control!$M$26,T29<control!$N$26),3,"null"))))))) -> 2 | V29: =IF(control!$B$19=1,S29,IF(control!$B$19=2,U29,"unk")) -> 3 | W29: =IF(AND(V29=0,control!$B$55=2,N29>control!$G$61),control!$G$61,IF(AND(V29=1,N29>control!$G$61),control!$G$61,IF(AND(V29=2,N29>control!$G$62),control!$G$62,IF(AND(V29=3,N29>control!$G$63),control!$G$63,N29)))) -> 107 | X29: =IF(AND(V29=0,control!$B$55=2,P29>control!$O$61),control!$O$61,IF(AND(V29=1,P29>control!$O$61),control!$O$61,IF(AND(V29=2,P29>control!$O$62),control!$O$62,IF(AND(V29=3,P29>control!$O$63),control!$O$63,IF(AND(V29=4,P29>control!$O$64),control!$O$64,IF(AND(V29=5,P29>control!$O$65),control!$O$65,P29)))))) -> 68 | Y29: =O29*control!$B$15/60 -> 6246 | Z29: =Q29*control!$C$15/60 -> 7974 | AA29: =IF(V29=control!$B$45,O29*control!$E$45/60,IF(V29=control!$B$46,O29*control!$E$46/60,IF(V29=control!$B$47,O29*control!$E$47/60,IF(V29=control!$B$48,O29*control!$E$48/60,IF(V29=control!$B$49,O29*control!$E$49/60,IF(V29=control!$B$50,O29*control!$E$50/60,0)))))) -> 4053.654 | AB29: =IF(V29=control!$B$45,Q29*control!$F$45/60,IF(V29=control!$B$46,Q29*control!$F$46/60,IF(V29=control!$B$47,Q29*control!$F$47/60,IF(V29=control!$B$48,Q29*control!$F$48/60,IF(V29=control!$B$49,Q29*control!$F$49/60,IF(V29=control!$B$50,Q29*control!$F$50/60,0)))))) -> 6519.188 | AC29: 3712.9 | AD29: 6024.8 | AE29: 3712.9 | AF29: 6024.8 | AG29: =IF(control!$B$3=1,Y29+Z29,IF(control!$B$3=2,AA29+AB29,IF(control!$B$3=3,AC29+AD29,IF(control!$B$3=4,AE29+AF29,-999)))) -> 14220 | AH29: =IF(control!$L$14=2,AW29,IF(control!$L$14=3,AY29,AU29)) -> 156182 | AI29: =IF(control!$L$14=2,AX29,IF(control!$L$14=3,AZ29,AV29)) -> 157583 | AJ29: =IF(AND(AH29<>0,control!$O$3=1),100*(AI29-AH29)/AH29,IF(AND(AH29<>0,control!$O$3=2),(((AI29/AH29)^0.25)-1)*100,0)) -> 0.8970303876 | AK29: 14347.55772 | AL29: 8.2 | AM29: 250 | AN29: =AK29/control!$H$15 -> 7.664293654 | AO29: =IF(V29=0,AK29/control!$J$45,IF(V29=1,AK29/control!$J$46,IF(V29=2,AK29/control!$J$47,IF(V29=3,AK29/control!$J$48,IF(V29=4,AK29/control!$J$49,IF(V29=5,AK29/control!$J$50,0)))))) -> 8.622330361 | AP29: =IF(V29=0,AK29/control!$M$71,IF(V29=1,AK29/control!$M$71,IF(V29=2,AK29/control!$M$72,IF(V29=3,AK29/control!$M$73,IF(V29=4,AK29/control!$M$74,IF(V29=5,AK29/control!$M$75,0)))))) -> 9.197152385 | AQ29: =IF(V29=0,AK29/control!$J$84,IF(V29=1,AK29/control!$J$85,IF(V29=2,AK29/control!$J$86,IF(V29=3,AK29/control!$J$87,IF(V29=4,AK29/control!$J$88,IF(V29=5,AK29/control!$J$89,0)))))) -> 10.24825552 | AR29: =IF(control!$B$3=1,AN29,IF(control!$B$3=2,AO29,IF(control!$B$3=3,AP29,IF(control!$B$3=4,AQ29,-999)))) -> 7.664293654 | AU29: 156182 | AV29: 157583 | AW29: 8985 | AX29: 7398 | AY29: 1 | AZ29: 1
A30: Chatham | B30: H0007 | C30: H | D30: Chatham Hospital | E30: N | F30: 25 | G30: 0 | H30: 0 | I30: 2 | J30: 0 | K30: 0 | L30: 0 | M30: 2 | N30: 120 | O30: 32 | P30: 70 | Q30: 715 | R30: 898.1666667 | S30: =IF(C30="T",0,IF(AND(control!$B$10=2,E30="4A",R30>0),4,IF(AND(control!$B$10=2,E30="4B",R30>0),5,IF(AND(control!$B$10=1,C30="A",R30>0),4,IF(AND(C30="H",R30>control!$F$24),1,IF(AND(C30="H",R30>=control!$F$25,R30<=control!$G$25),2,IF(AND(C30="H",R30>control!$F$26,R30<control!$G$26),3,"null"))))))) -> 3 | T30: 747 | U30: =IF(C30="T",0,IF(AND(control!$B$10=2,E30="4A",T30>0),4,IF(AND(control!$B$10=2,E30="4B",T30>0),5,IF(AND(control!$B$10=1,C30="A",T30>0),4,IF(AND(C30="H",T30>control!$M$24),1,IF(AND(C30="H",T30>=control!$M$25,T30<=control!$N$25),2,IF(AND(C30="H",T30>control!$M$26,T30<control!$N$26),3,"null"))))))) -> 3 | V30: =IF(control!$B$19=1,S30,IF(control!$B$19=2,U30,"unk")) -> 3 | W30: =IF(AND(V30=0,control!$B$55=2,N30>control!$G$61),control!$G$61,IF(AND(V30=1,N30>control!$G$61),control!$G$61,IF(AND(V30=2,N30>control!$G$62),control!$G$62,IF(AND(V30=3,N30>control!$G$63),control!$G$63,N30)))) -> 120 | X30: =IF(AND(V30=0,control!$B$55=2,P30>control!$O$61),control!$O$61,IF(AND(V30=1,P30>control!$O$61),control!$O$61,IF(AND(V30=2,P30>control!$O$62),control!$O$62,IF(AND(V30=3,P30>control!$O$63),control!$O$63,IF(AND(V30=4,P30>control!$O$64),control!$O$64,IF(AND(V30=5,P30>control!$O$65),control!$O$65,P30)))))) -> 70 | Y30: =O30*control!$B$15/60 -> 96 | Z30: =Q30*control!$C$15/60 -> 1072.5 | AA30: =IF(V30=control!$B$45,O30*control!$E$45/60,IF(V30=control!$B$46,O30*control!$E$46/60,IF(V30=control!$B$47,O30*control!$E$47/60,IF(V30=control!$B$48,O30*control!$E$48/60,IF(V30=control!$B$49,O30*control!$E$49/60,IF(V30=control!$B$50,O30*control!$E$50/60,0)))))) -> 62.304 | AB30: =IF(V30=control!$B$45,Q30*control!$F$45/60,IF(V30=control!$B$46,Q30*control!$F$46/60,IF(V30=control!$B$47,Q30*control!$F$47/60,IF(V30=control!$B$48,Q30*control!$F$48/60,IF(V30=control!$B$49,Q30*control!$F$49/60,IF(V30=control!$B$50,Q30*control!$F$50/60,0)))))) -> 876.8283333 | AC30: 64 | AD30: 834.1666667 | AE30: 64 | AF30: 834.1666667 | AG30: =IF(control!$B$3=1,Y30+Z30,IF(control!$B$3=2,AA30+AB30,IF(control!$B$3=3,AC30+AD30,IF(control!$B$3=4,AE30+AF30,-999)))) -> 1168.5 | AH30: =IF(control!$L$14=2,AW30,IF(control!$L$14=3,AY30,AU30)) -> 69851 | AI30: =IF(control!$L$14=2,AX30,IF(control!$L$14=3,AZ30,AV30)) -> 74366 | AJ30: =IF(AND(AH30<>0,control!$O$3=1),100*(AI30-AH30)/AH30,IF(AND(AH30<>0,control!$O$3=2),(((AI30/AH30)^0.25)-1)*100,0)) -> 6.463758572 | AK30: 1244.029019 | AL30: 8 | AM30: 249 | AN30: =AK30/control!$H$15 -> 0.6645454161 | AO30: =IF(V30=0,AK30/control!$J$45,IF(V30=1,AK30/control!$J$46,IF(V30=2,AK30/control!$J$47,IF(V30=3,AK30/control!$J$48,IF(V30=4,AK30/control!$J$49,IF(V30=5,AK30/control!$J$50,0)))))) -> 0.7476135931 | AP30: =IF(V30=0,AK30/control!$M$71,IF(V30=1,AK30/control!$M$71,IF(V30=2,AK30/control!$M$72,IF(V30=3,AK30/control!$M$73,IF(V30=4,AK30/control!$M$74,IF(V30=5,AK30/control!$M$75,0)))))) -> 0.7974544993 | AQ30: =IF(V30=0,AK30/control!$J$84,IF(V30=1,AK30/control!$J$85,IF(V30=2,AK30/control!$J$86,IF(V30=3,AK30/control!$J$87,IF(V30=4,AK30/control!$J$88,IF(V30=5,AK30/control!$J$89,0)))))) -> 0.8885921564 | AR30: =IF(control!$B$3=1,AN30,IF(control!$B$3=2,AO30,IF(control!$B$3=3,AP30,IF(control!$B$3=4,AQ30,-999)))) -> 0.6645454161 | AU30: 69851 | AV30: 74366 | AW30: 205 | AX30: 747 | AY30: 1 | AZ30: 1
A31: Cherokee | B31: H0239 | C31: H | D31: Murphy Medical Center | E31: N | F31: 57 | G31: 0 | H31: 0 | I31: 4 | J31: 0 | K31: 0 | L31: 0 | M31: 4 | N31: 184 | O31: 444 | P31: 120 | Q31: 2058 | R31: 5477.6 | S31: =IF(C31="T",0,IF(AND(control!$B$10=2,E31="4A",R31>0),4,IF(AND(control!$B$10=2,E31="4B",R31>0),5,IF(AND(control!$B$10=1,C31="A",R31>0),4,IF(AND(C31="H",R31>control!$F$24),1,IF(AND(C31="H",R31>=control!$F$25,R31<=control!$G$25),2,IF(AND(C31="H",R31>control!$F$26,R31<control!$G$26),3,"null"))))))) -> 3 | T31: 2502 | U31: =IF(C31="T",0,IF(AND(control!$B$10=2,E31="4A",T31>0),4,IF(AND(control!$B$10=2,E31="4B",T31>0),5,IF(AND(control!$B$10=1,C31="A",T31>0),4,IF(AND(C31="H",T31>control!$M$24),1,IF(AND(C31="H",T31>=control!$M$25,T31<=control!$N$25),2,IF(AND(C31="H",T31>control!$M$26,T31<control!$N$26),3,"null"))))))) -> 3 | V31: =IF(control!$B$19=1,S31,IF(control!$B$19=2,U31,"unk")) -> 3 | W31: =IF(AND(V31=0,control!$B$55=2,N31>control!$G$61),control!$G$61,IF(AND(V31=1,N31>control!$G$61),control!$G$61,IF(AND(V31=2,N31>control!$G$62),control!$G$62,IF(AND(V31=3,N31>control!$G$63),control!$G$63,N31)))) -> 152.3863469 | X31: =IF(AND(V31=0,control!$B$55=2,P31>control!$O$61),control!$O$61,IF(AND(V31=1,P31>control!$O$61),control!$O$61,IF(AND(V31=2,P31>control!$O$62),control!$O$62,IF(AND(V31=3,P31>control!$O$63),control!$O$63,IF(AND(V31=4,P31>control!$O$64),control!$O$64,IF(AND(V31=5,P31>control!$O$65),control!$O$65,P31)))))) -> 94.96662152 | Y31: =O31*control!$B$15/60 -> 1332 | Z31: =Q31*control!$C$15/60 -> 3087 | AA31: =IF(V31=control!$B$45,O31*control!$E$45/60,IF(V31=control!$B$46,O31*control!$E$46/60,IF(V31=control!$B$47,O31*control!$E$47/60,IF(V31=control!$B$48,O31*control!$E$48/60,IF(V31=control!$B$49,O31*control!$E$49/60,IF(V31=control!$B$50,O31*control!$E$50/60,0)))))) -> 864.468 | AB31: =IF(V31=control!$B$45,Q31*control!$F$45/60,IF(V31=control!$B$46,Q31*control!$F$46/60,IF(V31=control!$B$47,Q31*control!$F$47/60,IF(V31=control!$B$48,Q31*control!$F$48/60,IF(V31=control!$B$49,Q31*control!$F$49/60,IF(V31=control!$B$50,Q31*control!$F$50/60,0)))))) -> 2523.794 | AC31: 1127.658967 | AD31: 3257.355118 | AE31: 1361.6 | AF31: 4116 | AG31: =IF(control!$B$3=1,Y31+Z31,IF(control!$B$3=2,AA31+AB31,IF(control!$B$3=3,AC31+AD31,IF(control!$B$3=4,AE31+AF31,-999)))) -> 4419 | AH31: =IF(control!$L$14=2,AW31,IF(control!$L$14=3,AY31,AU31)) -> 27487 | AI31: =IF(control!$L$14=2,AX31,IF(control!$L$14=3,AZ31,AV31)) -> 27622 | AJ31: =IF(AND(AH31<>0,control!$O$3=1),100*(AI31-AH31)/AH31,IF(AND(AH31<>0,control!$O$3=2),(((AI31/AH31)^0.25)-1)*100,0)) -> 0.4911412668 | AK31: 4440.703533 | AL31: 6 | AM31: 255 | AN31: =AK31/control!$H$15 -> 2.37217069 | AO31: =IF(V31=0,AK31/control!$J$45,IF(V31=1,AK31/control!$J$46,IF(V31=2,AK31/control!$J$47,IF(V31=3,AK31/control!$J$48,IF(V31=4,AK31/control!$J$49,IF(V31=5,AK31/control!$J$50,0)))))) -> 2.668692027 | AP31: =IF(V31=0,AK31/control!$M$71,IF(V31=1,AK31/control!$M$71,IF(V31=2,AK31/control!$M$72,IF(V31=3,AK31/control!$M$73,IF(V31=4,AK31/control!$M$74,IF(V31=5,AK31/control!$M$75,0)))))) -> 2.846604829 | AQ31: =IF(V31=0,AK31/control!$J$84,IF(V31=1,AK31/control!$J$85,IF(V31=2,AK31/control!$J$86,IF(V31=3,AK31/control!$J$87,IF(V31=4,AK31/control!$J$88,IF(V31=5,AK31/control!$J$89,0)))))) -> 3.171931095 | AR31: =IF(control!$B$3=1,AN31,IF(control!$B$3=2,AO31,IF(control!$B$3=3,AP31,IF(control!$B$3=4,AQ31,-999)))) -> 2.37217069 | AU31: 27487 | AV31: 27622 | AW31: 2595 | AX31: 2502 | AY31: 1 | AZ31: 1
A32: Chowan | B32: H0063 | C32: H | D32: Vidant Chowan Hospital | E32: N | F32: 49 | G32: 0 | H32: 0 | I32: 3 | J32: 0 | K32: 0 | L32: 0 | M32: 3 | N32: 90 | O32: 293 | P32: 30 | Q32: 802 | R32: 840.5 | S32: =IF(C32="T",0,IF(AND(control!$B$10=2,E32="4A",R32>0),4,IF(AND(control!$B$10=2,E32="4B",R32>0),5,IF(AND(control!$B$10=1,C32="A",R32>0),4,IF(AND(C32="H",R32>control!$F$24),1,IF(AND(C32="H",R32>=control!$F$25,R32<=control!$G$25),2,IF(AND(C32="H",R32>control!$F$26,R32<control!$G$26),3,"null"))))))) -> 3 | T32: 1095 | U32: =IF(C32="T",0,IF(AND(control!$B$10=2,E32="4A",T32>0),4,IF(AND(control!$B$10=2,E32="4B",T32>0),5,IF(AND(control!$B$10=1,C32="A",T32>0),4,IF(AND(C32="H",T32>control!$M$24),1,IF(AND(C32="H",T32>=control!$M$25,T32<=control!$N$25),2,IF(AND(C32="H",T32>control!$M$26,T32<control!$N$26),3,"null"))))))) -> 3 | V32: =IF(control!$B$19=1,S32,IF(control!$B$19=2,U32,"unk")) -> 3 | W32: =IF(AND(V32=0,control!$B$55=2,N32>control!$G$61),control!$G$61,IF(AND(V32=1,N32>control!$G$61),control!$G$61,IF(AND(V32=2,N32>control!$G$62),control!$G$62,IF(AND(V32=3,N32>control!$G$63),control!$G$63,N32)))) -> 90 | X32: =IF(AND(V32=0,control!$B$55=2,P32>control!$O$61),control!$O$61,IF(AND(V32=1,P32>control!$O$61),control!$O$61,IF(AND(V32=2,P32>control!$O$62),control!$O$62,IF(AND(V32=3,P32>control!$O$63),control!$O$63,IF(AND(V32=4,P32>control!$O$64),control!$O$64,IF(AND(V32=5,P32>control!$O$65),control!$O$65,P32)))))) -> 30 | Y32: =O32*control!$B$15/60 -> 879 | Z32: =Q32*control!$C$15/60 -> 1203 | AA32: =IF(V32=control!$B$45,O32*control!$E$45/60,IF(V32=control!$B$46,O32*control!$E$46/60,IF(V32=control!$B$47,O32*control!$E$47/60,IF(V32=control!$B$48,O32*control!$E$48/60,IF(V32=control!$B$49,O32*control!$E$49/60,IF(V32=control!$B$50,O32*control!$E$50/60,0)))))) -> 570.471 | AB32: =IF(V32=control!$B$45,Q32*control!$F$45/60,IF(V32=control!$B$46,Q32*control!$F$46/60,IF(V32=control!$B$47,Q32*control!$F$47/60,IF(V32=control!$B$48,Q32*control!$F$48/60,IF(V32=control!$B$49,Q32*control!$F$49/60,IF(V32=control!$B$50,Q32*control!$F$50/60,0)))))) -> 983.5193333 | AC32: 439.5 | AD32: 401 | AE32: 439.5 | AF32: 401 | AG32: =IF(control!$B$3=1,Y32+Z32,IF(control!$B$3=2,AA32+AB32,IF(control!$B$3=3,AC32+AD32,IF(control!$B$3=4,AE32+AF32,-999)))) -> 2082 | AH32: =IF(control!$L$14=2,AW32,IF(control!$L$14=3,AY32,AU32)) -> 14670 | AI32: =IF(control!$L$14=2,AX32,IF(control!$L$14=3,AZ32,AV32)) -> 14669 | AJ32: =IF(AND(AH32<>0,control!$O$3=1),100*(AI32-AH32)/AH32,IF(AND(AH32<>0,control!$O$3=2),(((AI32/AH32)^0.25)-1)*100,0)) -> -0.006816632584 | AK32: 2081.858078 | AL32: 8 | AM32: 236 | AN32: =AK32/control!$H$15 -> 1.112103674 | AO32: =IF(V32=0,AK32/control!$J$45,IF(V32=1,AK32/control!$J$46,IF(V32=2,AK32/control!$J$47,IF(V32=3,AK32/control!$J$48,IF(V32=4,AK32/control!$J$49,IF(V32=5,AK32/control!$J$50,0)))))) -> 1.251116633 | AP32: =IF(V32=0,AK32/control!$M$71,IF(V32=1,AK32/control!$M$71,IF(V32=2,AK32/control!$M$72,IF(V32=3,AK32/control!$M$73,IF(V32=4,AK32/control!$M$74,IF(V32=5,AK32/control!$M$75,0)))))) -> 1.334524409 | AQ32: =IF(V32=0,AK32/control!$J$84,IF(V32=1,AK32/control!$J$85,IF(V32=2,AK32/control!$J$86,IF(V32=3,AK32/control!$J$87,IF(V32=4,AK32/control!$J$88,IF(V32=5,AK32/control!$J$89,0)))))) -> 1.487041484 | AR32: =IF(control!$B$3=1,AN32,IF(control!$B$3=2,AO32,IF(control!$B$3=3,AP32,IF(control!$B$3=4,AQ32,-999)))) -> 1.112103674 | AU32: 14670 | AV32: 14669 | AW32: 1631 | AX32: 1095 | AY32: 1 | AZ32: 1
A33: Cleveland | B33: AS0049 | C33: A | D33: Eye Surgery Center of Shelby | E33: 4A | F33: 0 | G33: 0 | H33: 2 | I33: 0 | J33: 0 | K33: 0 | L33: 0 | M33: 2 | O33: 0 | P33: 40 | Q33: 1908 | R33: 1272 | S33: =IF(C33="T",0,IF(AND(control!$B$10=2,E33="4A",R33>0),4,IF(AND(control!$B$10=2,E33="4B",R33>0),5,IF(AND(control!$B$10=1,C33="A",R33>0),4,IF(AND(C33="H",R33>control!$F$24),1,IF(AND(C33="H",R33>=control!$F$25,R33<=control!$G$25),2,IF(AND(C33="H",R33>control!$F$26,R33<control!$G$26),3,"null"))))))) -> 4 | T33: 1908 | U33: =IF(C33="T",0,IF(AND(control!$B$10=2,E33="4A",T33>0),4,IF(AND(control!$B$10=2,E33="4B",T33>0),5,IF(AND(control!$B$10=1,C33="A",T33>0),4,IF(AND(C33="H",T33>control!$M$24),1,IF(AND(C33="H",T33>=control!$M$25,T33<=control!$N$25),2,IF(AND(C33="H",T33>control!$M$26,T33<control!$N$26),3,"null"))))))) -> 4 | V33: =IF(control!$B$19=1,S33,IF(control!$B$19=2,U33,"unk")) -> 4 | W33: =IF(AND(V33=0,control!$B$55=2,N33>control!$G$61),control!$G$61,IF(AND(V33=1,N33>control!$G$61),control!$G$61,IF(AND(V33=2,N33>control!$G$62),control!$G$62,IF(AND(V33=3,N33>control!$G$63),control!$G$63,N33)))) -> 0 | X33: =IF(AND(V33=0,control!$B$55=2,P33>control!$O$61),control!$O$61,IF(AND(V33=1,P33>control!$O$61),control!$O$61,IF(AND(V33=2,P33>control!$O$62),control!$O$62,IF(AND(V33=3,P33>control!$O$63),control!$O$63,IF(AND(V33=4,P33>control!$O$64),control!$O$64,IF(AND(V33=5,P33>control!$O$65),control!$O$65,P33)))))) -> 40 | Y33: =O33*control!$B$15/60 -> 0 | Z33: =Q33*control!$C$15/60 -> 2862 | AA33: =IF(V33=control!$B$45,O33*control!$E$45/60,IF(V33=control!$B$46,O33*control!$E$46/60,IF(V33=control!$B$47,O33*control!$E$47/60,IF(V33=control!$B$48,O33*control!$E$48/60,IF(V33=control!$B$49,O33*control!$E$49/60,IF(V33=control!$B$50,O33*control!$E$50/60,0)))))) -> 0 | AB33: =IF(V33=control!$B$45,Q33*control!$F$45/60,IF(V33=control!$B$46,Q33*control!$F$46/60,IF(V33=control!$B$47,Q33*control!$F$47/60,IF(V33=control!$B$48,Q33*control!$F$48/60,IF(V33=control!$B$49,Q33*control!$F$49/60,IF(V33=control!$B$50,Q33*control!$F$50/60,0)))))) -> 1844.4 | AC33: 0 | AD33: 1272 | AE33: 0 | AF33: 1272 | AG33: =IF(control!$B$3=1,Y33+Z33,IF(control!$B$3=2,AA33+AB33,IF(control!$B$3=3,AC33+AD33,IF(control!$B$3=4,AE33+AF33,-999)))) -> 2862 | AH33: =IF(control!$L$14=2,AW33,IF(control!$L$14=3,AY33,AU33)) -> 98246 | AI33: =IF(control!$L$14=2,AX33,IF(control!$L$14=3,AZ33,AV33)) -> 99192 | AJ33: =IF(AND(AH33<>0,control!$O$3=1),100*(AI33-AH33)/AH33,IF(AND(AH33<>0,control!$O$3=2),(((AI33/AH33)^0.25)-1)*100,0)) -> 0.9628890744 | AK33: 2889.557885 | AL33: 8 | AM33: 210 | AN33: =AK33/control!$H$15 -> 1.543567246 | AO33: =IF(V33=0,AK33/control!$J$45,IF(V33=1,AK33/control!$J$46,IF(V33=2,AK33/control!$J$47,IF(V33=3,AK33/control!$J$48,IF(V33=4,AK33/control!$J$49,IF(V33=5,AK33/control!$J$50,0)))))) -> 1.929459058 | AP33: =IF(V33=0,AK33/control!$M$71,IF(V33=1,AK33/control!$M$71,IF(V33=2,AK33/control!$M$72,IF(V33=3,AK33/control!$M$73,IF(V33=4,AK33/control!$M$74,IF(V33=5,AK33/control!$M$75,0)))))) -> 2.058089662 | AQ33: =IF(V33=0,AK33/control!$J$84,IF(V33=1,AK33/control!$J$85,IF(V33=2,AK33/control!$J$86,IF(V33=3,AK33/control!$J$87,IF(V33=4,AK33/control!$J$88,IF(V33=5,AK33/control!$J$89,0)))))) -> 2.233733678 | AR33: =IF(control!$B$3=1,AN33,IF(control!$B$3=2,AO33,IF(control!$B$3=3,AP33,IF(control!$B$3=4,AQ33,-999)))) -> 1.543567246 | AU33: 98246 | AV33: 99192 | AW33: 1777 | AX33: 1908 | AY33: 1 | AZ33: 1
A34: Cleveland | B34: AS0062 | C34: under | D34: Cleveland Ambulatory Services | E34: N | F34: 0 | G34: 0 | H34: 4 | I34: 0 | J34: 0 | K34: 0 | L34: 0 | M34: 4 | O34: 0 | P34: 56.48 | Q34: 1334 | R34: 1255.738667 | S34: =IF(C34="T",0,IF(AND(control!$B$10=2,E34="4A",R34>0),4,IF(AND(control!$B$10=2,E34="4B",R34>0),5,IF(AND(control!$B$10=1,C34="A",R34>0),4,IF(AND(C34="H",R34>control!$F$24),1,IF(AND(C34="H",R34>=control!$F$25,R34<=control!$G$25),2,IF(AND(C34="H",R34>control!$F$26,R34<control!$G$26),3,"null"))))))) -> null | T34: 1334 | U34: =IF(C34="T",0,IF(AND(control!$B$10=2,E34="4A",T34>0),4,IF(AND(control!$B$10=2,E34="4B",T34>0),5,IF(AND(control!$B$10=1,C34="A",T34>0),4,IF(AND(C34="H",T34>control!$M$24),1,IF(AND(C34="H",T34>=control!$M$25,T34<=control!$N$25),2,IF(AND(C34="H",T34>control!$M$26,T34<control!$N$26),3,"null"))))))) -> null | V34: =IF(control!$B$19=1,S34,IF(control!$B$19=2,U34,"unk")) -> null | W34: =IF(AND(V34=0,control!$B$55=2,N34>control!$G$61),control!$G$61,IF(AND(V34=1,N34>control!$G$61),control!$G$61,IF(AND(V34=2,N34>control!$G$62),control!$G$62,IF(AND(V34=3,N34>control!$G$63),control!$G$63,N34)))) -> 0 | X34: =IF(AND(V34=0,control!$B$55=2,P34>control!$O$61),control!$O$61,IF(AND(V34=1,P34>control!$O$61),control!$O$61,IF(AND(V34=2,P34>control!$O$62),control!$O$62,IF(AND(V34=3,P34>control!$O$63),control!$O$63,IF(AND(V34=4,P34>control!$O$64),control!$O$64,IF(AND(V34=5,P34>control!$O$65),control!$O$65,P34)))))) -> 56.48 | Y34: =O34*control!$B$15/60 -> 0 | Z34: =Q34*control!$C$15/60 -> 2001 | AA34: =IF(V34=control!$B$45,O34*control!$E$45/60,IF(V34=control!$B$46,O34*control!$E$46/60,IF(V34=control!$B$47,O34*control!$E$47/60,IF(V34=control!$B$48,O34*control!$E$48/60,IF(V34=control!$B$49,O34*control!$E$49/60,IF(V34=control!$B$50,O34*control!$E$50/60,0)))))) -> 0 | AB34: =IF(V34=control!$B$45,Q34*control!$F$45/60,IF(V34=control!$B$46,Q34*control!$F$46/60,IF(V34=control!$B$47,Q34*control!$F$47/60,IF(V34=control!$B$48,Q34*control!$F$48/60,IF(V34=control!$B$49,Q34*control!$F$49/60,IF(V34=control!$B$50,Q34*control!$F$50/60,0)))))) -> 0 | AC34: 0 | AD34: 1255.738667 | AE34: 0 | AF34: 1255.738667 | AG34: =IF(control!$B$3=1,Y34+Z34,IF(control!$B$3=2,AA34+AB34,IF(control!$B$3=3,AC34+AD34,IF(control!$B$3=4,AE34+AF34,-999)))) -> 2001 | AH34: =IF(control!$L$14=2,AW34,IF(control!$L$14=3,AY34,AU34)) -> 98246 | AI34: =IF(control!$L$14=2,AX34,IF(control!$L$14=3,AZ34,AV34)) -> 99192 | AJ34: =IF(AND(AH34<>0,control!$O$3=1),100*(AI34-AH34)/AH34,IF(AND(AH34<>0,control!$O$3=2),(((AI34/AH34)^0.25)-1)*100,0)) -> 0.9628890744 | AK34: 2020.26741 | AL34: 8 | AM34: 257 | AN34: =AK34/control!$H$15 -> 1.079202676 | AO34: =IF(V34=0,AK34/control!$J$45,IF(V34=1,AK34/control!$J$46,IF(V34=2,AK34/control!$J$47,IF(V34=3,AK34/control!$J$48,IF(V34=4,AK34/control!$J$49,IF(V34=5,AK34/control!$J$50,0)))))) -> 0 | AP34: =IF(V34=0,AK34/control!$M$71,IF(V34=1,AK34/control!$M$71,IF(V34=2,AK34/control!$M$72,IF(V34=3,AK34/control!$M$73,IF(V34=4,AK34/control!$M$74,IF(V34=5,AK34/control!$M$75,0)))))) -> 0 | AQ34: =IF(V34=0,AK34/control!$J$84,IF(V34=1,AK34/control!$J$85,IF(V34=2,AK34/control!$J$86,IF(V34=3,AK34/control!$J$87,IF(V34=4,AK34/control!$J$88,IF(V34=5,AK34/control!$J$89,0)))))) -> 0 | AR34: =IF(control!$B$3=1,AN34,IF(control!$B$3=2,AO34,IF(control!$B$3=3,AP34,IF(control!$B$3=4,AQ34,-999)))) -> 1.079202676 | AU34: 98246 | AV34: 99192 | AW34: 1349 | AX34: 1334 | AY34: 1 | AZ34: 1
A35: Cleveland | B35: H0024 | C35: H | D35: Carolinas HealthCare System Cleveland | E35: N | F35: 241 | G35: 1 | H35: 0 | I35: 6 | J35: -1 | K35: 0 | L35: 0 | M35: 6 | N35: 132.15 | O35: 1647 | P35: 95 | Q35: 4073 | R35: 10076.43417 | S35: =IF(C35="T",0,IF(AND(control!$B$10=2,E35="4A",R35>0),4,IF(AND(control!$B$10=2,E35="4B",R35>0),5,IF(AND(control!$B$10=1,C35="A",R35>0),4,IF(AND(C35="H",R35>control!$F$24),1,IF(AND(C35="H",R35>=control!$F$25,R35<=control!$G$25),2,IF(AND(C35="H",R35>control!$F$26,R35<control!$G$26),3,"null"))))))) -> 3 | T35: 5720 | U35: =IF(C35="T",0,IF(AND(control!$B$10=2,E35="4A",T35>0),4,IF(AND(control!$B$10=2,E35="4B",T35>0),5,IF(AND(control!$B$10=1,C35="A",T35>0),4,IF(AND(C35="H",T35>control!$M$24),1,IF(AND(C35="H",T35>=control!$M$25,T35<=control!$N$25),2,IF(AND(C35="H",T35>control!$M$26,T35<control!$N$26),3,"null"))))))) -> 2 | V35: =IF(control!$B$19=1,S35,IF(control!$B$19=2,U35,"unk")) -> 3 | W35: =IF(AND(V35=0,control!$B$55=2,N35>control!$G$61),control!$G$61,IF(AND(V35=1,N35>control!$G$61),control!$G$61,IF(AND(V35=2,N35>control!$G$62),control!$G$62,IF(AND(V35=3,N35>control!$G$63),control!$G$63,N35)))) -> 132.15 | X35: =IF(AND(V35=0,control!$B$55=2,P35>control!$O$61),control!$O$61,IF(AND(V35=1,P35>control!$O$61),control!$O$61,IF(AND(V35=2,P35>control!$O$62),control!$O$62,IF(AND(V35=3,P35>control!$O$63),control!$O$63,IF(AND(V35=4,P35>control!$O$64),control!$O$64,IF(AND(V35=5,P35>control!$O$65),control!$O$65,P35)))))) -> 94.96662152 | Y35: =O35*control!$B$15/60 -> 4941 | Z35: =Q35*control!$C$15/60 -> 6109.5 | AA35: =IF(V35=control!$B$45,O35*control!$E$45/60,IF(V35=control!$B$46,O35*control!$E$46/60,IF(V35=control!$B$47,O35*control!$E$47/60,IF(V35=control!$B$48,O35*control!$E$48/60,IF(V35=control!$B$49,O35*control!$E$49/60,IF(V35=control!$B$50,O35*control!$E$50/60,0)))))) -> 3206.709 | AB35: =IF(V35=control!$B$45,Q35*control!$F$45/60,IF(V35=control!$B$46,Q35*control!$F$46/60,IF(V35=control!$B$47,Q35*control!$F$47/60,IF(V35=control!$B$48,Q35*control!$F$48/60,IF(V35=control!$B$49,Q35*control!$F$49/60,IF(V35=control!$B$50,Q35*control!$F$50/60,0)))))) -> 4994.855667 | AC35: 3627.5175 | AD35: 6446.650824 | AE35: 3627.5175 | AF35: 6448.916667 | AG35: =IF(control!$B$3=1,Y35+Z35,IF(control!$B$3=2,AA35+AB35,IF(control!$B$3=3,AC35+AD35,IF(control!$B$3=4,AE35+AF35,-999)))) -> 11050.5 | AH35: =IF(control!$L$14=2,AW35,IF(control!$L$14=3,AY35,AU35)) -> 98246 | AI35: =IF(control!$L$14=2,AX35,IF(control!$L$14=3,AZ35,AV35)) -> 99192 | AJ35: =IF(AND(AH35<>0,control!$O$3=1),100*(AI35-AH35)/AH35,IF(AND(AH35<>0,control!$O$3=2),(((AI35/AH35)^0.25)-1)*100,0)) -> 0.9628890744 | AK35: 11156.90406 | AL35: 9 | AM35: 253 | AN35: =AK35/control!$H$15 -> 5.959884646 | AO35: =IF(V35=0,AK35/control!$J$45,IF(V35=1,AK35/control!$J$46,IF(V35=2,AK35/control!$J$47,IF(V35=3,AK35/control!$J$48,IF(V35=4,AK35/control!$J$49,IF(V35=5,AK35/control!$J$50,0)))))) -> 6.704870227 | AP35: =IF(V35=0,AK35/control!$M$71,IF(V35=1,AK35/control!$M$71,IF(V35=2,AK35/control!$M$72,IF(V35=3,AK35/control!$M$73,IF(V35=4,AK35/control!$M$74,IF(V35=5,AK35/control!$M$75,0)))))) -> 7.151861575 | AQ35: =IF(V35=0,AK35/control!$J$84,IF(V35=1,AK35/control!$J$85,IF(V35=2,AK35/control!$J$86,IF(V35=3,AK35/control!$J$87,IF(V35=4,AK35/control!$J$88,IF(V35=5,AK35/control!$J$89,0)))))) -> 7.969217184 | AR35: =IF(control!$B$3=1,AN35,IF(control!$B$3=2,AO35,IF(control!$B$3=3,AP35,IF(control!$B$3=4,AQ35,-999)))) -> 5.959884646 | AU35: 98246 | AV35: 99192 | AW35: 5876 | AX35: 5720 | AY35: 1 | AZ35: 1
A36: Cleveland | B36: H0113 | C36: H | D36: Carolinas HealthCare System Kings Mountain | E36: N | F36: 47 | G36: 0 | H36: 0 | I36: 2 | J36: 0 | K36: 0 | L36: 0 | M36: 2 | N36: 94.24 | O36: 128 | P36: 55.84 | Q36: 813 | R36: 957.6773333 | S36: =IF(C36="T",0,IF(AND(control!$B$10=2,E36="4A",R36>0),4,IF(AND(control!$B$10=2,E36="4B",R36>0),5,IF(AND(control!$B$10=1,C36="A",R36>0),4,IF(AND(C36="H",R36>control!$F$24),1,IF(AND(C36="H",R36>=control!$F$25,R36<=control!$G$25),2,IF(AND(C36="H",R36>control!$F$26,R36<control!$G$26),3,"null"))))))) -> 3 | T36: 941 | U36: =IF(C36="T",0,IF(AND(control!$B$10=2,E36="4A",T36>0),4,IF(AND(control!$B$10=2,E36="4B",T36>0),5,IF(AND(control!$B$10=1,C36="A",T36>0),4,IF(AND(C36="H",T36>control!$M$24),1,IF(AND(C36="H",T36>=control!$M$25,T36<=control!$N$25),2,IF(AND(C36="H",T36>control!$M$26,T36<control!$N$26),3,"null"))))))) -> 3 | V36: =IF(control!$B$19=1,S36,IF(control!$B$19=2,U36,"unk")) -> 3 | W36: =IF(AND(V36=0,control!$B$55=2,N36>control!$G$61),control!$G$61,IF(AND(V36=1,N36>control!$G$61),control!$G$61,IF(AND(V36=2,N36>control!$G$62),control!$G$62,IF(AND(V36=3,N36>control!$G$63),control!$G$63,N36)))) -> 94.24 | X36: =IF(AND(V36=0,control!$B$55=2,P36>control!$O$61),control!$O$61,IF(AND(V36=1,P36>control!$O$61),control!$O$61,IF(AND(V36=2,P36>control!$O$62),control!$O$62,IF(AND(V36=3,P36>control!$O$63),control!$O$63,IF(AND(V36=4,P36>control!$O$64),control!$O$64,IF(AND(V36=5,P36>control!$O$65),control!$O$65,P36)))))) -> 55.84 | Y36: =O36*control!$B$15/60 -> 384 | Z36: =Q36*control!$C$15/60 -> 1219.5 | AA36: =IF(V36=control!$B$45,O36*control!$E$45/60,IF(V36=control!$B$46,O36*control!$E$46/60,IF(V36=control!$B$47,O36*control!$E$47/60,IF(V36=control!$B$48,O36*control!$E$48/60,IF(V36=control!$B$49,O36*control!$E$49/60,IF(V36=control!$B$50,O36*control!$E$50/60,0)))))) -> 249.216 | AB36: =IF(V36=control!$B$45,Q36*control!$F$45/60,IF(V36=control!$B$46,Q36*control!$F$46/60,IF(V36=control!$B$47,Q36*control!$F$47/60,IF(V36=control!$B$48,Q36*control!$F$48/60,IF(V36=control!$B$49,Q36*control!$F$49/60,IF(V36=control!$B$50,Q36*control!$F$50/60,0)))))) -> 997.009 | AC36: 201.0453333 | AD36: 756.632 | AE36: 201.0453333 | AF36: 756.632 | AG36: =IF(control!$B$3=1,Y36+Z36,IF(control!$B$3=2,AA36+AB36,IF(control!$B$3=3,AC36+AD36,IF(control!$B$3=4,AE36+AF36,-999)))) -> 1603.5 | AH36: =IF(control!$L$14=2,AW36,IF(control!$L$14=3,AY36,AU36)) -> 98246 | AI36: =IF(control!$L$14=2,AX36,IF(control!$L$14=3,AZ36,AV36)) -> 99192 | AJ36: =IF(AND(AH36<>0,control!$O$3=1),100*(AI36-AH36)/AH36,IF(AND(AH36<>0,control!$O$3=2),(((AI36/AH36)^0.25)-1)*100,0)) -> 0.9628890744 | AK36: 1618.939926 | AL36: 9 | AM36: 253 | AN36: =AK36/control!$H$15 -> 0.8648183367 | AO36: =IF(V36=0,AK36/control!$J$45,IF(V36=1,AK36/control!$J$46,IF(V36=2,AK36/control!$J$47,IF(V36=3,AK36/control!$J$48,IF(V36=4,AK36/control!$J$49,IF(V36=5,AK36/control!$J$50,0)))))) -> 0.9729206288 | AP36: =IF(V36=0,AK36/control!$M$71,IF(V36=1,AK36/control!$M$71,IF(V36=2,AK36/control!$M$72,IF(V36=3,AK36/control!$M$73,IF(V36=4,AK36/control!$M$74,IF(V36=5,AK36/control!$M$75,0)))))) -> 1.037782004 | AQ36: =IF(V36=0,AK36/control!$J$84,IF(V36=1,AK36/control!$J$85,IF(V36=2,AK36/control!$J$86,IF(V36=3,AK36/control!$J$87,IF(V36=4,AK36/control!$J$88,IF(V36=5,AK36/control!$J$89,0)))))) -> 1.156385662 | AR36: =IF(control!$B$3=1,AN36,IF(control!$B$3=2,AO36,IF(control!$B$3=3,AP36,IF(control!$B$3=4,AQ36,-999)))) -> 0.8648183367 | AU36: 98246 | AV36: 99192 | AW36: 981 | AX36: 941 | AY36: 1 | AZ36: 1
A37: Columbus | B37: H0045 | C37: H | D37: Columbus Regional Healthcare System | E37: N | F37: 154 | G37: 1 | H37: 0 | I37: 5 | J37: -1 | K37: 0 | L37: 0 | M37: 5 | N37: 79 | O37: 1011 | P37: 56 | Q37: 2388 | R37: 3559.95 | S37: =IF(C37="T",0,IF(AND(control!$B$10=2,E37="4A",R37>0),4,IF(AND(control!$B$10=2,E37="4B",R37>0),5,IF(AND(control!$B$10=1,C37="A",R37>0),4,IF(AND(C37="H",R37>control!$F$24),1,IF(AND(C37="H",R37>=control!$F$25,R37<=control!$G$25),2,IF(AND(C37="H",R37>control!$F$26,R37<control!$G$26),3,"null"))))))) -> 3 | T37: 3399 | U37: =IF(C37="T",0,IF(AND(control!$B$10=2,E37="4A",T37>0),4,IF(AND(control!$B$10=2,E37="4B",T37>0),5,IF(AND(control!$B$10=1,C37="A",T37>0),4,IF(AND(C37="H",T37>control!$M$24),1,IF(AND(C37="H",T37>=control!$M$25,T37<=control!$N$25),2,IF(AND(C37="H",T37>control!$M$26,T37<control!$N$26),3,"null"))))))) -> 3 | V37: =IF(control!$B$19=1,S37,IF(control!$B$19=2,U37,"unk")) -> 3 | W37: =IF(AND(V37=0,control!$B$55=2,N37>control!$G$61),control!$G$61,IF(AND(V37=1,N37>control!$G$61),control!$G$61,IF(AND(V37=2,N37>control!$G$62),control!$G$62,IF(AND(V37=3,N37>control!$G$63),control!$G$63,N37)))) -> 79 | X37: =IF(AND(V37=0,control!$B$55=2,P37>control!$O$61),control!$O$61,IF(AND(V37=1,P37>control!$O$61),control!$O$61,IF(AND(V37=2,P37>control!$O$62),control!$O$62,IF(AND(V37=3,P37>control!$O$63),control!$O$63,IF(AND(V37=4,P37>control!$O$64),control!$O$64,IF(AND(V37=5,P37>control!$O$65),control!$O$65,P37)))))) -> 56 | Y37: =O37*control!$B$15/60 -> 3033 | Z37: =Q37*control!$C$15/60 -> 3582 | AA37: =IF(V37=control!$B$45,O37*control!$E$45/60,IF(V37=control!$B$46,O37*control!$E$46/60,IF(V37=control!$B$47,O37*control!$E$47/60,IF(V37=control!$B$48,O37*control!$E$48/60,IF(V37=control!$B$49,O37*control!$E$49/60,IF(V37=control!$B$50,O37*control!$E$50/60,0)))))) -> 1968.417 | AB37: =IF(V37=control!$B$45,Q37*control!$F$45/60,IF(V37=control!$B$46,Q37*control!$F$46/60,IF(V37=control!$B$47,Q37*control!$F$47/60,IF(V37=control!$B$48,Q37*control!$F$48/60,IF(V37=control!$B$49,Q37*control!$F$49/60,IF(V37=control!$B$50,Q37*control!$F$50/60,0)))))) -> 2928.484 | AC37: 1331.15 | AD37: 2228.8 | AE37: 1331.15 | AF37: 2228.8 | AG37: =IF(control!$B$3=1,Y37+Z37,IF(control!$B$3=2,AA37+AB37,IF(control!$B$3=3,AC37+AD37,IF(control!$B$3=4,AE37+AF37,-999)))) -> 6615 | AH37: =IF(control!$L$14=2,AW37,IF(control!$L$14=3,AY37,AU37)) -> 57579 | AI37: =IF(control!$L$14=2,AX37,IF(control!$L$14=3,AZ37,AV37)) -> 57580 | AJ37: =IF(AND(AH37<>0,control!$O$3=1),100*(AI37-AH37)/AH37,IF(AND(AH37<>0,control!$O$3=2),(((AI37/AH37)^0.25)-1)*100,0)) -> 0.001736744299 | AK37: 6615.114886 | AL37: 8.5 | AM37: 253 | AN37: =AK37/control!$H$15 -> 3.533715217 | AO37: =IF(V37=0,AK37/control!$J$45,IF(V37=1,AK37/control!$J$46,IF(V37=2,AK37/control!$J$47,IF(V37=3,AK37/control!$J$48,IF(V37=4,AK37/control!$J$49,IF(V37=5,AK37/control!$J$50,0)))))) -> 3.975429619 | AP37: =IF(V37=0,AK37/control!$M$71,IF(V37=1,AK37/control!$M$71,IF(V37=2,AK37/control!$M$72,IF(V37=3,AK37/control!$M$73,IF(V37=4,AK37/control!$M$74,IF(V37=5,AK37/control!$M$75,0)))))) -> 4.24045826 | AQ37: =IF(V37=0,AK37/control!$J$84,IF(V37=1,AK37/control!$J$85,IF(V37=2,AK37/control!$J$86,IF(V37=3,AK37/control!$J$87,IF(V37=4,AK37/control!$J$88,IF(V37=5,AK37/control!$J$89,0)))))) -> 4.725082061 | AR37: =IF(control!$B$3=1,AN37,IF(control!$B$3=2,AO37,IF(control!$B$3=3,AP37,IF(control!$B$3=4,AQ37,-999)))) -> 3.533715217 | AU37: 57579 | AV37: 57580 | AW37: 4239 | AX37: 3399 | AY37: 1 | AZ37: 1
A38: Craven | B38: H0201 | C38: H | D38: CarolinaEast Medical Center | E38: N | F38: 307 | G38: 3 | H38: 6 | I38: 9 | J38: -1 | K38: 0 | L38: 0 | M38: 17 | N38: 154 | O38: 3224 | P38: 26.06 | Q38: 9835 | R38: 12546.60167 | S38: =IF(C38="T",0,IF(AND(control!$B$10=2,E38="4A",R38>0),4,IF(AND(control!$B$10=2,E38="4B",R38>0),5,IF(AND(control!$B$10=1,C38="A",R38>0),4,IF(AND(C38="H",R38>control!$F$24),1,IF(AND(C38="H",R38>=control!$F$25,R38<=control!$G$25),2,IF(AND(C38="H",R38>control!$F$26,R38<control!$G$26),3,"null"))))))) -> 3 | T38: 13059 | U38: =IF(C38="T",0,IF(AND(control!$B$10=2,E38="4A",T38>0),4,IF(AND(control!$B$10=2,E38="4B",T38>0),5,IF(AND(control!$B$10=1,C38="A",T38>0),4,IF(AND(C38="H",T38>control!$M$24),1,IF(AND(C38="H",T38>=control!$M$25,T38<=control!$N$25),2,IF(AND(C38="H",T38>control!$M$26,T38<control!$N$26),3,"null"))))))) -> 1 | V38: =IF(control!$B$19=1,S38,IF(control!$B$19=2,U38,"unk")) -> 3 | W38: =IF(AND(V38=0,control!$B$55=2,N38>control!$G$61),control!$G$61,IF(AND(V38=1,N38>control!$G$61),control!$G$61,IF(AND(V38=2,N38>control!$G$62),control!$G$62,IF(AND(V38=3,N38>control!$G$63),control!$G$63,N38)))) -> 152.3863469 | X38: =IF(AND(V38=0,control!$B$55=2,P38>control!$O$61),control!$O$61,IF(AND(V38=1,P38>control!$O$61),control!$O$61,IF(AND(V38=2,P38>control!$O$62),control!$O$62,IF(AND(V38=3,P38>control!$O$63),control!$O$63,IF(AND(V38=4,P38>control!$O$64),control!$O$64,IF(AND(V38=5,P38>control!$O$65),control!$O$65,P38)))))) -> 26.06 | Y38: =O38*control!$B$15/60 -> 9672 | Z38: =Q38*control!$C$15/60 -> 14752.5 | AA38: =IF(V38=control!$B$45,O38*control!$E$45/60,IF(V38=control!$B$46,O38*control!$E$46/60,IF(V38=control!$B$47,O38*control!$E$47/60,IF(V38=control!$B$48,O38*control!$E$48/60,IF(V38=control!$B$49,O38*control!$E$49/60,IF(V38=control!$B$50,O38*control!$E$50/60,0)))))) -> 6277.128 | AB38: =IF(V38=control!$B$45,Q38*control!$F$45/60,IF(V38=control!$B$46,Q38*control!$F$46/60,IF(V38=control!$B$47,Q38*control!$F$47/60,IF(V38=control!$B$48,Q38*control!$F$48/60,IF(V38=control!$B$49,Q38*control!$F$49/60,IF(V38=control!$B$50,Q38*control!$F$50/60,0)))))) -> 12060.98833 | AC38: 8188.226373 | AD38: 4271.668333 | AE38: 8274.933333 | AF38: 4271.668333 | AG38: =IF(control!$B$3=1,Y38+Z38,IF(control!$B$3=2,AA38+AB38,IF(control!$B$3=3,AC38+AD38,IF(control!$B$3=4,AE38+AF38,-999)))) -> 24424.5 | AH38: =IF(control!$L$14=2,AW38,IF(control!$L$14=3,AY38,AU38)) -> 105052 | AI38: =IF(control!$L$14=2,AX38,IF(control!$L$14=3,AZ38,AV38)) -> 108366 | AJ38: =IF(AND(AH38<>0,control!$O$3=1),100*(AI38-AH38)/AH38,IF(AND(AH38<>0,control!$O$3=2),(((AI38/AH38)^0.25)-1)*100,0)) -> 3.154628184 | AK38: 25195.00216 | AL38: 10.07 | AM38: 257.5 | AN38: =AK38/control!$H$15 -> 13.45886868 | AO38: =IF(V38=0,AK38/control!$J$45,IF(V38=1,AK38/control!$J$46,IF(V38=2,AK38/control!$J$47,IF(V38=3,AK38/control!$J$48,IF(V38=4,AK38/control!$J$49,IF(V38=5,AK38/control!$J$50,0)))))) -> 15.14122726 | AP38: =IF(V38=0,AK38/control!$M$71,IF(V38=1,AK38/control!$M$71,IF(V38=2,AK38/control!$M$72,IF(V38=3,AK38/control!$M$73,IF(V38=4,AK38/control!$M$74,IF(V38=5,AK38/control!$M$75,0)))))) -> 16.15064241 | AQ38: =IF(V38=0,AK38/control!$J$84,IF(V38=1,AK38/control!$J$85,IF(V38=2,AK38/control!$J$86,IF(V38=3,AK38/control!$J$87,IF(V38=4,AK38/control!$J$88,IF(V38=5,AK38/control!$J$89,0)))))) -> 17.99643011 | AR38: =IF(control!$B$3=1,AN38,IF(control!$B$3=2,AO38,IF(control!$B$3=3,AP38,IF(control!$B$3=4,AQ38,-999)))) -> 13.45886868 | AU38: 105052 | AV38: 108366 | AW38: 12853 | AX38: 13059 | AY38: 1 | AZ38: 1
A39: Cumberland | B39: AS0006 | C39: A | D39: Fayetteville Ambulatory Surgery Center | E39: 4B | F39: 0 | G39: 0 | H39: 11 | I39: 0 | J39: 0 | K39: 0 | L39: 0 | M39: 11 | O39: 0 | P39: 57 | Q39: 11182 | R39: 10622.9 | S39: =IF(C39="T",0,IF(AND(control!$B$10=2,E39="4A",R39>0),4,IF(AND(control!$B$10=2,E39="4B",R39>0),5,IF(AND(control!$B$10=1,C39="A",R39>0),4,IF(AND(C39="H",R39>control!$F$24),1,IF(AND(C39="H",R39>=control!$F$25,R39<=control!$G$25),2,IF(AND(C39="H",R39>control!$F$26,R39<control!$G$26),3,"null"))))))) -> 4 | T39: 11182 | U39: =IF(C39="T",0,IF(AND(control!$B$10=2,E39="4A",T39>0),4,IF(AND(control!$B$10=2,E39="4B",T39>0),5,IF(AND(control!$B$10=1,C39="A",T39>0),4,IF(AND(C39="H",T39>control!$M$24),1,IF(AND(C39="H",T39>=control!$M$25,T39<=control!$N$25),2,IF(AND(C39="H",T39>control!$M$26,T39<control!$N$26),3,"null"))))))) -> 4 | V39: =IF(control!$B$19=1,S39,IF(control!$B$19=2,U39,"unk")) -> 4 | W39: =IF(AND(V39=0,control!$B$55=2,N39>control!$G$61),control!$G$61,IF(AND(V39=1,N39>control!$G$61),control!$G$61,IF(AND(V39=2,N39>control!$G$62),control!$G$62,IF(AND(V39=3,N39>control!$G$63),control!$G$63,N39)))) -> 0 | X39: =IF(AND(V39=0,control!$B$55=2,P39>control!$O$61),control!$O$61,IF(AND(V39=1,P39>control!$O$61),control!$O$61,IF(AND(V39=2,P39>control!$O$62),control!$O$62,IF(AND(V39=3,P39>control!$O$63),control!$O$63,IF(AND(V39=4,P39>control!$O$64),control!$O$64,IF(AND(V39=5,P39>control!$O$65),control!$O$65,P39)))))) -> 57 | Y39: =O39*control!$B$15/60 -> 0 | Z39: =Q39*control!$C$15/60 -> 16773 | AA39: =IF(V39=control!$B$45,O39*control!$E$45/60,IF(V39=control!$B$46,O39*control!$E$46/60,IF(V39=control!$B$47,O39*control!$E$47/60,IF(V39=control!$B$48,O39*control!$E$48/60,IF(V39=control!$B$49,O39*control!$E$49/60,IF(V39=control!$B$50,O39*control!$E$50/60,0)))))) -> 0 | AB39: =IF(V39=control!$B$45,Q39*control!$F$45/60,IF(V39=control!$B$46,Q39*control!$F$46/60,IF(V39=control!$B$47,Q39*control!$F$47/60,IF(V39=control!$B$48,Q39*control!$F$48/60,IF(V39=control!$B$49,Q39*control!$F$49/60,IF(V39=control!$B$50,Q39*control!$F$50/60,0)))))) -> 10809.26667 | AC39: 0 | AD39: 10622.9 | AE39: 0 | AF39: 10622.9 | AG39: =IF(control!$B$3=1,Y39+Z39,IF(control!$B$3=2,AA39+AB39,IF(control!$B$3=3,AC39+AD39,IF(control!$B$3=4,AE39+AF39,-999)))) -> 16773 | AH39: =IF(control!$L$14=2,AW39,IF(control!$L$14=3,AY39,AU39)) -> 331238 | AI39: =IF(control!$L$14=2,AX39,IF(control!$L$14=3,AZ39,AV39)) -> 338578 | AJ39: =IF(AND(AH39<>0,control!$O$3=1),100*(AI39-AH39)/AH39,IF(AND(AH39<>0,control!$O$3=2),(((AI39/AH39)^0.25)-1)*100,0)) -> 2.215929332 | AK39: 17144.67783 | AL39: 8 | AM39: 254 | AN39: =AK39/control!$H$15 -> 9.158481745 | AO39: =IF(V39=0,AK39/control!$J$45,IF(V39=1,AK39/control!$J$46,IF(V39=2,AK39/control!$J$47,IF(V39=3,AK39/control!$J$48,IF(V39=4,AK39/control!$J$49,IF(V39=5,AK39/control!$J$50,0)))))) -> 11.44810218 | AP39: =IF(V39=0,AK39/control!$M$71,IF(V39=1,AK39/control!$M$71,IF(V39=2,AK39/control!$M$72,IF(V39=3,AK39/control!$M$73,IF(V39=4,AK39/control!$M$74,IF(V39=5,AK39/control!$M$75,0)))))) -> 12.21130899 | AQ39: =IF(V39=0,AK39/control!$J$84,IF(V39=1,AK39/control!$J$85,IF(V39=2,AK39/control!$J$86,IF(V39=3,AK39/control!$J$87,IF(V39=4,AK39/control!$J$88,IF(V39=5,AK39/control!$J$89,0)))))) -> 13.25346152 | AR39: =IF(control!$B$3=1,AN39,IF(control!$B$3=2,AO39,IF(control!$B$3=3,AP39,IF(control!$B$3=4,AQ39,-999)))) -> 9.158481745 | AU39: 331238 | AV39: 338578 | AW39: 10475 | AX39: 11182 | AY39: 1 | AZ39: 1
A40: Cumberland | B40: H0213 | C40: H | D40: Cape Fear Valley Medical Center | E40: N | F40: 490 | G40: 5 | H40: 0 | I40: 13 | J40: -3 | K40: 0 | L40: 2 | M40: 17 | N40: 151 | O40: 6352 | P40: 101 | Q40: 5755 | R40: 25673.45 | S40: =IF(C40="T",0,IF(AND(control!$B$10=2,E40="4A",R40>0),4,IF(AND(control!$B$10=2,E40="4B",R40>0),5,IF(AND(control!$B$10=1,C40="A",R40>0),4,IF(AND(C40="H",R40>control!$F$24),1,IF(AND(C40="H",R40>=control!$F$25,R40<=control!$G$25),2,IF(AND(C40="H",R40>control!$F$26,R40<control!$G$26),3,"null"))))))) -> 2 | T40: 12107 | U40: =IF(C40="T",0,IF(AND(control!$B$10=2,E40="4A",T40>0),4,IF(AND(control!$B$10=2,E40="4B",T40>0),5,IF(AND(control!$B$10=1,C40="A",T40>0),4,IF(AND(C40="H",T40>control!$M$24),1,IF(AND(C40="H",T40>=control!$M$25,T40<=control!$N$25),2,IF(AND(C40="H",T40>control!$M$26,T40<control!$N$26),3,"null"))))))) -> 1 | V40: =IF(control!$B$19=1,S40,IF(control!$B$19=2,U40,"unk")) -> 2 | W40: =IF(AND(V40=0,control!$B$55=2,N40>control!$G$61),control!$G$61,IF(AND(V40=1,N40>control!$G$61),control!$G$61,IF(AND(V40=2,N40>control!$G$62),control!$G$62,IF(AND(V40=3,N40>control!$G$63),control!$G$63,N40)))) -> 151 | X40: =IF(AND(V40=0,control!$B$55=2,P40>control!$O$61),control!$O$61,IF(AND(V40=1,P40>control!$O$61),control!$O$61,IF(AND(V40=2,P40>control!$O$62),control!$O$62,IF(AND(V40=3,P40>control!$O$63),control!$O$63,IF(AND(V40=4,P40>control!$O$64),control!$O$64,IF(AND(V40=5,P40>control!$O$65),control!$O$65,P40)))))) -> 101 | Y40: =O40*control!$B$15/60 -> 19056 | Z40: =Q40*control!$C$15/60 -> 8632.5 | AA40: =IF(V40=control!$B$45,O40*control!$E$45/60,IF(V40=control!$B$46,O40*control!$E$46/60,IF(V40=control!$B$47,O40*control!$E$47/60,IF(V40=control!$B$48,O40*control!$E$48/60,IF(V40=control!$B$49,O40*control!$E$49/60,IF(V40=control!$B$50,O40*control!$E$50/60,0)))))) -> 16303.46667 | AB40: =IF(V40=control!$B$45,Q40*control!$F$45/60,IF(V40=control!$B$46,Q40*control!$F$46/60,IF(V40=control!$B$47,Q40*control!$F$47/60,IF(V40=control!$B$48,Q40*control!$F$48/60,IF(V40=control!$B$49,Q40*control!$F$49/60,IF(V40=control!$B$50,Q40*control!$F$50/60,0)))))) -> 9687.583333 | AC40: 15985.86667 | AD40: 9687.583333 | AE40: 15985.86667 | AF40: 9687.583333 | AG40: =IF(control!$B$3=1,Y40+Z40,IF(control!$B$3=2,AA40+AB40,IF(control!$B$3=3,AC40+AD40,IF(control!$B$3=4,AE40+AF40,-999)))) -> 27688.5 | AH40: =IF(control!$L$14=2,AW40,IF(control!$L$14=3,AY40,AU40)) -> 331238 | AI40: =IF(control!$L$14=2,AX40,IF(control!$L$14=3,AZ40,AV40)) -> 338578 | AJ40: =IF(AND(AH40<>0,control!$O$3=1),100*(AI40-AH40)/AH40,IF(AND(AH40<>0,control!$O$3=2),(((AI40/AH40)^0.25)-1)*100,0)) -> 2.215929332 | AK40: 28302.05759 | AL40: 9 | AM40: 247 | AN40: =AK40/control!$H$15 -> 15.11862051 | AO40: =IF(V40=0,AK40/control!$J$45,IF(V40=1,AK40/control!$J$46,IF(V40=2,AK40/control!$J$47,IF(V40=3,AK40/control!$J$48,IF(V40=4,AK40/control!$J$49,IF(V40=5,AK40/control!$J$50,0)))))) -> 15.11862051 | AP40: =IF(V40=0,AK40/control!$M$71,IF(V40=1,AK40/control!$M$71,IF(V40=2,AK40/control!$M$72,IF(V40=3,AK40/control!$M$73,IF(V40=4,AK40/control!$M$74,IF(V40=5,AK40/control!$M$75,0)))))) -> 16.12652854 | AQ40: =IF(V40=0,AK40/control!$J$84,IF(V40=1,AK40/control!$J$85,IF(V40=2,AK40/control!$J$86,IF(V40=3,AK40/control!$J$87,IF(V40=4,AK40/control!$J$88,IF(V40=5,AK40/control!$J$89,0)))))) -> 17.96956038 | AR40: =IF(control!$B$3=1,AN40,IF(control!$B$3=2,AO40,IF(control!$B$3=3,AP40,IF(control!$B$3=4,AQ40,-999)))) -> 15.11862051 | AU40: 331238 | AV40: 338578 | AW40: 12925 | AX40: 12107 | AY40: 1 | AZ40: 1
A41: Cumberland | B41: H0275 | C41: H | D41: Highsmith-Rainey Specialty Hospital | E41: N | F41: 66 | G41: 0 | H41: 0 | I41: 3 | J41: 0 | K41: 0 | L41: -2 | M41: 1 | N41: 73 | O41: 152 | P41: 100 | Q41: 2741 | R41: 4753.266667 | S41: =IF(C41="T",0,IF(AND(control!$B$10=2,E41="4A",R41>0),4,IF(AND(control!$B$10=2,E41="4B",R41>0),5,IF(AND(control!$B$10=1,C41="A",R41>0),4,IF(AND(C41="H",R41>control!$F$24),1,IF(AND(C41="H",R41>=control!$F$25,R41<=control!$G$25),2,IF(AND(C41="H",R41>control!$F$26,R41<control!$G$26),3,"null"))))))) -> 3 | T41: 2893 | U41: =IF(C41="T",0,IF(AND(control!$B$10=2,E41="4A",T41>0),4,IF(AND(control!$B$10=2,E41="4B",T41>0),5,IF(AND(control!$B$10=1,C41="A",T41>0),4,IF(AND(C41="H",T41>control!$M$24),1,IF(AND(C41="H",T41>=control!$M$25,T41<=control!$N$25),2,IF(AND(C41="H",T41>control!$M$26,T41<control!$N$26),3,"null"))))))) -> 3 | V41: =IF(control!$B$19=1,S41,IF(control!$B$19=2,U41,"unk")) -> 3 | W41: =IF(AND(V41=0,control!$B$55=2,N41>control!$G$61),control!$G$61,IF(AND(V41=1,N41>control!$G$61),control!$G$61,IF(AND(V41=2,N41>control!$G$62),control!$G$62,IF(AND(V41=3,N41>control!$G$63),control!$G$63,N41)))) -> 73 | X41: =IF(AND(V41=0,control!$B$55=2,P41>control!$O$61),control!$O$61,IF(AND(V41=1,P41>control!$O$61),control!$O$61,IF(AND(V41=2,P41>control!$O$62),control!$O$62,IF(AND(V41=3,P41>control!$O$63),control!$O$63,IF(AND(V41=4,P41>control!$O$64),control!$O$64,IF(AND(V41=5,P41>control!$O$65),control!$O$65,P41)))))) -> 94.96662152 | Y41: =O41*control!$B$15/60 -> 456 | Z41: =Q41*control!$C$15/60 -> 4111.5 | AA41: =IF(V41=control!$B$45,O41*control!$E$45/60,IF(V41=control!$B$46,O41*control!$E$46/60,IF(V41=control!$B$47,O41*control!$E$47/60,IF(V41=control!$B$48,O41*control!$E$48/60,IF(V41=control!$B$49,O41*control!$E$49/60,IF(V41=control!$B$50,O41*control!$E$50/60,0)))))) -> 295.944 | AB41: =IF(V41=control!$B$45,Q41*control!$F$45/60,IF(V41=control!$B$46,Q41*control!$F$46/60,IF(V41=control!$B$47,Q41*control!$F$47/60,IF(V41=control!$B$48,Q41*control!$F$48/60,IF(V41=control!$B$49,Q41*control!$F$49/60,IF(V41=control!$B$50,Q41*control!$F$50/60,0)))))) -> 3361.379667 | AC41: 184.9333333 | AD41: 4338.391827 | AE41: 184.9333333 | AF41: 4568.333333 | AG41: =IF(control!$B$3=1,Y41+Z41,IF(control!$B$3=2,AA41+AB41,IF(control!$B$3=3,AC41+AD41,IF(control!$B$3=4,AE41+AF41,-999)))) -> 4567.5 | AH41: =IF(control!$L$14=2,AW41,IF(control!$L$14=3,AY41,AU41)) -> 331238 | AI41: =IF(control!$L$14=2,AX41,IF(control!$L$14=3,AZ41,AV41)) -> 338578 | AJ41: =IF(AND(AH41<>0,control!$O$3=1),100*(AI41-AH41)/AH41,IF(AND(AH41<>0,control!$O$3=2),(((AI41/AH41)^0.25)-1)*100,0)) -> 2.215929332 | AK41: 4668.712572 | AL41: 7.5 | AM41: 247 | AN41: =AK41/control!$H$15 -> 2.493970391 | AO41: =IF(V41=0,AK41/control!$J$45,IF(V41=1,AK41/control!$J$46,IF(V41=2,AK41/control!$J$47,IF(V41=3,AK41/control!$J$48,IF(V41=4,AK41/control!$J$49,IF(V41=5,AK41/control!$J$50,0)))))) -> 2.80571669 | AP41: =IF(V41=0,AK41/control!$M$71,IF(V41=1,AK41/control!$M$71,IF(V41=2,AK41/control!$M$72,IF(V41=3,AK41/control!$M$73,IF(V41=4,AK41/control!$M$74,IF(V41=5,AK41/control!$M$75,0)))))) -> 2.992764469 | AQ41: =IF(V41=0,AK41/control!$J$84,IF(V41=1,AK41/control!$J$85,IF(V41=2,AK41/control!$J$86,IF(V41=3,AK41/control!$J$87,IF(V41=4,AK41/control!$J$88,IF(V41=5,AK41/control!$J$89,0)))))) -> 3.334794694 | AR41: =IF(control!$B$3=1,AN41,IF(control!$B$3=2,AO41,IF(control!$B$3=3,AP41,IF(control!$B$3=4,AQ41,-999)))) -> 2.493970391 | AU41: 331238 | AV41: 338578 | AW41: 2605 | AX41: 2893 | AY41: 1 | AZ41: 1
A42: Dare | B42: AS0053 | C42: under | D42: Sentara Kitty Hawk Ambulatory Surgery Center | E42: N | F42: 0 | G42: 0 | H42: 2 | I42: 0 | J42: 0 | K42: 0 | L42: 0 | M42: 2 | O42: 0 | P42: 30 | Q42: 691 | R42: 345.5 | S42: =IF(C42="T",0,IF(AND(control!$B$10=2,E42="4A",R42>0),4,IF(AND(control!$B$10=2,E42="4B",R42>0),5,IF(AND(control!$B$10=1,C42="A",R42>0),4,IF(AND(C42="H",R42>control!$F$24),1,IF(AND(C42="H",R42>=control!$F$25,R42<=control!$G$25),2,IF(AND(C42="H",R42>control!$F$26,R42<control!$G$26),3,"null"))))))) -> null | T42: 691 | U42: =IF(C42="T",0,IF(AND(control!$B$10=2,E42="4A",T42>0),4,IF(AND(control!$B$10=2,E42="4B",T42>0),5,IF(AND(control!$B$10=1,C42="A",T42>0),4,IF(AND(C42="H",T42>control!$M$24),1,IF(AND(C42="H",T42>=control!$M$25,T42<=control!$N$25),2,IF(AND(C42="H",T42>control!$M$26,T42<control!$N$26),3,"null"))))))) -> null | V42: =IF(control!$B$19=1,S42,IF(control!$B$19=2,U42,"unk")) -> null | W42: =IF(AND(V42=0,control!$B$55=2,N42>control!$G$61),control!$G$61,IF(AND(V42=1,N42>control!$G$61),control!$G$61,IF(AND(V42=2,N42>control!$G$62),control!$G$62,IF(AND(V42=3,N42>control!$G$63),control!$G$63,N42)))) -> 0 | X42: =IF(AND(V42=0,control!$B$55=2,P42>control!$O$61),control!$O$61,IF(AND(V42=1,P42>control!$O$61),control!$O$61,IF(AND(V42=2,P42>control!$O$62),control!$O$62,IF(AND(V42=3,P42>control!$O$63),control!$O$63,IF(AND(V42=4,P42>control!$O$64),control!$O$64,IF(AND(V42=5,P42>control!$O$65),control!$O$65,P42)))))) -> 30 | Y42: =O42*control!$B$15/60 -> 0 | Z42: =Q42*control!$C$15/60 -> 1036.5 | AA42: =IF(V42=control!$B$45,O42*control!$E$45/60,IF(V42=control!$B$46,O42*control!$E$46/60,IF(V42=control!$B$47,O42*control!$E$47/60,IF(V42=control!$B$48,O42*control!$E$48/60,IF(V42=control!$B$49,O42*control!$E$49/60,IF(V42=control!$B$50,O42*control!$E$50/60,0)))))) -> 0 | AB42: =IF(V42=control!$B$45,Q42*control!$F$45/60,IF(V42=control!$B$46,Q42*control!$F$46/60,IF(V42=control!$B$47,Q42*control!$F$47/60,IF(V42=control!$B$48,Q42*control!$F$48/60,IF(V42=control!$B$49,Q42*control!$F$49/60,IF(V42=control!$B$50,Q42*control!$F$50/60,0)))))) -> 0 | AC42: 0 | AD42: 345.5 | AE42: 0 | AF42: 345.5 | AG42: =IF(control!$B$3=1,Y42+Z42,IF(control!$B$3=2,AA42+AB42,IF(control!$B$3=3,AC42+AD42,IF(control!$B$3=4,AE42+AF42,-999)))) -> 1036.5 | AH42: =IF(control!$L$14=2,AW42,IF(control!$L$14=3,AY42,AU42)) -> 35579 | AI42: =IF(control!$L$14=2,AX42,IF(control!$L$14=3,AZ42,AV42)) -> 36110 | AJ42: =IF(AND(AH42<>0,control!$O$3=1),100*(AI42-AH42)/AH42,IF(AND(AH42<>0,control!$O$3=2),(((AI42/AH42)^0.25)-1)*100,0)) -> 1.492453414 | AK42: 1051.96928 | AL42: 8 | AM42: 260 | AN42: =AK42/control!$H$15 -> 0.5619494015 | AO42: =IF(V42=0,AK42/control!$J$45,IF(V42=1,AK42/control!$J$46,IF(V42=2,AK42/control!$J$47,IF(V42=3,AK42/control!$J$48,IF(V42=4,AK42/control!$J$49,IF(V42=5,AK42/control!$J$50,0)))))) -> 0 | AP42: =IF(V42=0,AK42/control!$M$71,IF(V42=1,AK42/control!$M$71,IF(V42=2,AK42/control!$M$72,IF(V42=3,AK42/control!$M$73,IF(V42=4,AK42/control!$M$74,IF(V42=5,AK42/control!$M$75,0)))))) -> 0 | AQ42: =IF(V42=0,AK42/control!$J$84,IF(V42=1,AK42/control!$J$85,IF(V42=2,AK42/control!$J$86,IF(V42=3,AK42/control!$J$87,IF(V42=4,AK42/control!$J$88,IF(V42=5,AK42/control!$J$89,0)))))) -> 0 | AR42: =IF(control!$B$3=1,AN42,IF(control!$B$3=2,AO42,IF(control!$B$3=3,AP42,IF(control!$B$3=4,AQ42,-999)))) -> 0.5619494015 | AU42: 35579 | AV42: 36110 | AW42: 664 | AX42: 691 | AY42: 1 | AZ42: 1
A43: Dare | B43: H0273 | C43: H | D43: The Outer Banks Hospital | E43: N | F43: 21 | G43: 1 | H43: 0 | I43: 2 | J43: -1 | K43: 0 | L43: 1 | M43: 3 | N43: 99 | O43: 263 | P43: 66 | Q43: 1466 | R43: 2046.55 | S43: =IF(C43="T",0,IF(AND(control!$B$10=2,E43="4A",R43>0),4,IF(AND(control!$B$10=2,E43="4B",R43>0),5,IF(AND(control!$B$10=1,C43="A",R43>0),4,IF(AND(C43="H",R43>control!$F$24),1,IF(AND(C43="H",R43>=control!$F$25,R43<=control!$G$25),2,IF(AND(C43="H",R43>control!$F$26,R43<control!$G$26),3,"null"))))))) -> 3 | T43: 1729 | U43: =IF(C43="T",0,IF(AND(control!$B$10=2,E43="4A",T43>0),4,IF(AND(control!$B$10=2,E43="4B",T43>0),5,IF(AND(control!$B$10=1,C43="A",T43>0),4,IF(AND(C43="H",T43>control!$M$24),1,IF(AND(C43="H",T43>=control!$M$25,T43<=control!$N$25),2,IF(AND(C43="H",T43>control!$M$26,T43<control!$N$26),3,"null"))))))) -> 3 | V43: =IF(control!$B$19=1,S43,IF(control!$B$19=2,U43,"unk")) -> 3 | W43: =IF(AND(V43=0,control!$B$55=2,N43>control!$G$61),control!$G$61,IF(AND(V43=1,N43>control!$G$61),control!$G$61,IF(AND(V43=2,N43>control!$G$62),control!$G$62,IF(AND(V43=3,N43>control!$G$63),control!$G$63,N43)))) -> 99 | X43: =IF(AND(V43=0,control!$B$55=2,P43>control!$O$61),control!$O$61,IF(AND(V43=1,P43>control!$O$61),control!$O$61,IF(AND(V43=2,P43>control!$O$62),control!$O$62,IF(AND(V43=3,P43>control!$O$63),control!$O$63,IF(AND(V43=4,P43>control!$O$64),control!$O$64,IF(AND(V43=5,P43>control!$O$65),control!$O$65,P43)))))) -> 66 | Y43: =O43*control!$B$15/60 -> 789 | Z43: =Q43*control!$C$15/60 -> 2199 | AA43: =IF(V43=control!$B$45,O43*control!$E$45/60,IF(V43=control!$B$46,O43*control!$E$46/60,IF(V43=control!$B$47,O43*control!$E$47/60,IF(V43=control!$B$48,O43*control!$E$48/60,IF(V43=control!$B$49,O43*control!$E$49/60,IF(V43=control!$B$50,O43*control!$E$50/60,0)))))) -> 512.061 | AB43: =IF(V43=control!$B$45,Q43*control!$F$45/60,IF(V43=control!$B$46,Q43*control!$F$46/60,IF(V43=control!$B$47,Q43*control!$F$47/60,IF(V43=control!$B$48,Q43*control!$F$48/60,IF(V43=control!$B$49,Q43*control!$F$49/60,IF(V43=control!$B$50,Q43*control!$F$50/60,0)))))) -> 1797.804667 | AC43: 433.95 | AD43: 1612.6 | AE43: 433.95 | AF43: 1612.6 | AG43: =IF(control!$B$3=1,Y43+Z43,IF(control!$B$3=2,AA43+AB43,IF(control!$B$3=3,AC43+AD43,IF(control!$B$3=4,AE43+AF43,-999)))) -> 2988 | AH43: =IF(control!$L$14=2,AW43,IF(control!$L$14=3,AY43,AU43)) -> 35579 | AI43: =IF(control!$L$14=2,AX43,IF(control!$L$14=3,AZ43,AV43)) -> 36110 | AJ43: =IF(AND(AH43<>0,control!$O$3=1),100*(AI43-AH43)/AH43,IF(AND(AH43<>0,control!$O$3=2),(((AI43/AH43)^0.25)-1)*100,0)) -> 1.492453414 | AK43: 3032.594508 | AL43: 8 | AM43: 260 | AN43: =AK43/control!$H$15 -> 1.619975699 | AO43: =IF(V43=0,AK43/control!$J$45,IF(V43=1,AK43/control!$J$46,IF(V43=2,AK43/control!$J$47,IF(V43=3,AK43/control!$J$48,IF(V43=4,AK43/control!$J$49,IF(V43=5,AK43/control!$J$50,0)))))) -> 1.822472661 | AP43: =IF(V43=0,AK43/control!$M$71,IF(V43=1,AK43/control!$M$71,IF(V43=2,AK43/control!$M$72,IF(V43=3,AK43/control!$M$73,IF(V43=4,AK43/control!$M$74,IF(V43=5,AK43/control!$M$75,0)))))) -> 1.943970838 | AQ43: =IF(V43=0,AK43/control!$J$84,IF(V43=1,AK43/control!$J$85,IF(V43=2,AK43/control!$J$86,IF(V43=3,AK43/control!$J$87,IF(V43=4,AK43/control!$J$88,IF(V43=5,AK43/control!$J$89,0)))))) -> 2.166138934 | AR43: =IF(control!$B$3=1,AN43,IF(control!$B$3=2,AO43,IF(control!$B$3=3,AP43,IF(control!$B$3=4,AQ43,-999)))) -> 1.619975699 | AU43: 35579 | AV43: 36110 | AW43: 1775 | AX43: 1729 | AY43: 1 | AZ43: 1
A44: Davidson | B44: H0027 | C44: H | D44: Lexington Medical Center | E44: N | F44: 94 | G44: 0 | H44: 0 | I44: 4 | J44: 0 | K44: 0 | L44: 0 | M44: 4 | N44: 115 | O44: 715 | P44: 63 | Q44: 2228 | R44: 3709.816667 | S44: =IF(C44="T",0,IF(AND(control!$B$10=2,E44="4A",R44>0),4,IF(AND(control!$B$10=2,E44="4B",R44>0),5,IF(AND(control!$B$10=1,C44="A",R44>0),4,IF(AND(C44="H",R44>control!$F$24),1,IF(AND(C44="H",R44>=control!$F$25,R44<=control!$G$25),2,IF(AND(C44="H",R44>control!$F$26,R44<control!$G$26),3,"null"))))))) -> 3 | T44: 2943 | U44: =IF(C44="T",0,IF(AND(control!$B$10=2,E44="4A",T44>0),4,IF(AND(control!$B$10=2,E44="4B",T44>0),5,IF(AND(control!$B$10=1,C44="A",T44>0),4,IF(AND(C44="H",T44>control!$M$24),1,IF(AND(C44="H",T44>=control!$M$25,T44<=control!$N$25),2,IF(AND(C44="H",T44>control!$M$26,T44<control!$N$26),3,"null"))))))) -> 3 | V44: =IF(control!$B$19=1,S44,IF(control!$B$19=2,U44,"unk")) -> 3 | W44: =IF(AND(V44=0,control!$B$55=2,N44>control!$G$61),control!$G$61,IF(AND(V44=1,N44>control!$G$61),control!$G$61,IF(AND(V44=2,N44>control!$G$62),control!$G$62,IF(AND(V44=3,N44>control!$G$63),control!$G$63,N44)))) -> 115 | X44: =IF(AND(V44=0,control!$B$55=2,P44>control!$O$61),control!$O$61,IF(AND(V44=1,P44>control!$O$61),control!$O$61,IF(AND(V44=2,P44>control!$O$62),control!$O$62,IF(AND(V44=3,P44>control!$O$63),control!$O$63,IF(AND(V44=4,P44>control!$O$64),control!$O$64,IF(AND(V44=5,P44>control!$O$65),control!$O$65,P44)))))) -> 63 | Y44: =O44*control!$B$15/60 -> 2145 | Z44: =Q44*control!$C$15/60 -> 3342 | AA44: =IF(V44=control!$B$45,O44*control!$E$45/60,IF(V44=control!$B$46,O44*control!$E$46/60,IF(V44=control!$B$47,O44*control!$E$47/60,IF(V44=control!$B$48,O44*control!$E$48/60,IF(V44=control!$B$49,O44*control!$E$49/60,IF(V44=control!$B$50,O44*control!$E$50/60,0)))))) -> 1392.105 | AB44: =IF(V44=control!$B$45,Q44*control!$F$45/60,IF(V44=control!$B$46,Q44*control!$F$46/60,IF(V44=control!$B$47,Q44*control!$F$47/60,IF(V44=control!$B$48,Q44*control!$F$48/60,IF(V44=control!$B$49,Q44*control!$F$49/60,IF(V44=control!$B$50,Q44*control!$F$50/60,0)))))) -> 2732.270667 | AC44: 1370.416667 | AD44: 2339.4 | AE44: 1370.416667 | AF44: 2339.4 | AG44: =IF(control!$B$3=1,Y44+Z44,IF(control!$B$3=2,AA44+AB44,IF(control!$B$3=3,AC44+AD44,IF(control!$B$3=4,AE44+AF44,-999)))) -> 5487 | AH44: =IF(control!$L$14=2,AW44,IF(control!$L$14=3,AY44,AU44)) -> 164927 | AI44: =IF(control!$L$14=2,AX44,IF(control!$L$14=3,AZ44,AV44)) -> 166815 | AJ44: =IF(AND(AH44<>0,control!$O$3=1),100*(AI44-AH44)/AH44,IF(AND(AH44<>0,control!$O$3=2),(((AI44/AH44)^0.25)-1)*100,0)) -> 1.144748889 | AK44: 5549.812372 | AL44: 8 | AM44: 254 | AN44: =AK44/control!$H$15 -> 2.964643361 | AO44: =IF(V44=0,AK44/control!$J$45,IF(V44=1,AK44/control!$J$46,IF(V44=2,AK44/control!$J$47,IF(V44=3,AK44/control!$J$48,IF(V44=4,AK44/control!$J$49,IF(V44=5,AK44/control!$J$50,0)))))) -> 3.335223781 | AP44: =IF(V44=0,AK44/control!$M$71,IF(V44=1,AK44/control!$M$71,IF(V44=2,AK44/control!$M$72,IF(V44=3,AK44/control!$M$73,IF(V44=4,AK44/control!$M$74,IF(V44=5,AK44/control!$M$75,0)))))) -> 3.557572033 | AQ44: =IF(V44=0,AK44/control!$J$84,IF(V44=1,AK44/control!$J$85,IF(V44=2,AK44/control!$J$86,IF(V44=3,AK44/control!$J$87,IF(V44=4,AK44/control!$J$88,IF(V44=5,AK44/control!$J$89,0)))))) -> 3.964151694 | AR44: =IF(control!$B$3=1,AN44,IF(control!$B$3=2,AO44,IF(control!$B$3=3,AP44,IF(control!$B$3=4,AQ44,-999)))) -> 2.964643361 | AU44: 164927 | AV44: 166815 | AW44: 3160 | AX44: 2943 | AY44: 1 | AZ44: 1
A45: Davidson | B45: H0112 | C45: H | D45: Novant Health Thomasville Medical Center | E45: N | F45: 101 | G45: 1 | H45: 0 | I45: 5 | J45: -1 | K45: 0 | L45: 0 | M45: 5 | N45: 82 | O45: 454 | P45: 54 | Q45: 3339 | R45: 3625.566667 | S45: =IF(C45="T",0,IF(AND(control!$B$10=2,E45="4A",R45>0),4,IF(AND(control!$B$10=2,E45="4B",R45>0),5,IF(AND(control!$B$10=1,C45="A",R45>0),4,IF(AND(C45="H",R45>control!$F$24),1,IF(AND(C45="H",R45>=control!$F$25,R45<=control!$G$25),2,IF(AND(C45="H",R45>control!$F$26,R45<control!$G$26),3,"null"))))))) -> 3 | T45: 3793 | U45: =IF(C45="T",0,IF(AND(control!$B$10=2,E45="4A",T45>0),4,IF(AND(control!$B$10=2,E45="4B",T45>0),5,IF(AND(control!$B$10=1,C45="A",T45>0),4,IF(AND(C45="H",T45>control!$M$24),1,IF(AND(C45="H",T45>=control!$M$25,T45<=control!$N$25),2,IF(AND(C45="H",T45>control!$M$26,T45<control!$N$26),3,"null"))))))) -> 3 | V45: =IF(control!$B$19=1,S45,IF(control!$B$19=2,U45,"unk")) -> 3 | W45: =IF(AND(V45=0,control!$B$55=2,N45>control!$G$61),control!$G$61,IF(AND(V45=1,N45>control!$G$61),control!$G$61,IF(AND(V45=2,N45>control!$G$62),control!$G$62,IF(AND(V45=3,N45>control!$G$63),control!$G$63,N45)))) -> 82 | X45: =IF(AND(V45=0,control!$B$55=2,P45>control!$O$61),control!$O$61,IF(AND(V45=1,P45>control!$O$61),control!$O$61,IF(AND(V45=2,P45>control!$O$62),control!$O$62,IF(AND(V45=3,P45>control!$O$63),control!$O$63,IF(AND(V45=4,P45>control!$O$64),control!$O$64,IF(AND(V45=5,P45>control!$O$65),control!$O$65,P45)))))) -> 54 | Y45: =O45*control!$B$15/60 -> 1362 | Z45: =Q45*control!$C$15/60 -> 5008.5 | AA45: =IF(V45=control!$B$45,O45*control!$E$45/60,IF(V45=control!$B$46,O45*control!$E$46/60,IF(V45=control!$B$47,O45*control!$E$47/60,IF(V45=control!$B$48,O45*control!$E$48/60,IF(V45=control!$B$49,O45*control!$E$49/60,IF(V45=control!$B$50,O45*control!$E$50/60,0)))))) -> 883.938 | AB45: =IF(V45=control!$B$45,Q45*control!$F$45/60,IF(V45=control!$B$46,Q45*control!$F$46/60,IF(V45=control!$B$47,Q45*control!$F$47/60,IF(V45=control!$B$48,Q45*control!$F$48/60,IF(V45=control!$B$49,Q45*control!$F$49/60,IF(V45=control!$B$50,Q45*control!$F$50/60,0)))))) -> 4094.727 | AC45: 620.4666667 | AD45: 3005.1 | AE45: 620.4666667 | AF45: 3005.1 | AG45: =IF(control!$B$3=1,Y45+Z45,IF(control!$B$3=2,AA45+AB45,IF(control!$B$3=3,AC45+AD45,IF(control!$B$3=4,AE45+AF45,-999)))) -> 6370.5 | AH45: =IF(control!$L$14=2,AW45,IF(control!$L$14=3,AY45,AU45)) -> 164927 | AI45: =IF(control!$L$14=2,AX45,IF(control!$L$14=3,AZ45,AV45)) -> 166815 | AJ45: =IF(AND(AH45<>0,control!$O$3=1),100*(AI45-AH45)/AH45,IF(AND(AH45<>0,control!$O$3=2),(((AI45/AH45)^0.25)-1)*100,0)) -> 1.144748889 | AK45: 6443.426228 | AL45: 9 | AM45: 255 | AN45: =AK45/control!$H$15 -> 3.44200119 | AO45: =IF(V45=0,AK45/control!$J$45,IF(V45=1,AK45/control!$J$46,IF(V45=2,AK45/control!$J$47,IF(V45=3,AK45/control!$J$48,IF(V45=4,AK45/control!$J$49,IF(V45=5,AK45/control!$J$50,0)))))) -> 3.872251339 | AP45: =IF(V45=0,AK45/control!$M$71,IF(V45=1,AK45/control!$M$71,IF(V45=2,AK45/control!$M$72,IF(V45=3,AK45/control!$M$73,IF(V45=4,AK45/control!$M$74,IF(V45=5,AK45/control!$M$75,0)))))) -> 4.130401428 | AQ45: =IF(V45=0,AK45/control!$J$84,IF(V45=1,AK45/control!$J$85,IF(V45=2,AK45/control!$J$86,IF(V45=3,AK45/control!$J$87,IF(V45=4,AK45/control!$J$88,IF(V45=5,AK45/control!$J$89,0)))))) -> 4.602447306 | AR45: =IF(control!$B$3=1,AN45,IF(control!$B$3=2,AO45,IF(control!$B$3=3,AP45,IF(control!$B$3=4,AQ45,-999)))) -> 3.44200119 | AU45: 164927 | AV45: 166815 | AW45: 4546 | AX45: 3793 | AY45: 1 | AZ45: 1
A46: Davie | B46: H0171 | C46: H | D46: Davie Medical Center | E46: N | F46: 81 | G46: 0 | H46: 0 | I46: 2 | J46: 0 | K46: 0 | L46: 0 | M46: 2 | N46: 0 | O46: 0 | P46: 52 | Q46: 2753 | R46: 2385.933333 | S46: =IF(C46="T",0,IF(AND(control!$B$10=2,E46="4A",R46>0),4,IF(AND(control!$B$10=2,E46="4B",R46>0),5,IF(AND(control!$B$10=1,C46="A",R46>0),4,IF(AND(C46="H",R46>control!$F$24),1,IF(AND(C46="H",R46>=control!$F$25,R46<=control!$G$25),2,IF(AND(C46="H",R46>control!$F$26,R46<control!$G$26),3,"null"))))))) -> 3 | T46: 2753 | U46: =IF(C46="T",0,IF(AND(control!$B$10=2,E46="4A",T46>0),4,IF(AND(control!$B$10=2,E46="4B",T46>0),5,IF(AND(control!$B$10=1,C46="A",T46>0),4,IF(AND(C46="H",T46>control!$M$24),1,IF(AND(C46="H",T46>=control!$M$25,T46<=control!$N$25),2,IF(AND(C46="H",T46>control!$M$26,T46<control!$N$26),3,"null"))))))) -> 3 | V46: =IF(control!$B$19=1,S46,IF(control!$B$19=2,U46,"unk")) -> 3 | W46: =IF(AND(V46=0,control!$B$55=2,N46>control!$G$61),control!$G$61,IF(AND(V46=1,N46>control!$G$61),control!$G$61,IF(AND(V46=2,N46>control!$G$62),control!$G$62,IF(AND(V46=3,N46>control!$G$63),control!$G$63,N46)))) -> 0 | X46: =IF(AND(V46=0,control!$B$55=2,P46>control!$O$61),control!$O$61,IF(AND(V46=1,P46>control!$O$61),control!$O$61,IF(AND(V46=2,P46>control!$O$62),control!$O$62,IF(AND(V46=3,P46>control!$O$63),control!$O$63,IF(AND(V46=4,P46>control!$O$64),control!$O$64,IF(AND(V46=5,P46>control!$O$65),control!$O$65,P46)))))) -> 52 | Y46: =O46*control!$B$15/60 -> 0 | Z46: =Q46*control!$C$15/60 -> 4129.5 | AA46: =IF(V46=control!$B$45,O46*control!$E$45/60,IF(V46=control!$B$46,O46*control!$E$46/60,IF(V46=control!$B$47,O46*control!$E$47/60,IF(V46=control!$B$48,O46*control!$E$48/60,IF(V46=control!$B$49,O46*control!$E$49/60,IF(V46=control!$B$50,O46*control!$E$50/60,0)))))) -> 0 | AB46: =IF(V46=control!$B$45,Q46*control!$F$45/60,IF(V46=control!$B$46,Q46*control!$F$46/60,IF(V46=control!$B$47,Q46*control!$F$47/60,IF(V46=control!$B$48,Q46*control!$F$48/60,IF(V46=control!$B$49,Q46*control!$F$49/60,IF(V46=control!$B$50,Q46*control!$F$50/60,0)))))) -> 3376.095667 | AC46: 0 | AD46: 2385.933333 | AE46: 0 | AF46: 2385.933333 | AG46: =IF(control!$B$3=1,Y46+Z46,IF(control!$B$3=2,AA46+AB46,IF(control!$B$3=3,AC46+AD46,IF(control!$B$3=4,AE46+AF46,-999)))) -> 4129.5 | AH46: =IF(control!$L$14=2,AW46,IF(control!$L$14=3,AY46,AU46)) -> 41475 | AI46: =IF(control!$L$14=2,AX46,IF(control!$L$14=3,AZ46,AV46)) -> 41470 | AJ46: =IF(AND(AH46<>0,control!$O$3=1),100*(AI46-AH46)/AH46,IF(AND(AH46<>0,control!$O$3=2),(((AI46/AH46)^0.25)-1)*100,0)) -> -0.01205545509 | AK46: 4129.00217 | AL46: 8 | AM46: 230 | AN46: =AK46/control!$H$15 -> 2.205663552 | AO46: =IF(V46=0,AK46/control!$J$45,IF(V46=1,AK46/control!$J$46,IF(V46=2,AK46/control!$J$47,IF(V46=3,AK46/control!$J$48,IF(V46=4,AK46/control!$J$49,IF(V46=5,AK46/control!$J$50,0)))))) -> 2.481371496 | AP46: =IF(V46=0,AK46/control!$M$71,IF(V46=1,AK46/control!$M$71,IF(V46=2,AK46/control!$M$72,IF(V46=3,AK46/control!$M$73,IF(V46=4,AK46/control!$M$74,IF(V46=5,AK46/control!$M$75,0)))))) -> 2.646796263 | AQ46: =IF(V46=0,AK46/control!$J$84,IF(V46=1,AK46/control!$J$85,IF(V46=2,AK46/control!$J$86,IF(V46=3,AK46/control!$J$87,IF(V46=4,AK46/control!$J$88,IF(V46=5,AK46/control!$J$89,0)))))) -> 2.949287264 | AR46: =IF(control!$B$3=1,AN46,IF(control!$B$3=2,AO46,IF(control!$B$3=3,AP46,IF(control!$B$3=4,AQ46,-999)))) -> 2.205663552 | AU46: 41475 | AV46: 41470 | AW46: 276 | AX46: 2753 | AY46: 1 | AZ46: 1
A47: Duplin | B47: H0166 | C47: H | D47: Vidant Duplin Hospital | E47: N | F47: 56 | G47: 0 | H47: 0 | I47: 3 | J47: 0 | K47: 0 | L47: 0 | M47: 3 | N47: 85 | O47: 462 | P47: 60 | Q47: 1556 | R47: 2210.5 | S47: =IF(C47="T",0,IF(AND(control!$B$10=2,E47="4A",R47>0),4,IF(AND(control!$B$10=2,E47="4B",R47>0),5,IF(AND(control!$B$10=1,C47="A",R47>0),4,IF(AND(C47="H",R47>control!$F$24),1,IF(AND(C47="H",R47>=control!$F$25,R47<=control!$G$25),2,IF(AND(C47="H",R47>control!$F$26,R47<control!$G$26),3,"null"))))))) -> 3 | T47: 2018 | U47: =IF(C47="T",0,IF(AND(control!$B$10=2,E47="4A",T47>0),4,IF(AND(control!$B$10=2,E47="4B",T47>0),5,IF(AND(control!$B$10=1,C47="A",T47>0),4,IF(AND(C47="H",T47>control!$M$24),1,IF(AND(C47="H",T47>=control!$M$25,T47<=control!$N$25),2,IF(AND(C47="H",T47>control!$M$26,T47<control!$N$26),3,"null"))))))) -> 3 | V47: =IF(control!$B$19=1,S47,IF(control!$B$19=2,U47,"unk")) -> 3 | W47: =IF(AND(V47=0,control!$B$55=2,N47>control!$G$61),control!$G$61,IF(AND(V47=1,N47>control!$G$61),control!$G$61,IF(AND(V47=2,N47>control!$G$62),control!$G$62,IF(AND(V47=3,N47>control!$G$63),control!$G$63,N47)))) -> 85 | X47: =IF(AND(V47=0,control!$B$55=2,P47>control!$O$61),control!$O$61,IF(AND(V47=1,P47>control!$O$61),control!$O$61,IF(AND(V47=2,P47>control!$O$62),control!$O$62,IF(AND(V47=3,P47>control!$O$63),control!$O$63,IF(AND(V47=4,P47>control!$O$64),control!$O$64,IF(AND(V47=5,P47>control!$O$65),control!$O$65,P47)))))) -> 60 | Y47: =O47*control!$B$15/60 -> 1386 | Z47: =Q47*control!$C$15/60 -> 2334 | AA47: =IF(V47=control!$B$45,O47*control!$E$45/60,IF(V47=control!$B$46,O47*control!$E$46/60,IF(V47=control!$B$47,O47*control!$E$47/60,IF(V47=control!$B$48,O47*control!$E$48/60,IF(V47=control!$B$49,O47*control!$E$49/60,IF(V47=control!$B$50,O47*control!$E$50/60,0)))))) -> 899.514 | AB47: =IF(V47=control!$B$45,Q47*control!$F$45/60,IF(V47=control!$B$46,Q47*control!$F$46/60,IF(V47=control!$B$47,Q47*control!$F$47/60,IF(V47=control!$B$48,Q47*control!$F$48/60,IF(V47=control!$B$49,Q47*control!$F$49/60,IF(V47=control!$B$50,Q47*control!$F$50/60,0)))))) -> 1908.174667 | AC47: 654.5 | AD47: 1556 | AE47: 654.5 | AF47: 1556 | AG47: =IF(control!$B$3=1,Y47+Z47,IF(control!$B$3=2,AA47+AB47,IF(control!$B$3=3,AC47+AD47,IF(control!$B$3=4,AE47+AF47,-999)))) -> 3720 | AH47: =IF(control!$L$14=2,AW47,IF(control!$L$14=3,AY47,AU47)) -> 60446 | AI47: =IF(control!$L$14=2,AX47,IF(control!$L$14=3,AZ47,AV47)) -> 61718 | AJ47: =IF(AND(AH47<>0,control!$O$3=1),100*(AI47-AH47)/AH47,IF(AND(AH47<>0,control!$O$3=2),(((AI47/AH47)^0.25)-1)*100,0)) -> 2.104357608 | AK47: 3798.282103 | AL47: 16 | AM47: 202 | AN47: =AK47/control!$H$15 -> 2.02899685 | AO47: =IF(V47=0,AK47/control!$J$45,IF(V47=1,AK47/control!$J$46,IF(V47=2,AK47/control!$J$47,IF(V47=3,AK47/control!$J$48,IF(V47=4,AK47/control!$J$49,IF(V47=5,AK47/control!$J$50,0)))))) -> 2.282621456 | AP47: =IF(V47=0,AK47/control!$M$71,IF(V47=1,AK47/control!$M$71,IF(V47=2,AK47/control!$M$72,IF(V47=3,AK47/control!$M$73,IF(V47=4,AK47/control!$M$74,IF(V47=5,AK47/control!$M$75,0)))))) -> 2.43479622 | AQ47: =IF(V47=0,AK47/control!$J$84,IF(V47=1,AK47/control!$J$85,IF(V47=2,AK47/control!$J$86,IF(V47=3,AK47/control!$J$87,IF(V47=4,AK47/control!$J$88,IF(V47=5,AK47/control!$J$89,0)))))) -> 2.713058645 | AR47: =IF(control!$B$3=1,AN47,IF(control!$B$3=2,AO47,IF(control!$B$3=3,AP47,IF(control!$B$3=4,AQ47,-999)))) -> 2.02899685 | AU47: 60446 | AV47: 61718 | AW47: 2462 | AX47: 2018 | AY47: 1 | AZ47: 1
A48: Durham | B48: AS0041 | C48: A | D48: James E. Davis Ambulatory Surgical Center | E48: 4B | F48: 0 | G48: 0 | H48: 8 | I48: 0 | J48: 0 | K48: 0 | L48: 0 | M48: 8 | O48: 0 | P48: 63.96 | Q48: 4869 | R48: 5190.354 | S48: =IF(C48="T",0,IF(AND(control!$B$10=2,E48="4A",R48>0),4,IF(AND(control!$B$10=2,E48="4B",R48>0),5,IF(AND(control!$B$10=1,C48="A",R48>0),4,IF(AND(C48="H",R48>control!$F$24),1,IF(AND(C48="H",R48>=control!$F$25,R48<=control!$G$25),2,IF(AND(C48="H",R48>control!$F$26,R48<control!$G$26),3,"null"))))))) -> 4 | T48: 4869 | U48: =IF(C48="T",0,IF(AND(control!$B$10=2,E48="4A",T48>0),4,IF(AND(control!$B$10=2,E48="4B",T48>0),5,IF(AND(control!$B$10=1,C48="A",T48>0),4,IF(AND(C48="H",T48>control!$M$24),1,IF(AND(C48="H",T48>=control!$M$25,T48<=control!$N$25),2,IF(AND(C48="H",T48>control!$M$26,T48<control!$N$26),3,"null"))))))) -> 4 | V48: =IF(control!$B$19=1,S48,IF(control!$B$19=2,U48,"unk")) -> 4 | W48: =IF(AND(V48=0,control!$B$55=2,N48>control!$G$61),control!$G$61,IF(AND(V48=1,N48>control!$G$61),control!$G$61,IF(AND(V48=2,N48>control!$G$62),control!$G$62,IF(AND(V48=3,N48>control!$G$63),control!$G$63,N48)))) -> 0 | X48: =IF(AND(V48=0,control!$B$55=2,P48>control!$O$61),control!$O$61,IF(AND(V48=1,P48>control!$O$61),control!$O$61,IF(AND(V48=2,P48>control!$O$62),control!$O$62,IF(AND(V48=3,P48>control!$O$63),control!$O$63,IF(AND(V48=4,P48>control!$O$64),control!$O$64,IF(AND(V48=5,P48>control!$O$65),control!$O$65,P48)))))) -> 63.96 | Y48: =O48*control!$B$15/60 -> 0 | Z48: =Q48*control!$C$15/60 -> 7303.5 | AA48: =IF(V48=control!$B$45,O48*control!$E$45/60,IF(V48=control!$B$46,O48*control!$E$46/60,IF(V48=control!$B$47,O48*control!$E$47/60,IF(V48=control!$B$48,O48*control!$E$48/60,IF(V48=control!$B$49,O48*control!$E$49/60,IF(V48=control!$B$50,O48*control!$E$50/60,0)))))) -> 0 | AB48: =IF(V48=control!$B$45,Q48*control!$F$45/60,IF(V48=control!$B$46,Q48*control!$F$46/60,IF(V48=control!$B$47,Q48*control!$F$47/60,IF(V48=control!$B$48,Q48*control!$F$48/60,IF(V48=control!$B$49,Q48*control!$F$49/60,IF(V48=control!$B$50,Q48*control!$F$50/60,0)))))) -> 4706.7 | AC48: 0 | AD48: 5190.354 | AE48: 0 | AF48: 5190.354 | AG48: =IF(control!$B$3=1,Y48+Z48,IF(control!$B$3=2,AA48+AB48,IF(control!$B$3=3,AC48+AD48,IF(control!$B$3=4,AE48+AF48,-999)))) -> 7303.5 | AH48: =IF(control!$L$14=2,AW48,IF(control!$L$14=3,AY48,AU48)) -> 297807 | AI48: =IF(control!$L$14=2,AX48,IF(control!$L$14=3,AZ48,AV48)) -> 320212 | AJ48: =IF(AND(AH48<>0,control!$O$3=1),100*(AI48-AH48)/AH48,IF(AND(AH48<>0,control!$O$3=2),(((AI48/AH48)^0.25)-1)*100,0)) -> 7.523328867 | AK48: 7852.966324 | AL48: 8 | AM48: 251 | AN48: =AK48/control!$H$15 -> 4.194960643 | AO48: =IF(V48=0,AK48/control!$J$45,IF(V48=1,AK48/control!$J$46,IF(V48=2,AK48/control!$J$47,IF(V48=3,AK48/control!$J$48,IF(V48=4,AK48/control!$J$49,IF(V48=5,AK48/control!$J$50,0)))))) -> 5.243700804 | AP48: =IF(V48=0,AK48/control!$M$71,IF(V48=1,AK48/control!$M$71,IF(V48=2,AK48/control!$M$72,IF(V48=3,AK48/control!$M$73,IF(V48=4,AK48/control!$M$74,IF(V48=5,AK48/control!$M$75,0)))))) -> 5.593280857 | AQ48: =IF(V48=0,AK48/control!$J$84,IF(V48=1,AK48/control!$J$85,IF(V48=2,AK48/control!$J$86,IF(V48=3,AK48/control!$J$87,IF(V48=4,AK48/control!$J$88,IF(V48=5,AK48/control!$J$89,0)))))) -> 6.070629502 | AR48: =IF(control!$B$3=1,AN48,IF(control!$B$3=2,AO48,IF(control!$B$3=3,AP48,IF(control!$B$3=4,AQ48,-999)))) -> 4.194960643 | AU48: 297807 | AV48: 320212 | AW48: 4818 | AX48: 4869 | AY48: 1 | AZ48: 1
A49: Durham | B49: H0015 | C49: =IF(control!$B$7=1,"T","H") -> T | D49: Duke University Hospital | E49: N | F49: 924 | G49: 4 | H49: 9 | I49: 36 | J49: 0 | K49: -1 | L49: 0 | M49: =IF(control!$O$7=2,SUM(G49:L49)+16,SUM(G49:L49)) -> 64 | N49: 251 | O49: 17344 | P49: 140.46 | Q49: 23728 | R49: 128102.9813 | S49: =IF(C49="T",0,IF(AND(control!$B$10=2,E49="4A",R49>0),4,IF(AND(control!$B$10=2,E49="4B",R49>0),5,IF(AND(control!$B$10=1,C49="A",R49>0),4,IF(AND(C49="H",R49>control!$F$24),1,IF(AND(C49="H",R49>=control!$F$25,R49<=control!$G$25),2,IF(AND(C49="H",R49>control!$F$26,R49<control!$G$26),3,"null"))))))) -> 0 | T49: 41072 | U49: =IF(C49="T",0,IF(AND(control!$B$10=2,E49="4A",T49>0),4,IF(AND(control!$B$10=2,E49="4B",T49>0),5,IF(AND(control!$B$10=1,C49="A",T49>0),4,IF(AND(C49="H",T49>control!$M$24),1,IF(AND(C49="H",T49>=control!$M$25,T49<=control!$N$25),2,IF(AND(C49="H",T49>control!$M$26,T49<control!$N$26),3,"null"))))))) -> 0 | V49: =IF(control!$B$19=1,S49,IF(control!$B$19=2,U49,"unk")) -> 0 | W49: =IF(AND(V49=0,control!$B$55=2,N49>control!$G$61),control!$G$61,IF(AND(V49=1,N49>control!$G$61),control!$G$61,IF(AND(V49=2,N49>control!$G$62),control!$G$62,IF(AND(V49=3,N49>control!$G$63),control!$G$63,N49)))) -> 251 | X49: =IF(AND(V49=0,control!$B$55=2,P49>control!$O$61),control!$O$61,IF(AND(V49=1,P49>control!$O$61),control!$O$61,IF(AND(V49=2,P49>control!$O$62),control!$O$62,IF(AND(V49=3,P49>control!$O$63),control!$O$63,IF(AND(V49=4,P49>control!$O$64),control!$O$64,IF(AND(V49=5,P49>control!$O$65),control!$O$65,P49)))))) -> 140.46 | Y49: =O49*control!$B$15/60 -> 52032 | Z49: =Q49*control!$C$15/60 -> 35592 | AA49: =IF(V49=control!$B$45,O49*control!$E$45/60,IF(V49=control!$B$46,O49*control!$E$46/60,IF(V49=control!$B$47,O49*control!$E$47/60,IF(V49=control!$B$48,O49*control!$E$48/60,IF(V49=control!$B$49,O49*control!$E$49/60,IF(V49=control!$B$50,O49*control!$E$50/60,0)))))) -> 67641.6 | AB49: =IF(V49=control!$B$45,Q49*control!$F$45/60,IF(V49=control!$B$46,Q49*control!$F$46/60,IF(V49=control!$B$47,Q49*control!$F$47/60,IF(V49=control!$B$48,Q49*control!$F$48/60,IF(V49=control!$B$49,Q49*control!$F$49/60,IF(V49=control!$B$50,Q49*control!$F$50/60,0)))))) -> 54178.93333 | AC49: 72555.73333 | AD49: 55547.248 | AE49: 72555.73333 | AF49: 55547.248 | AG49: =IF(control!$B$3=1,Y49+Z49,IF(control!$B$3=2,AA49+AB49,IF(control!$B$3=3,AC49+AD49,IF(control!$B$3=4,AE49+AF49,-999)))) -> 87624 | AH49: =IF(control!$L$14=2,AW49,IF(control!$L$14=3,AY49,AU49)) -> 297807 | AI49: =IF(control!$L$14=2,AX49,IF(control!$L$14=3,AZ49,AV49)) -> 320212 | AJ49: =IF(AND(AH49<>0,control!$O$3=1),100*(AI49-AH49)/AH49,IF(AND(AH49<>0,control!$O$3=2),(((AI49/AH49)^0.25)-1)*100,0)) -> 7.523328867 | AK49: 94216.24169 | AL49: 8.9 | AM49: 264 | AN49: =AK49/control!$H$15 -> 50.32918894 | AO49: =IF(V49=0,AK49/control!$J$45,IF(V49=1,AK49/control!$J$46,IF(V49=2,AK49/control!$J$47,IF(V49=3,AK49/control!$J$48,IF(V49=4,AK49/control!$J$49,IF(V49=5,AK49/control!$J$50,0)))))) -> 45.29627004 | AP49: =IF(V49=0,AK49/control!$M$71,IF(V49=1,AK49/control!$M$71,IF(V49=2,AK49/control!$M$72,IF(V49=3,AK49/control!$M$73,IF(V49=4,AK49/control!$M$74,IF(V49=5,AK49/control!$M$75,0)))))) -> 48.31602138 | AQ49: =IF(V49=0,AK49/control!$J$84,IF(V49=1,AK49/control!$J$85,IF(V49=2,AK49/control!$J$86,IF(V49=3,AK49/control!$J$87,IF(V49=4,AK49/control!$J$88,IF(V49=5,AK49/control!$J$89,0)))))) -> 51.76716576 | AR49: =IF(control!$B$3=1,AN49,IF(control!$B$3=2,AO49,IF(control!$B$3=3,AP49,IF(control!$B$3=4,AQ49,-999)))) -> 50.32918894 | AU49: 297807 | AV49: 320212 | AW49: 37477 | AX49: 41072 | AY49: 1 | AZ49: 1
A50: Durham | B50: H0075 | C50: H | D50: North Carolina Specialty Hospital | E50: N | F50: 18 | G50: 0 | H50: 0 | I50: 4 | J50: 0 | K50: 0 | L50: 0 | M50: 4 | N50: 165 | O50: 1597 | P50: 90 | Q50: 3737 | R50: 9997.25 | S50: =IF(C50="T",0,IF(AND(control!$B$10=2,E50="4A",R50>0),4,IF(AND(control!$B$10=2,E50="4B",R50>0),5,IF(AND(control!$B$10=1,C50="A",R50>0),4,IF(AND(C50="H",R50>control!$F$24),1,IF(AND(C50="H",R50>=control!$F$25,R50<=control!$G$25),2,IF(AND(C50="H",R50>control!$F$26,R50<control!$G$26),3,"null"))))))) -> 3 | T50: 5334 | U50: =IF(C50="T",0,IF(AND(control!$B$10=2,E50="4A",T50>0),4,IF(AND(control!$B$10=2,E50="4B",T50>0),5,IF(AND(control!$B$10=1,C50="A",T50>0),4,IF(AND(C50="H",T50>control!$M$24),1,IF(AND(C50="H",T50>=control!$M$25,T50<=control!$N$25),2,IF(AND(C50="H",T50>control!$M$26,T50<control!$N$26),3,"null"))))))) -> 2 | V50: =IF(control!$B$19=1,S50,IF(control!$B$19=2,U50,"unk")) -> 3 | W50: =IF(AND(V50=0,control!$B$55=2,N50>control!$G$61),control!$G$61,IF(AND(V50=1,N50>control!$G$61),control!$G$61,IF(AND(V50=2,N50>control!$G$62),control!$G$62,IF(AND(V50=3,N50>control!$G$63),control!$G$63,N50)))) -> 152.3863469 | X50: =IF(AND(V50=0,control!$B$55=2,P50>control!$O$61),control!$O$61,IF(AND(V50=1,P50>control!$O$61),control!$O$61,IF(AND(V50=2,P50>control!$O$62),control!$O$62,IF(AND(V50=3,P50>control!$O$63),control!$O$63,IF(AND(V50=4,P50>control!$O$64),control!$O$64,IF(AND(V50=5,P50>control!$O$65),control!$O$65,P50)))))) -> 90 | Y50: =O50*control!$B$15/60 -> 4791 | Z50: =Q50*control!$C$15/60 -> 5605.5 | AA50: =IF(V50=control!$B$45,O50*control!$E$45/60,IF(V50=control!$B$46,O50*control!$E$46/60,IF(V50=control!$B$47,O50*control!$E$47/60,IF(V50=control!$B$48,O50*control!$E$48/60,IF(V50=control!$B$49,O50*control!$E$49/60,IF(V50=control!$B$50,O50*control!$E$50/60,0)))))) -> 3109.359 | AB50: =IF(V50=control!$B$45,Q50*control!$F$45/60,IF(V50=control!$B$46,Q50*control!$F$46/60,IF(V50=control!$B$47,Q50*control!$F$47/60,IF(V50=control!$B$48,Q50*control!$F$48/60,IF(V50=control!$B$49,Q50*control!$F$49/60,IF(V50=control!$B$50,Q50*control!$F$50/60,0)))))) -> 4582.807667 | AC50: 4056.0166 | AD50: 5605.5 | AE50: 4391.75 | AF50: 5605.5 | AG50: =IF(control!$B$3=1,Y50+Z50,IF(control!$B$3=2,AA50+AB50,IF(control!$B$3=3,AC50+AD50,IF(control!$B$3=4,AE50+AF50,-999)))) -> 10396.5 | AH50: =IF(control!$L$14=2,AW50,IF(control!$L$14=3,AY50,AU50)) -> 297807 | AI50: =IF(control!$L$14=2,AX50,IF(control!$L$14=3,AZ50,AV50)) -> 320212 | AJ50: =IF(AND(AH50<>0,control!$O$3=1),100*(AI50-AH50)/AH50,IF(AND(AH50<>0,control!$O$3=2),(((AI50/AH50)^0.25)-1)*100,0)) -> 7.523328867 | AK50: 11178.66289 | AL50: 10 | AM50: 266 | AN50: =AK50/control!$H$15 -> 5.971507952 | AO50: =IF(V50=0,AK50/control!$J$45,IF(V50=1,AK50/control!$J$46,IF(V50=2,AK50/control!$J$47,IF(V50=3,AK50/control!$J$48,IF(V50=4,AK50/control!$J$49,IF(V50=5,AK50/control!$J$50,0)))))) -> 6.717946446 | AP50: =IF(V50=0,AK50/control!$M$71,IF(V50=1,AK50/control!$M$71,IF(V50=2,AK50/control!$M$72,IF(V50=3,AK50/control!$M$73,IF(V50=4,AK50/control!$M$74,IF(V50=5,AK50/control!$M$75,0)))))) -> 7.165809542 | AQ50: =IF(V50=0,AK50/control!$J$84,IF(V50=1,AK50/control!$J$85,IF(V50=2,AK50/control!$J$86,IF(V50=3,AK50/control!$J$87,IF(V50=4,AK50/control!$J$88,IF(V50=5,AK50/control!$J$89,0)))))) -> 7.984759204 | AR50: =IF(control!$B$3=1,AN50,IF(control!$B$3=2,AO50,IF(control!$B$3=3,AP50,IF(control!$B$3=4,AQ50,-999)))) -> 5.971507952 | AU50: 297807 | AV50: 320212 | AW50: 7926 | AX50: 5334 | AY50: 1 | AZ50: 1
A51: Durham | B51: H0233 | C51: H | D51: Duke Regional Hospital | E51: N | F51: 316 | G51: 2 | H51: 0 | I51: 13 | J51: -2 | K51: 0 | L51: 0 | M51: 13 | N51: 211 | O51: 3865 | P51: 150 | Q51: 2995 | R51: 21079.41667 | S51: =IF(C51="T",0,IF(AND(control!$B$10=2,E51="4A",R51>0),4,IF(AND(control!$B$10=2,E51="4B",R51>0),5,IF(AND(control!$B$10=1,C51="A",R51>0),4,IF(AND(C51="H",R51>control!$F$24),1,IF(AND(C51="H",R51>=control!$F$25,R51<=control!$G$25),2,IF(AND(C51="H",R51>control!$F$26,R51<control!$G$26),3,"null"))))))) -> 2 | T51: 6860 | U51: =IF(C51="T",0,IF(AND(control!$B$10=2,E51="4A",T51>0),4,IF(AND(control!$B$10=2,E51="4B",T51>0),5,IF(AND(control!$B$10=1,C51="A",T51>0),4,IF(AND(C51="H",T51>control!$M$24),1,IF(AND(C51="H",T51>=control!$M$25,T51<=control!$N$25),2,IF(AND(C51="H",T51>control!$M$26,T51<control!$N$26),3,"null"))))))) -> 2 | V51: =IF(control!$B$19=1,S51,IF(control!$B$19=2,U51,"unk")) -> 2 | W51: =IF(AND(V51=0,control!$B$55=2,N51>control!$G$61),control!$G$61,IF(AND(V51=1,N51>control!$G$61),control!$G$61,IF(AND(V51=2,N51>control!$G$62),control!$G$62,IF(AND(V51=3,N51>control!$G$63),control!$G$63,N51)))) -> 206.4727966 | X51: =IF(AND(V51=0,control!$B$55=2,P51>control!$O$61),control!$O$61,IF(AND(V51=1,P51>control!$O$61),control!$O$61,IF(AND(V51=2,P51>control!$O$62),control!$O$62,IF(AND(V51=3,P51>control!$O$63),control!$O$63,IF(AND(V51=4,P51>control!$O$64),control!$O$64,IF(AND(V51=5,P51>control!$O$65),control!$O$65,P51)))))) -> 125.5399998 | Y51: =O51*control!$B$15/60 -> 11595 | Z51: =Q51*control!$C$15/60 -> 4492.5 | AA51: =IF(V51=control!$B$45,O51*control!$E$45/60,IF(V51=control!$B$46,O51*control!$E$46/60,IF(V51=control!$B$47,O51*control!$E$47/60,IF(V51=control!$B$48,O51*control!$E$48/60,IF(V51=control!$B$49,O51*control!$E$49/60,IF(V51=control!$B$50,O51*control!$E$50/60,0)))))) -> 9920.166667 | AB51: =IF(V51=control!$B$45,Q51*control!$F$45/60,IF(V51=control!$B$46,Q51*control!$F$46/60,IF(V51=control!$B$47,Q51*control!$F$47/60,IF(V51=control!$B$48,Q51*control!$F$48/60,IF(V51=control!$B$49,Q51*control!$F$49/60,IF(V51=control!$B$50,Q51*control!$F$50/60,0)))))) -> 5041.583333 | AC51: 13300.28931 | AD51: 6266.538325 | AE51: 13591.91667 | AF51: 7487.5 | AG51: =IF(control!$B$3=1,Y51+Z51,IF(control!$B$3=2,AA51+AB51,IF(control!$B$3=3,AC51+AD51,IF(control!$B$3=4,AE51+AF51,-999)))) -> 16087.5 | AH51: =IF(control!$L$14=2,AW51,IF(control!$L$14=3,AY51,AU51)) -> 297807 | AI51: =IF(control!$L$14=2,AX51,IF(control!$L$14=3,AZ51,AV51)) -> 320212 | AJ51: =IF(AND(AH51<>0,control!$O$3=1),100*(AI51-AH51)/AH51,IF(AND(AH51<>0,control!$O$3=2),(((AI51/AH51)^0.25)-1)*100,0)) -> 7.523328867 | AK51: 17297.81553 | AL51: 9 | AM51: 250 | AN51: =AK51/control!$H$15 -> 9.240286075 | AO51: =IF(V51=0,AK51/control!$J$45,IF(V51=1,AK51/control!$J$46,IF(V51=2,AK51/control!$J$47,IF(V51=3,AK51/control!$J$48,IF(V51=4,AK51/control!$J$49,IF(V51=5,AK51/control!$J$50,0)))))) -> 9.240286075 | AP51: =IF(V51=0,AK51/control!$M$71,IF(V51=1,AK51/control!$M$71,IF(V51=2,AK51/control!$M$72,IF(V51=3,AK51/control!$M$73,IF(V51=4,AK51/control!$M$74,IF(V51=5,AK51/control!$M$75,0)))))) -> 9.856305146 | AQ51: =IF(V51=0,AK51/control!$J$84,IF(V51=1,AK51/control!$J$85,IF(V51=2,AK51/control!$J$86,IF(V51=3,AK51/control!$J$87,IF(V51=4,AK51/control!$J$88,IF(V51=5,AK51/control!$J$89,0)))))) -> 10.98274002 | AR51: =IF(control!$B$3=1,AN51,IF(control!$B$3=2,AO51,IF(control!$B$3=3,AP51,IF(control!$B$3=4,AQ51,-999)))) -> 9.240286075 | AU51: 297807 | AV51: 320212 | AW51: 7151 | AX51: 6860 | AY51: 1 | AZ51: 1
A52: Edgecombe | B52: H0258 | C52: H | D52: Vidant Edgecombe Hospital | E52: N | F52: 101 | G52: 1 | H52: 0 | I52: 5 | J52: -1 | K52: 0 | L52: 0 | M52: 5 | N52: 97 | O52: 577 | P52: 47 | Q52: 1693 | R52: 2259 | S52: =IF(C52="T",0,IF(AND(control!$B$10=2,E52="4A",R52>0),4,IF(AND(control!$B$10=2,E52="4B",R52>0),5,IF(AND(control!$B$10=1,C52="A",R52>0),4,IF(AND(C52="H",R52>control!$F$24),1,IF(AND(C52="H",R52>=control!$F$25,R52<=control!$G$25),2,IF(AND(C52="H",R52>control!$F$26,R52<control!$G$26),3,"null"))))))) -> 3 | T52: 2270 | U52: =IF(C52="T",0,IF(AND(control!$B$10=2,E52="4A",T52>0),4,IF(AND(control!$B$10=2,E52="4B",T52>0),5,IF(AND(control!$B$10=1,C52="A",T52>0),4,IF(AND(C52="H",T52>control!$M$24),1,IF(AND(C52="H",T52>=control!$M$25,T52<=control!$N$25),2,IF(AND(C52="H",T52>control!$M$26,T52<control!$N$26),3,"null"))))))) -> 3 | V52: =IF(control!$B$19=1,S52,IF(control!$B$19=2,U52,"unk")) -> 3 | W52: =IF(AND(V52=0,control!$B$55=2,N52>control!$G$61),control!$G$61,IF(AND(V52=1,N52>control!$G$61),control!$G$61,IF(AND(V52=2,N52>control!$G$62),control!$G$62,IF(AND(V52=3,N52>control!$G$63),control!$G$63,N52)))) -> 97 | X52: =IF(AND(V52=0,control!$B$55=2,P52>control!$O$61),control!$O$61,IF(AND(V52=1,P52>control!$O$61),control!$O$61,IF(AND(V52=2,P52>control!$O$62),control!$O$62,IF(AND(V52=3,P52>control!$O$63),control!$O$63,IF(AND(V52=4,P52>control!$O$64),control!$O$64,IF(AND(V52=5,P52>control!$O$65),control!$O$65,P52)))))) -> 47 | Y52: =O52*control!$B$15/60 -> 1731 | Z52: =Q52*control!$C$15/60 -> 2539.5 | AA52: =IF(V52=control!$B$45,O52*control!$E$45/60,IF(V52=control!$B$46,O52*control!$E$46/60,IF(V52=control!$B$47,O52*control!$E$47/60,IF(V52=control!$B$48,O52*control!$E$48/60,IF(V52=control!$B$49,O52*control!$E$49/60,IF(V52=control!$B$50,O52*control!$E$50/60,0)))))) -> 1123.419 | AB52: =IF(V52=control!$B$45,Q52*control!$F$45/60,IF(V52=control!$B$46,Q52*control!$F$46/60,IF(V52=control!$B$47,Q52*control!$F$47/60,IF(V52=control!$B$48,Q52*control!$F$48/60,IF(V52=control!$B$49,Q52*control!$F$49/60,IF(V52=control!$B$50,Q52*control!$F$50/60,0)))))) -> 2076.182333 | AC52: 932.8166667 | AD52: 1326.183333 | AE52: 932.8166667 | AF52: 1326.183333 | AG52: =IF(control!$B$3=1,Y52+Z52,IF(control!$B$3=2,AA52+AB52,IF(control!$B$3=3,AC52+AD52,IF(control!$B$3=4,AE52+AF52,-999)))) -> 4270.5 | AH52: =IF(control!$L$14=2,AW52,IF(control!$L$14=3,AY52,AU52)) -> 55394 | AI52: =IF(control!$L$14=2,AX52,IF(control!$L$14=3,AZ52,AV52)) -> 55029 | AJ52: =IF(AND(AH52<>0,control!$O$3=1),100*(AI52-AH52)/AH52,IF(AND(AH52<>0,control!$O$3=2),(((AI52/AH52)^0.25)-1)*100,0)) -> -0.6589161281 | AK52: 4242.360987 | AL52: 7 | AM52: 252 | AN52: =AK52/control!$H$15 -> 2.266218476 | AO52: =IF(V52=0,AK52/control!$J$45,IF(V52=1,AK52/control!$J$46,IF(V52=2,AK52/control!$J$47,IF(V52=3,AK52/control!$J$48,IF(V52=4,AK52/control!$J$49,IF(V52=5,AK52/control!$J$50,0)))))) -> 2.549495785 | AP52: =IF(V52=0,AK52/control!$M$71,IF(V52=1,AK52/control!$M$71,IF(V52=2,AK52/control!$M$72,IF(V52=3,AK52/control!$M$73,IF(V52=4,AK52/control!$M$74,IF(V52=5,AK52/control!$M$75,0)))))) -> 2.719462171 | AQ52: =IF(V52=0,AK52/control!$J$84,IF(V52=1,AK52/control!$J$85,IF(V52=2,AK52/control!$J$86,IF(V52=3,AK52/control!$J$87,IF(V52=4,AK52/control!$J$88,IF(V52=5,AK52/control!$J$89,0)))))) -> 3.030257848 | AR52: =IF(control!$B$3=1,AN52,IF(control!$B$3=2,AO52,IF(control!$B$3=3,AP52,IF(control!$B$3=4,AQ52,-999)))) -> 2.266218476 | AU52: 55394 | AV52: 55029 | AW52: 1827 | AX52: 2270 | AY52: 1 | AZ52: 1
A53: Forsyth | B53: A | C53: A | D53: Clemmons Medical Park Ambulatory Surgical Center | E53: N | F53: 0 | G53: 0 | H53: 0 | I53: 0 | J53: 0 | K53: 0 | L53: 3 | M53: 3 | O53: 0 | Q53: 0 | R53: 0 | S53: =IF(C53="T",0,IF(AND(control!$B$10=2,E53="4A",R53>0),4,IF(AND(control!$B$10=2,E53="4B",R53>0),5,IF(AND(control!$B$10=1,C53="A",R53>0),4,IF(AND(C53="H",R53>control!$F$24),1,IF(AND(C53="H",R53>=control!$F$25,R53<=control!$G$25),2,IF(AND(C53="H",R53>control!$F$26,R53<control!$G$26),3,"null"))))))) -> null | T53: 0 | U53: =IF(C53="T",0,IF(AND(control!$B$10=2,E53="4A",T53>0),4,IF(AND(control!$B$10=2,E53="4B",T53>0),5,IF(AND(control!$B$10=1,C53="A",T53>0),4,IF(AND(C53="H",T53>control!$M$24),1,IF(AND(C53="H",T53>=control!$M$25,T53<=control!$N$25),2,IF(AND(C53="H",T53>control!$M$26,T53<control!$N$26),3,"null"))))))) -> null | V53: =IF(control!$B$19=1,S53,IF(control!$B$19=2,U53,"unk")) -> null | W53: =IF(AND(V53=0,control!$B$55=2,N53>control!$G$61),control!$G$61,IF(AND(V53=1,N53>control!$G$61),control!$G$61,IF(AND(V53=2,N53>control!$G$62),control!$G$62,IF(AND(V53=3,N53>control!$G$63),control!$G$63,N53)))) -> 0 | X53: =IF(AND(V53=0,control!$B$55=2,P53>control!$O$61),control!$O$61,IF(AND(V53=1,P53>control!$O$61),control!$O$61,IF(AND(V53=2,P53>control!$O$62),control!$O$62,IF(AND(V53=3,P53>control!$O$63),control!$O$63,IF(AND(V53=4,P53>control!$O$64),control!$O$64,IF(AND(V53=5,P53>control!$O$65),control!$O$65,P53)))))) -> 0 | Y53: =O53*control!$B$15/60 -> 0 | Z53: =Q53*control!$C$15/60 -> 0 | AA53: =IF(V53=control!$B$45,O53*control!$E$45/60,IF(V53=control!$B$46,O53*control!$E$46/60,IF(V53=control!$B$47,O53*control!$E$47/60,IF(V53=control!$B$48,O53*control!$E$48/60,IF(V53=control!$B$49,O53*control!$E$49/60,IF(V53=control!$B$50,O53*control!$E$50/60,0)))))) -> 0 | AB53: =IF(V53=control!$B$45,Q53*control!$F$45/60,IF(V53=control!$B$46,Q53*control!$F$46/60,IF(V53=control!$B$47,Q53*control!$F$47/60,IF(V53=control!$B$48,Q53*control!$F$48/60,IF(V53=control!$B$49,Q53*control!$F$49/60,IF(V53=control!$B$50,Q53*control!$F$50/60,0)))))) -> 0 | AC53: 0 | AD53: 0 | AE53: 0 | AF53: 0 | AG53: =IF(control!$B$3=1,Y53+Z53,IF(control!$B$3=2,AA53+AB53,IF(control!$B$3=3,AC53+AD53,IF(control!$B$3=4,AE53+AF53,-999)))) -> 0 | AH53: =IF(control!$L$14=2,AW53,IF(control!$L$14=3,AY53,AU53)) -> 367853 | AI53: =IF(control!$L$14=2,AX53,IF(control!$L$14=3,AZ53,AV53)) -> 383601 | AJ53: =IF(AND(AH53<>0,control!$O$3=1),100*(AI53-AH53)/AH53,IF(AND(AH53<>0,control!$O$3=2),(((AI53/AH53)^0.25)-1)*100,0)) -> 4.281057923 | AK53: 0 | AN53: =AK53/control!$H$15 -> 0 | AO53: =IF(V53=0,AK53/control!$J$45,IF(V53=1,AK53/control!$J$46,IF(V53=2,AK53/control!$J$47,IF(V53=3,AK53/control!$J$48,IF(V53=4,AK53/control!$J$49,IF(V53=5,AK53/control!$J$50,0)))))) -> 0 | AP53: =IF(V53=0,AK53/control!$M$71,IF(V53=1,AK53/control!$M$71,IF(V53=2,AK53/control!$M$72,IF(V53=3,AK53/control!$M$73,IF(V53=4,AK53/control!$M$74,IF(V53=5,AK53/control!$M$75,0)))))) -> 0 | AQ53: =IF(V53=0,AK53/control!$J$84,IF(V53=1,AK53/control!$J$85,IF(V53=2,AK53/control!$J$86,IF(V53=3,AK53/control!$J$87,IF(V53=4,AK53/control!$J$88,IF(V53=5,AK53/control!$J$89,0)))))) -> 0 | AR53: =IF(control!$B$3=1,AN53,IF(control!$B$3=2,AO53,IF(control!$B$3=3,AP53,IF(control!$B$3=4,AQ53,-999)))) -> 0 | AU53: 367853 | AV53: 383601 | AW53: 0 | AX53: 0 | AY53: 1 | AZ53: 1
A54: Forsyth | B54: AS0021 | C54: under | D54: Plastic Surgery Center of North Carolina | E54: N | F54: 0 | G54: 0 | H54: 3 | I54: 0 | J54: 0 | K54: 0 | L54: -3 | M54: 0 | O54: 0 | P54: 180 | Q54: 171 | R54: 513 | S54: =IF(C54="T",0,IF(AND(control!$B$10=2,E54="4A",R54>0),4,IF(AND(control!$B$10=2,E54="4B",R54>0),5,IF(AND(control!$B$10=1,C54="A",R54>0),4,IF(AND(C54="H",R54>control!$F$24),1,IF(AND(C54="H",R54>=control!$F$25,R54<=control!$G$25),2,IF(AND(C54="H",R54>control!$F$26,R54<control!$G$26),3,"null"))))))) -> null | T54: 171 | U54: =IF(C54="T",0,IF(AND(control!$B$10=2,E54="4A",T54>0),4,IF(AND(control!$B$10=2,E54="4B",T54>0),5,IF(AND(control!$B$10=1,C54="A",T54>0),4,IF(AND(C54="H",T54>control!$M$24),1,IF(AND(C54="H",T54>=control!$M$25,T54<=control!$N$25),2,IF(AND(C54="H",T54>control!$M$26,T54<control!$N$26),3,"null"))))))) -> null | V54: =IF(control!$B$19=1,S54,IF(control!$B$19=2,U54,"unk")) -> null | W54: =IF(AND(V54=0,control!$B$55=2,N54>control!$G$61),control!$G$61,IF(AND(V54=1,N54>control!$G$61),control!$G$61,IF(AND(V54=2,N54>control!$G$62),control!$G$62,IF(AND(V54=3,N54>control!$G$63),control!$G$63,N54)))) -> 0 | X54: =IF(AND(V54=0,control!$B$55=2,P54>control!$O$61),control!$O$61,IF(AND(V54=1,P54>control!$O$61),control!$O$61,IF(AND(V54=2,P54>control!$O$62),control!$O$62,IF(AND(V54=3,P54>control!$O$63),control!$O$63,IF(AND(V54=4,P54>control!$O$64),control!$O$64,IF(AND(V54=5,P54>control!$O$65),control!$O$65,P54)))))) -> 180 | Y54: =O54*control!$B$15/60 -> 0 | Z54: =Q54*control!$C$15/60 -> 256.5 | AA54: =IF(V54=control!$B$45,O54*control!$E$45/60,IF(V54=control!$B$46,O54*control!$E$46/60,IF(V54=control!$B$47,O54*control!$E$47/60,IF(V54=control!$B$48,O54*control!$E$48/60,IF(V54=control!$B$49,O54*control!$E$49/60,IF(V54=control!$B$50,O54*control!$E$50/60,0)))))) -> 0 | AB54: =IF(V54=control!$B$45,Q54*control!$F$45/60,IF(V54=control!$B$46,Q54*control!$F$46/60,IF(V54=control!$B$47,Q54*control!$F$47/60,IF(V54=control!$B$48,Q54*control!$F$48/60,IF(V54=control!$B$49,Q54*control!$F$49/60,IF(V54=control!$B$50,Q54*control!$F$50/60,0)))))) -> 0 | AC54: 0 | AD54: 513 | AE54: 0 | AF54: 513 | AG54: =IF(control!$B$3=1,Y54+Z54,IF(control!$B$3=2,AA54+AB54,IF(control!$B$3=3,AC54+AD54,IF(control!$B$3=4,AE54+AF54,-999)))) -> 256.5 | AH54: =IF(control!$L$14=2,AW54,IF(control!$L$14=3,AY54,AU54)) -> 367853 | AI54: =IF(control!$L$14=2,AX54,IF(control!$L$14=3,AZ54,AV54)) -> 383601 | AJ54: =IF(AND(AH54<>0,control!$O$3=1),100*(AI54-AH54)/AH54,IF(AND(AH54<>0,control!$O$3=2),(((AI54/AH54)^0.25)-1)*100,0)) -> 4.281057923 | AK54: 267.4809136 | AL54: 6 | AM54: 130 | AN54: =AK54/control!$H$15 -> 0.1428851034 | AO54: =IF(V54=0,AK54/control!$J$45,IF(V54=1,AK54/control!$J$46,IF(V54=2,AK54/control!$J$47,IF(V54=3,AK54/control!$J$48,IF(V54=4,AK54/control!$J$49,IF(V54=5,AK54/control!$J$50,0)))))) -> 0 | AP54: =IF(V54=0,AK54/control!$M$71,IF(V54=1,AK54/control!$M$71,IF(V54=2,AK54/control!$M$72,IF(V54=3,AK54/control!$M$73,IF(V54=4,AK54/control!$M$74,IF(V54=5,AK54/control!$M$75,0)))))) -> 0 | AQ54: =IF(V54=0,AK54/control!$J$84,IF(V54=1,AK54/control!$J$85,IF(V54=2,AK54/control!$J$86,IF(V54=3,AK54/control!$J$87,IF(V54=4,AK54/control!$J$88,IF(V54=5,AK54/control!$J$89,0)))))) -> 0 | AR54: =IF(control!$B$3=1,AN54,IF(control!$B$3=2,AO54,IF(control!$B$3=3,AP54,IF(control!$B$3=4,AQ54,-999)))) -> 0.1428851034 | AU54: 367853 | AV54: 383601 | AW54: 148 | AX54: 171 | AY54: 1 | AZ54: 1
A55: Forsyth | B55: AS0134 | C55: demo | D55: Piedmont Outpatient Surgery Center** | E55: N | F55: 0 | G55: 0 | H55: 2 | I55: 0 | J55: 0 | K55: 0 | L55: 0 | M55: 2 | O55: 0 | P55: 52 | Q55: 2224 | R55: 1927.466667 | S55: =IF(C55="T",0,IF(AND(control!$B$10=2,E55="4A",R55>0),4,IF(AND(control!$B$10=2,E55="4B",R55>0),5,IF(AND(control!$B$10=1,C55="A",R55>0),4,IF(AND(C55="H",R55>control!$F$24),1,IF(AND(C55="H",R55>=control!$F$25,R55<=control!$G$25),2,IF(AND(C55="H",R55>control!$F$26,R55<control!$G$26),3,"null"))))))) -> null | T55: 2224 | U55: =IF(C55="T",0,IF(AND(control!$B$10=2,E55="4A",T55>0),4,IF(AND(control!$B$10=2,E55="4B",T55>0),5,IF(AND(control!$B$10=1,C55="A",T55>0),4,IF(AND(C55="H",T55>control!$M$24),1,IF(AND(C55="H",T55>=control!$M$25,T55<=control!$N$25),2,IF(AND(C55="H",T55>control!$M$26,T55<control!$N$26),3,"null"))))))) -> null | V55: =IF(control!$B$19=1,S55,IF(control!$B$19=2,U55,"unk")) -> null | W55: =IF(AND(V55=0,control!$B$55=2,N55>control!$G$61),control!$G$61,IF(AND(V55=1,N55>control!$G$61),control!$G$61,IF(AND(V55=2,N55>control!$G$62),control!$G$62,IF(AND(V55=3,N55>control!$G$63),control!$G$63,N55)))) -> 0 | X55: =IF(AND(V55=0,control!$B$55=2,P55>control!$O$61),control!$O$61,IF(AND(V55=1,P55>control!$O$61),control!$O$61,IF(AND(V55=2,P55>control!$O$62),control!$O$62,IF(AND(V55=3,P55>control!$O$63),control!$O$63,IF(AND(V55=4,P55>control!$O$64),control!$O$64,IF(AND(V55=5,P55>control!$O$65),control!$O$65,P55)))))) -> 52 | Y55: =O55*control!$B$15/60 -> 0 | Z55: =Q55*control!$C$15/60 -> 3336 | AA55: =IF(V55=control!$B$45,O55*control!$E$45/60,IF(V55=control!$B$46,O55*control!$E$46/60,IF(V55=control!$B$47,O55*control!$E$47/60,IF(V55=control!$B$48,O55*control!$E$48/60,IF(V55=control!$B$49,O55*control!$E$49/60,IF(V55=control!$B$50,O55*control!$E$50/60,0)))))) -> 0 | AB55: =IF(V55=control!$B$45,Q55*control!$F$45/60,IF(V55=control!$B$46,Q55*control!$F$46/60,IF(V55=control!$B$47,Q55*control!$F$47/60,IF(V55=control!$B$48,Q55*control!$F$48/60,IF(V55=control!$B$49,Q55*control!$F$49/60,IF(V55=control!$B$50,Q55*control!$F$50/60,0)))))) -> 0 | AC55: 0 | AD55: 1927.466667 | AE55: 0 | AF55: 1927.466667 | AG55: =IF(control!$B$3=1,Y55+Z55,IF(control!$B$3=2,AA55+AB55,IF(control!$B$3=3,AC55+AD55,IF(control!$B$3=4,AE55+AF55,-999)))) -> 3336 | AH55: =IF(control!$L$14=2,AW55,IF(control!$L$14=3,AY55,AU55)) -> 367853 | AI55: =IF(control!$L$14=2,AX55,IF(control!$L$14=3,AZ55,AV55)) -> 383601 | AJ55: =IF(AND(AH55<>0,control!$O$3=1),100*(AI55-AH55)/AH55,IF(AND(AH55<>0,control!$O$3=2),(((AI55/AH55)^0.25)-1)*100,0)) -> 4.281057923 | AK55: 3478.816092 | AL55: 4 | AM55: 249 | AN55: =AK55/control!$H$15 -> 1.85834193 | AO55: =IF(V55=0,AK55/control!$J$45,IF(V55=1,AK55/control!$J$46,IF(V55=2,AK55/control!$J$47,IF(V55=3,AK55/control!$J$48,IF(V55=4,AK55/control!$J$49,IF(V55=5,AK55/control!$J$50,0)))))) -> 0 | AP55: =IF(V55=0,AK55/control!$M$71,IF(V55=1,AK55/control!$M$71,IF(V55=2,AK55/control!$M$72,IF(V55=3,AK55/control!$M$73,IF(V55=4,AK55/control!$M$74,IF(V55=5,AK55/control!$M$75,0)))))) -> 0 | AQ55: =IF(V55=0,AK55/control!$J$84,IF(V55=1,AK55/control!$J$85,IF(V55=2,AK55/control!$J$86,IF(V55=3,AK55/control!$J$87,IF(V55=4,AK55/control!$J$88,IF(V55=5,AK55/control!$J$89,0)))))) -> 0 | AR55: =IF(control!$B$3=1,AN55,IF(control!$B$3=2,AO55,IF(control!$B$3=3,AP55,IF(control!$B$3=4,AQ55,-999)))) -> 1.85834193 | AU55: 367853 | AV55: 383601 | AW55: 0 | AX55: 2224 | AY55: 1 | AZ55: 1
A56: Forsyth | B56: H0011 | C56: =IF(control!$B$7=1,"T","H") -> T | D56: North Carolina Baptist Hospital | E56: N | F56: 802 | G56: 4 | H56: 0 | I56: 36 | J56: 0 | K56: -2 | L56: 0 | M56: =IF(control!$O$7=2,SUM(G56:L56)+7,SUM(G56:L56)) -> 45 | N56: 242.2 | O56: 14214 | P56: 134.7 | Q56: 19549 | R56: 101264.685 | S56: =IF(C56="T",0,IF(AND(control!$B$10=2,E56="4A",R56>0),4,IF(AND(control!$B$10=2,E56="4B",R56>0),5,IF(AND(control!$B$10=1,C56="A",R56>0),4,IF(AND(C56="H",R56>control!$F$24),1,IF(AND(C56="H",R56>=control!$F$25,R56<=control!$G$25),2,IF(AND(C56="H",R56>control!$F$26,R56<control!$G$26),3,"null"))))))) -> 0 | T56: 33763 | U56: =IF(C56="T",0,IF(AND(control!$B$10=2,E56="4A",T56>0),4,IF(AND(control!$B$10=2,E56="4B",T56>0),5,IF(AND(control!$B$10=1,C56="A",T56>0),4,IF(AND(C56="H",T56>control!$M$24),1,IF(AND(C56="H",T56>=control!$M$25,T56<=control!$N$25),2,IF(AND(C56="H",T56>control!$M$26,T56<control!$N$26),3,"null"))))))) -> 0 | V56: =IF(control!$B$19=1,S56,IF(control!$B$19=2,U56,"unk")) -> 0 | W56: =IF(AND(V56=0,control!$B$55=2,N56>control!$G$61),control!$G$61,IF(AND(V56=1,N56>control!$G$61),control!$G$61,IF(AND(V56=2,N56>control!$G$62),control!$G$62,IF(AND(V56=3,N56>control!$G$63),control!$G$63,N56)))) -> 242.2 | X56: =IF(AND(V56=0,control!$B$55=2,P56>control!$O$61),control!$O$61,IF(AND(V56=1,P56>control!$O$61),control!$O$61,IF(AND(V56=2,P56>control!$O$62),control!$O$62,IF(AND(V56=3,P56>control!$O$63),control!$O$63,IF(AND(V56=4,P56>control!$O$64),control!$O$64,IF(AND(V56=5,P56>control!$O$65),control!$O$65,P56)))))) -> 134.7 | Y56: =O56*control!$B$15/60 -> 42642 | Z56: =Q56*control!$C$15/60 -> 29323.5 | AA56: =IF(V56=control!$B$45,O56*control!$E$45/60,IF(V56=control!$B$46,O56*control!$E$46/60,IF(V56=control!$B$47,O56*control!$E$47/60,IF(V56=control!$B$48,O56*control!$E$48/60,IF(V56=control!$B$49,O56*control!$E$49/60,IF(V56=control!$B$50,O56*control!$E$50/60,0)))))) -> 55434.6 | AB56: =IF(V56=control!$B$45,Q56*control!$F$45/60,IF(V56=control!$B$46,Q56*control!$F$46/60,IF(V56=control!$B$47,Q56*control!$F$47/60,IF(V56=control!$B$48,Q56*control!$F$48/60,IF(V56=control!$B$49,Q56*control!$F$49/60,IF(V56=control!$B$50,Q56*control!$F$50/60,0)))))) -> 44636.88333 | AC56: 57377.18 | AD56: 43887.505 | AE56: 57377.18 | AF56: 43887.505 | AG56: =IF(control!$B$3=1,Y56+Z56,IF(control!$B$3=2,AA56+AB56,IF(control!$B$3=3,AC56+AD56,IF(control!$B$3=4,AE56+AF56,-999)))) -> 71965.5 | AH56: =IF(control!$L$14=2,AW56,IF(control!$L$14=3,AY56,AU56)) -> 367853 | AI56: =IF(control!$L$14=2,AX56,IF(control!$L$14=3,AZ56,AV56)) -> 383601 | AJ56: =IF(AND(AH56<>0,control!$O$3=1),100*(AI56-AH56)/AH56,IF(AND(AH56<>0,control!$O$3=2),(((AI56/AH56)^0.25)-1)*100,0)) -> 4.281057923 | AK56: 75046.38474 | AL56: 10.45 | AM56: 253 | AN56: =AK56/control!$H$15 -> 40.08888074 | AO56: =IF(V56=0,AK56/control!$J$45,IF(V56=1,AK56/control!$J$46,IF(V56=2,AK56/control!$J$47,IF(V56=3,AK56/control!$J$48,IF(V56=4,AK56/control!$J$49,IF(V56=5,AK56/control!$J$50,0)))))) -> 36.07999266 | AP56: =IF(V56=0,AK56/control!$M$71,IF(V56=1,AK56/control!$M$71,IF(V56=2,AK56/control!$M$72,IF(V56=3,AK56/control!$M$73,IF(V56=4,AK56/control!$M$74,IF(V56=5,AK56/control!$M$75,0)))))) -> 38.48532551 | AQ56: =IF(V56=0,AK56/control!$J$84,IF(V56=1,AK56/control!$J$85,IF(V56=2,AK56/control!$J$86,IF(V56=3,AK56/control!$J$87,IF(V56=4,AK56/control!$J$88,IF(V56=5,AK56/control!$J$89,0)))))) -> 41.23427733 | AR56: =IF(control!$B$3=1,AN56,IF(control!$B$3=2,AO56,IF(control!$B$3=3,AP56,IF(control!$B$3=4,AQ56,-999)))) -> 40.08888074 | AU56: 367853 | AV56: 383601 | AW56: 34326 | AX56: 33763 | AY56: 1 | AZ56: 1
A57: Forsyth | B57: H0209 | C57: H | D57: Novant Health Forsyth Medical Center | E57: N | F57: 823 | G57: 5 | H57: 6 | I57: 24 | J57: -2 | K57: 0 | L57: 2 | M57: 35 | N57: 174 | O57: 9519 | P57: 93 | Q57: 17445 | R57: 54644.85 | S57: =IF(C57="T",0,IF(AND(control!$B$10=2,E57="4A",R57>0),4,IF(AND(control!$B$10=2,E57="4B",R57>0),5,IF(AND(control!$B$10=1,C57="A",R57>0),4,IF(AND(C57="H",R57>control!$F$24),1,IF(AND(C57="H",R57>=control!$F$25,R57<=control!$G$25),2,IF(AND(C57="H",R57>control!$F$26,R57<control!$G$26),3,"null"))))))) -> 1 | T57: 26964 | U57: =IF(C57="T",0,IF(AND(control!$B$10=2,E57="4A",T57>0),4,IF(AND(control!$B$10=2,E57="4B",T57>0),5,IF(AND(control!$B$10=1,C57="A",T57>0),4,IF(AND(C57="H",T57>control!$M$24),1,IF(AND(C57="H",T57>=control!$M$25,T57<=control!$N$25),2,IF(AND(C57="H",T57>control!$M$26,T57<control!$N$26),3,"null"))))))) -> 1 | V57: =IF(control!$B$19=1,S57,IF(control!$B$19=2,U57,"unk")) -> 1 | W57: =IF(AND(V57=0,control!$B$55=2,N57>control!$G$61),control!$G$61,IF(AND(V57=1,N57>control!$G$61),control!$G$61,IF(AND(V57=2,N57>control!$G$62),control!$G$62,IF(AND(V57=3,N57>control!$G$63),control!$G$63,N57)))) -> 174 | X57: =IF(AND(V57=0,control!$B$55=2,P57>control!$O$61),control!$O$61,IF(AND(V57=1,P57>control!$O$61),control!$O$61,IF(AND(V57=2,P57>control!$O$62),control!$O$62,IF(AND(V57=3,P57>control!$O$63),control!$O$63,IF(AND(V57=4,P57>control!$O$64),control!$O$64,IF(AND(V57=5,P57>control!$O$65),control!$O$65,P57)))))) -> 93 | Y57: =O57*control!$B$15/60 -> 28557 | Z57: =Q57*control!$C$15/60 -> 26167.5 | AA57: =IF(V57=control!$B$45,O57*control!$E$45/60,IF(V57=control!$B$46,O57*control!$E$46/60,IF(V57=control!$B$47,O57*control!$E$47/60,IF(V57=control!$B$48,O57*control!$E$48/60,IF(V57=control!$B$49,O57*control!$E$49/60,IF(V57=control!$B$50,O57*control!$E$50/60,0)))))) -> 27605.1 | AB57: =IF(V57=control!$B$45,Q57*control!$F$45/60,IF(V57=control!$B$46,Q57*control!$F$46/60,IF(V57=control!$B$47,Q57*control!$F$47/60,IF(V57=control!$B$48,Q57*control!$F$48/60,IF(V57=control!$B$49,Q57*control!$F$49/60,IF(V57=control!$B$50,Q57*control!$F$50/60,0)))))) -> 29307.6 | AC57: 27605.1 | AD57: 27039.75 | AE57: 27605.1 | AF57: 27039.75 | AG57: =IF(control!$B$3=1,Y57+Z57,IF(control!$B$3=2,AA57+AB57,IF(control!$B$3=3,AC57+AD57,IF(control!$B$3=4,AE57+AF57,-999)))) -> 54724.5 | AH57: =IF(control!$L$14=2,AW57,IF(control!$L$14=3,AY57,AU57)) -> 367853 | AI57: =IF(control!$L$14=2,AX57,IF(control!$L$14=3,AZ57,AV57)) -> 383601 | AJ57: =IF(AND(AH57<>0,control!$O$3=1),100*(AI57-AH57)/AH57,IF(AND(AH57<>0,control!$O$3=2),(((AI57/AH57)^0.25)-1)*100,0)) -> 4.281057923 | AK57: 57067.28754 | AL57: 8.35 | AM57: 253 | AN57: =AK57/control!$H$15 -> 30.48466215 | AO57: =IF(V57=0,AK57/control!$J$45,IF(V57=1,AK57/control!$J$46,IF(V57=2,AK57/control!$J$47,IF(V57=3,AK57/control!$J$48,IF(V57=4,AK57/control!$J$49,IF(V57=5,AK57/control!$J$50,0)))))) -> 27.43619593 | AP57: =IF(V57=0,AK57/control!$M$71,IF(V57=1,AK57/control!$M$71,IF(V57=2,AK57/control!$M$72,IF(V57=3,AK57/control!$M$73,IF(V57=4,AK57/control!$M$74,IF(V57=5,AK57/control!$M$75,0)))))) -> 29.26527566 | AQ57: =IF(V57=0,AK57/control!$J$84,IF(V57=1,AK57/control!$J$85,IF(V57=2,AK57/control!$J$86,IF(V57=3,AK57/control!$J$87,IF(V57=4,AK57/control!$J$88,IF(V57=5,AK57/control!$J$89,0)))))) -> 34.83961388 | AR57: =IF(control!$B$3=1,AN57,IF(control!$B$3=2,AO57,IF(control!$B$3=3,AP57,IF(control!$B$3=4,AQ57,-999)))) -> 30.48466215 | AU57: 367853 | AV57: 383601 | AW57: 24907 | AX57: 26964 | AY57: 1 | AZ57: 1
A58: Forsyth | B58: H0229 | C58: H | D58: Novant Health Medical Park Hospital | E58: N | F58: 22 | G58: 0 | H58: 0 | I58: 12 | J58: 0 | K58: 0 | L58: -2 | M58: 10 | N58: 212 | O58: 897 | P58: 108 | Q58: 8613 | R58: 18672.8 | S58: =IF(C58="T",0,IF(AND(control!$B$10=2,E58="4A",R58>0),4,IF(AND(control!$B$10=2,E58="4B",R58>0),5,IF(AND(control!$B$10=1,C58="A",R58>0),4,IF(AND(C58="H",R58>control!$F$24),1,IF(AND(C58="H",R58>=control!$F$25,R58<=control!$G$25),2,IF(AND(C58="H",R58>control!$F$26,R58<control!$G$26),3,"null"))))))) -> 2 | T58: 9510 | U58: =IF(C58="T",0,IF(AND(control!$B$10=2,E58="4A",T58>0),4,IF(AND(control!$B$10=2,E58="4B",T58>0),5,IF(AND(control!$B$10=1,C58="A",T58>0),4,IF(AND(C58="H",T58>control!$M$24),1,IF(AND(C58="H",T58>=control!$M$25,T58<=control!$N$25),2,IF(AND(C58="H",T58>control!$M$26,T58<control!$N$26),3,"null"))))))) -> 2 | V58: =IF(control!$B$19=1,S58,IF(control!$B$19=2,U58,"unk")) -> 2 | W58: =IF(AND(V58=0,control!$B$55=2,N58>control!$G$61),control!$G$61,IF(AND(V58=1,N58>control!$G$61),control!$G$61,IF(AND(V58=2,N58>control!$G$62),control!$G$62,IF(AND(V58=3,N58>control!$G$63),control!$G$63,N58)))) -> 206.4727966 | X58: =IF(AND(V58=0,control!$B$55=2,P58>control!$O$61),control!$O$61,IF(AND(V58=1,P58>control!$O$61),control!$O$61,IF(AND(V58=2,P58>control!$O$62),control!$O$62,IF(AND(V58=3,P58>control!$O$63),control!$O$63,IF(AND(V58=4,P58>control!$O$64),control!$O$64,IF(AND(V58=5,P58>control!$O$65),control!$O$65,P58)))))) -> 108 | Y58: =O58*control!$B$15/60 -> 2691 | Z58: =Q58*control!$C$15/60 -> 12919.5 | AA58: =IF(V58=control!$B$45,O58*control!$E$45/60,IF(V58=control!$B$46,O58*control!$E$46/60,IF(V58=control!$B$47,O58*control!$E$47/60,IF(V58=control!$B$48,O58*control!$E$48/60,IF(V58=control!$B$49,O58*control!$E$49/60,IF(V58=control!$B$50,O58*control!$E$50/60,0)))))) -> 2302.3 | AB58: =IF(V58=control!$B$45,Q58*control!$F$45/60,IF(V58=control!$B$46,Q58*control!$F$46/60,IF(V58=control!$B$47,Q58*control!$F$47/60,IF(V58=control!$B$48,Q58*control!$F$48/60,IF(V58=control!$B$49,Q58*control!$F$49/60,IF(V58=control!$B$50,Q58*control!$F$50/60,0)))))) -> 14498.55 | AC58: 3086.768309 | AD58: 15503.4 | AE58: 3169.4 | AF58: 15503.4 | AG58: =IF(control!$B$3=1,Y58+Z58,IF(control!$B$3=2,AA58+AB58,IF(control!$B$3=3,AC58+AD58,IF(control!$B$3=4,AE58+AF58,-999)))) -> 15610.5 | AH58: =IF(control!$L$14=2,AW58,IF(control!$L$14=3,AY58,AU58)) -> 367853 | AI58: =IF(control!$L$14=2,AX58,IF(control!$L$14=3,AZ58,AV58)) -> 383601 | AJ58: =IF(AND(AH58<>0,control!$O$3=1),100*(AI58-AH58)/AH58,IF(AND(AH58<>0,control!$O$3=2),(((AI58/AH58)^0.25)-1)*100,0)) -> 4.281057923 | AK58: 16278.79455 | AL58: 8.7 | AM58: 253 | AN58: =AK58/control!$H$15 -> 8.695937258 | AO58: =IF(V58=0,AK58/control!$J$45,IF(V58=1,AK58/control!$J$46,IF(V58=2,AK58/control!$J$47,IF(V58=3,AK58/control!$J$48,IF(V58=4,AK58/control!$J$49,IF(V58=5,AK58/control!$J$50,0)))))) -> 8.695937258 | AP58: =IF(V58=0,AK58/control!$M$71,IF(V58=1,AK58/control!$M$71,IF(V58=2,AK58/control!$M$72,IF(V58=3,AK58/control!$M$73,IF(V58=4,AK58/control!$M$74,IF(V58=5,AK58/control!$M$75,0)))))) -> 9.275666409 | AQ58: =IF(V58=0,AK58/control!$J$84,IF(V58=1,AK58/control!$J$85,IF(V58=2,AK58/control!$J$86,IF(V58=3,AK58/control!$J$87,IF(V58=4,AK58/control!$J$88,IF(V58=5,AK58/control!$J$89,0)))))) -> 10.33574257 | AR58: =IF(control!$B$3=1,AN58,IF(control!$B$3=2,AO58,IF(control!$B$3=3,AP58,IF(control!$B$3=4,AQ58,-999)))) -> 8.695937258 | AU58: 367853 | AV58: 383601 | AW58: 10527 | AX58: 9510 | AY58: 1 | AZ58: 1
A59: Franklin | B59: A | C59: A | D59: Same Day Surgery Center | E59: N | F59: 0 | G59: 0 | H59: 0 | I59: 0 | J59: 0 | K59: 0 | L59: 2 | M59: 2 | O59: 0 | Q59: 0 | R59: 0 | S59: =IF(C59="T",0,IF(AND(control!$B$10=2,E59="4A",R59>0),4,IF(AND(control!$B$10=2,E59="4B",R59>0),5,IF(AND(control!$B$10=1,C59="A",R59>0),4,IF(AND(C59="H",R59>control!$F$24),1,IF(AND(C59="H",R59>=control!$F$25,R59<=control!$G$25),2,IF(AND(C59="H",R59>control!$F$26,R59<control!$G$26),3,"null"))))))) -> null | T59: 0 | U59: =IF(C59="T",0,IF(AND(control!$B$10=2,E59="4A",T59>0),4,IF(AND(control!$B$10=2,E59="4B",T59>0),5,IF(AND(control!$B$10=1,C59="A",T59>0),4,IF(AND(C59="H",T59>control!$M$24),1,IF(AND(C59="H",T59>=control!$M$25,T59<=control!$N$25),2,IF(AND(C59="H",T59>control!$M$26,T59<control!$N$26),3,"null"))))))) -> null | V59: =IF(control!$B$19=1,S59,IF(control!$B$19=2,U59,"unk")) -> null | W59: =IF(AND(V59=0,control!$B$55=2,N59>control!$G$61),control!$G$61,IF(AND(V59=1,N59>control!$G$61),control!$G$61,IF(AND(V59=2,N59>control!$G$62),control!$G$62,IF(AND(V59=3,N59>control!$G$63),control!$G$63,N59)))) -> 0 | X59: =IF(AND(V59=0,control!$B$55=2,P59>control!$O$61),control!$O$61,IF(AND(V59=1,P59>control!$O$61),control!$O$61,IF(AND(V59=2,P59>control!$O$62),control!$O$62,IF(AND(V59=3,P59>control!$O$63),control!$O$63,IF(AND(V59=4,P59>control!$O$64),control!$O$64,IF(AND(V59=5,P59>control!$O$65),control!$O$65,P59)))))) -> 0 | Y59: =O59*control!$B$15/60 -> 0 | Z59: =Q59*control!$C$15/60 -> 0 | AA59: =IF(V59=control!$B$45,O59*control!$E$45/60,IF(V59=control!$B$46,O59*control!$E$46/60,IF(V59=control!$B$47,O59*control!$E$47/60,IF(V59=control!$B$48,O59*control!$E$48/60,IF(V59=control!$B$49,O59*control!$E$49/60,IF(V59=control!$B$50,O59*control!$E$50/60,0)))))) -> 0 | AB59: =IF(V59=control!$B$45,Q59*control!$F$45/60,IF(V59=control!$B$46,Q59*control!$F$46/60,IF(V59=control!$B$47,Q59*control!$F$47/60,IF(V59=control!$B$48,Q59*control!$F$48/60,IF(V59=control!$B$49,Q59*control!$F$49/60,IF(V59=control!$B$50,Q59*control!$F$50/60,0)))))) -> 0 | AC59: 0 | AD59: 0 | AE59: 0 | AF59: 0 | AG59: =IF(control!$B$3=1,Y59+Z59,IF(control!$B$3=2,AA59+AB59,IF(control!$B$3=3,AC59+AD59,IF(control!$B$3=4,AE59+AF59,-999)))) -> 0 | AH59: =IF(control!$L$14=2,AW59,IF(control!$L$14=3,AY59,AU59)) -> 63848 | AI59: =IF(control!$L$14=2,AX59,IF(control!$L$14=3,AZ59,AV59)) -> 66274 | AJ59: =IF(AND(AH59<>0,control!$O$3=1),100*(AI59-AH59)/AH59,IF(AND(AH59<>0,control!$O$3=2),(((AI59/AH59)^0.25)-1)*100,0)) -> 3.799649167 | AK59: 0 | AN59: =AK59/control!$H$15 -> 0 | AO59: =IF(V59=0,AK59/control!$J$45,IF(V59=1,AK59/control!$J$46,IF(V59=2,AK59/control!$J$47,IF(V59=3,AK59/control!$J$48,IF(V59=4,AK59/control!$J$49,IF(V59=5,AK59/control!$J$50,0)))))) -> 0 | AP59: =IF(V59=0,AK59/control!$M$71,IF(V59=1,AK59/control!$M$71,IF(V59=2,AK59/control!$M$72,IF(V59=3,AK59/control!$M$73,IF(V59=4,AK59/control!$M$74,IF(V59=5,AK59/control!$M$75,0)))))) -> 0 | AQ59: =IF(V59=0,AK59/control!$J$84,IF(V59=1,AK59/control!$J$85,IF(V59=2,AK59/control!$J$86,IF(V59=3,AK59/control!$J$87,IF(V59=4,AK59/control!$J$88,IF(V59=5,AK59/control!$J$89,0)))))) -> 0 | AR59: =IF(control!$B$3=1,AN59,IF(control!$B$3=2,AO59,IF(control!$B$3=3,AP59,IF(control!$B$3=4,AQ59,-999)))) -> 0 | AU59: 63848 | AV59: 66274 | AX59: 0 | AY59: 1 | AZ59: 1
A60: Franklin | B60: H0261 | C60: H | D60: Novant Health Franklin Medical Center (closed) | E60: N | F60: 70 | G60: 0 | H60: 0 | I60: 3 | J60: 0 | K60: 0 | L60: -1 | M60: 2 | N60: 150 | O60: 32 | P60: 90 | Q60: 634 | R60: 1031 | S60: =IF(C60="T",0,IF(AND(control!$B$10=2,E60="4A",R60>0),4,IF(AND(control!$B$10=2,E60="4B",R60>0),5,IF(AND(control!$B$10=1,C60="A",R60>0),4,IF(AND(C60="H",R60>control!$F$24),1,IF(AND(C60="H",R60>=control!$F$25,R60<=control!$G$25),2,IF(AND(C60="H",R60>control!$F$26,R60<control!$G$26),3,"null"))))))) -> 3 | T60: 666 | U60: =IF(C60="T",0,IF(AND(control!$B$10=2,E60="4A",T60>0),4,IF(AND(control!$B$10=2,E60="4B",T60>0),5,IF(AND(control!$B$10=1,C60="A",T60>0),4,IF(AND(C60="H",T60>control!$M$24),1,IF(AND(C60="H",T60>=control!$M$25,T60<=control!$N$25),2,IF(AND(C60="H",T60>control!$M$26,T60<control!$N$26),3,"null"))))))) -> 3 | V60: =IF(control!$B$19=1,S60,IF(control!$B$19=2,U60,"unk")) -> 3 | W60: =IF(AND(V60=0,control!$B$55=2,N60>control!$G$61),control!$G$61,IF(AND(V60=1,N60>control!$G$61),control!$G$61,IF(AND(V60=2,N60>control!$G$62),control!$G$62,IF(AND(V60=3,N60>control!$G$63),control!$G$63,N60)))) -> 150 | X60: =IF(AND(V60=0,control!$B$55=2,P60>control!$O$61),control!$O$61,IF(AND(V60=1,P60>control!$O$61),control!$O$61,IF(AND(V60=2,P60>control!$O$62),control!$O$62,IF(AND(V60=3,P60>control!$O$63),control!$O$63,IF(AND(V60=4,P60>control!$O$64),control!$O$64,IF(AND(V60=5,P60>control!$O$65),control!$O$65,P60)))))) -> 90 | Y60: =O60*control!$B$15/60 -> 96 | Z60: =Q60*control!$C$15/60 -> 951 | AA60: =IF(V60=control!$B$45,O60*control!$E$45/60,IF(V60=control!$B$46,O60*control!$E$46/60,IF(V60=control!$B$47,O60*control!$E$47/60,IF(V60=control!$B$48,O60*control!$E$48/60,IF(V60=control!$B$49,O60*control!$E$49/60,IF(V60=control!$B$50,O60*control!$E$50/60,0)))))) -> 62.304 | AB60: =IF(V60=control!$B$45,Q60*control!$F$45/60,IF(V60=control!$B$46,Q60*control!$F$46/60,IF(V60=control!$B$47,Q60*control!$F$47/60,IF(V60=control!$B$48,Q60*control!$F$48/60,IF(V60=control!$B$49,Q60*control!$F$49/60,IF(V60=control!$B$50,Q60*control!$F$50/60,0)))))) -> 777.4953333 | AC60: 80 | AD60: 951 | AE60: 80 | AF60: 951 | AG60: =IF(control!$B$3=1,Y60+Z60,IF(control!$B$3=2,AA60+AB60,IF(control!$B$3=3,AC60+AD60,IF(control!$B$3=4,AE60+AF60,-999)))) -> 1047 | AH60: =IF(control!$L$14=2,AW60,IF(control!$L$14=3,AY60,AU60)) -> 63848 | AI60: =IF(control!$L$14=2,AX60,IF(control!$L$14=3,AZ60,AV60)) -> 66274 | AJ60: =IF(AND(AH60<>0,control!$O$3=1),100*(AI60-AH60)/AH60,IF(AND(AH60<>0,control!$O$3=2),(((AI60/AH60)^0.25)-1)*100,0)) -> 3.799649167 | AK60: 1086.782327 | AL60: 3.5 | AM60: 203 | AN60: =AK60/control!$H$15 -> 0.5805461147 | AO60: =IF(V60=0,AK60/control!$J$45,IF(V60=1,AK60/control!$J$46,IF(V60=2,AK60/control!$J$47,IF(V60=3,AK60/control!$J$48,IF(V60=4,AK60/control!$J$49,IF(V60=5,AK60/control!$J$50,0)))))) -> 0.6531143791 | AP60: =IF(V60=0,AK60/control!$M$71,IF(V60=1,AK60/control!$M$71,IF(V60=2,AK60/control!$M$72,IF(V60=3,AK60/control!$M$73,IF(V60=4,AK60/control!$M$74,IF(V60=5,AK60/control!$M$75,0)))))) -> 0.6966553377 | AQ60: =IF(V60=0,AK60/control!$J$84,IF(V60=1,AK60/control!$J$85,IF(V60=2,AK60/control!$J$86,IF(V60=3,AK60/control!$J$87,IF(V60=4,AK60/control!$J$88,IF(V60=5,AK60/control!$J$89,0)))))) -> 0.7762730906 | AR60: =IF(control!$B$3=1,AN60,IF(control!$B$3=2,AO60,IF(control!$B$3=3,AP60,IF(control!$B$3=4,AQ60,-999)))) -> 0.5805461147 | AU60: 63848 | AV60: 66274 | AW60: 834 | AX60: 666 | AY60: 1 | AZ60: 1
A61: Gaston | B61: AS0037 | C61: A | D61: CaroMont Specialty Surgery | E61: 4B | F61: 0 | G61: 0 | H61: 6 | I61: 0 | J61: 0 | K61: 0 | L61: 0 | M61: 6 | O61: 0 | P61: 33.6 | Q61: 3744 | R61: 2096.64 | S61: =IF(C61="T",0,IF(AND(control!$B$10=2,E61="4A",R61>0),4,IF(AND(control!$B$10=2,E61="4B",R61>0),5,IF(AND(control!$B$10=1,C61="A",R61>0),4,IF(AND(C61="H",R61>control!$F$24),1,IF(AND(C61="H",R61>=control!$F$25,R61<=control!$G$25),2,IF(AND(C61="H",R61>control!$F$26,R61<control!$G$26),3,"null"))))))) -> 4 | T61: 3744 | U61: =IF(C61="T",0,IF(AND(control!$B$10=2,E61="4A",T61>0),4,IF(AND(control!$B$10=2,E61="4B",T61>0),5,IF(AND(control!$B$10=1,C61="A",T61>0),4,IF(AND(C61="H",T61>control!$M$24),1,IF(AND(C61="H",T61>=control!$M$25,T61<=control!$N$25),2,IF(AND(C61="H",T61>control!$M$26,T61<control!$N$26),3,"null"))))))) -> 4 | V61: =IF(control!$B$19=1,S61,IF(control!$B$19=2,U61,"unk")) -> 4 | W61: =IF(AND(V61=0,control!$B$55=2,N61>control!$G$61),control!$G$61,IF(AND(V61=1,N61>control!$G$61),control!$G$61,IF(AND(V61=2,N61>control!$G$62),control!$G$62,IF(AND(V61=3,N61>control!$G$63),control!$G$63,N61)))) -> 0 | X61: =IF(AND(V61=0,control!$B$55=2,P61>control!$O$61),control!$O$61,IF(AND(V61=1,P61>control!$O$61),control!$O$61,IF(AND(V61=2,P61>control!$O$62),control!$O$62,IF(AND(V61=3,P61>control!$O$63),control!$O$63,IF(AND(V61=4,P61>control!$O$64),control!$O$64,IF(AND(V61=5,P61>control!$O$65),control!$O$65,P61)))))) -> 33.6 | Y61: =O61*control!$B$15/60 -> 0 | Z61: =Q61*control!$C$15/60 -> 5616 | AA61: =IF(V61=control!$B$45,O61*control!$E$45/60,IF(V61=control!$B$46,O61*control!$E$46/60,IF(V61=control!$B$47,O61*control!$E$47/60,IF(V61=control!$B$48,O61*control!$E$48/60,IF(V61=control!$B$49,O61*control!$E$49/60,IF(V61=control!$B$50,O61*control!$E$50/60,0)))))) -> 0 | AB61: =IF(V61=control!$B$45,Q61*control!$F$45/60,IF(V61=control!$B$46,Q61*control!$F$46/60,IF(V61=control!$B$47,Q61*control!$F$47/60,IF(V61=control!$B$48,Q61*control!$F$48/60,IF(V61=control!$B$49,Q61*control!$F$49/60,IF(V61=control!$B$50,Q61*control!$F$50/60,0)))))) -> 3619.2 | AC61: 0 | AD61: 2096.64 | AE61: 0 | AF61: 2096.64 | AG61: =IF(control!$B$3=1,Y61+Z61,IF(control!$B$3=2,AA61+AB61,IF(control!$B$3=3,AC61+AD61,IF(control!$B$3=4,AE61+AF61,-999)))) -> 5616 | AH61: =IF(control!$L$14=2,AW61,IF(control!$L$14=3,AY61,AU61)) -> 211936 | AI61: =IF(control!$L$14=2,AX61,IF(control!$L$14=3,AZ61,AV61)) -> 217735 | AJ61: =IF(AND(AH61<>0,control!$O$3=1),100*(AI61-AH61)/AH61,IF(AND(AH61<>0,control!$O$3=2),(((AI61/AH61)^0.25)-1)*100,0)) -> 2.736203382 | AK61: 5769.665182 | AL61: 6.5 | AM61: 194 | AN61: =AK61/control!$H$15 -> 3.082086101 | AO61: =IF(V61=0,AK61/control!$J$45,IF(V61=1,AK61/control!$J$46,IF(V61=2,AK61/control!$J$47,IF(V61=3,AK61/control!$J$48,IF(V61=4,AK61/control!$J$49,IF(V61=5,AK61/control!$J$50,0)))))) -> 3.852607627 | AP61: =IF(V61=0,AK61/control!$M$71,IF(V61=1,AK61/control!$M$71,IF(V61=2,AK61/control!$M$72,IF(V61=3,AK61/control!$M$73,IF(V61=4,AK61/control!$M$74,IF(V61=5,AK61/control!$M$75,0)))))) -> 4.109448135 | AQ61: =IF(V61=0,AK61/control!$J$84,IF(V61=1,AK61/control!$J$85,IF(V61=2,AK61/control!$J$86,IF(V61=3,AK61/control!$J$87,IF(V61=4,AK61/control!$J$88,IF(V61=5,AK61/control!$J$89,0)))))) -> 4.460161705 | AR61: =IF(control!$B$3=1,AN61,IF(control!$B$3=2,AO61,IF(control!$B$3=3,AP61,IF(control!$B$3=4,AQ61,-999)))) -> 3.082086101 | AU61: 211936 | AV61: 217735 | AW61: 381 | AX61: 3744 | AY61: 1 | AZ61: 1
A62: Gaston | B62: H0105 | C62: H | D62: CaroMont Regional Medical Center | E62: N | F62: 372 | G62: 5 | H62: 8 | I62: 9 | J62: -4 | K62: 0 | L62: 0 | M62: 18 | N62: 120.27 | O62: 4006 | P62: 77.8 | Q62: 8221 | R62: 18689.92367 | S62: =IF(C62="T",0,IF(AND(control!$B$10=2,E62="4A",R62>0),4,IF(AND(control!$B$10=2,E62="4B",R62>0),5,IF(AND(control!$B$10=1,C62="A",R62>0),4,IF(AND(C62="H",R62>control!$F$24),1,IF(AND(C62="H",R62>=control!$F$25,R62<=control!$G$25),2,IF(AND(C62="H",R62>control!$F$26,R62<control!$G$26),3,"null"))))))) -> 2 | T62: 12227 | U62: =IF(C62="T",0,IF(AND(control!$B$10=2,E62="4A",T62>0),4,IF(AND(control!$B$10=2,E62="4B",T62>0),5,IF(AND(control!$B$10=1,C62="A",T62>0),4,IF(AND(C62="H",T62>control!$M$24),1,IF(AND(C62="H",T62>=control!$M$25,T62<=control!$N$25),2,IF(AND(C62="H",T62>control!$M$26,T62<control!$N$26),3,"null"))))))) -> 1 | V62: =IF(control!$B$19=1,S62,IF(control!$B$19=2,U62,"unk")) -> 2 | W62: =IF(AND(V62=0,control!$B$55=2,N62>control!$G$61),control!$G$61,IF(AND(V62=1,N62>control!$G$61),control!$G$61,IF(AND(V62=2,N62>control!$G$62),control!$G$62,IF(AND(V62=3,N62>control!$G$63),control!$G$63,N62)))) -> 120.27 | X62: =IF(AND(V62=0,control!$B$55=2,P62>control!$O$61),control!$O$61,IF(AND(V62=1,P62>control!$O$61),control!$O$61,IF(AND(V62=2,P62>control!$O$62),control!$O$62,IF(AND(V62=3,P62>control!$O$63),control!$O$63,IF(AND(V62=4,P62>control!$O$64),control!$O$64,IF(AND(V62=5,P62>control!$O$65),control!$O$65,P62)))))) -> 77.8 | Y62: =O62*control!$B$15/60 -> 12018 | Z62: =Q62*control!$C$15/60 -> 12331.5 | AA62: =IF(V62=control!$B$45,O62*control!$E$45/60,IF(V62=control!$B$46,O62*control!$E$46/60,IF(V62=control!$B$47,O62*control!$E$47/60,IF(V62=control!$B$48,O62*control!$E$48/60,IF(V62=control!$B$49,O62*control!$E$49/60,IF(V62=control!$B$50,O62*control!$E$50/60,0)))))) -> 10282.06667 | AB62: =IF(V62=control!$B$45,Q62*control!$F$45/60,IF(V62=control!$B$46,Q62*control!$F$46/60,IF(V62=control!$B$47,Q62*control!$F$47/60,IF(V62=control!$B$48,Q62*control!$F$48/60,IF(V62=control!$B$49,Q62*control!$F$49/60,IF(V62=control!$B$50,Q62*control!$F$50/60,0)))))) -> 13838.68333 | AC62: 8030.027 | AD62: 10659.89667 | AE62: 8030.027 | AF62: 10659.89667 | AG62: =IF(control!$B$3=1,Y62+Z62,IF(control!$B$3=2,AA62+AB62,IF(control!$B$3=3,AC62+AD62,IF(control!$B$3=4,AE62+AF62,-999)))) -> 24349.5 | AH62: =IF(control!$L$14=2,AW62,IF(control!$L$14=3,AY62,AU62)) -> 211936 | AI62: =IF(control!$L$14=2,AX62,IF(control!$L$14=3,AZ62,AV62)) -> 217735 | AJ62: =IF(AND(AH62<>0,control!$O$3=1),100*(AI62-AH62)/AH62,IF(AND(AH62<>0,control!$O$3=2),(((AI62/AH62)^0.25)-1)*100,0)) -> 2.736203382 | AK62: 25015.75184 | AL62: 7.9 | AM62: 261 | AN62: =AK62/control!$H$15 -> 13.3631153 | AO62: =IF(V62=0,AK62/control!$J$45,IF(V62=1,AK62/control!$J$46,IF(V62=2,AK62/control!$J$47,IF(V62=3,AK62/control!$J$48,IF(V62=4,AK62/control!$J$49,IF(V62=5,AK62/control!$J$50,0)))))) -> 13.3631153 | AP62: =IF(V62=0,AK62/control!$M$71,IF(V62=1,AK62/control!$M$71,IF(V62=2,AK62/control!$M$72,IF(V62=3,AK62/control!$M$73,IF(V62=4,AK62/control!$M$74,IF(V62=5,AK62/control!$M$75,0)))))) -> 14.25398965 | AQ62: =IF(V62=0,AK62/control!$J$84,IF(V62=1,AK62/control!$J$85,IF(V62=2,AK62/control!$J$86,IF(V62=3,AK62/control!$J$87,IF(V62=4,AK62/control!$J$88,IF(V62=5,AK62/control!$J$89,0)))))) -> 15.88301704 | AR62: =IF(control!$B$3=1,AN62,IF(control!$B$3=2,AO62,IF(control!$B$3=3,AP62,IF(control!$B$3=4,AQ62,-999)))) -> 13.3631153 | AU62: 211936 | AV62: 217735 | AW62: 17009 | AX62: 12227 | AY62: 1 | AZ62: 1
A63: Granville | B63: H0098 | C63: H | D63: Granville Health System | E63: N | F63: 62 | G63: 0 | H63: 0 | I63: 3 | J63: 0 | K63: 0 | L63: 0 | M63: 3 | N63: 80 | O63: 725 | P63: 49 | Q63: 2230 | R63: 2787.833333 | S63: =IF(C63="T",0,IF(AND(control!$B$10=2,E63="4A",R63>0),4,IF(AND(control!$B$10=2,E63="4B",R63>0),5,IF(AND(control!$B$10=1,C63="A",R63>0),4,IF(AND(C63="H",R63>control!$F$24),1,IF(AND(C63="H",R63>=control!$F$25,R63<=control!$G$25),2,IF(AND(C63="H",R63>control!$F$26,R63<control!$G$26),3,"null"))))))) -> 3 | T63: 2955 | U63: =IF(C63="T",0,IF(AND(control!$B$10=2,E63="4A",T63>0),4,IF(AND(control!$B$10=2,E63="4B",T63>0),5,IF(AND(control!$B$10=1,C63="A",T63>0),4,IF(AND(C63="H",T63>control!$M$24),1,IF(AND(C63="H",T63>=control!$M$25,T63<=control!$N$25),2,IF(AND(C63="H",T63>control!$M$26,T63<control!$N$26),3,"null"))))))) -> 3 | V63: =IF(control!$B$19=1,S63,IF(control!$B$19=2,U63,"unk")) -> 3 | W63: =IF(AND(V63=0,control!$B$55=2,N63>control!$G$61),control!$G$61,IF(AND(V63=1,N63>control!$G$61),control!$G$61,IF(AND(V63=2,N63>control!$G$62),control!$G$62,IF(AND(V63=3,N63>control!$G$63),control!$G$63,N63)))) -> 80 | X63: =IF(AND(V63=0,control!$B$55=2,P63>control!$O$61),control!$O$61,IF(AND(V63=1,P63>control!$O$61),control!$O$61,IF(AND(V63=2,P63>control!$O$62),control!$O$62,IF(AND(V63=3,P63>control!$O$63),control!$O$63,IF(AND(V63=4,P63>control!$O$64),control!$O$64,IF(AND(V63=5,P63>control!$O$65),control!$O$65,P63)))))) -> 49 | Y63: =O63*control!$B$15/60 -> 2175 | Z63: =Q63*control!$C$15/60 -> 3345 | AA63: =IF(V63=control!$B$45,O63*control!$E$45/60,IF(V63=control!$B$46,O63*control!$E$46/60,IF(V63=control!$B$47,O63*control!$E$47/60,IF(V63=control!$B$48,O63*control!$E$48/60,IF(V63=control!$B$49,O63*control!$E$49/60,IF(V63=control!$B$50,O63*control!$E$50/60,0)))))) -> 1411.575 | AB63: =IF(V63=control!$B$45,Q63*control!$F$45/60,IF(V63=control!$B$46,Q63*control!$F$46/60,IF(V63=control!$B$47,Q63*control!$F$47/60,IF(V63=control!$B$48,Q63*control!$F$48/60,IF(V63=control!$B$49,Q63*control!$F$49/60,IF(V63=control!$B$50,Q63*control!$F$50/60,0)))))) -> 2734.723333 | AC63: 966.6666667 | AD63: 1821.166667 | AE63: 966.6666667 | AF63: 1821.166667 | AG63: =IF(control!$B$3=1,Y63+Z63,IF(control!$B$3=2,AA63+AB63,IF(control!$B$3=3,AC63+AD63,IF(control!$B$3=4,AE63+AF63,-999)))) -> 5520 | AH63: =IF(control!$L$14=2,AW63,IF(control!$L$14=3,AY63,AU63)) -> 58280 | AI63: =IF(control!$L$14=2,AX63,IF(control!$L$14=3,AZ63,AV63)) -> 59044 | AJ63: =IF(AND(AH63<>0,control!$O$3=1),100*(AI63-AH63)/AH63,IF(AND(AH63<>0,control!$O$3=2),(((AI63/AH63)^0.25)-1)*100,0)) -> 1.310912835 | AK63: 5592.362388 | AL63: 6 | AM63: 254 | AN63: =AK63/control!$H$15 -> 2.987373071 | AO63: =IF(V63=0,AK63/control!$J$45,IF(V63=1,AK63/control!$J$46,IF(V63=2,AK63/control!$J$47,IF(V63=3,AK63/control!$J$48,IF(V63=4,AK63/control!$J$49,IF(V63=5,AK63/control!$J$50,0)))))) -> 3.360794705 | AP63: =IF(V63=0,AK63/control!$M$71,IF(V63=1,AK63/control!$M$71,IF(V63=2,AK63/control!$M$72,IF(V63=3,AK63/control!$M$73,IF(V63=4,AK63/control!$M$74,IF(V63=5,AK63/control!$M$75,0)))))) -> 3.584847685 | AQ63: =IF(V63=0,AK63/control!$J$84,IF(V63=1,AK63/control!$J$85,IF(V63=2,AK63/control!$J$86,IF(V63=3,AK63/control!$J$87,IF(V63=4,AK63/control!$J$88,IF(V63=5,AK63/control!$J$89,0)))))) -> 3.994544563 | AR63: =IF(control!$B$3=1,AN63,IF(control!$B$3=2,AO63,IF(control!$B$3=3,AP63,IF(control!$B$3=4,AQ63,-999)))) -> 2.987373071 | AU63: 58280 | AV63: 59044 | AW63: 2589 | AX63: 2955 | AY63: 1 | AZ63: 1
A64: Guilford | B64: A | C64: A | D64: Premier Surgery Center | E64: N | F64: 0 | G64: 0 | H64: 0 | I64: 0 | J64: 0 | K64: 0 | L64: 2 | M64: 2 | O64: 0 | Q64: 0 | R64: 0 | S64: =IF(C64="T",0,IF(AND(control!$B$10=2,E64="4A",R64>0),4,IF(AND(control!$B$10=2,E64="4B",R64>0),5,IF(AND(control!$B$10=1,C64="A",R64>0),4,IF(AND(C64="H",R64>control!$F$24),1,IF(AND(C64="H",R64>=control!$F$25,R64<=control!$G$25),2,IF(AND(C64="H",R64>control!$F$26,R64<control!$G$26),3,"null"))))))) -> null | T64: 0 | U64: =IF(C64="T",0,IF(AND(control!$B$10=2,E64="4A",T64>0),4,IF(AND(control!$B$10=2,E64="4B",T64>0),5,IF(AND(control!$B$10=1,C64="A",T64>0),4,IF(AND(C64="H",T64>control!$M$24),1,IF(AND(C64="H",T64>=control!$M$25,T64<=control!$N$25),2,IF(AND(C64="H",T64>control!$M$26,T64<control!$N$26),3,"null"))))))) -> null | V64: =IF(control!$B$19=1,S64,IF(control!$B$19=2,U64,"unk")) -> null | W64: =IF(AND(V64=0,control!$B$55=2,N64>control!$G$61),control!$G$61,IF(AND(V64=1,N64>control!$G$61),control!$G$61,IF(AND(V64=2,N64>control!$G$62),control!$G$62,IF(AND(V64=3,N64>control!$G$63),control!$G$63,N64)))) -> 0 | X64: =IF(AND(V64=0,control!$B$55=2,P64>control!$O$61),control!$O$61,IF(AND(V64=1,P64>control!$O$61),control!$O$61,IF(AND(V64=2,P64>control!$O$62),control!$O$62,IF(AND(V64=3,P64>control!$O$63),control!$O$63,IF(AND(V64=4,P64>control!$O$64),control!$O$64,IF(AND(V64=5,P64>control!$O$65),control!$O$65,P64)))))) -> 0 | Y64: =O64*control!$B$15/60 -> 0 | Z64: =Q64*control!$C$15/60 -> 0 | AA64: =IF(V64=control!$B$45,O64*control!$E$45/60,IF(V64=control!$B$46,O64*control!$E$46/60,IF(V64=control!$B$47,O64*control!$E$47/60,IF(V64=control!$B$48,O64*control!$E$48/60,IF(V64=control!$B$49,O64*control!$E$49/60,IF(V64=control!$B$50,O64*control!$E$50/60,0)))))) -> 0 | AB64: =IF(V64=control!$B$45,Q64*control!$F$45/60,IF(V64=control!$B$46,Q64*control!$F$46/60,IF(V64=control!$B$47,Q64*control!$F$47/60,IF(V64=control!$B$48,Q64*control!$F$48/60,IF(V64=control!$B$49,Q64*control!$F$49/60,IF(V64=control!$B$50,Q64*control!$F$50/60,0)))))) -> 0 | AC64: 0 | AD64: 0 | AE64: 0 | AF64: 0 | AG64: =IF(control!$B$3=1,Y64+Z64,IF(control!$B$3=2,AA64+AB64,IF(control!$B$3=3,AC64+AD64,IF(control!$B$3=4,AE64+AF64,-999)))) -> 0 | AH64: =IF(control!$L$14=2,AW64,IF(control!$L$14=3,AY64,AU64)) -> 516415 | AI64: =IF(control!$L$14=2,AX64,IF(control!$L$14=3,AZ64,AV64)) -> 531454 | AJ64: =IF(AND(AH64<>0,control!$O$3=1),100*(AI64-AH64)/AH64,IF(AND(AH64<>0,control!$O$3=2),(((AI64/AH64)^0.25)-1)*100,0)) -> 2.912192713 | AK64: 0 | AN64: =AK64/control!$H$15 -> 0 | AO64: =IF(V64=0,AK64/control!$J$45,IF(V64=1,AK64/control!$J$46,IF(V64=2,AK64/control!$J$47,IF(V64=3,AK64/control!$J$48,IF(V64=4,AK64/control!$J$49,IF(V64=5,AK64/control!$J$50,0)))))) -> 0 | AP64: =IF(V64=0,AK64/control!$M$71,IF(V64=1,AK64/control!$M$71,IF(V64=2,AK64/control!$M$72,IF(V64=3,AK64/control!$M$73,IF(V64=4,AK64/control!$M$74,IF(V64=5,AK64/control!$M$75,0)))))) -> 0 | AQ64: =IF(V64=0,AK64/control!$J$84,IF(V64=1,AK64/control!$J$85,IF(V64=2,AK64/control!$J$86,IF(V64=3,AK64/control!$J$87,IF(V64=4,AK64/control!$J$88,IF(V64=5,AK64/control!$J$89,0)))))) -> 0 | AR64: =IF(control!$B$3=1,AN64,IF(control!$B$3=2,AO64,IF(control!$B$3=3,AP64,IF(control!$B$3=4,AQ64,-999)))) -> 0 | AU64: 516415 | AV64: 531454 | AX64: 0 | AY64: 1 | AZ64: 1
A65: Guilford | B65: AS0009 | C65: A | D65: Greensboro Specialty Surgical Center | E65: 4B | F65: 0 | G65: 0 | H65: 3 | I65: 0 | J65: 0 | K65: 0 | L65: 0 | M65: 3 | O65: 0 | P65: 60.3 | Q65: 2583 | R65: 2595.915 | S65: =IF(C65="T",0,IF(AND(control!$B$10=2,E65="4A",R65>0),4,IF(AND(control!$B$10=2,E65="4B",R65>0),5,IF(AND(control!$B$10=1,C65="A",R65>0),4,IF(AND(C65="H",R65>control!$F$24),1,IF(AND(C65="H",R65>=control!$F$25,R65<=control!$G$25),2,IF(AND(C65="H",R65>control!$F$26,R65<control!$G$26),3,"null"))))))) -> 4 | T65: 2583 | U65: =IF(C65="T",0,IF(AND(control!$B$10=2,E65="4A",T65>0),4,IF(AND(control!$B$10=2,E65="4B",T65>0),5,IF(AND(control!$B$10=1,C65="A",T65>0),4,IF(AND(C65="H",T65>control!$M$24),1,IF(AND(C65="H",T65>=control!$M$25,T65<=control!$N$25),2,IF(AND(C65="H",T65>control!$M$26,T65<control!$N$26),3,"null"))))))) -> 4 | V65: =IF(control!$B$19=1,S65,IF(control!$B$19=2,U65,"unk")) -> 4 | W65: =IF(AND(V65=0,control!$B$55=2,N65>control!$G$61),control!$G$61,IF(AND(V65=1,N65>control!$G$61),control!$G$61,IF(AND(V65=2,N65>control!$G$62),control!$G$62,IF(AND(V65=3,N65>control!$G$63),control!$G$63,N65)))) -> 0 | X65: =IF(AND(V65=0,control!$B$55=2,P65>control!$O$61),control!$O$61,IF(AND(V65=1,P65>control!$O$61),control!$O$61,IF(AND(V65=2,P65>control!$O$62),control!$O$62,IF(AND(V65=3,P65>control!$O$63),control!$O$63,IF(AND(V65=4,P65>control!$O$64),control!$O$64,IF(AND(V65=5,P65>control!$O$65),control!$O$65,P65)))))) -> 60.3 | Y65: =O65*control!$B$15/60 -> 0 | Z65: =Q65*control!$C$15/60 -> 3874.5 | AA65: =IF(V65=control!$B$45,O65*control!$E$45/60,IF(V65=control!$B$46,O65*control!$E$46/60,IF(V65=control!$B$47,O65*control!$E$47/60,IF(V65=control!$B$48,O65*control!$E$48/60,IF(V65=control!$B$49,O65*control!$E$49/60,IF(V65=control!$B$50,O65*control!$E$50/60,0)))))) -> 0 | AB65: =IF(V65=control!$B$45,Q65*control!$F$45/60,IF(V65=control!$B$46,Q65*control!$F$46/60,IF(V65=control!$B$47,Q65*control!$F$47/60,IF(V65=control!$B$48,Q65*control!$F$48/60,IF(V65=control!$B$49,Q65*control!$F$49/60,IF(V65=control!$B$50,Q65*control!$F$50/60,0)))))) -> 2496.9 | AC65: 0 | AD65: 2595.915 | AE65: 0 | AF65: 2595.915 | AG65: =IF(control!$B$3=1,Y65+Z65,IF(control!$B$3=2,AA65+AB65,IF(control!$B$3=3,AC65+AD65,IF(control!$B$3=4,AE65+AF65,-999)))) -> 3874.5 | AH65: =IF(control!$L$14=2,AW65,IF(control!$L$14=3,AY65,AU65)) -> 516415 | AI65: =IF(control!$L$14=2,AX65,IF(control!$L$14=3,AZ65,AV65)) -> 531454 | AJ65: =IF(AND(AH65<>0,control!$O$3=1),100*(AI65-AH65)/AH65,IF(AND(AH65<>0,control!$O$3=2),(((AI65/AH65)^0.25)-1)*100,0)) -> 2.912192713 | AK65: 3987.332907 | AL65: 7 | AM65: 254 | AN65: =AK65/control!$H$15 -> 2.129985527 | AO65: =IF(V65=0,AK65/control!$J$45,IF(V65=1,AK65/control!$J$46,IF(V65=2,AK65/control!$J$47,IF(V65=3,AK65/control!$J$48,IF(V65=4,AK65/control!$J$49,IF(V65=5,AK65/control!$J$50,0)))))) -> 2.662481909 | AP65: =IF(V65=0,AK65/control!$M$71,IF(V65=1,AK65/control!$M$71,IF(V65=2,AK65/control!$M$72,IF(V65=3,AK65/control!$M$73,IF(V65=4,AK65/control!$M$74,IF(V65=5,AK65/control!$M$75,0)))))) -> 2.839980703 | AQ65: =IF(V65=0,AK65/control!$J$84,IF(V65=1,AK65/control!$J$85,IF(V65=2,AK65/control!$J$86,IF(V65=3,AK65/control!$J$87,IF(V65=4,AK65/control!$J$88,IF(V65=5,AK65/control!$J$89,0)))))) -> 3.082353824 | AR65: =IF(control!$B$3=1,AN65,IF(control!$B$3=2,AO65,IF(control!$B$3=3,AP65,IF(control!$B$3=4,AQ65,-999)))) -> 2.129985527 | AU65: 516415 | AV65: 531454 | AW65: 2625 | AX65: 2583 | AY65: 1 | AZ65: 1
A66: Guilford | B66: AS0015 | C66: under | D66: Carolina Birth Center | E66: N | F66: 0 | G66: 0 | H66: 1 | I66: 0 | J66: 0 | K66: 0 | L66: 0 | M66: =SUM(G66:L66) -> 1 | O66: 0 | P66: 30 | Q66: 5 | R66: 2.5 | S66: =IF(C66="T",0,IF(AND(control!$B$10=2,E66="4A",R66>0),4,IF(AND(control!$B$10=2,E66="4B",R66>0),5,IF(AND(control!$B$10=1,C66="A",R66>0),4,IF(AND(C66="H",R66>control!$F$24),1,IF(AND(C66="H",R66>=control!$F$25,R66<=control!$G$25),2,IF(AND(C66="H",R66>control!$F$26,R66<control!$G$26),3,"null"))))))) -> null | T66: 5 | U66: =IF(C66="T",0,IF(AND(control!$B$10=2,E66="4A",T66>0),4,IF(AND(control!$B$10=2,E66="4B",T66>0),5,IF(AND(control!$B$10=1,C66="A",T66>0),4,IF(AND(C66="H",T66>control!$M$24),1,IF(AND(C66="H",T66>=control!$M$25,T66<=control!$N$25),2,IF(AND(C66="H",T66>control!$M$26,T66<control!$N$26),3,"null"))))))) -> null | V66: =IF(control!$B$19=1,S66,IF(control!$B$19=2,U66,"unk")) -> null | W66: =IF(AND(V66=0,control!$B$55=2,N66>control!$G$61),control!$G$61,IF(AND(V66=1,N66>control!$G$61),control!$G$61,IF(AND(V66=2,N66>control!$G$62),control!$G$62,IF(AND(V66=3,N66>control!$G$63),control!$G$63,N66)))) -> 0 | X66: =IF(AND(V66=0,control!$B$55=2,P66>control!$O$61),control!$O$61,IF(AND(V66=1,P66>control!$O$61),control!$O$61,IF(AND(V66=2,P66>control!$O$62),control!$O$62,IF(AND(V66=3,P66>control!$O$63),control!$O$63,IF(AND(V66=4,P66>control!$O$64),control!$O$64,IF(AND(V66=5,P66>control!$O$65),control!$O$65,P66)))))) -> 30 | Y66: =O66*control!$B$15/60 -> 0 | Z66: =Q66*control!$C$15/60 -> 7.5 | AA66: =IF(V66=control!$B$45,O66*control!$E$45/60,IF(V66=control!$B$46,O66*control!$E$46/60,IF(V66=control!$B$47,O66*control!$E$47/60,IF(V66=control!$B$48,O66*control!$E$48/60,IF(V66=control!$B$49,O66*control!$E$49/60,IF(V66=control!$B$50,O66*control!$E$50/60,0)))))) -> 0 | AB66: =IF(V66=control!$B$45,Q66*control!$F$45/60,IF(V66=control!$B$46,Q66*control!$F$46/60,IF(V66=control!$B$47,Q66*control!$F$47/60,IF(V66=control!$B$48,Q66*control!$F$48/60,IF(V66=control!$B$49,Q66*control!$F$49/60,IF(V66=control!$B$50,Q66*control!$F$50/60,0)))))) -> 0 | AC66: 0 | AD66: 2.5 | AE66: 0 | AF66: 2.5 | AG66: =IF(control!$B$3=1,Y66+Z66,IF(control!$B$3=2,AA66+AB66,IF(control!$B$3=3,AC66+AD66,IF(control!$B$3=4,AE66+AF66,-999)))) -> 7.5 | AH66: =IF(control!$L$14=2,AW66,IF(control!$L$14=3,AY66,AU66)) -> 516415 | AI66: =IF(control!$L$14=2,AX66,IF(control!$L$14=3,AZ66,AV66)) -> 531454 | AJ66: =IF(AND(AH66<>0,control!$O$3=1),100*(AI66-AH66)/AH66,IF(AND(AH66<>0,control!$O$3=2),(((AI66/AH66)^0.25)-1)*100,0)) -> 2.912192713 | AK66: 7.718414453 | AL66: 2 | AM66: 104 | AN66: =AK66/control!$H$15 -> 0.004123084644 | AO66: =IF(V66=0,AK66/control!$J$45,IF(V66=1,AK66/control!$J$46,IF(V66=2,AK66/control!$J$47,IF(V66=3,AK66/control!$J$48,IF(V66=4,AK66/control!$J$49,IF(V66=5,AK66/control!$J$50,0)))))) -> 0 | AP66: =IF(V66=0,AK66/control!$M$71,IF(V66=1,AK66/control!$M$71,IF(V66=2,AK66/control!$M$72,IF(V66=3,AK66/control!$M$73,IF(V66=4,AK66/control!$M$74,IF(V66=5,AK66/control!$M$75,0)))))) -> 0 | AQ66: =IF(V66=0,AK66/control!$J$84,IF(V66=1,AK66/control!$J$85,IF(V66=2,AK66/control!$J$86,IF(V66=3,AK66/control!$J$87,IF(V66=4,AK66/control!$J$88,IF(V66=5,AK66/control!$J$89,0)))))) -> 0 | AR66: =IF(control!$B$3=1,AN66,IF(control!$B$3=2,AO66,IF(control!$B$3=3,AP66,IF(control!$B$3=4,AQ66,-999)))) -> 0.004123084644 | AU66: 516415 | AV66: 531454 | AW66: 313 | AX66: 5 | AY66: 1 | AZ66: 1
A67: Guilford | B67: AS0018 | C67: A | D67: Surgical Center of Greensboro | E67: 4B | F67: 0 | G67: 0 | H67: 13 | I67: 0 | J67: 0 | K67: 0 | L67: 0 | M67: 13 | O67: 0 | P67: 110.21 | Q67: 13000 | R67: =(N67*O67+P67*Q67)/60 -> 23878.83333 | S67: =IF(C67="T",0,IF(AND(control!$B$10=2,E67="4A",R67>0),4,IF(AND(control!$B$10=2,E67="4B",R67>0),5,IF(AND(control!$B$10=1,C67="A",R67>0),4,IF(AND(C67="H",R67>control!$F$24),1,IF(AND(C67="H",R67>=control!$F$25,R67<=control!$G$25),2,IF(AND(C67="H",R67>control!$F$26,R67<control!$G$26),3,"null"))))))) -> 4 | T67: =O67+Q67 -> 13000 | U67: =IF(C67="T",0,IF(AND(control!$B$10=2,E67="4A",T67>0),4,IF(AND(control!$B$10=2,E67="4B",T67>0),5,IF(AND(control!$B$10=1,C67="A",T67>0),4,IF(AND(C67="H",T67>control!$M$24),1,IF(AND(C67="H",T67>=control!$M$25,T67<=control!$N$25),2,IF(AND(C67="H",T67>control!$M$26,T67<control!$N$26),3,"null"))))))) -> 4 | V67: =IF(control!$B$19=1,S67,IF(control!$B$19=2,U67,"unk")) -> 4 | W67: =IF(AND(V67=0,control!$B$55=2,N67>control!$G$61),control!$G$61,IF(AND(V67=1,N67>control!$G$61),control!$G$61,IF(AND(V67=2,N67>control!$G$62),control!$G$62,IF(AND(V67=3,N67>control!$G$63),control!$G$63,N67)))) -> 0 | X67: =IF(AND(V67=0,control!$B$55=2,P67>control!$O$61),control!$O$61,IF(AND(V67=1,P67>control!$O$61),control!$O$61,IF(AND(V67=2,P67>control!$O$62),control!$O$62,IF(AND(V67=3,P67>control!$O$63),control!$O$63,IF(AND(V67=4,P67>control!$O$64),control!$O$64,IF(AND(V67=5,P67>control!$O$65),control!$O$65,P67)))))) -> 78.28475097 | Y67: =O67*control!$B$15/60 -> 0 | Z67: =Q67*control!$C$15/60 -> 19500 | AA67: =IF(V67=control!$B$45,O67*control!$E$45/60,IF(V67=control!$B$46,O67*control!$E$46/60,IF(V67=control!$B$47,O67*control!$E$47/60,IF(V67=control!$B$48,O67*control!$E$48/60,IF(V67=control!$B$49,O67*control!$E$49/60,IF(V67=control!$B$50,O67*control!$E$50/60,0)))))) -> 0 | AB67: =IF(V67=control!$B$45,Q67*control!$F$45/60,IF(V67=control!$B$46,Q67*control!$F$46/60,IF(V67=control!$B$47,Q67*control!$F$47/60,IF(V67=control!$B$48,Q67*control!$F$48/60,IF(V67=control!$B$49,Q67*control!$F$49/60,IF(V67=control!$B$50,Q67*control!$F$50/60,0)))))) -> 12566.66667 | AC67: =O67*W67/60 -> 0 | AD67: =Q67*X67/60 -> 16961.69604 | AE67: =N67*O67/60 -> 0 | AF67: =P67*Q67/60 -> 23878.83333 | AG67: =IF(control!$B$3=1,Y67+Z67,IF(control!$B$3=2,AA67+AB67,IF(control!$B$3=3,AC67+AD67,IF(control!$B$3=4,AE67+AF67,-999)))) -> 19500 | AH67: =IF(control!$L$14=2,AW67,IF(control!$L$14=3,AY67,AU67)) -> 516415 | AI67: =IF(control!$L$14=2,AX67,IF(control!$L$14=3,AZ67,AV67)) -> 531454 | AJ67: =IF(AND(AH67<>0,control!$O$3=1),100*(AI67-AH67)/AH67,IF(AND(AH67<>0,control!$O$3=2),(((AI67/AH67)^0.25)-1)*100,0)) -> 2.912192713 | AK67: =AG67+AG67*AJ67/100 -> 20067.87758 | AL67: 9 | AM67: 255 | AN67: =AK67/control!$H$15 -> 10.72002007 | AO67: =IF(V67=0,AK67/control!$J$45,IF(V67=1,AK67/control!$J$46,IF(V67=2,AK67/control!$J$47,IF(V67=3,AK67/control!$J$48,IF(V67=4,AK67/control!$J$49,IF(V67=5,AK67/control!$J$50,0)))))) -> 13.40002509 | AP67: =IF(V67=0,AK67/control!$M$71,IF(V67=1,AK67/control!$M$71,IF(V67=2,AK67/control!$M$72,IF(V67=3,AK67/control!$M$73,IF(V67=4,AK67/control!$M$74,IF(V67=5,AK67/control!$M$75,0)))))) -> 14.2933601 | AQ67: =IF(V67=0,AK67/control!$J$84,IF(V67=1,AK67/control!$J$85,IF(V67=2,AK67/control!$J$86,IF(V67=3,AK67/control!$J$87,IF(V67=4,AK67/control!$J$88,IF(V67=5,AK67/control!$J$89,0)))))) -> 15.51320159 | AR67: =IF(control!$B$3=1,AN67,IF(control!$B$3=2,AO67,IF(control!$B$3=3,AP67,IF(control!$B$3=4,AQ67,-999)))) -> 10.72002007 | AU67: 516415 | AV67: 531454 | AW67: 11795 | AX67: 13000 | AY67: 1 | AZ67: 1
A68: Guilford | B68: AS0033 | C68: A | D68: Surgical Eye Center | E68: 4A | F68: 0 | G68: 0 | H68: 4 | I68: 0 | J68: 0 | K68: 0 | L68: 0 | M68: 4 | O68: 0 | P68: 30 | Q68: 1984 | R68: 992 | S68: =IF(C68="T",0,IF(AND(control!$B$10=2,E68="4A",R68>0),4,IF(AND(control!$B$10=2,E68="4B",R68>0),5,IF(AND(control!$B$10=1,C68="A",R68>0),4,IF(AND(C68="H",R68>control!$F$24),1,IF(AND(C68="H",R68>=control!$F$25,R68<=control!$G$25),2,IF(AND(C68="H",R68>control!$F$26,R68<control!$G$26),3,"null"))))))) -> 4 | T68: 1984 | U68: =IF(C68="T",0,IF(AND(control!$B$10=2,E68="4A",T68>0),4,IF(AND(control!$B$10=2,E68="4B",T68>0),5,IF(AND(control!$B$10=1,C68="A",T68>0),4,IF(AND(C68="H",T68>control!$M$24),1,IF(AND(C68="H",T68>=control!$M$25,T68<=control!$N$25),2,IF(AND(C68="H",T68>control!$M$26,T68<control!$N$26),3,"null"))))))) -> 4 | V68: =IF(control!$B$19=1,S68,IF(control!$B$19=2,U68,"unk")) -> 4 | W68: =IF(AND(V68=0,control!$B$55=2,N68>control!$G$61),control!$G$61,IF(AND(V68=1,N68>control!$G$61),control!$G$61,IF(AND(V68=2,N68>control!$G$62),control!$G$62,IF(AND(V68=3,N68>control!$G$63),control!$G$63,N68)))) -> 0 | X68: =IF(AND(V68=0,control!$B$55=2,P68>control!$O$61),control!$O$61,IF(AND(V68=1,P68>control!$O$61),control!$O$61,IF(AND(V68=2,P68>control!$O$62),control!$O$62,IF(AND(V68=3,P68>control!$O$63),control!$O$63,IF(AND(V68=4,P68>control!$O$64),control!$O$64,IF(AND(V68=5,P68>control!$O$65),control!$O$65,P68)))))) -> 30 | Y68: =O68*control!$B$15/60 -> 0 | Z68: =Q68*control!$C$15/60 -> 2976 | AA68: =IF(V68=control!$B$45,O68*control!$E$45/60,IF(V68=control!$B$46,O68*control!$E$46/60,IF(V68=control!$B$47,O68*control!$E$47/60,IF(V68=control!$B$48,O68*control!$E$48/60,IF(V68=control!$B$49,O68*control!$E$49/60,IF(V68=control!$B$50,O68*control!$E$50/60,0)))))) -> 0 | AB68: =IF(V68=control!$B$45,Q68*control!$F$45/60,IF(V68=control!$B$46,Q68*control!$F$46/60,IF(V68=control!$B$47,Q68*control!$F$47/60,IF(V68=control!$B$48,Q68*control!$F$48/60,IF(V68=control!$B$49,Q68*control!$F$49/60,IF(V68=control!$B$50,Q68*control!$F$50/60,0)))))) -> 1917.866667 | AC68: 0 | AD68: 992 | AE68: 0 | AF68: 992 | AG68: =IF(control!$B$3=1,Y68+Z68,IF(control!$B$3=2,AA68+AB68,IF(control!$B$3=3,AC68+AD68,IF(control!$B$3=4,AE68+AF68,-999)))) -> 2976 | AH68: =IF(control!$L$14=2,AW68,IF(control!$L$14=3,AY68,AU68)) -> 516415 | AI68: =IF(control!$L$14=2,AX68,IF(control!$L$14=3,AZ68,AV68)) -> 531454 | AJ68: =IF(AND(AH68<>0,control!$O$3=1),100*(AI68-AH68)/AH68,IF(AND(AH68<>0,control!$O$3=2),(((AI68/AH68)^0.25)-1)*100,0)) -> 2.912192713 | AK68: 3062.666855 | AL68: 9 | AM68: 156 | AN68: =AK68/control!$H$15 -> 1.636039987 | AO68: =IF(V68=0,AK68/control!$J$45,IF(V68=1,AK68/control!$J$46,IF(V68=2,AK68/control!$J$47,IF(V68=3,AK68/control!$J$48,IF(V68=4,AK68/control!$J$49,IF(V68=5,AK68/control!$J$50,0)))))) -> 2.045049983 | AP68: =IF(V68=0,AK68/control!$M$71,IF(V68=1,AK68/control!$M$71,IF(V68=2,AK68/control!$M$72,IF(V68=3,AK68/control!$M$73,IF(V68=4,AK68/control!$M$74,IF(V68=5,AK68/control!$M$75,0)))))) -> 2.181386649 | AQ68: =IF(V68=0,AK68/control!$J$84,IF(V68=1,AK68/control!$J$85,IF(V68=2,AK68/control!$J$86,IF(V68=3,AK68/control!$J$87,IF(V68=4,AK68/control!$J$88,IF(V68=5,AK68/control!$J$89,0)))))) -> 2.367553228 | AR68: =IF(control!$B$3=1,AN68,IF(control!$B$3=2,AO68,IF(control!$B$3=3,AP68,IF(control!$B$3=4,AQ68,-999)))) -> 1.636039987 | AU68: 516415 | AV68: 531454 | AW68: 3234 | AX68: 1984 | AY68: 1 | AZ68: 1
A69: Guilford | B69: AS0047 | C69: A | D69: High Point Surgery Center | E69: 4B | F69: 0 | G69: 0 | H69: 6 | I69: 0 | J69: 0 | K69: 0 | L69: 0 | M69: 6 | O69: 0 | P69: 60 | Q69: 3857 | R69: 3857 | S69: =IF(C69="T",0,IF(AND(control!$B$10=2,E69="4A",R69>0),4,IF(AND(control!$B$10=2,E69="4B",R69>0),5,IF(AND(control!$B$10=1,C69="A",R69>0),4,IF(AND(C69="H",R69>control!$F$24),1,IF(AND(C69="H",R69>=control!$F$25,R69<=control!$G$25),2,IF(AND(C69="H",R69>control!$F$26,R69<control!$G$26),3,"null"))))))) -> 4 | T69: 3857 | U69: =IF(C69="T",0,IF(AND(control!$B$10=2,E69="4A",T69>0),4,IF(AND(control!$B$10=2,E69="4B",T69>0),5,IF(AND(control!$B$10=1,C69="A",T69>0),4,IF(AND(C69="H",T69>control!$M$24),1,IF(AND(C69="H",T69>=control!$M$25,T69<=control!$N$25),2,IF(AND(C69="H",T69>control!$M$26,T69<control!$N$26),3,"null"))))))) -> 4 | V69: =IF(control!$B$19=1,S69,IF(control!$B$19=2,U69,"unk")) -> 4 | W69: =IF(AND(V69=0,control!$B$55=2,N69>control!$G$61),control!$G$61,IF(AND(V69=1,N69>control!$G$61),control!$G$61,IF(AND(V69=2,N69>control!$G$62),control!$G$62,IF(AND(V69=3,N69>control!$G$63),control!$G$63,N69)))) -> 0 | X69: =IF(AND(V69=0,control!$B$55=2,P69>control!$O$61),control!$O$61,IF(AND(V69=1,P69>control!$O$61),control!$O$61,IF(AND(V69=2,P69>control!$O$62),control!$O$62,IF(AND(V69=3,P69>control!$O$63),control!$O$63,IF(AND(V69=4,P69>control!$O$64),control!$O$64,IF(AND(V69=5,P69>control!$O$65),control!$O$65,P69)))))) -> 60 | Y69: =O69*control!$B$15/60 -> 0 | Z69: =Q69*control!$C$15/60 -> 5785.5 | AA69: =IF(V69=control!$B$45,O69*control!$E$45/60,IF(V69=control!$B$46,O69*control!$E$46/60,IF(V69=control!$B$47,O69*control!$E$47/60,IF(V69=control!$B$48,O69*control!$E$48/60,IF(V69=control!$B$49,O69*control!$E$49/60,IF(V69=control!$B$50,O69*control!$E$50/60,0)))))) -> 0 | AB69: =IF(V69=control!$B$45,Q69*control!$F$45/60,IF(V69=control!$B$46,Q69*control!$F$46/60,IF(V69=control!$B$47,Q69*control!$F$47/60,IF(V69=control!$B$48,Q69*control!$F$48/60,IF(V69=control!$B$49,Q69*control!$F$49/60,IF(V69=control!$B$50,Q69*control!$F$50/60,0)))))) -> 3728.433333 | AC69: 0 | AD69: 3857 | AE69: 0 | AF69: 3857 | AG69: =IF(control!$B$3=1,Y69+Z69,IF(control!$B$3=2,AA69+AB69,IF(control!$B$3=3,AC69+AD69,IF(control!$B$3=4,AE69+AF69,-999)))) -> 5785.5 | AH69: =IF(control!$L$14=2,AW69,IF(control!$L$14=3,AY69,AU69)) -> 516415 | AI69: =IF(control!$L$14=2,AX69,IF(control!$L$14=3,AZ69,AV69)) -> 531454 | AJ69: =IF(AND(AH69<>0,control!$O$3=1),100*(AI69-AH69)/AH69,IF(AND(AH69<>0,control!$O$3=2),(((AI69/AH69)^0.25)-1)*100,0)) -> 2.912192713 | AK69: 5953.984909 | AL69: 7.5 | AM69: 254 | AN69: =AK69/control!$H$15 -> 3.180547494 | AO69: =IF(V69=0,AK69/control!$J$45,IF(V69=1,AK69/control!$J$46,IF(V69=2,AK69/control!$J$47,IF(V69=3,AK69/control!$J$48,IF(V69=4,AK69/control!$J$49,IF(V69=5,AK69/control!$J$50,0)))))) -> 3.975684368 | AP69: =IF(V69=0,AK69/control!$M$71,IF(V69=1,AK69/control!$M$71,IF(V69=2,AK69/control!$M$72,IF(V69=3,AK69/control!$M$73,IF(V69=4,AK69/control!$M$74,IF(V69=5,AK69/control!$M$75,0)))))) -> 4.240729992 | AQ69: =IF(V69=0,AK69/control!$J$84,IF(V69=1,AK69/control!$J$85,IF(V69=2,AK69/control!$J$86,IF(V69=3,AK69/control!$J$87,IF(V69=4,AK69/control!$J$88,IF(V69=5,AK69/control!$J$89,0)))))) -> 4.60264758 | AR69: =IF(control!$B$3=1,AN69,IF(control!$B$3=2,AO69,IF(control!$B$3=3,AP69,IF(control!$B$3=4,AQ69,-999)))) -> 3.180547494 | AU69: 516415 | AV69: 531454 | AW69: 4870 | AX69: 3857 | AY69: 1 | AZ69: 1
A70: Guilford | B70: AS0063 | C70: under | D70: Piedmont Surgical Center | E70: N | F70: 0 | G70: 0 | H70: 2 | I70: 0 | J70: 0 | K70: 0 | L70: 0 | M70: 2 | O70: 0 | P70: 90 | Q70: 380 | R70: 570 | S70: =IF(C70="T",0,IF(AND(control!$B$10=2,E70="4A",R70>0),4,IF(AND(control!$B$10=2,E70="4B",R70>0),5,IF(AND(control!$B$10=1,C70="A",R70>0),4,IF(AND(C70="H",R70>control!$F$24),1,IF(AND(C70="H",R70>=control!$F$25,R70<=control!$G$25),2,IF(AND(C70="H",R70>control!$F$26,R70<control!$G$26),3,"null"))))))) -> null | T70: 380 | U70: =IF(C70="T",0,IF(AND(control!$B$10=2,E70="4A",T70>0),4,IF(AND(control!$B$10=2,E70="4B",T70>0),5,IF(AND(control!$B$10=1,C70="A",T70>0),4,IF(AND(C70="H",T70>control!$M$24),1,IF(AND(C70="H",T70>=control!$M$25,T70<=control!$N$25),2,IF(AND(C70="H",T70>control!$M$26,T70<control!$N$26),3,"null"))))))) -> null | V70: =IF(control!$B$19=1,S70,IF(control!$B$19=2,U70,"unk")) -> null | W70: =IF(AND(V70=0,control!$B$55=2,N70>control!$G$61),control!$G$61,IF(AND(V70=1,N70>control!$G$61),control!$G$61,IF(AND(V70=2,N70>control!$G$62),control!$G$62,IF(AND(V70=3,N70>control!$G$63),control!$G$63,N70)))) -> 0 | X70: =IF(AND(V70=0,control!$B$55=2,P70>control!$O$61),control!$O$61,IF(AND(V70=1,P70>control!$O$61),control!$O$61,IF(AND(V70=2,P70>control!$O$62),control!$O$62,IF(AND(V70=3,P70>control!$O$63),control!$O$63,IF(AND(V70=4,P70>control!$O$64),control!$O$64,IF(AND(V70=5,P70>control!$O$65),control!$O$65,P70)))))) -> 90 | Y70: =O70*control!$B$15/60 -> 0 | Z70: =Q70*control!$C$15/60 -> 570 | AA70: =IF(V70=control!$B$45,O70*control!$E$45/60,IF(V70=control!$B$46,O70*control!$E$46/60,IF(V70=control!$B$47,O70*control!$E$47/60,IF(V70=control!$B$48,O70*control!$E$48/60,IF(V70=control!$B$49,O70*control!$E$49/60,IF(V70=control!$B$50,O70*control!$E$50/60,0)))))) -> 0 | AB70: =IF(V70=control!$B$45,Q70*control!$F$45/60,IF(V70=control!$B$46,Q70*control!$F$46/60,IF(V70=control!$B$47,Q70*control!$F$47/60,IF(V70=control!$B$48,Q70*control!$F$48/60,IF(V70=control!$B$49,Q70*control!$F$49/60,IF(V70=control!$B$50,Q70*control!$F$50/60,0)))))) -> 0 | AC70: 0 | AD70: 570 | AE70: 0 | AF70: 570 | AG70: =IF(control!$B$3=1,Y70+Z70,IF(control!$B$3=2,AA70+AB70,IF(control!$B$3=3,AC70+AD70,IF(control!$B$3=4,AE70+AF70,-999)))) -> 570 | AH70: =IF(control!$L$14=2,AW70,IF(control!$L$14=3,AY70,AU70)) -> 516415 | AI70: =IF(control!$L$14=2,AX70,IF(control!$L$14=3,AZ70,AV70)) -> 531454 | AJ70: =IF(AND(AH70<>0,control!$O$3=1),100*(AI70-AH70)/AH70,IF(AND(AH70<>0,control!$O$3=2),(((AI70/AH70)^0.25)-1)*100,0)) -> 2.912192713 | AK70: 586.5994985 | AL70: 7 | AM70: 253 | AN70: =AK70/control!$H$15 -> 0.3133544329 | AO70: =IF(V70=0,AK70/control!$J$45,IF(V70=1,AK70/control!$J$46,IF(V70=2,AK70/control!$J$47,IF(V70=3,AK70/control!$J$48,IF(V70=4,AK70/control!$J$49,IF(V70=5,AK70/control!$J$50,0)))))) -> 0 | AP70: =IF(V70=0,AK70/control!$M$71,IF(V70=1,AK70/control!$M$71,IF(V70=2,AK70/control!$M$72,IF(V70=3,AK70/control!$M$73,IF(V70=4,AK70/control!$M$74,IF(V70=5,AK70/control!$M$75,0)))))) -> 0 | AQ70: =IF(V70=0,AK70/control!$J$84,IF(V70=1,AK70/control!$J$85,IF(V70=2,AK70/control!$J$86,IF(V70=3,AK70/control!$J$87,IF(V70=4,AK70/control!$J$88,IF(V70=5,AK70/control!$J$89,0)))))) -> 0 | AR70: =IF(control!$B$3=1,AN70,IF(control!$B$3=2,AO70,IF(control!$B$3=3,AP70,IF(control!$B$3=4,AQ70,-999)))) -> 0.3133544329 | AU70: 516415 | AV70: 531454 | AW70: 945 | AX70: 380 | AY70: 1 | AZ70: 1
A71: Guilford | B71: H0052 | C71: H | D71: High Point Regional Health | E71: N | F71: 307 | G71: 3 | H71: 0 | I71: 9 | J71: -1 | K71: 0 | L71: -1 | M71: 10 | N71: 189 | O71: 2667 | P71: 124 | Q71: 2558 | R71: 13687.58333 | S71: =IF(C71="T",0,IF(AND(control!$B$10=2,E71="4A",R71>0),4,IF(AND(control!$B$10=2,E71="4B",R71>0),5,IF(AND(control!$B$10=1,C71="A",R71>0),4,IF(AND(C71="H",R71>control!$F$24),1,IF(AND(C71="H",R71>=control!$F$25,R71<=control!$G$25),2,IF(AND(C71="H",R71>control!$F$26,R71<control!$G$26),3,"null"))))))) -> 3 | T71: 5225 | U71: =IF(C71="T",0,IF(AND(control!$B$10=2,E71="4A",T71>0),4,IF(AND(control!$B$10=2,E71="4B",T71>0),5,IF(AND(control!$B$10=1,C71="A",T71>0),4,IF(AND(C71="H",T71>control!$M$24),1,IF(AND(C71="H",T71>=control!$M$25,T71<=control!$N$25),2,IF(AND(C71="H",T71>control!$M$26,T71<control!$N$26),3,"null"))))))) -> 2 | V71: =IF(control!$B$19=1,S71,IF(control!$B$19=2,U71,"unk")) -> 3 | W71: =IF(AND(V71=0,control!$B$55=2,N71>control!$G$61),control!$G$61,IF(AND(V71=1,N71>control!$G$61),control!$G$61,IF(AND(V71=2,N71>control!$G$62),control!$G$62,IF(AND(V71=3,N71>control!$G$63),control!$G$63,N71)))) -> 152.3863469 | X71: =IF(AND(V71=0,control!$B$55=2,P71>control!$O$61),control!$O$61,IF(AND(V71=1,P71>control!$O$61),control!$O$61,IF(AND(V71=2,P71>control!$O$62),control!$O$62,IF(AND(V71=3,P71>control!$O$63),control!$O$63,IF(AND(V71=4,P71>control!$O$64),control!$O$64,IF(AND(V71=5,P71>control!$O$65),control!$O$65,P71)))))) -> 94.96662152 | Y71: =O71*control!$B$15/60 -> 8001 | Z71: =Q71*control!$C$15/60 -> 3837 | AA71: =IF(V71=control!$B$45,O71*control!$E$45/60,IF(V71=control!$B$46,O71*control!$E$46/60,IF(V71=control!$B$47,O71*control!$E$47/60,IF(V71=control!$B$48,O71*control!$E$48/60,IF(V71=control!$B$49,O71*control!$E$49/60,IF(V71=control!$B$50,O71*control!$E$50/60,0)))))) -> 5192.649 | AB71: =IF(V71=control!$B$45,Q71*control!$F$45/60,IF(V71=control!$B$46,Q71*control!$F$46/60,IF(V71=control!$B$47,Q71*control!$F$47/60,IF(V71=control!$B$48,Q71*control!$F$48/60,IF(V71=control!$B$49,Q71*control!$F$49/60,IF(V71=control!$B$50,Q71*control!$F$50/60,0)))))) -> 3136.960667 | AC71: 6773.57312 | AD71: 4048.743631 | AE71: 8401.05 | AF71: 5286.533333 | AG71: =IF(control!$B$3=1,Y71+Z71,IF(control!$B$3=2,AA71+AB71,IF(control!$B$3=3,AC71+AD71,IF(control!$B$3=4,AE71+AF71,-999)))) -> 11838 | AH71: =IF(control!$L$14=2,AW71,IF(control!$L$14=3,AY71,AU71)) -> 516415 | AI71: =IF(control!$L$14=2,AX71,IF(control!$L$14=3,AZ71,AV71)) -> 531454 | AJ71: =IF(AND(AH71<>0,control!$O$3=1),100*(AI71-AH71)/AH71,IF(AND(AH71<>0,control!$O$3=2),(((AI71/AH71)^0.25)-1)*100,0)) -> 2.912192713 | AK71: 12182.74537 | AL71: 7.3 | AM71: 253 | AN71: =AK71/control!$H$15 -> 6.507876802 | AO71: =IF(V71=0,AK71/control!$J$45,IF(V71=1,AK71/control!$J$46,IF(V71=2,AK71/control!$J$47,IF(V71=3,AK71/control!$J$48,IF(V71=4,AK71/control!$J$49,IF(V71=5,AK71/control!$J$50,0)))))) -> 7.321361402 | AP71: =IF(V71=0,AK71/control!$M$71,IF(V71=1,AK71/control!$M$71,IF(V71=2,AK71/control!$M$72,IF(V71=3,AK71/control!$M$73,IF(V71=4,AK71/control!$M$74,IF(V71=5,AK71/control!$M$75,0)))))) -> 7.809452162 | AQ71: =IF(V71=0,AK71/control!$J$84,IF(V71=1,AK71/control!$J$85,IF(V71=2,AK71/control!$J$86,IF(V71=3,AK71/control!$J$87,IF(V71=4,AK71/control!$J$88,IF(V71=5,AK71/control!$J$89,0)))))) -> 8.701960981 | AR71: =IF(control!$B$3=1,AN71,IF(control!$B$3=2,AO71,IF(control!$B$3=3,AP71,IF(control!$B$3=4,AQ71,-999)))) -> 6.507876802 | AU71: 516415 | AV71: 531454 | AW71: 6370 | AX71: 5225 | AY71: 1 | AZ71: 1
A72: Guilford | B72: H0073 | C72: H | D72: Kindred Hospital - Greensboro | E72: N | F72: 0 | G72: 0 | H72: 0 | I72: 1 | J72: 0 | K72: 0 | L72: 0 | M72: 1 | N72: 60 | O72: 227 | P72: 60 | Q72: 3 | R72: 230 | S72: =IF(C72="T",0,IF(AND(control!$B$10=2,E72="4A",R72>0),4,IF(AND(control!$B$10=2,E72="4B",R72>0),5,IF(AND(control!$B$10=1,C72="A",R72>0),4,IF(AND(C72="H",R72>control!$F$24),1,IF(AND(C72="H",R72>=control!$F$25,R72<=control!$G$25),2,IF(AND(C72="H",R72>control!$F$26,R72<control!$G$26),3,"null"))))))) -> 3 | T72: 230 | U72: =IF(C72="T",0,IF(AND(control!$B$10=2,E72="4A",T72>0),4,IF(AND(control!$B$10=2,E72="4B",T72>0),5,IF(AND(control!$B$10=1,C72="A",T72>0),4,IF(AND(C72="H",T72>control!$M$24),1,IF(AND(C72="H",T72>=control!$M$25,T72<=control!$N$25),2,IF(AND(C72="H",T72>control!$M$26,T72<control!$N$26),3,"null"))))))) -> 3 | V72: =IF(control!$B$19=1,S72,IF(control!$B$19=2,U72,"unk")) -> 3 | W72: =IF(AND(V72=0,control!$B$55=2,N72>control!$G$61),control!$G$61,IF(AND(V72=1,N72>control!$G$61),control!$G$61,IF(AND(V72=2,N72>control!$G$62),control!$G$62,IF(AND(V72=3,N72>control!$G$63),control!$G$63,N72)))) -> 60 | X72: =IF(AND(V72=0,control!$B$55=2,P72>control!$O$61),control!$O$61,IF(AND(V72=1,P72>control!$O$61),control!$O$61,IF(AND(V72=2,P72>control!$O$62),control!$O$62,IF(AND(V72=3,P72>control!$O$63),control!$O$63,IF(AND(V72=4,P72>control!$O$64),control!$O$64,IF(AND(V72=5,P72>control!$O$65),control!$O$65,P72)))))) -> 60 | Y72: =O72*control!$B$15/60 -> 681 | Z72: =Q72*control!$C$15/60 -> 4.5 | AA72: =IF(V72=control!$B$45,O72*control!$E$45/60,IF(V72=control!$B$46,O72*control!$E$46/60,IF(V72=control!$B$47,O72*control!$E$47/60,IF(V72=control!$B$48,O72*control!$E$48/60,IF(V72=control!$B$49,O72*control!$E$49/60,IF(V72=control!$B$50,O72*control!$E$50/60,0)))))) -> 441.969 | AB72: =IF(V72=control!$B$45,Q72*control!$F$45/60,IF(V72=control!$B$46,Q72*control!$F$46/60,IF(V72=control!$B$47,Q72*control!$F$47/60,IF(V72=control!$B$48,Q72*control!$F$48/60,IF(V72=control!$B$49,Q72*control!$F$49/60,IF(V72=control!$B$50,Q72*control!$F$50/60,0)))))) -> 3.679 | AC72: 227 | AD72: 3 | AE72: 227 | AF72: 3 | AG72: =IF(control!$B$3=1,Y72+Z72,IF(control!$B$3=2,AA72+AB72,IF(control!$B$3=3,AC72+AD72,IF(control!$B$3=4,AE72+AF72,-999)))) -> 685.5 | AH72: =IF(control!$L$14=2,AW72,IF(control!$L$14=3,AY72,AU72)) -> 516415 | AI72: =IF(control!$L$14=2,AX72,IF(control!$L$14=3,AZ72,AV72)) -> 531454 | AJ72: =IF(AND(AH72<>0,control!$O$3=1),100*(AI72-AH72)/AH72,IF(AND(AH72<>0,control!$O$3=2),(((AI72/AH72)^0.25)-1)*100,0)) -> 2.912192713 | AK72: 705.463081 | AL72: 6 | AM72: 156 | AN72: =AK72/control!$H$15 -> 0.3768499365 | AO72: =IF(V72=0,AK72/control!$J$45,IF(V72=1,AK72/control!$J$46,IF(V72=2,AK72/control!$J$47,IF(V72=3,AK72/control!$J$48,IF(V72=4,AK72/control!$J$49,IF(V72=5,AK72/control!$J$50,0)))))) -> 0.4239561785 | AP72: =IF(V72=0,AK72/control!$M$71,IF(V72=1,AK72/control!$M$71,IF(V72=2,AK72/control!$M$72,IF(V72=3,AK72/control!$M$73,IF(V72=4,AK72/control!$M$74,IF(V72=5,AK72/control!$M$75,0)))))) -> 0.4522199237 | AQ72: =IF(V72=0,AK72/control!$J$84,IF(V72=1,AK72/control!$J$85,IF(V72=2,AK72/control!$J$86,IF(V72=3,AK72/control!$J$87,IF(V72=4,AK72/control!$J$88,IF(V72=5,AK72/control!$J$89,0)))))) -> 0.5039022007 | AR72: =IF(control!$B$3=1,AN72,IF(control!$B$3=2,AO72,IF(control!$B$3=3,AP72,IF(control!$B$3=4,AQ72,-999)))) -> 0.3768499365 | AU72: 516415 | AV72: 531454 | AW72: 321 | AX72: 230 | AY72: 1 | AZ72: 1
